{"text_format":"1","workbook":"xlsx","n_sheets":7,"sheets":["Form1ClaimSubmission","Sheet2","Sheet4","AbbreviationList","ErrorList","Claim Summary","Validation List"],"not_rendered":{"charts":0,"images":1,"macros":1,"external_links":0,"defined_names":1,"comments":0,"pivot_tables":0},"unopened":[],"bounds":{"document_bytes":16777216,"sheet_cells":100000,"rows_first":2000,"rows_last":500,"rows_between":2000,"halvings":0,"cell_chars":16384,"cell_head_chars":4096},"cells_cut":0,"cells_raw":0,"read":"whole","date_system":"1900"}

{"sheet":"Form1ClaimSubmission","index":0,"n_rows":5,"n_cols":82,"rows_kept":5,"cut":false,"hidden":false,"merged":[[2,65,2,81],[2,62,2,63],[0,0,0,4],[1,5,1,6],[1,3,1,4],[1,1,1,2]]}
["DETAILS OF LOANS SANCTIONED AND DISBURSED, IN RESPECT OF WHICH SUBSIDY IS BEING CLAIMED UNDER THE PRADHAN MANTRI AWAS YOJANA - CREDIT LINKED SUBSIDY SCHEME OF MINISTRY OF HOUSING AND URBAN POVERTY ALLEVIATION, , GOVERNMENT OF INDIA",null,null,null,null,"Validation Pending"]
["Version No - 1.1","",null,null,null,"Processing Row-1/1"]
["I. Serial No.",null,null,"II. Borrower Details",null,null,null,null,null,null,null,null,null,null,null,null,null,null,null,null,null,null,null,null,"III. Co-borrower Details (Spouse in cases of married couples)",null,null,null,null,null,null,null,null,"IV. Household Details",null,"V.Property Details",null,null,null,null,null,null,null,null,null,null,null,"VI. Individual Housing Loan Details",null,null,null,null,null,null,null,null,null,null,null,"VII. Current Disbursement Details",null,null,"VIII. Interest Subsidy Details",null,"IX. Miscellaneous Details","X. Number of family members excluding borrower/ co-borrower and  above 18 years age. with maximum of 4 members in the descending order of age"]
["Serial Number","Loan Account Number (To be unique within a PLI)","Installment No [Single Installment (00), Multiple Installments (Respective Number)]","Name of the  Borrower","Unique Identification Proof [Aadhaar (01), Voter’s Card (02), PAN Card (03), Passport No (04), Revenue Authority Certificate (05), Others (06)] ","If Others (06)- Please specify(Identification proof Type)","Unique Identification Number","Father's/ Husband's Name","Sex [Male (01), Female (02), Transgender (03)]","Date of Birth [DD/MM/YYYY]","PAN Card Number","Employment Category [Self Employed (01), Salaried (02), Regular wage(03), Labour(04), Others (05)]","Is Communication Details change required? [New Loan Account(01), Yes(02), No(03)]","Residence Proof Type  [Aadhaar (01), Voter’s Card (02), Ration Card (03), Mobile/Telephone bill (04), Gas Bill(05), Others (06)]","Residence Address 1 (Plot/House/Flat/Door No. & Street etc)","Residence Address 2 (Locality/Colony name)","Residence Address 3 Place Name (City/Taluq/Village)","Residence Address 4 (District)","Residence Address 5 (State)","Residence Address 6 (Pincode)","Mobile Number","Category Caste* [General(01), SC (02), ST (03), OBC (04)]","Category Religion* [Whether belong to Hindu (01), Muslim (02), Christian (03), Sikh (04), Jainism (05), Buddhism (06), Zorastrianism(07), Others (08)]","Preference Given Based on: Person with Disability (01), Manual Scavenger (02), Widow(03), SC/ST/OBC (04), Minority(05), Transgender(06), No preference (07)]","Name of Co-borrower","Father's/ Husband's Name","Sex [Male (01), Female (02), Transgender (03)]","Date of Birth [DD/MM/YYYY]","Unique Identification Proof [Aadhaar (01), Voter’s Card (02), PAN Card (03), Passport No (04), Revenue Authority Certificate (05) Others (06)] ","If Other (06)  then please specify(identification proof Type)","Unique Identification Number","PAN Card Number","Employment Category [Self Employed (01), Salaried (02), Regular wage(03), Labour(04), Others (05)]","Household Category (EWS/LIG)","Household Annual Income (Amount in Rs.)","Property Type [Flat (01), Single Storey / Individual House (02), Extension (03), Repair(04)]","Property Category [New(01), Re-purchased (02), Existing & Owned (03)]","Carpet Area of Property [Upto 30 sq.m. (01), More than 30 sq.m. and Upto 60 sq.m. (02), More than 60 sq.m(03)]","Property Address 1 (Plot/House/Flat/Door No. & Street etc)","Property Address 2 (Locality/Colony name)","Property Address 3 [Name of the Place (City/Taluq/Village)]","Property Address 6 (Pincode)","Location Code (Based on Census 2011 for 4041 Statutory towns)","Name of the Place (Based on Census 2011 for 4041 Statutory towns)  (No entry required)","Property Address 4 (District)  (No entry required)","Property Address 5 (State)  (No entry required)","Ownership Mode [(only in case of enhancement) (Whether Self owned (01), Inherited(02),Not applicable in case of purchase(03))]","Stage of Construction [ Yet to Start (00), Ground Level(01), Plinth Level(02), Roof Level(03), Finishing Stage (04), Superstructure Completed(For multistory only) (05), Completed(06)]","Loan Source [Direct (01), Govt. designated Agency/ULB (02), NGO (03), Developer (04)]","Loan Purpose [Purchase (01), Construction (02), Extension (03), Repair (04)]","Is the loan taken over or  Balance Transferred from another PLI  [Yes(01), No(02)]","Loan Amount Sanctioned (in Rs.)","Loan Interest Rate (% p.a.)","Loan Interest Rate Type (% p.a.) [fixed (01), floating(02)]","Loan Tenure, including Moratorium Period (in months)","Loan Moratorium Period (in months), if any","Repayment Start Date of Principal or EMI [DD/MM/YYYY]","EMI Amount mentioned in Sanction Letter (in Rs.)","Date of First Disbursement Date [DD/MM/YYYY]","Current Loan Installment Disbursement Date for which subsidy claimed [DD/MM/YYYY]","Loan Amount Disbursed for this Claim (in Rs.)","Cumulative Loan Disbursement (excluding the disbursement made for the current subsidy claim)  (in Rs.)","NPV of the Interest Subsidy Amount (in Rs.)","Interest Subsidy Amount Claimed (in Rs.)","Cummulative subsidy released by NHB and credited to Borrower account before this claim","Number of family members excluding borrower and co-borrower","Name 1","Unique Identification Proof [Aadhaar (01), Voter’s Card (02), PAN Card (03), Passport No (04), Revenue Authority Certificate (05), Others (06)] ","If Others (06)- Please specify(Identification proof Type)","UINo 1","Name 2","Unique Identification Proof [Aadhaar (01), Voter’s Card (02), PAN Card (03), Passport No (04), Revenue Authority Certificate (05), Others (06)] ","If Others (06)- Please specify(Identification proof Type)","UINO 2","Name 3","Unique Identification Proof [Aadhaar (01), Voter’s Card (02), PAN Card (03), Passport No (04), Revenue Authority Certificate (05), Others (06)] ","If Others (06)- Please specify(Identification proof Type)","UINO 3","Name 4","Unique Identification Proof [Aadhaar (01), Voter’s Card (02), PAN Card (03), Passport No (04), Revenue Authority Certificate (05), Others (06)] ","If Others (06)- Please specify(Identification proof Type)","UINO 4"]
["1","2",3,{"$f":"C5+1","v":4},5,"6","7","8","9","1900-01-10","11","12","13","14","15","16","17","18","19",20,21,"22","23","24","25","26","27","1900-01-28","29","30","31","32","33","34",35,"36","37","38","39","40","41",42,43,"44","45","46","47","48","49","50","51",52,{"$f":"AZ5+1","v":53},"54",55,56,"1900-02-26",58,"1900-02-28",60,61,62,63,64,65,"66","67","68","69","70","71","72","73","74","75","76","77","78","79","80","81","82"]

{"sheet":"Sheet2","index":1,"n_rows":3000,"n_cols":29,"rows_kept":3000,"cut":false,"hidden":true,"merged":[]}
["Please Enable Your Macro Setting To  work with Data Sheet.",null,null,null,null,null,null,null,null,null,null,null,null,null,null,null,null,null,null,null,null,null,null,null,null,null,null,null,"DD Created"]
[]
[]
[]
["Invalid"]
["Invalid"]
["Invalid"]
["Invalid"]
[1.1000000000000001]
[]
[]
[]
[]
[]
[]
[]
[]
[]
[]
[]
[]
[]
[]
[]
[]
[]
[]
[]
[]
[]
[]
[]
[]
[]
[]
[]
[]
[]
[]
[]
[]
[]
[]
[]
[]
[]
[]
[]
[]
[]
[]
[]
[]
[]
[]
[]
[]
[]
[]
[]
[]
[]
[]
[]
[]
[]
[]
[]
[]
[]
[]
[]
[]
[]
[]
[]
[]
[]
[]
[]
[]
[]
[]
[]
[]
[]
[]
[]
[]
[]
[]
[]
[]
[]
[]
[]
[]
[]
[]
[]
[]
[]
[]
[]
[]
[]
[]
[]
[]
[]
[]
[]
[]
[]
[]
[]
[]
[]
[]
[]
[]
[]
[]
[]
[]
[]
[]
[]
[]
[]
[]
[]
[]
[]
[]
[]
[]
[]
[]
[]
[]
[]
[]
[]
[]
[]
[]
[]
[]
[]
[]
[]
[]
[]
[]
[]
[]
[]
[]
[]
[]
[]
[]
[]
[]
[]
[]
[]
[]
[]
[]
[]
[]
[]
[]
[]
[]
[]
[]
[]
[]
[]
[]
[]
[]
[]
[]
[]
[]
[]
[]
[]
[]
[]
[]
[]
[]
[]
[]
[]
[]
[]
[]
[]
[]
[]
[]
[]
[]
[]
[]
[]
[]
[]
[]
[]
[]
[]
[]
[]
[]
[]
[]
[]
[]
[]
[]
[]
[]
[]
[]
[]
[]
[]
[]
[]
[]
[]
[]
[]
[]
[]
[]
[]
[]
[]
[]
[]
[]
[]
[]
[]
[]
[]
[]
[]
[]
[]
[]
[]
[]
[]
[]
[]
[]
[]
[]
[]
[]
[]
[]
[]
[]
[]
[]
[]
[]
[]
[]
[]
[]
[]
[]
[]
[]
[]
[]
[]
[]
[]
[]
[]
[]
[]
[]
[]
[]
[]
[]
[]
[]
[]
[]
[]
[]
[]
[]
[]
[]
[]
[]
[]
[]
[]
[]
[]
[]
[]
[]
[]
[]
[]
[]
[]
[]
[]
[]
[]
[]
[]
[]
[]
[]
[]
[]
[]
[]
[]
[]
[]
[]
[]
[]
[]
[]
[]
[]
[]
[]
[]
[]
[]
[]
[]
[]
[]
[]
[]
[]
[]
[]
[]
[]
[]
[]
[]
[]
[]
[]
[]
[]
[]
[]
[]
[]
[]
[]
[]
[]
[]
[]
[]
[]
[]
[]
[]
[]
[]
[]
[]
[]
[]
[]
[]
[]
[]
[]
[]
[]
[]
[]
[]
[]
[]
[]
[]
[]
[]
[]
[]
[]
[]
[]
[]
[]
[]
[]
[]
[]
[]
[]
[]
[]
[]
[]
[]
[]
[]
[]
[]
[]
[]
[]
[]
[]
[]
[]
[]
[]
[]
[]
[]
[]
[]
[]
[]
[]
[]
[]
[]
[]
[]
[]
[]
[]
[]
[]
[]
[]
[]
[]
[]
[]
[]
[]
[]
[]
[]
[]
[]
[]
[]
[]
[]
[]
[]
[]
[]
[]
[]
[]
[]
[]
[]
[]
[]
[]
[]
[]
[]
[]
[]
[]
[]
[]
[]
[]
[]
[]
[]
[]
[]
[]
[]
[]
[]
[]
[]
[]
[]
[]
[]
[]
[]
[]
[]
[]
[]
[]
[]
[]
[]
[]
[]
[]
[]
[]
[]
[]
[]
[]
[]
[]
[]
[]
[]
[]
[]
[]
[]
[]
[]
[]
[]
[]
[]
[]
[]
[]
[]
[]
[]
[]
[]
[]
[]
[]
[]
[]
[]
[]
[]
[]
[]
[]
[]
[]
[]
[]
[]
[]
[]
[]
[]
[]
[]
[]
[]
[]
[]
[]
[]
[]
[]
[]
[]
[]
[]
[]
[]
[]
[]
[]
[]
[]
[]
[]
[]
[]
[]
[]
[]
[]
[]
[]
[]
[]
[]
[]
[]
[]
[]
[]
[]
[]
[]
[]
[]
[]
[]
[]
[]
[]
[]
[]
[]
[]
[]
[]
[]
[]
[]
[]
[]
[]
[]
[]
[]
[]
[]
[]
[]
[]
[]
[]
[]
[]
[]
[]
[]
[]
[]
[]
[]
[]
[]
[]
[]
[]
[]
[]
[]
[]
[]
[]
[]
[]
[]
[]
[]
[]
[]
[]
[]
[]
[]
[]
[]
[]
[]
[]
[]
[]
[]
[]
[]
[]
[]
[]
[]
[]
[]
[]
[]
[]
[]
[]
[]
[]
[]
[]
[]
[]
[]
[]
[]
[]
[]
[]
[]
[]
[]
[]
[]
[]
[]
[]
[]
[]
[]
[]
[]
[]
[]
[]
[]
[]
[]
[]
[]
[]
[]
[]
[]
[]
[]
[]
[]
[]
[]
[]
[]
[]
[]
[]
[]
[]
[]
[]
[]
[]
[]
[]
[]
[]
[]
[]
[]
[]
[]
[]
[]
[]
[]
[]
[]
[]
[]
[]
[]
[]
[]
[]
[]
[]
[]
[]
[]
[]
[]
[]
[]
[]
[]
[]
[]
[]
[]
[]
[]
[]
[]
[]
[]
[]
[]
[]
[]
[]
[]
[]
[]
[]
[]
[]
[]
[]
[]
[]
[]
[]
[]
[]
[]
[]
[]
[]
[]
[]
[]
[]
[]
[]
[]
[]
[]
[]
[]
[]
[]
[]
[]
[]
[]
[]
[]
[]
[]
[]
[]
[]
[]
[]
[]
[]
[]
[]
[]
[]
[]
[]
[]
[]
[]
[]
[]
[]
[]
[]
[]
[]
[]
[]
[]
[]
[]
[]
[]
[]
[]
[]
[]
[]
[]
[]
[]
[]
[]
[]
[]
[]
[]
[]
[]
[]
[]
[]
[]
[]
[]
[]
[]
[]
[]
[]
[]
[]
[]
[]
[]
[]
[]
[]
[]
[]
[]
[]
[]
[]
[]
[]
[]
[]
[]
[]
[]
[]
[]
[]
[]
[]
[]
[]
[]
[]
[]
[]
[]
[]
[]
[]
[]
[]
[]
[]
[]
[]
[]
[]
[]
[]
[]
[]
[]
[]
[]
[]
[]
[]
[]
[]
[]
[]
[]
[]
[]
[]
[]
[]
[]
[]
[]
[]
[]
[]
[]
[]
[]
[]
[]
[]
[]
[]
[]
[]
[]
[]
[]
[]
[]
[]
[]
[]
[]
[]
[]
[]
[]
[]
[]
[]
[]
[]
[]
[]
[]
[]
[]
[]
[]
[]
[]
[]
[]
[]
[]
[]
[]
[]
[]
[]
[]
[]
[]
[]
[]
[]
[]
[]
[]
[]
[]
[]
[]
[]
[]
[]
[]
[]
[]
[]
[]
[]
[]
[]
[]
[]
[]
[]
[]
[]
[]
[]
[]
[]
[]
[]
[]
[]
[]
[]
[]
[]
[]
[]
[]
[]
[]
[]
[]
[]
[]
[]
[]
[]
[]
[]
[]
[]
[]
[]
[]
[]
[]
[]
[]
[]
[]
[]
[]
[]
[]
[]
[]
[]
[]
[]
[]
[]
[]
[]
[]
[]
[]
[]
[]
[]
[]
[]
[]
[]
[]
[]
[]
[]
[]
[]
[]
[]
[]
[]
[]
[]
[]
[]
[]
[]
[]
[]
[]
[]
[]
[]
[]
[]
[]
[]
[]
[]
[]
[]
[]
[]
[]
[]
[]
[]
[]
[]
[]
[]
[]
[]
[]
[]
[]
[]
[]
[]
[]
[]
[]
[]
[]
[]
[]
[]
[]
[]
[]
[]
[]
[]
[]
[]
[]
[]
[]
[]
[]
[]
[]
[]
[]
[]
[]
[]
[]
[]
[]
[]
[]
[]
[]
[]
[]
[]
[]
[]
[]
[]
[]
[]
[]
[]
[]
[]
[]
[]
[]
[]
[]
[]
[]
[]
[]
[]
[]
[]
[]
[]
[]
[]
[]
[]
[]
[]
[]
[]
[]
[]
[]
[]
[]
[]
[]
[]
[]
[]
[]
[]
[]
[]
[]
[]
[]
[]
[]
[]
[]
[]
[]
[]
[]
[]
[]
[]
[]
[]
[]
[]
[]
[]
[]
[]
[]
[]
[]
[]
[]
[]
[]
[]
[]
[]
[]
[]
[]
[]
[]
[]
[]
[]
[]
[]
[]
[]
[]
[]
[]
[]
[]
[]
[]
[]
[]
[]
[]
[]
[]
[]
[]
[]
[]
[]
[]
[]
[]
[]
[]
[]
[]
[]
[]
[]
[]
[]
[]
[]
[]
[]
[]
[]
[]
[]
[]
[]
[]
[]
[]
[]
[]
[]
[]
[]
[]
[]
[]
[]
[]
[]
[]
[]
[]
[]
[]
[]
[]
[]
[]
[]
[]
[]
[]
[]
[]
[]
[]
[]
[]
[]
[]
[]
[]
[]
[]
[]
[]
[]
[]
[]
[]
[]
[]
[]
[]
[]
[]
[]
[]
[]
[]
[]
[]
[]
[]
[]
[]
[]
[]
[]
[]
[]
[]
[]
[]
[]
[]
[]
[]
[]
[]
[]
[]
[]
[]
[]
[]
[]
[]
[]
[]
[]
[]
[]
[]
[]
[]
[]
[]
[]
[]
[]
[]
[]
[]
[]
[]
[]
[]
[]
[]
[]
[]
[]
[]
[]
[]
[]
[]
[]
[]
[]
[]
[]
[]
[]
[]
[]
[]
[]
[]
[]
[]
[]
[]
[]
[]
[]
[]
[]
[]
[]
[]
[]
[]
[]
[]
[]
[]
[]
[]
[]
[]
[]
[]
[]
[]
[]
[]
[]
[]
[]
[]
[]
[]
[]
[]
[]
[]
[]
[]
[]
[]
[]
[]
[]
[]
[]
[]
[]
[]
[]
[]
[]
[]
[]
[]
[]
[]
[]
[]
[]
[]
[]
[]
[]
[]
[]
[]
[]
[]
[]
[]
[]
[]
[]
[]
[]
[]
[]
[]
[]
[]
[]
[]
[]
[]
[]
[]
[]
[]
[]
[]
[]
[]
[]
[]
[]
[]
[]
[]
[]
[]
[]
[]
[]
[]
[]
[]
[]
[]
[]
[]
[]
[]
[]
[]
[]
[]
[]
[]
[]
[]
[]
[]
[]
[]
[]
[]
[]
[]
[]
[]
[]
[]
[]
[]
[]
[]
[]
[]
[]
[]
[]
[]
[]
[]
[]
[]
[]
[]
[]
[]
[]
[]
[]
[]
[]
[]
[]
[]
[]
[]
[]
[]
[]
[]
[]
[]
[]
[]
[]
[]
[]
[]
[]
[]
[]
[]
[]
[]
[]
[]
[]
[]
[]
[]
[]
[]
[]
[]
[]
[]
[]
[]
[]
[]
[]
[]
[]
[]
[]
[]
[]
[]
[]
[]
[]
[]
[]
[]
[]
[]
[]
[]
[]
[]
[]
[]
[]
[]
[]
[]
[]
[]
[]
[]
[]
[]
[]
[]
[]
[]
[]
[]
[]
[]
[]
[]
[]
[]
[]
[]
[]
[]
[]
[]
[]
[]
[]
[]
[]
[]
[]
[]
[]
[]
[]
[]
[]
[]
[]
[]
[]
[]
[]
[]
[]
[]
[]
[]
[]
[]
[]
[]
[]
[]
[]
[]
[]
[]
[]
[]
[]
[]
[]
[]
[]
[]
[]
[]
[]
[]
[]
[]
[]
[]
[]
[]
[]
[]
[]
[]
[]
[]
[]
[]
[]
[]
[]
[]
[]
[]
[]
[]
[]
[]
[]
[]
[]
[]
[]
[]
[]
[]
[]
[]
[]
[]
[]
[]
[]
[]
[]
[]
[]
[]
[]
[]
[]
[]
[]
[]
[]
[]
[]
[]
[]
[]
[]
[]
[]
[]
[]
[]
[]
[]
[]
[]
[]
[]
[]
[]
[]
[]
[]
[]
[]
[]
[]
[]
[]
[]
[]
[]
[]
[]
[]
[]
[]
[]
[]
[]
[]
[]
[]
[]
[]
[]
[]
[]
[]
[]
[]
[]
[]
[]
[]
[]
[]
[]
[]
[]
[]
[]
[]
[]
[]
[]
[]
[]
[]
[]
[]
[]
[]
[]
[]
[]
[]
[]
[]
[]
[]
[]
[]
[]
[]
[]
[]
[]
[]
[]
[]
[]
[]
[]
[]
[]
[]
[]
[]
[]
[]
[]
[]
[]
[]
[]
[]
[]
[]
[]
[]
[]
[]
[]
[]
[]
[]
[]
[]
[]
[]
[]
[]
[]
[]
[]
[]
[]
[]
[]
[]
[]
[]
[]
[]
[]
[]
[]
[]
[]
[]
[]
[]
[]
[]
[]
[]
[]
[]
[]
[]
[]
[]
[]
[]
[]
[]
[]
[]
[]
[]
[]
[]
[]
[]
[]
[]
[]
[]
[]
[]
[]
[]
[]
[]
[]
[]
[]
[]
[]
[]
[]
[]
[]
[]
[]
[]
[]
[]
[]
[]
[]
[]
[]
[]
[]
[]
[]
[]
[]
[]
[]
[]
[]
[]
[]
[]
[]
[]
[]
[]
[]
[]
[]
[]
[]
[]
[]
[]
[]
[]
[]
[]
[]
[]
[]
[]
[]
[]
[]
[]
[]
[]
[]
[]
[]
[]
[]
[]
[]
[]
[]
[]
[]
[]
[]
[]
[]
[]
[]
[]
[]
[]
[]
[]
[]
[]
[]
[]
[]
[]
[]
[]
[]
[]
[]
[]
[]
[]
[]
[]
[]
[]
[]
[]
[]
[]
[]
[]
[]
[]
[]
[]
[]
[]
[]
[]
[]
[]
[]
[]
[]
[]
[]
[]
[]
[]
[]
[]
[]
[]
[]
[]
[]
[]
[]
[]
[]
[]
[]
[]
[]
[]
[]
[]
[]
[]
[]
[]
[]
[]
[]
[]
[]
[]
[]
[]
[]
[]
[]
[]
[]
[]
[]
[]
[]
[]
[]
[]
[]
[]
[]
[]
[]
[]
[]
[]
[]
[]
[]
[]
[]
[]
[]
[]
[]
[]
[]
[]
[]
[]
[]
[]
[]
[]
[]
[]
[]
[]
[]
[]
[]
[]
[]
[]
[]
[]
[]
[]
[]
[]
[]
[]
[]
[]
[]
[]
[]
[]
[]
[]
[]
[]
[]
[]
[]
[]
[]
[]
[]
[]
[]
[]
[]
[]
[]
[]
[]
[]
[]
[]
[]
[]
[]
[]
[]
[]
[]
[]
[]
[]
[]
[]
[]
[]
[]
[]
[]
[]
[]
[]
[]
[]
[]
[]
[]
[]
[]
[]
[]
[]
[]
[]
[]
[]
[]
[]
[]
[]
[]
[]
[]
[]
[]
[]
[]
[]
[]
[]
[]
[]
[]
[]
[]
[]
[]
[]
[]
[]
[]
[]
[]
[]
[]
[]
[]
[]
[]
[]
[]
[]
[]
[]
[]
[]
[]
[]
[]
[]
[]
[]
[]
[]
[]
[]
[]
[]
[]
[]
[]
[]
[]
[]
[]
[]
[]
[]
[]
[]
[]
[]
[]
[]
[]
[]
[]
[]
[]
[]
[]
[]
[]
[]
[]
[]
[]
[]
[]
[]
[]
[]
[]
[]
[]
[]
[]
[]
[]
[]
[]
[]
[]
[]
[]
[]
[]
[]
[]
[]
[]
[]
[]
[]
[]
[]
[]
[]
[]
[]
[]
[]
[]
[]
[]
[]
[]
[]
[]
[]
[]
[]
[]
[]
[]
[]
[]
[]
[]
[]
[]
[]
[]
[]
[]
[]
[]
[]
[]
[]
[]
[]
[]
[]
[]
[]
[]
[]
[]
[]
[]
[]
[]
[]
[]
[]
[]
[]
[]
[]
[]
[]
[]
[]
[]
[]
[]
[]
[]
[]
[]
[]
[]
[]
[]
[]
[]
[]
[]
[]
[]
[]
[]
[]
[]
[]
[]
[]
[]
[]
[]
[]
[]
[]
[]
[]
[]
[]
[]
[]
[]
[]
[]
[]
[]
[]
[]
[]
[]
[]
[]
[]
[]
[]
[]
[]
[]
[]
[]
[]
[]
[]
[]
[]
[]
[]
[]
[]
[]
[]
[]
[]
[]
[]
[]
[]
[]
[]
[]
[]
[]
[]
[]
[]
[]
[]
[]
[]
[]
[]
[]
[]
[]
[]
[]
[]
[]
[]
[]
[]
[]
[]
[]
[]
[]
[]
[]
[]
[]
[]
[]
[]
[]
[]
[]
[]
[]
[]
[]
[]
[]
[]
[]
[]
[]
[]
[]
[]
[]
[]
[]
[]
[]
[]
[]
[]
[]
[]
[]
[]
[]
[]
[]
[]
[]
[]
[]
[]
[]
[]
[]
[]
[]
[]
[]
[]
[]
[]
[]
[]
[]
[]
[]
[]
[]
[]
[]
[]
[]
[]
[]
[]
[]
[]
[]
[]
[]
[]
[]
[]
[]
[]
[]
[]
[]
[]
[]
[]
[]
[]
[]
[]
[]
[]
[]
[]
[]
[]
[]
[]
[]
[]
[]
[]
[]
[]
[]
[]
[]
[]
[]
[]
[]
[]
[]
[]
[]
[]
[]
[]
[]
[]
[]
[]
[]
[]
[]
[]
[]
[]
[]
[]
[]
[]
[]
[]
[]
[]
[]
[]
[]
[]
[]
[]
[]
[]
[]
[]
[]
[]
[]
[]
[]
[]
[]
[]
[]
[]
[]
[]
[]
[]
[]
[]
[]
[]
[]
[]
[]
[]
[]
[]
[]
[]
[]
[]
[]
[]
[]
[]
[]
[]
[]
[]
[]
[]
[]
[]
[]
[]
[]
[]
[]
[]
[]
[]
[]
[]
[]
[]
[]
[]
[]
[]
[]
[]
[]
[]
[]
[]
[]
[]
[]
[]
[]
[]
[]
[]
[]
[]
[]
[]
[]
[]
[]
[]
[]
[]
[]
[]
[]
[]
[]
[]
[]
[]
[]
[]
[]
[]
[]
[]
[]
[]
[]
[]
[]
[]
[]
[]
[]
[]
[]
[]
[]
[]
[]
[]
[]
[]
[]
[]
[]
[]
[]
[]
[]
[]
[]
[]
[]
[]
[]
[]
[]
[]
[]
[]
[]
[]
[]
[]
[]
[]
[]
[]
[]
[]
[]
[]
[]
[]
[]
[]
[]
[]
[]
[]
[]
[]
[]
[]
[]
[]
[]
[]
[]
[]
[]
[]
[]
[]
[]
[]
[]
[]
[]
[]
[]
[]
[]
[]
[]
[]
[]
[]
[]
[]
[]
[]
[]
[]
[]
[]
[]
[]
[]
[]
[]
[]
[]
[]
[]
[]
[]
[]
[]
[]
[]
[]
[]
[]
[]
[]
[]
[]
[]
[]
[]
[]
[]
[]
[]
[]
[]
[]
[]
[]
[]
[]
[]
[]
[]
[]
[]
[]
[]
[]
[]
[]
[]
[]
[]
[]
[]
[]
[]
[]
[]
[]
[]
[]
[]
[]
[]
[]
[]
[]
[]
[]
[]
[]
[]
[]
[]
[]
[]
[]
[]
[]
[]
[]
[]
[]
[]
[]
[]
[]
[]
[]
[]
[]
[]
[]
[]
[]
[]
[]
[]
[]
[]
[]
[]
[]
[]
[]
[]
[]
[]
[]
[]
[]
[]
[]
[]
[]
[]
[]
[]
[]
[]
[]
[]
[]
[]
[]
[]
[]
[]
[]
[]
[]
[]
[]
[]
[]
[]
[]
[]
[]
[]
[]
[]
[]
[]
[]
[]
[]
[]
[]
[]
[]
[]
[]
[]
[]
[]
[]
[]
[]
[]
[]
[]
[]
[]
[]
[]
[]
[]
[]
[]
[]
[]
[]
[]
[]
["SecondTime"]

{"sheet":"Sheet4","index":2,"n_rows":9,"n_cols":41,"rows_kept":9,"cut":false,"hidden":true,"merged":[[3,1,3,5],[3,6,3,16],[4,2,4,4],[4,10,4,19],[4,20,6,21],[6,1,6,4],[6,6,6,9],[6,10,6,11],[6,12,6,13],[6,14,6,17],[4,22,4,40],[5,2,5,4],[5,6,5,9],[5,10,5,13],[5,14,5,17],[5,34,6,35],[5,36,6,37],[5,38,6,40],[6,23,6,24],[5,25,5,27],[5,28,5,31],[5,22,5,24],[5,33,6,33]]}
[]
[]
[]
[null,null,null,null,null,null,"Validation Pending"]
[null,"District",null,null,null,null,null,null,null,null,"Existing Infrastructure",null,null,null,null,null,null,null,null,null,"Already sanctioned and under execution in RGGVY/State/other schemes",null,"3KVA"]
[null,"Block",null,null,null,null,"Coverage of HouseHold",null,null,null,"Existing LT Networks (in Kms)",null,null,null,"Existing Distribution Transformers (DT)",null,null,null,null,null,null,null,"New 11KV Line(From nearest Power Station)",null,null,"Capacity Augmntatiom of DTR",null,null,"Renovaton of DTS Sub Stations",null,null,null,"Renovation of DrthingTR Sub Station E","Bay","Conversion of LT Line to LT Line",null,"New LT Line",null,"Conversion of LT Line to 11KV(HVDS)"]
[null,"Village Details",null,null,null,"Habitation Details","Rural Households",null,null,null,"1-PH",null,"3-PH",null,"KVA",null,null,null,null,null,null,null,"Line","New DTR",null,"16-25KVA","25-63KVA","63-100KVA","16KVA","25KVA","63KVA","100KVA"]
[null,"SlNO","Village","Census Code","Main Habitation of Village (Yes/No)","Habitation Name","Total No.of RHhs in Habitation","No of Rhs Electrified as on date","No of RHhs proposed to be electrified ","BPL Hhs proposed to be electrified under present scheme","OverHead","AB Cable","OverHead","AB Cable","Capacity","Nos","Capacity","Nos","Existing Connected Load(in KW)","Spare DT capacity(in KVA)","Total No of Rhhs","Total no of BPL Hhs","11KV Weasel Conductor Length(Kms)","Type","Nos","Nos","Nos","Nos","Nos","Nos","Nos","Nos","Nos","Nos","Type","Length","Type","Length","11KV Weasel Conductor Length(Kms)","DTR Type","Nos"]
[null,"Total"]

{"sheet":"AbbreviationList","index":3,"n_rows":4043,"n_cols":11,"rows_kept":4043,"cut":false,"hidden":false,"merged":[]}
[]
["State/ UT","Abbreviation",null,null,"State Code","State Name","Dist Code","District Name","Town Code","Town Name","Sub District Code"]
["Andaman and Nicobar Islands","AN",null,null,1,"Jammu and Kashmir",1,"Kupwara",800001,"Kupwara ","00001"]
["Andhra Pradesh","AP",null,null,1,"Jammu and Kashmir",1,"Kupwara",800002,"Handwara ","00002"]
["Arunachal Pradesh","AR",null,null,1,"Jammu and Kashmir",8,"Baramula",800003,"Sopore ","00032"]
["Assam","AS",null,null,1,"Jammu and Kashmir",8,"Baramula",800004,"Watra Gam ","00033"]
["Bihar","BR",null,null,1,"Jammu and Kashmir",8,"Baramula",800005,"Pattan ","00034"]
["Chandigarh","CH",null,null,1,"Jammu and Kashmir",8,"Baramula",800006,"Baramula ","00035"]
["Chhattisgarh","CG",null,null,1,"Jammu and Kashmir",8,"Baramula",800007,"Uri ","00037"]
["Dadra and Nagar Haveli","DN",null,null,1,"Jammu and Kashmir",8,"Baramula",800008,"Kunzer ","00039"]
["Daman and Diu","DD",null,null,1,"Jammu and Kashmir",8,"Baramula",800009,"Gulmarg ","00039"]
["Delhi","DL",null,null,1,"Jammu and Kashmir",9,"Bandipore",800010,"Bandipore ","00041"]
["Goa","GA",null,null,1,"Jammu and Kashmir",9,"Bandipore",800011,"Hajan ","00042"]
["Gujarat","GJ",null,null,1,"Jammu and Kashmir",9,"Bandipore",800012,"Sumbal ","00042"]
["Haryana","HR",null,null,1,"Jammu and Kashmir",10,"Srinagar",800013,"Srinagar ","00043"]
["Himachal Pradesh","HP",null,null,1,"Jammu and Kashmir",10,"Srinagar",800014,"Badami Bagh (CB)","00043"]
["Jammu and Kashmir","JK",null,null,1,"Jammu and Kashmir",11,"Ganderbal",800015,"Ganderbal ","00047"]
["Jharkhand","JH",null,null,1,"Jammu and Kashmir",2,"Badgam",800016,"Magam ","00005"]
["Karnataka","KA",null,null,1,"Jammu and Kashmir",2,"Badgam",800017,"Beerwah ","00005"]
["Kerala","KL",null,null,1,"Jammu and Kashmir",2,"Badgam",800018,"Khansahib ","00006"]
["Lakshadweep","LD",null,null,1,"Jammu and Kashmir",2,"Badgam",800019,"Badgam ","00007"]
["Madhya Pradesh","MP",null,null,1,"Jammu and Kashmir",2,"Badgam",800020,"Chadura ","00008"]
["Maharashtra","MH",null,null,1,"Jammu and Kashmir",2,"Badgam",800021,"Charar-i-Sharief ","00009"]
["Manipur","MN",null,null,1,"Jammu and Kashmir",12,"Pulwama",800022,"Pampora ","00048"]
["Meghalaya","ML",null,null,1,"Jammu and Kashmir",12,"Pulwama",800023,"Khrew ","00048"]
["Mizoram","MZ",null,null,1,"Jammu and Kashmir",12,"Pulwama",800024,"Awantipora ","00049"]
["Nagaland","NL",null,null,1,"Jammu and Kashmir",12,"Pulwama",800025,"Tral ","00050"]
["Odisha","OD",null,null,1,"Jammu and Kashmir",12,"Pulwama",800026,"Pulwama ","00051"]
["Puducherry","PY",null,null,1,"Jammu and Kashmir",13,"Shupiyan",800027,"Shupiyan ","00052"]
["Punjab","PB",null,null,1,"Jammu and Kashmir",14,"Anantnag",800028,"Pahalgam ","00053"]
["Rajasthan","RJ",null,null,1,"Jammu and Kashmir",14,"Anantnag",800029,"Aishmuquam ","00053"]
["Sikkim","SK",null,null,1,"Jammu and Kashmir",14,"Anantnag",800030,"Bijbehara ","00054"]
["Tamil Nadu","TN",null,null,1,"Jammu and Kashmir",14,"Anantnag",800031,"Arwani ","00054"]
["Telangana","TS",null,null,1,"Jammu and Kashmir",14,"Anantnag",800032,"Mattan ","00055"]
["Tripura","TR",null,null,1,"Jammu and Kashmir",14,"Anantnag",800033,"Anantnag ","00055"]
["Uttarakhand","UK",null,null,1,"Jammu and Kashmir",14,"Anantnag",800034,"Achhabal ","00055"]
["Uttar Pradesh","UP",null,null,1,"Jammu and Kashmir",14,"Anantnag",800035,"Seer Hamdan ","00055"]
["West Bengal","WB",null,null,1,"Jammu and Kashmir",14,"Anantnag",800036,"Shangus ","00056"]
[null,null,null,null,1,"Jammu and Kashmir",14,"Anantnag",800037,"Koker Nag ","00057"]
[null,null,null,null,1,"Jammu and Kashmir",14,"Anantnag",800038,"Qazi Gund ","00058"]
[null,null,null,null,1,"Jammu and Kashmir",14,"Anantnag",800039,"Duru Verinag ","00058"]
[null,null,null,null,1,"Jammu and Kashmir",15,"Kulgam",800040,"Kulgam ","00059"]
[null,null,null,null,1,"Jammu and Kashmir",15,"Kulgam",800041,"Quimoh ","00059"]
[null,null,null,null,1,"Jammu and Kashmir",15,"Kulgam",800042,"Frisal ","00059"]
[null,null,null,null,1,"Jammu and Kashmir",15,"Kulgam",800043,"Yari Pora ","00059"]
[null,null,null,null,1,"Jammu and Kashmir",15,"Kulgam",800044,"Ashmuji Khalsa ","00059"]
[null,null,null,null,1,"Jammu and Kashmir",15,"Kulgam",800045,"Mehmood Pora ","00059"]
[null,null,null,null,1,"Jammu and Kashmir",15,"Kulgam",800046,"Devsar ","00060"]
[null,null,null,null,1,"Jammu and Kashmir",3,"Leh(Ladakh)",800047,"Leh Ladakh ","00010"]
[null,null,null,null,1,"Jammu and Kashmir",4,"Kargil",800048,"Kargil ","00013"]
[null,null,null,null,1,"Jammu and Kashmir",16,"Doda",800049,"Doda ","00062"]
[null,null,null,null,1,"Jammu and Kashmir",16,"Doda",800050,"Bhaderwah ","00065"]
[null,null,null,null,1,"Jammu and Kashmir",17,"Ramban",800051,"Banihal ","00066"]
[null,null,null,null,1,"Jammu and Kashmir",17,"Ramban",800052,"Ramban ","00067"]
[null,null,null,null,1,"Jammu and Kashmir",17,"Ramban",800053,"Batote ","00067"]
[null,null,null,null,1,"Jammu and Kashmir",18,"Kishtwar",800054,"Kishtwar ","00068"]
[null,null,null,null,1,"Jammu and Kashmir",19,"Udhampur",800055,"Udhampur ","00072"]
[null,null,null,null,1,"Jammu and Kashmir",19,"Udhampur",800056,"Kud ","00073"]
[null,null,null,null,1,"Jammu and Kashmir",19,"Udhampur",800057,"Chenani ","00073"]
[null,null,null,null,1,"Jammu and Kashmir",19,"Udhampur",800058,"Ram Nagar ","00074"]
[null,null,null,null,1,"Jammu and Kashmir",20,"Reasi",800059,"Reasi ","00077"]
[null,null,null,null,1,"Jammu and Kashmir",20,"Reasi",800060,"Purana Daroorh ","00077"]
[null,null,null,null,1,"Jammu and Kashmir",20,"Reasi",800061,"Katra ","00077"]
[null,null,null,null,1,"Jammu and Kashmir",5,"Punch",800062,"Punch ","00016"]
[null,null,null,null,1,"Jammu and Kashmir",5,"Punch",800063,"Surankote ","00019"]
[null,null,null,null,1,"Jammu and Kashmir",6,"Rajouri",800064,"Thanamandi ","00020"]
[null,null,null,null,1,"Jammu and Kashmir",6,"Rajouri",800065,"Rajauri ","00022"]
[null,null,null,null,1,"Jammu and Kashmir",6,"Rajouri",800066,"Nowshehra ","00025"]
[null,null,null,null,1,"Jammu and Kashmir",6,"Rajouri",800067,"Sunderbani ","00026"]
[null,null,null,null,1,"Jammu and Kashmir",21,"Jammu",800068,"Jourian ","00078"]
[null,null,null,null,1,"Jammu and Kashmir",21,"Jammu",800069,"Akhnoor ","00078"]
[null,null,null,null,1,"Jammu and Kashmir",21,"Jammu",800070,"Khore ","00078"]
[null,null,null,null,1,"Jammu and Kashmir",21,"Jammu",800071,"Jammu","00079"]
[null,null,null,null,1,"Jammu and Kashmir",21,"Jammu",800072,"Jammu Cantt. (CB)","00079"]
[null,null,null,null,1,"Jammu and Kashmir",21,"Jammu",800073,"Ghomanhasan ","00079"]
[null,null,null,null,1,"Jammu and Kashmir",21,"Jammu",800074,"R.S. Pora ","00080"]
[null,null,null,null,1,"Jammu and Kashmir",21,"Jammu",800075,"Bishna ","00081"]
[null,null,null,null,1,"Jammu and Kashmir",21,"Jammu",800076,"Arnia ","00081"]
[null,null,null,null,1,"Jammu and Kashmir",22,"Samba",800077,"Bari Brahamana ","00082"]
[null,null,null,null,1,"Jammu and Kashmir",22,"Samba",800078,"Vijay Pur ","00082"]
[null,null,null,null,1,"Jammu and Kashmir",22,"Samba",800079,"Samba ","00082"]
[null,null,null,null,1,"Jammu and Kashmir",22,"Samba",800080,"Ramgarh ","00082"]
[null,null,null,null,1,"Jammu and Kashmir",7,"Kathua",800081,"Billawar ","00027"]
[null,null,null,null,1,"Jammu and Kashmir",7,"Kathua",800082,"Bashohli ","00028"]
[null,null,null,null,1,"Jammu and Kashmir",7,"Kathua",800083,"Lakhanpur ","00030"]
[null,null,null,null,1,"Jammu and Kashmir",7,"Kathua",800084,"Kathua ","00030"]
[null,null,null,null,1,"Jammu and Kashmir",7,"Kathua",800085,"Parole ","00030"]
[null,null,null,null,1,"Jammu and Kashmir",7,"Kathua",800086,"Hiranagar ","00031"]
[null,null,null,null,2,"Himachal Pradesh",23,"Chamba",800087,"Dalhousie (CB)","00087"]
[null,null,null,null,2,"Himachal Pradesh",23,"Chamba",800088,"Dalhousie ","00087"]
[null,null,null,null,2,"Himachal Pradesh",23,"Chamba",800089,"Bakloh (CB)","00088"]
[null,null,null,null,2,"Himachal Pradesh",23,"Chamba",800090,"Chuari Khas","00088"]
[null,null,null,null,2,"Himachal Pradesh",23,"Chamba",800091,"Chamba ","00090"]
[null,null,null,null,2,"Himachal Pradesh",24,"Kangra",800092,"Nurpur ","00093"]
[null,null,null,null,2,"Himachal Pradesh",24,"Kangra",800093,"Dharmsala ","00099"]
[null,null,null,null,2,"Himachal Pradesh",24,"Kangra",800094,"Yol (CB)","00099"]
[null,null,null,null,2,"Himachal Pradesh",24,"Kangra",800095,"Kangra ","00100"]
[null,null,null,null,2,"Himachal Pradesh",24,"Kangra",800096,"Nagrota Bagwan ","00101"]
[null,null,null,null,2,"Himachal Pradesh",24,"Kangra",800097,"Dera Gopipur","00103"]
[null,null,null,null,2,"Himachal Pradesh",24,"Kangra",800098,"Jawalamukhi","00104"]
[null,null,null,null,2,"Himachal Pradesh",24,"Kangra",800099,"Palampur ","00111"]
[null,null,null,null,2,"Himachal Pradesh",26,"Kullu",800100,"Manali ","00117"]
[null,null,null,null,2,"Himachal Pradesh",26,"Kullu",800101,"Kullu ","00118"]
[null,null,null,null,2,"Himachal Pradesh",26,"Kullu",800102,"Bhuntar","00118"]
[null,null,null,null,2,"Himachal Pradesh",26,"Kullu",800103,"Banjar","00120"]
[null,null,null,null,2,"Himachal Pradesh",27,"Mandi",800104,"Jogindarnagar","00124"]
[null,null,null,null,2,"Himachal Pradesh",27,"Mandi",800105,"Sarkaghat","00129"]
[null,null,null,null,2,"Himachal Pradesh",27,"Mandi",800106,"Sundarnagar ","00132"]
[null,null,null,null,2,"Himachal Pradesh",27,"Mandi",800107,"Mandi ","00133"]
[null,null,null,null,2,"Himachal Pradesh",27,"Mandi",800108,"Rawalsar","00133"]
[null,null,null,null,2,"Himachal Pradesh",28,"Hamirpur",800109,"Tira Sujanpur","00140"]
[null,null,null,null,2,"Himachal Pradesh",28,"Hamirpur",800110,"Nadaun","00141"]
[null,null,null,null,2,"Himachal Pradesh",28,"Hamirpur",800111,"Hamirpur ","00143"]
[null,null,null,null,2,"Himachal Pradesh",28,"Hamirpur",800112,"Bhota","00144"]
[null,null,null,null,2,"Himachal Pradesh",29,"Una",800113,"Daulatpur","00148"]
[null,null,null,null,2,"Himachal Pradesh",29,"Una",800114,"Gagret","00148"]
[null,null,null,null,2,"Himachal Pradesh",29,"Una",800115,"Una ","00150"]
[null,null,null,null,2,"Himachal Pradesh",29,"Una",800116,"Mehatpur Basdehra","00150"]
[null,null,null,null,2,"Himachal Pradesh",29,"Una",800117,"Santokhgarh","00150"]
[null,null,null,null,2,"Himachal Pradesh",30,"Bilaspur",800118,"Ghumarwin ","00152"]
[null,null,null,null,2,"Himachal Pradesh",30,"Bilaspur",800119,"Talai","00154"]
[null,null,null,null,2,"Himachal Pradesh",30,"Bilaspur",800120,"Naina Devi ","00155"]
[null,null,null,null,2,"Himachal Pradesh",30,"Bilaspur",800121,"Bilaspur ","00156"]
[null,null,null,null,2,"Himachal Pradesh",31,"Solan",800122,"Arki","00158"]
[null,null,null,null,2,"Himachal Pradesh",31,"Solan",800123,"Nalagarh ","00161"]
[null,null,null,null,2,"Himachal Pradesh",31,"Solan",800124,"Baddi ","00162"]
[null,null,null,null,2,"Himachal Pradesh",31,"Solan",800125,"Kasauli (CB)","00164"]
[null,null,null,null,2,"Himachal Pradesh",31,"Solan",800126,"Parwanoo ","00164"]
[null,null,null,null,2,"Himachal Pradesh",31,"Solan",800127,"Dagshai (CB)","00165"]
[null,null,null,null,2,"Himachal Pradesh",31,"Solan",800128,"Solan ","00165"]
[null,null,null,null,2,"Himachal Pradesh",31,"Solan",800129,"Sabathu (CB)","00165"]
[null,null,null,null,2,"Himachal Pradesh",32,"Sirmaur",800130,"Rajgarh","00167"]
[null,null,null,null,2,"Himachal Pradesh",32,"Sirmaur",800131,"Nahan ","00172"]
[null,null,null,null,2,"Himachal Pradesh",32,"Sirmaur",800132,"Paonta Sahib ","00173"]
[null,null,null,null,2,"Himachal Pradesh",33,"Shimla",800133,"Rampur ","00177"]
[null,null,null,null,2,"Himachal Pradesh",33,"Shimla",800134,"Narkanda","00179"]
[null,null,null,null,2,"Himachal Pradesh",33,"Shimla",800135,"Seoni","00180"]
[null,null,null,null,2,"Himachal Pradesh",33,"Shimla",800136,"Jutogh (CB)","00181"]
[null,null,null,null,2,"Himachal Pradesh",33,"Shimla",800137,"Shimla ","00182"]
[null,null,null,null,2,"Himachal Pradesh",33,"Shimla",800138,"Theog ","00184"]
[null,null,null,null,2,"Himachal Pradesh",33,"Shimla",800139,"Chaupal ","00185"]
[null,null,null,null,2,"Himachal Pradesh",33,"Shimla",800140,"Jubbal","00188"]
[null,null,null,null,2,"Himachal Pradesh",33,"Shimla",800141,"Kotkhai","00189"]
[null,null,null,null,2,"Himachal Pradesh",33,"Shimla",800142,"Rohru ","00191"]
[null,null,null,null,3,"Punjab",35,"Gurdaspur",800143,"Sujanpur ","00201"]
[null,null,null,null,3,"Punjab",35,"Gurdaspur",800144,"Pathankot ","00201"]
[null,null,null,null,3,"Punjab",35,"Gurdaspur",800145,"Dina Nagar ","00202"]
[null,null,null,null,3,"Punjab",35,"Gurdaspur",800146,"Gurdaspur ","00202"]
[null,null,null,null,3,"Punjab",35,"Gurdaspur",800147,"Dhariwal ","00202"]
[null,null,null,null,3,"Punjab",35,"Gurdaspur",800148,"Fatehgarh Churian ","00203"]
[null,null,null,null,3,"Punjab",35,"Gurdaspur",800149,"Batala ","00203"]
[null,null,null,null,3,"Punjab",35,"Gurdaspur",800150,"Qadian ","00203"]
[null,null,null,null,3,"Punjab",35,"Gurdaspur",800151,"Sri Hargobindpur ","00203"]
[null,null,null,null,3,"Punjab",35,"Gurdaspur",800152,"Dera Baba Nanak ","00204"]
[null,null,null,null,3,"Punjab",36,"Kapurthala ",800153,"Bhulath","00205"]
[null,null,null,null,3,"Punjab",36,"Kapurthala ",800154,"Begowal","00205"]
[null,null,null,null,3,"Punjab",36,"Kapurthala ",800155,"Kapurthala ","00206"]
[null,null,null,null,3,"Punjab",36,"Kapurthala ",800156,"Dhilwan","00206"]
[null,null,null,null,3,"Punjab",36,"Kapurthala ",800157,"Sultanpur ","00207"]
[null,null,null,null,3,"Punjab",36,"Kapurthala ",800158,"Phagwara ","00208"]
[null,null,null,null,3,"Punjab",37,"Jalandhar",800159,"Lohian Khass","00209"]
[null,null,null,null,3,"Punjab",37,"Jalandhar",800160,"Shahkot","00209"]
[null,null,null,null,3,"Punjab",37,"Jalandhar",800161,"Nakodar ","00210"]
[null,null,null,null,3,"Punjab",37,"Jalandhar",800162,"Goraya","00211"]
[null,null,null,null,3,"Punjab",37,"Jalandhar",800163,"Phillaur ","00211"]
[null,null,null,null,3,"Punjab",37,"Jalandhar",800164,"Nurmahal ","00211"]
[null,null,null,null,3,"Punjab",37,"Jalandhar",800165,"Jalandhar Cantt. (CB)","00212"]
[null,null,null,null,3,"Punjab",37,"Jalandhar",800166,"Jalandhar ","00213"]
[null,null,null,null,3,"Punjab",37,"Jalandhar",800167,"Alawalpur ","00212"]
[null,null,null,null,3,"Punjab",37,"Jalandhar",800168,"Adampur ","00212"]
[null,null,null,null,3,"Punjab",37,"Jalandhar",800169,"Kartarpur ","00213"]
[null,null,null,null,3,"Punjab",37,"Jalandhar",800170,"Bhogpur","00213"]
[null,null,null,null,3,"Punjab",38,"Hoshiarpur",800171,"Urmar Tanda ","00214"]
[null,null,null,null,3,"Punjab",38,"Hoshiarpur",800172,"Dasua ","00214"]
[null,null,null,null,3,"Punjab",38,"Hoshiarpur",800173,"Gardhiwala ","00214"]
[null,null,null,null,3,"Punjab",38,"Hoshiarpur",800174,"Mukerian ","00215"]
[null,null,null,null,3,"Punjab",38,"Hoshiarpur",800175,"Hariana ","00216"]
[null,null,null,null,3,"Punjab",38,"Hoshiarpur",800176,"Hoshiarpur ","00216"]
[null,null,null,null,3,"Punjab",38,"Hoshiarpur",800177,"Sham Chaurasi ","00216"]
[null,null,null,null,3,"Punjab",38,"Hoshiarpur",800178,"Mahilpur","00217"]
[null,null,null,null,3,"Punjab",38,"Hoshiarpur",800179,"Garhshankar ","00217"]
[null,null,null,null,3,"Punjab",39,"Shahid Bhagat Singh Nagar ",800180,"Banga ","00218"]
[null,null,null,null,3,"Punjab",39,"Shahid Bhagat Singh Nagar ",800181,"Nawanshahr ","00218"]
[null,null,null,null,3,"Punjab",39,"Shahid Bhagat Singh Nagar ",800182,"Rahon ","00218"]
[null,null,null,null,3,"Punjab",39,"Shahid Bhagat Singh Nagar ",800183,"Balachaur ","00219"]
[null,null,null,null,3,"Punjab",40,"Fatehgarh Sahib",800184,"Bassi Pathana ","00220"]
[null,null,null,null,3,"Punjab",40,"Fatehgarh Sahib",800185,"Sirhind Fatehgarh Sahib ","00221"]
[null,null,null,null,3,"Punjab",40,"Fatehgarh Sahib",800186,"Amloh ","00222"]
[null,null,null,null,3,"Punjab",40,"Fatehgarh Sahib",800187,"Gobindgarh ","00222"]
[null,null,null,null,3,"Punjab",40,"Fatehgarh Sahib",800188,"Khamanon","00223"]
[null,null,null,null,3,"Punjab",41,"Ludhiana",800189,"Machhiwara ","00224"]
[null,null,null,null,3,"Punjab",41,"Ludhiana",800190,"Samrala ","00224"]
[null,null,null,null,3,"Punjab",41,"Ludhiana",800191,"Khanna ","00225"]
[null,null,null,null,3,"Punjab",41,"Ludhiana",800192,"Payal ","00226"]
[null,null,null,null,3,"Punjab",41,"Ludhiana",800193,"Maloud","00226"]
[null,null,null,null,3,"Punjab",41,"Ludhiana",800194,"Doraha ","00226"]
[null,null,null,null,3,"Punjab",41,"Ludhiana",800195,"Sahnewal ","00227"]
[null,null,null,null,3,"Punjab",41,"Ludhiana",800196,"Ludhiana ","00227"]
[null,null,null,null,3,"Punjab",41,"Ludhiana",800197,"Mullanpur Dakha","00228"]
[null,null,null,null,3,"Punjab",41,"Ludhiana",800198,"Raikot ","00229"]
[null,null,null,null,3,"Punjab",41,"Ludhiana",800199,"Jagraon ","00230"]
[null,null,null,null,3,"Punjab",42,"Moga",800200,"Badhni Kalan","00231"]
[null,null,null,null,3,"Punjab",42,"Moga",800201,"Bagha Purana ","00232"]
[null,null,null,null,3,"Punjab",42,"Moga",800202,"Moga ","00233"]
[null,null,null,null,3,"Punjab",42,"Moga",800203,"Dharamkot ","00233"]
[null,null,null,null,3,"Punjab",43,"Firozpur",800204,"Makhu","00234"]
[null,null,null,null,3,"Punjab",43,"Firozpur",800205,"Zira ","00234"]
[null,null,null,null,3,"Punjab",43,"Firozpur",800206,"Mallanwala Khass","00234"]
[null,null,null,null,3,"Punjab",43,"Firozpur",800207,"Firozpur ","00235"]
[null,null,null,null,3,"Punjab",43,"Firozpur",800208,"Firozpur Cantt (CB)","00235"]
[null,null,null,null,3,"Punjab",43,"Firozpur",800209,"Talwandi Bhai ","00235"]
[null,null,null,null,3,"Punjab",43,"Firozpur",800210,"Mudki","00235"]
[null,null,null,null,3,"Punjab",43,"Firozpur",800211,"Guru Har Sahai  ","00236"]
[null,null,null,null,3,"Punjab",43,"Firozpur",800212,"Jalalabad ","00236"]
[null,null,null,null,3,"Punjab",43,"Firozpur",800213,"Fazilka ","00237"]
[null,null,null,null,3,"Punjab",43,"Firozpur",800214,"Abohar ","00238"]
[null,null,null,null,3,"Punjab",44,"Muktsar",800215,"Malout ","00239"]
[null,null,null,null,3,"Punjab",44,"Muktsar",800216,"Gidderbaha ","00240"]
[null,null,null,null,3,"Punjab",44,"Muktsar",800217,"Muktsar ","00241"]
[null,null,null,null,3,"Punjab",44,"Muktsar",800218,"Bariwala","00241"]
[null,null,null,null,3,"Punjab",45,"Faridkot",800219,"Faridkot ","00242"]
[null,null,null,null,3,"Punjab",45,"Faridkot",800220,"Kot Kapura ","00242"]
[null,null,null,null,3,"Punjab",45,"Faridkot",800221,"Jaitu ","00243"]
[null,null,null,null,3,"Punjab",46,"Bathinda",800222,"Bhagta Bhai Ka","00244"]
[null,null,null,null,3,"Punjab",46,"Bathinda",800223,"Rampura Phul ","00244"]
[null,null,null,null,3,"Punjab",46,"Bathinda",800224,"Bhucho Mandi ","00245"]
[null,null,null,null,3,"Punjab",46,"Bathinda",800225,"Goniana ","00245"]
[null,null,null,null,3,"Punjab",46,"Bathinda",800226,"Bathinda ","00245"]
[null,null,null,null,3,"Punjab",46,"Bathinda",800227,"Sangat ","00245"]
[null,null,null,null,3,"Punjab",46,"Bathinda",800228,"Kot Fatta ","00245"]
[null,null,null,null,3,"Punjab",46,"Bathinda",800229,"Raman ","00246"]
[null,null,null,null,3,"Punjab",46,"Bathinda",800230,"Talwandi Sabo","00246"]
[null,null,null,null,3,"Punjab",46,"Bathinda",800231,"Maur ","00246"]
[null,null,null,null,3,"Punjab",47,"Mansa",800232,"Sardulgarh","00247"]
[null,null,null,null,3,"Punjab",47,"Mansa",800233,"Bareta ","00248"]
[null,null,null,null,3,"Punjab",47,"Mansa",800234,"Budhlada ","00248"]
[null,null,null,null,3,"Punjab",47,"Mansa",800235,"Bhikhi","00249"]
[null,null,null,null,3,"Punjab",47,"Mansa",800236,"Mansa ","00249"]
[null,null,null,null,3,"Punjab",48,"Patiala",800237,"Samana ","00250"]
[null,null,null,null,3,"Punjab",48,"Patiala",800238,"Patran ","00251"]
[null,null,null,null,3,"Punjab",48,"Patiala",800239,"Ghagga","00251"]
[null,null,null,null,3,"Punjab",48,"Patiala",800240,"Nabha ","00252"]
[null,null,null,null,3,"Punjab",48,"Patiala",800241,"Bhadson","00252"]
[null,null,null,null,3,"Punjab",48,"Patiala",800242,"Patiala","00253"]
[null,null,null,null,3,"Punjab",48,"Patiala",800243,"Sanaur ","00253"]
[null,null,null,null,3,"Punjab",48,"Patiala",800244,"Ghanaur","00254"]
[null,null,null,null,3,"Punjab",48,"Patiala",800245,"Rajpura ","00254"]
[null,null,null,null,3,"Punjab",49,"Amritsar ",800246,"Ramdas ","00255"]
[null,null,null,null,3,"Punjab",49,"Amritsar ",800247,"Ajnala","00255"]
[null,null,null,null,3,"Punjab",49,"Amritsar ",800248,"Raja Sansi","00255"]
[null,null,null,null,3,"Punjab",49,"Amritsar ",800249,"Majitha ","00256"]
[null,null,null,null,3,"Punjab",49,"Amritsar ",800250,"Amritsar Cantt. (CB)","00256"]
[null,null,null,null,3,"Punjab",49,"Amritsar ",800251,"Jandiala ","00256"]
[null,null,null,null,3,"Punjab",49,"Amritsar ",800252,"Amritsar ","00257"]
[null,null,null,null,3,"Punjab",49,"Amritsar ",800253,"Rayya","00258"]
[null,null,null,null,3,"Punjab",50,"Tarn Taran",800254,"Tarn Taran ","00259"]
[null,null,null,null,3,"Punjab",50,"Tarn Taran",800255,"Patti ","00260"]
[null,null,null,null,3,"Punjab",50,"Tarn Taran",800256,"Khem Karan","00260"]
[null,null,null,null,3,"Punjab",51,"Rupnagar",800257,"Anandpur Sahib ","00262"]
[null,null,null,null,3,"Punjab",51,"Rupnagar",800258,"Nangal ","00263"]
[null,null,null,null,3,"Punjab",51,"Rupnagar",800259,"Rupnagar ","00264"]
[null,null,null,null,3,"Punjab",51,"Rupnagar",800260,"Chamkaur Sahib","00265"]
[null,null,null,null,3,"Punjab",51,"Rupnagar",800261,"Morinda ","00265"]
[null,null,null,null,3,"Punjab",52,"Sahibzada Ajit Singh Nagar",800262,"Kurali ","00266"]
[null,null,null,null,3,"Punjab",52,"Sahibzada Ajit Singh Nagar",800263,"Kharar ","00266"]
[null,null,null,null,3,"Punjab",52,"Sahibzada Ajit Singh Nagar",800264,"Naya Gaon","00266"]
[null,null,null,null,3,"Punjab",52,"Sahibzada Ajit Singh Nagar",800265,"Banur ","00267"]
[null,null,null,null,3,"Punjab",52,"Sahibzada Ajit Singh Nagar",800266,"S.A.S. Nagar (Mohali) ","00267"]
[null,null,null,null,3,"Punjab",52,"Sahibzada Ajit Singh Nagar",800267,"Zirakpur ","00268"]
[null,null,null,null,3,"Punjab",52,"Sahibzada Ajit Singh Nagar",800268,"Dera Bassi ","00268"]
[null,null,null,null,3,"Punjab",53,"Sangrur",800269,"Ahmedgarh ","00269"]
[null,null,null,null,3,"Punjab",53,"Sangrur",800270,"Malerkotla ","00269"]
[null,null,null,null,3,"Punjab",53,"Sangrur",800271,"Dhuri ","00270"]
[null,null,null,null,3,"Punjab",53,"Sangrur",800272,"Bhawanigarh ","00271"]
[null,null,null,null,3,"Punjab",53,"Sangrur",800273,"Sangrur ","00271"]
[null,null,null,null,3,"Punjab",53,"Sangrur",800274,"Longowal ","00271"]
[null,null,null,null,3,"Punjab",53,"Sangrur",800275,"Cheema","00272"]
[null,null,null,null,3,"Punjab",53,"Sangrur",800276,"Sunam Udham Singh Wala ","00272"]
[null,null,null,null,3,"Punjab",53,"Sangrur",800277,"Dirba","00272"]
[null,null,null,null,3,"Punjab",53,"Sangrur",800278,"Lehragaga ","00273"]
[null,null,null,null,3,"Punjab",53,"Sangrur",800279,"Moonak","00274"]
[null,null,null,null,3,"Punjab",53,"Sangrur",800280,"Khanauri","00274"]
[null,null,null,null,3,"Punjab",54,"Barnala",800281,"Barnala ","00275"]
[null,null,null,null,3,"Punjab",54,"Barnala",800282,"Handiaya","00275"]
[null,null,null,null,3,"Punjab",54,"Barnala",800283,"Dhanaula ","00275"]
[null,null,null,null,3,"Punjab",54,"Barnala",800284,"Tapa ","00276"]
[null,null,null,null,3,"Punjab",54,"Barnala",800285,"Bhadaur ","00276"]
[null,null,null,null,4,"Chandigarh",55,"Chandigarh",800286,"Chandigarh ","00277"]
[null,null,null,null,5,"Uttarakhand",56,"Uttarkashi",800287,"Barkot","00280"]
[null,null,null,null,5,"Uttarakhand",56,"Uttarkashi",800288,"Uttarkashi ","00283"]
[null,null,null,null,5,"Uttarakhand",56,"Uttarkashi",800289,"Gangotri","00283"]
[null,null,null,null,5,"Uttarakhand",57,"Chamoli",800290,"Badrinathpuri","00284"]
[null,null,null,null,5,"Uttarakhand",57,"Chamoli",800291,"Joshimath  ","00284"]
[null,null,null,null,5,"Uttarakhand",57,"Chamoli",800292,"Chamoli Gopeshwar ","00285"]
[null,null,null,null,5,"Uttarakhand",57,"Chamoli",800293,"Nandprayag","00285"]
[null,null,null,null,5,"Uttarakhand",57,"Chamoli",800294,"Gochar","00287"]
[null,null,null,null,5,"Uttarakhand",57,"Chamoli",800295,"Karnaprayag","00287"]
[null,null,null,null,5,"Uttarakhand",58,"Rudraprayag",800296,"Kedarnath","00290"]
[null,null,null,null,5,"Uttarakhand",58,"Rudraprayag",800297,"Rudraprayag ","00291"]
[null,null,null,null,5,"Uttarakhand",59,"Tehri Garhwal",800298,"Kirtinagar","00294"]
[null,null,null,null,5,"Uttarakhand",61,"Garhwal",800299,"Devaprayag","00307"]
[null,null,null,null,5,"Uttarakhand",59,"Tehri Garhwal",800300,"Tehri ","00297"]
[null,null,null,null,5,"Uttarakhand",59,"Tehri Garhwal",800301,"Chamba  ","00297"]
[null,null,null,null,5,"Uttarakhand",59,"Tehri Garhwal",800302,"Narendranagar ","00299"]
[null,null,null,null,5,"Uttarakhand",59,"Tehri Garhwal",800303,"Muni Ki Reti","00299"]
[null,null,null,null,5,"Uttarakhand",60,"Dehradun",800304,"Chakrata (CB)","00300"]
[null,null,null,null,5,"Uttarakhand",60,"Dehradun",800305,"Vikasnagar ","00303"]
[null,null,null,null,5,"Uttarakhand",60,"Dehradun",800306,"Herbertpur","00303"]
[null,null,null,null,5,"Uttarakhand",60,"Dehradun",800307,"Mussoorie ","00304"]
[null,null,null,null,5,"Uttarakhand",60,"Dehradun",800308,"Landaur (CB)","00304"]
[null,null,null,null,5,"Uttarakhand",60,"Dehradun",800309,"Dehradun ","00304"]
[null,null,null,null,5,"Uttarakhand",60,"Dehradun",800310,"Dehradun (CB)","00304"]
[null,null,null,null,5,"Uttarakhand",60,"Dehradun",800311,"Clement Town (CB)","00304"]
[null,null,null,null,5,"Uttarakhand",60,"Dehradun",800312,"Doiwala","00304"]
[null,null,null,null,5,"Uttarakhand",60,"Dehradun",800313,"Rishikesh ","00305"]
[null,null,null,null,5,"Uttarakhand",60,"Dehradun",800314,"Virbhadra IDPL (ITS)","00305"]
[null,null,null,null,5,"Uttarakhand",61,"Garhwal",800315,"Srinagar ","00306"]
[null,null,null,null,5,"Uttarakhand",61,"Garhwal",800316,"Pauri ","00307"]
[null,null,null,null,5,"Uttarakhand",61,"Garhwal",800317,"Lansdowne (CB)","00310"]
[null,null,null,null,5,"Uttarakhand",61,"Garhwal",800318,"Dogadda ","00313"]
[null,null,null,null,5,"Uttarakhand",61,"Garhwal",800319,"Kotdwara","00313"]
[null,null,null,null,5,"Uttarakhand",62,"Pithoragarh",800320,"Dharchula","00316"]
[null,null,null,null,5,"Uttarakhand",62,"Pithoragarh",800321,"Didihat","00317"]
[null,null,null,null,5,"Uttarakhand",62,"Pithoragarh",800322,"Pithoragarh ","00320"]
[null,null,null,null,5,"Uttarakhand",63,"Bageshwar",800323,"Bageshwar ","00323"]
[null,null,null,null,5,"Uttarakhand",64,"Almora ",800324,"Ranikhet (CB)","00328"]
[null,null,null,null,5,"Uttarakhand",64,"Almora ",800325,"Dwarahat","00329"]
[null,null,null,null,5,"Uttarakhand",64,"Almora ",800326,"Almora (CB)","00330"]
[null,null,null,null,5,"Uttarakhand",64,"Almora ",800327,"Almora ","00330"]
[null,null,null,null,5,"Uttarakhand",65,"Champawat",800328,"Champawat","00334"]
[null,null,null,null,5,"Uttarakhand",65,"Champawat",800329,"Lohaghat","00336"]
[null,null,null,null,5,"Uttarakhand",65,"Champawat",800330,"Tanakpur ","00337"]
[null,null,null,null,5,"Uttarakhand",66,"Nainital",800331,"Nainital ","00340"]
[null,null,null,null,5,"Uttarakhand",66,"Nainital",800332,"Nainital (CB)","00340"]
[null,null,null,null,5,"Uttarakhand",66,"Nainital",800333,"Bhowali ","00340"]
[null,null,null,null,5,"Uttarakhand",66,"Nainital",800334,"Bhimtal","00340"]
[null,null,null,null,5,"Uttarakhand",66,"Nainital",800335,"Haldwani-cum-Kathgodam","00342"]
[null,null,null,null,5,"Uttarakhand",66,"Nainital",800336,"Ramnagar ","00343"]
[null,null,null,null,5,"Uttarakhand",66,"Nainital",800337,"Kaladhungi","00344"]
[null,null,null,null,5,"Uttarakhand",66,"Nainital",800338,"Lalkuan","00345"]
[null,null,null,null,5,"Uttarakhand",67,"Udham Singh Nagar",800339,"Kashipur ","00346"]
[null,null,null,null,5,"Uttarakhand",67,"Udham Singh Nagar",800340,"Mahua Kheraganj","00346"]
[null,null,null,null,5,"Uttarakhand",67,"Udham Singh Nagar",800341,"Mahua Dabra Haripura","00347"]
[null,null,null,null,5,"Uttarakhand",67,"Udham Singh Nagar",800342,"Jaspur ","00347"]
[null,null,null,null,5,"Uttarakhand",67,"Udham Singh Nagar",800343,"Sultanpur","00348"]
[null,null,null,null,5,"Uttarakhand",67,"Udham Singh Nagar",800344,"Bajpur ","00348"]
[null,null,null,null,5,"Uttarakhand",67,"Udham Singh Nagar",800345,"Kela Khera","00348"]
[null,null,null,null,5,"Uttarakhand",67,"Udham Singh Nagar",800346,"Rudrapur","00349"]
[null,null,null,null,5,"Uttarakhand",67,"Udham Singh Nagar",800347,"Kichha ","00349"]
[null,null,null,null,5,"Uttarakhand",67,"Udham Singh Nagar",800348,"Gadarpur ","00350"]
[null,null,null,null,5,"Uttarakhand",67,"Udham Singh Nagar",800349,"Dineshpur","00350"]
[null,null,null,null,5,"Uttarakhand",67,"Udham Singh Nagar",800350,"Shaktigarh","00351"]
[null,null,null,null,5,"Uttarakhand",67,"Udham Singh Nagar",800351,"Sitarganj ","00351"]
[null,null,null,null,5,"Uttarakhand",67,"Udham Singh Nagar",800352,"Khatima ","00352"]
[null,null,null,null,5,"Uttarakhand",68,"Hardwar",800353,"Roorkee ","00353"]
[null,null,null,null,5,"Uttarakhand",68,"Hardwar",800354,"Roorkee (CB)","00353"]
[null,null,null,null,5,"Uttarakhand",68,"Hardwar",800355,"Jhabrera","00353"]
[null,null,null,null,5,"Uttarakhand",68,"Hardwar",800356,"Manglaur ","00353"]
[null,null,null,null,5,"Uttarakhand",68,"Hardwar",800357,"Landhaura","00353"]
[null,null,null,null,5,"Uttarakhand",68,"Hardwar",800358,"Bharat Heavy Electricals Limited Ranipur (ITS)","00354"]
[null,null,null,null,5,"Uttarakhand",68,"Hardwar",800359,"Hardwar","00354"]
[null,null,null,null,5,"Uttarakhand",68,"Hardwar",800360,"Laksar","00355"]
[null,null,null,null,6,"Haryana",69,"Panchkula",800361,"Kalka ","00356"]
[null,null,null,null,6,"Haryana",69,"Panchkula",800362,"Pinjore ","00356"]
[null,null,null,null,6,"Haryana",69,"Panchkula",800363,"Panchkula ","00357"]
[null,null,null,null,6,"Haryana",70,"Ambala",800364,"Naraingarh ","00358"]
[null,null,null,null,6,"Haryana",70,"Ambala",800365,"Ambala ","00359"]
[null,null,null,null,6,"Haryana",70,"Ambala",800366,"Ambala Cantt. (CB)","00359"]
[null,null,null,null,6,"Haryana",70,"Ambala",800367,"Ambala Sadar ","00359"]
[null,null,null,null,6,"Haryana",71,"Yamunanagar",800368,"Jagadhri ","00361"]
[null,null,null,null,6,"Haryana",71,"Yamunanagar",800369,"Yamunanagar ","00361"]
[null,null,null,null,6,"Haryana",72,"Kurukshetra",800370,"Shahbad ","00364"]
[null,null,null,null,6,"Haryana",72,"Kurukshetra",800371,"Pehowa ","00365"]
[null,null,null,null,6,"Haryana",72,"Kurukshetra",800372,"Thanesar ","00366"]
[null,null,null,null,6,"Haryana",72,"Kurukshetra",800373,"Ladwa ","00366"]
[null,null,null,null,6,"Haryana",73,"Kaithal",800374,"Cheeka ","00367"]
[null,null,null,null,6,"Haryana",73,"Kaithal",800375,"Kaithal ","00368"]
[null,null,null,null,6,"Haryana",73,"Kaithal",800376,"Kalayat ","00368"]
[null,null,null,null,6,"Haryana",73,"Kaithal",800377,"Pundri ","00369"]
[null,null,null,null,6,"Haryana",74,"Karnal",800378,"Nilokheri ","00370"]
[null,null,null,null,6,"Haryana",74,"Karnal",800379,"Taraori ","00370"]
[null,null,null,null,6,"Haryana",74,"Karnal",800380,"Indri ","00371"]
[null,null,null,null,6,"Haryana",74,"Karnal",800381,"Karnal ","00372"]
[null,null,null,null,6,"Haryana",74,"Karnal",800382,"Nissing ","00372"]
[null,null,null,null,6,"Haryana",74,"Karnal",800383,"Assandh ","00373"]
[null,null,null,null,6,"Haryana",74,"Karnal",800384,"Gharaunda ","00374"]
[null,null,null,null,6,"Haryana",75,"Panipat",800385,"Panipat ","00375"]
[null,null,null,null,6,"Haryana",75,"Panipat",800386,"Samalkha ","00377"]
[null,null,null,null,6,"Haryana",76,"Sonipat",800387,"Gohana ","00378"]
[null,null,null,null,6,"Haryana",76,"Sonipat",800388,"Ganaur ","00379"]
[null,null,null,null,6,"Haryana",76,"Sonipat",800389,"Sonipat ","00380"]
[null,null,null,null,6,"Haryana",76,"Sonipat",800390,"Kharkhoda ","00381"]
[null,null,null,null,6,"Haryana",77,"Jind",800391,"Narwana ","00382"]
[null,null,null,null,6,"Haryana",77,"Jind",800392,"Uchana ","00382"]
[null,null,null,null,6,"Haryana",77,"Jind",800393,"Jind ","00383"]
[null,null,null,null,6,"Haryana",77,"Jind",800394,"Julana ","00384"]
[null,null,null,null,6,"Haryana",77,"Jind",800395,"Safidon ","00385"]
[null,null,null,null,6,"Haryana",78,"Fatehabad",800396,"Ratia ","00386"]
[null,null,null,null,6,"Haryana",78,"Fatehabad",800397,"Tohana ","00387"]
[null,null,null,null,6,"Haryana",78,"Fatehabad",800398,"Fatehabad ","00388"]
[null,null,null,null,6,"Haryana",79,"Sirsa",800399,"Mandi Dabwali ","00389"]
[null,null,null,null,6,"Haryana",79,"Sirsa",800400,"Kalanwali ","00390"]
[null,null,null,null,6,"Haryana",79,"Sirsa",800401,"Sirsa ","00390"]
[null,null,null,null,6,"Haryana",79,"Sirsa",800402,"Rania ","00391"]
[null,null,null,null,6,"Haryana",79,"Sirsa",800403,"Ellenabad ","00392"]
[null,null,null,null,6,"Haryana",80,"Hisar",800404,"Barwala ","00394"]
[null,null,null,null,6,"Haryana",80,"Hisar",800405,"Hisar ","00394"]
[null,null,null,null,6,"Haryana",80,"Hisar",800406,"Narnaund ","00395"]
[null,null,null,null,6,"Haryana",80,"Hisar",800407,"Hansi ","00396"]
[null,null,null,null,6,"Haryana",81,"Bhiwani",800408,"Bawani khera ","00397"]
[null,null,null,null,6,"Haryana",81,"Bhiwani",800409,"Bhiwani ","00398"]
[null,null,null,null,6,"Haryana",81,"Bhiwani",800410,"Siwani ","00400"]
[null,null,null,null,6,"Haryana",81,"Bhiwani",800411,"Loharu ","00401"]
[null,null,null,null,6,"Haryana",81,"Bhiwani",800412,"Charkhi Dadri ","00402"]
[null,null,null,null,6,"Haryana",82,"Rohtak",800413,"Maham ","00404"]
[null,null,null,null,6,"Haryana",82,"Rohtak",800414,"Rohtak ","00405"]
[null,null,null,null,6,"Haryana",82,"Rohtak",800415,"Kalanaur ","00405"]
[null,null,null,null,6,"Haryana",82,"Rohtak",800416,"Sampla ","00406"]
[null,null,null,null,6,"Haryana",83,"Jhajjar",800417,"Beri ","00407"]
[null,null,null,null,6,"Haryana",83,"Jhajjar",800418,"Bahadurgarh ","00408"]
[null,null,null,null,6,"Haryana",83,"Jhajjar",800419,"Jhajjar ","00409"]
[null,null,null,null,6,"Haryana",84,"Mahendragarh",800420,"Kanina ","00411"]
[null,null,null,null,6,"Haryana",84,"Mahendragarh",800421,"Mahendragarh ","00411"]
[null,null,null,null,6,"Haryana",84,"Mahendragarh",800422,"Ateli ","00412"]
[null,null,null,null,6,"Haryana",84,"Mahendragarh",800423,"Narnaul ","00412"]
[null,null,null,null,6,"Haryana",85,"Rewari",800424,"Dharuhera ","00414"]
[null,null,null,null,6,"Haryana",85,"Rewari",800425,"Rewari ","00414"]
[null,null,null,null,6,"Haryana",85,"Rewari",800426,"Bawal ","00415"]
[null,null,null,null,6,"Haryana",86,"Gurgaon",800427,"Hailey Mandi ","00416"]
[null,null,null,null,6,"Haryana",86,"Gurgaon",800428,"Pataudi ","00416"]
[null,null,null,null,6,"Haryana",86,"Gurgaon",800429,"Gurgaon","00417"]
[null,null,null,null,6,"Haryana",86,"Gurgaon",800430,"Farrukhnagar ","00418"]
[null,null,null,null,6,"Haryana",86,"Gurgaon",800431,"Sohna ","00420"]
[null,null,null,null,6,"Haryana",87,"Mewat ",800432,"Taoru ","00421"]
[null,null,null,null,6,"Haryana",87,"Mewat ",800433,"Nuh ","00422"]
[null,null,null,null,6,"Haryana",87,"Mewat ",800434,"Ferozepur jhirka ","00423"]
[null,null,null,null,6,"Haryana",87,"Mewat ",800435,"Punahana ","00424"]
[null,null,null,null,6,"Haryana",88,"Faridabad",800436,"Faridabad ","00425"]
[null,null,null,null,6,"Haryana",89,"Palwal ",800437,"Palwal ","00427"]
[null,null,null,null,6,"Haryana",89,"Palwal ",800438,"Hathin ","00428"]
[null,null,null,null,6,"Haryana",89,"Palwal ",800439,"Hassan Pur ","00429"]
[null,null,null,null,6,"Haryana",89,"Palwal ",800440,"Hodal ","00429"]
[null,null,null,null,7,"Delhi",98,"South",800441,"DMC (U) ","00456"]
[null,null,null,null,7,"Delhi",98,"South",800442,"NDMC ","00455"]
[null,null,null,null,7,"Delhi",97,"South West",800443,"Delhi Cantonment (CB) ","00453"]
[null,null,null,null,8,"Rajasthan",99,"Ganganagar ",800444,"Kesrisinghpur","00457"]
[null,null,null,null,8,"Rajasthan",99,"Ganganagar ",800445,"Karanpur","00457"]
[null,null,null,null,8,"Rajasthan",99,"Ganganagar ",800446,"Ganganagar ","00458"]
[null,null,null,null,8,"Rajasthan",99,"Ganganagar ",800447,"Sadulshahar","00459"]
[null,null,null,null,8,"Rajasthan",99,"Ganganagar ",800448,"Gajsinghpur","00460"]
[null,null,null,null,8,"Rajasthan",99,"Ganganagar ",800449,"Padampur","00460"]
[null,null,null,null,8,"Rajasthan",99,"Ganganagar ",800450,"Raisinghnagar","00461"]
[null,null,null,null,8,"Rajasthan",99,"Ganganagar ",800451,"Anupgarh","00462"]
[null,null,null,null,8,"Rajasthan",99,"Ganganagar ",800452,"Vijainagar","00464"]
[null,null,null,null,8,"Rajasthan",99,"Ganganagar ",800453,"Suratgarh","00465"]
[null,null,null,null,8,"Rajasthan",100,"Hanumangarh",800454,"Sangaria","00466"]
[null,null,null,null,8,"Rajasthan",100,"Hanumangarh",800455,"Hanumangarh ","00468"]
[null,null,null,null,8,"Rajasthan",100,"Hanumangarh",800456,"Pilibanga","00469"]
[null,null,null,null,8,"Rajasthan",100,"Hanumangarh",800457,"Rawatsar","00470"]
[null,null,null,null,8,"Rajasthan",100,"Hanumangarh",800458,"Nohar","00471"]
[null,null,null,null,8,"Rajasthan",100,"Hanumangarh",800459,"Bhadra","00472"]
[null,null,null,null,8,"Rajasthan",101,"Bikaner",800460,"Bikaner ","00473"]
[null,null,null,null,8,"Rajasthan",101,"Bikaner",800461,"Deshnoke","00473"]
[null,null,null,null,8,"Rajasthan",101,"Bikaner",800462,"Nokha","00477"]
[null,null,null,null,8,"Rajasthan",101,"Bikaner",800463,"Dungargarh","00480"]
[null,null,null,null,8,"Rajasthan",102,"Churu",800464,"Taranagar","00481"]
[null,null,null,null,8,"Rajasthan",102,"Churu",800465,"Rajgarh","00482"]
[null,null,null,null,8,"Rajasthan",102,"Churu",800466,"Sardarshahar","00483"]
[null,null,null,null,8,"Rajasthan",102,"Churu",800467,"Ratannagar","00484"]
[null,null,null,null,8,"Rajasthan",102,"Churu",800468,"Churu ","00484"]
[null,null,null,null,8,"Rajasthan",102,"Churu",800469,"Ratangarh","00485"]
[null,null,null,null,8,"Rajasthan",102,"Churu",800470,"Rajaldesar","00485"]
[null,null,null,null,8,"Rajasthan",102,"Churu",800471,"Bidasar","00486"]
[null,null,null,null,8,"Rajasthan",102,"Churu",800472,"Chhapar","00486"]
[null,null,null,null,8,"Rajasthan",102,"Churu",800473,"Sujangarh","00486"]
[null,null,null,null,8,"Rajasthan",103,"Jhunjhunun",800474,"Bissau","00487"]
[null,null,null,null,8,"Rajasthan",103,"Jhunjhunun",800475,"Mandawa","00487"]
[null,null,null,null,8,"Rajasthan",103,"Jhunjhunun",800476,"Jhunjhunun ","00487"]
[null,null,null,null,8,"Rajasthan",103,"Jhunjhunun",800477,"Baggar","00487"]
[null,null,null,null,8,"Rajasthan",103,"Jhunjhunun",800478,"Pilani ","00488"]
[null,null,null,null,8,"Rajasthan",103,"Jhunjhunun",800479,"Vidyavihar","00488"]
[null,null,null,null,8,"Rajasthan",103,"Jhunjhunun",800480,"Surajgarh","00488"]
[null,null,null,null,8,"Rajasthan",103,"Jhunjhunun",800481,"Chirawa","00488"]
[null,null,null,null,8,"Rajasthan",103,"Jhunjhunun",800482,"Khetri","00490"]
[null,null,null,null,8,"Rajasthan",103,"Jhunjhunun",800483,"Mukandgarh","00491"]
[null,null,null,null,8,"Rajasthan",103,"Jhunjhunun",800484,"Nawalgarh","00491"]
[null,null,null,null,8,"Rajasthan",103,"Jhunjhunun",800485,"Udaipurwati","00492"]
[null,null,null,null,8,"Rajasthan",104,"Alwar",800486,"Behror","00493"]
[null,null,null,null,8,"Rajasthan",104,"Alwar",800487,"Bhiwadi","00496"]
[null,null,null,null,8,"Rajasthan",104,"Alwar",800488,"Tijara","00496"]
[null,null,null,null,8,"Rajasthan",104,"Alwar",800489,"Khairthal","00497"]
[null,null,null,null,8,"Rajasthan",104,"Alwar",800490,"Alwar ","00499"]
[null,null,null,null,8,"Rajasthan",104,"Alwar",800491,"Rajgarh","00502"]
[null,null,null,null,8,"Rajasthan",104,"Alwar",800492,"Kherli","00504"]
[null,null,null,null,8,"Rajasthan",105,"Bharatpur",800493,"Kaman","00506"]
[null,null,null,null,8,"Rajasthan",105,"Bharatpur",800494,"Nagar","00507"]
[null,null,null,null,8,"Rajasthan",105,"Bharatpur",800495,"Deeg","00508"]
[null,null,null,null,8,"Rajasthan",105,"Bharatpur",800496,"Nadbai","00509"]
[null,null,null,null,8,"Rajasthan",105,"Bharatpur",800497,"Kumher","00510"]
[null,null,null,null,8,"Rajasthan",105,"Bharatpur",800498,"Bharatpur   ","00511"]
[null,null,null,null,8,"Rajasthan",105,"Bharatpur",800499,"Bhusawar","00512"]
[null,null,null,null,8,"Rajasthan",105,"Bharatpur",800500,"Weir","00512"]
[null,null,null,null,8,"Rajasthan",105,"Bharatpur",800501,"Bayana","00513"]
[null,null,null,null,8,"Rajasthan",106,"Dhaulpur",800502,"Bari","00516"]
[null,null,null,null,8,"Rajasthan",106,"Dhaulpur",800503,"Dhaulpur ","00518"]
[null,null,null,null,8,"Rajasthan",106,"Dhaulpur",800504,"Rajakhera","00519"]
[null,null,null,null,8,"Rajasthan",107,"Karauli",800505,"Todabhim","00520"]
[null,null,null,null,8,"Rajasthan",107,"Karauli",800506,"Hindaun","00522"]
[null,null,null,null,8,"Rajasthan",107,"Karauli",800507,"Karauli","00523"]
[null,null,null,null,8,"Rajasthan",108,"Sawai Madhopur",800508,"Gangapur City","00526"]
[null,null,null,null,8,"Rajasthan",108,"Sawai Madhopur",800509,"Sawai Madhopur","00531"]
[null,null,null,null,8,"Rajasthan",109,"Dausa",800510,"Bandikui","00533"]
[null,null,null,null,8,"Rajasthan",109,"Dausa",800511,"Dausa","00536"]
[null,null,null,null,8,"Rajasthan",109,"Dausa",800512,"Lalsot","00537"]
[null,null,null,null,8,"Rajasthan",110,"Jaipur",800513,"Kotputli","00538"]
[null,null,null,null,8,"Rajasthan",110,"Jaipur",800514,"Viratnagar","00539"]
[null,null,null,null,8,"Rajasthan",110,"Jaipur",800515,"Shahpura","00540"]
[null,null,null,null,8,"Rajasthan",110,"Jaipur",800516,"Chomu","00541"]
[null,null,null,null,8,"Rajasthan",110,"Jaipur",800517,"Kishangarh Renwal","00542"]
[null,null,null,null,8,"Rajasthan",110,"Jaipur",800518,"Sambhar","00542"]
[null,null,null,null,8,"Rajasthan",110,"Jaipur",800519,"Phulera ","00542"]
[null,null,null,null,8,"Rajasthan",110,"Jaipur",800520,"Jobner","00542"]
[null,null,null,null,8,"Rajasthan",110,"Jaipur",800521,"Bagru","00545"]
[null,null,null,null,8,"Rajasthan",110,"Jaipur",800522,"Jaipur ","00547"]
[null,null,null,null,8,"Rajasthan",110,"Jaipur",800523,"Chaksu","00550"]
[null,null,null,null,8,"Rajasthan",111,"Sikar",800524,"Ramgarh","00551"]
[null,null,null,null,8,"Rajasthan",111,"Sikar",800525,"Fatehpur","00551"]
[null,null,null,null,8,"Rajasthan",111,"Sikar",800526,"Lachhmangarh","00552"]
[null,null,null,null,8,"Rajasthan",111,"Sikar",800527,"Sikar ","00553"]
[null,null,null,null,8,"Rajasthan",111,"Sikar",800528,"Losal","00554"]
[null,null,null,null,8,"Rajasthan",111,"Sikar",800529,"Khandela ","00555"]
[null,null,null,null,8,"Rajasthan",111,"Sikar",800530,"Sri Madhopur","00555"]
[null,null,null,null,8,"Rajasthan",111,"Sikar",800531,"Reengus","00555"]
[null,null,null,null,8,"Rajasthan",111,"Sikar",800532,"Neem-Ka-Thana","00556"]
[null,null,null,null,8,"Rajasthan",112,"Nagaur",800533,"Ladnu","00557"]
[null,null,null,null,8,"Rajasthan",112,"Nagaur",800534,"Didwana ","00558"]
[null,null,null,null,8,"Rajasthan",112,"Nagaur",800535,"Nagaur ","00560"]
[null,null,null,null,8,"Rajasthan",112,"Nagaur",800536,"Mundwa","00560"]
[null,null,null,null,8,"Rajasthan",112,"Nagaur",800537,"Kuchera","00560"]
[null,null,null,null,8,"Rajasthan",112,"Nagaur",800538,"Merta City","00562"]
[null,null,null,null,8,"Rajasthan",112,"Nagaur",800539,"Parbatsar","00564"]
[null,null,null,null,8,"Rajasthan",112,"Nagaur",800540,"Makrana  ","00565"]
[null,null,null,null,8,"Rajasthan",112,"Nagaur",800541,"Kuchaman City","00566"]
[null,null,null,null,8,"Rajasthan",112,"Nagaur",800542,"Nawa","00566"]
[null,null,null,null,8,"Rajasthan",113,"Jodhpur",800543,"Phalodi ","00567"]
[null,null,null,null,8,"Rajasthan",113,"Jodhpur",800544,"Jodhpur","00570"]
[null,null,null,null,8,"Rajasthan",113,"Jodhpur",800545,"Pipar City","00573"]
[null,null,null,null,8,"Rajasthan",113,"Jodhpur",800546,"Bilara","00573"]
[null,null,null,null,8,"Rajasthan",114,"Jaisalmer",800547,"Jaisalmer","00574"]
[null,null,null,null,8,"Rajasthan",114,"Jaisalmer",800548,"Pokaran","00575"]
[null,null,null,null,8,"Rajasthan",115,"Barmer",800549,"Balotra","00579"]
[null,null,null,null,8,"Rajasthan",115,"Barmer",800550,"Barmer","00582"]
[null,null,null,null,8,"Rajasthan",116,"Jalor",800551,"Jalor","00587"]
[null,null,null,null,8,"Rajasthan",116,"Jalor",800552,"Bhinmal","00588"]
[null,null,null,null,8,"Rajasthan",116,"Jalor",800553,"Sanchore","00590"]
[null,null,null,null,8,"Rajasthan",117,"Sirohi",800554,"Sheoganj ","00592"]
[null,null,null,null,8,"Rajasthan",117,"Sirohi",800555,"Sirohi","00593"]
[null,null,null,null,8,"Rajasthan",117,"Sirohi",800556,"Pindwara","00594"]
[null,null,null,null,8,"Rajasthan",117,"Sirohi",800557,"Mount Abu","00595"]
[null,null,null,null,8,"Rajasthan",117,"Sirohi",800558,"Abu Road ","00595"]
[null,null,null,null,8,"Rajasthan",118,"Pali",800559,"Jaitaran","00597"]
[null,null,null,null,8,"Rajasthan",118,"Pali",800560,"Sojat","00599"]
[null,null,null,null,8,"Rajasthan",118,"Pali",800561,"Pali ","00601"]
[null,null,null,null,8,"Rajasthan",118,"Pali",800562,"Rani","00603"]
[null,null,null,null,8,"Rajasthan",118,"Pali",800563,"Sadri","00603"]
[null,null,null,null,8,"Rajasthan",118,"Pali",800564,"Takhatgarh","00604"]
[null,null,null,null,8,"Rajasthan",118,"Pali",800565,"Sumerpur","00604"]
[null,null,null,null,8,"Rajasthan",118,"Pali",800566,"Falna","00605"]
[null,null,null,null,8,"Rajasthan",118,"Pali",800567,"Bali","00605"]
[null,null,null,null,8,"Rajasthan",119,"Ajmer",800568,"Kishangarh ","00606"]
[null,null,null,null,8,"Rajasthan",119,"Ajmer",800569,"Pushkar","00607"]
[null,null,null,null,8,"Rajasthan",119,"Ajmer",800570,"Ajmer ","00607"]
[null,null,null,null,8,"Rajasthan",119,"Ajmer",800571,"Beawar ","00609"]
[null,null,null,null,8,"Rajasthan",119,"Ajmer",800572,"Vijainagar","00610"]
[null,null,null,null,8,"Rajasthan",119,"Ajmer",800573,"Nasirabad (CB)","00611"]
[null,null,null,null,8,"Rajasthan",119,"Ajmer",800574,"Sarwar","00613"]
[null,null,null,null,8,"Rajasthan",119,"Ajmer",800575,"Kekri","00614"]
[null,null,null,null,8,"Rajasthan",120,"Tonk",800576,"Malpura ","00615"]
[null,null,null,null,8,"Rajasthan",120,"Tonk",800577,"Niwai","00617"]
[null,null,null,null,8,"Rajasthan",120,"Tonk",800578,"Tonk ","00618"]
[null,null,null,null,8,"Rajasthan",120,"Tonk",800579,"Todaraisingh","00619"]
[null,null,null,null,8,"Rajasthan",120,"Tonk",800580,"Deoli","00620"]
[null,null,null,null,8,"Rajasthan",120,"Tonk",800581,"Uniara","00621"]
[null,null,null,null,8,"Rajasthan",121,"Bundi",800582,"Nainwa","00623"]
[null,null,null,null,8,"Rajasthan",121,"Bundi",800583,"Indragarh","00624"]
[null,null,null,null,8,"Rajasthan",121,"Bundi",800584,"Lakheri","00624"]
[null,null,null,null,8,"Rajasthan",121,"Bundi",800585,"Keshoraipatan","00625"]
[null,null,null,null,8,"Rajasthan",121,"Bundi",800586,"Kaprain","00625"]
[null,null,null,null,8,"Rajasthan",121,"Bundi",800587,"Bundi ","00626"]
[null,null,null,null,8,"Rajasthan",122,"Bhilwara",800588,"Asind","00627"]
[null,null,null,null,8,"Rajasthan",122,"Bhilwara",800589,"Gulabpura","00628"]
[null,null,null,null,8,"Rajasthan",122,"Bhilwara",800590,"Shahpura","00629"]
[null,null,null,null,8,"Rajasthan",122,"Bhilwara",800591,"Gangapur","00633"]
[null,null,null,null,8,"Rajasthan",122,"Bhilwara",800592,"Bhilwara ","00634"]
[null,null,null,null,8,"Rajasthan",122,"Bhilwara",800593,"Jahazpur","00636"]
[null,null,null,null,8,"Rajasthan",122,"Bhilwara",800594,"Mandalgarh","00637"]
[null,null,null,null,8,"Rajasthan",123,"Rajsamand",800595,"Deogarh","00640"]
[null,null,null,null,8,"Rajasthan",123,"Rajsamand",800596,"Amet","00641"]
[null,null,null,null,8,"Rajasthan",123,"Rajsamand",800597,"Rajsamand","00643"]
[null,null,null,null,8,"Rajasthan",123,"Rajsamand",800598,"Nathdwara","00645"]
[null,null,null,null,8,"Rajasthan",124,"Dungarpur",800599,"Dungarpur","00646"]
[null,null,null,null,8,"Rajasthan",124,"Dungarpur",800600,"Sagwara","00648"]
[null,null,null,null,8,"Rajasthan",125,"Banswara",800601,"Banswara ","00652"]
[null,null,null,null,8,"Rajasthan",125,"Banswara",800602,"Kushalgarh","00654"]
[null,null,null,null,8,"Rajasthan",126,"Chittaurgarh",800603,"Begun","00657"]
[null,null,null,null,8,"Rajasthan",126,"Chittaurgarh",800604,"Rawatbhata","00658"]
[null,null,null,null,8,"Rajasthan",126,"Chittaurgarh",800605,"Chittaurgarh","00659"]
[null,null,null,null,8,"Rajasthan",126,"Chittaurgarh",800606,"Kapasan","00660"]
[null,null,null,null,8,"Rajasthan",126,"Chittaurgarh",800607,"Nimbahera","00663"]
[null,null,null,null,8,"Rajasthan",126,"Chittaurgarh",800608,"Bari Sadri","00664"]
[null,null,null,null,8,"Rajasthan",127,"Kota",800609,"Kota ","00667"]
[null,null,null,null,8,"Rajasthan",127,"Kota",800610,"Kaithoon","00667"]
[null,null,null,null,8,"Rajasthan",127,"Kota",800611,"Ramganj Mandi","00668"]
[null,null,null,null,8,"Rajasthan",127,"Kota",800612,"Sangod","00669"]
[null,null,null,null,8,"Rajasthan",128,"Baran",800613,"Mangrol","00670"]
[null,null,null,null,8,"Rajasthan",128,"Baran",800614,"Antah","00671"]
[null,null,null,null,8,"Rajasthan",128,"Baran",800615,"Baran","00672"]
[null,null,null,null,8,"Rajasthan",128,"Baran",800616,"Chhabra","00676"]
[null,null,null,null,8,"Rajasthan",129,"Jhalawar",800617,"Jhalawar","00679"]
[null,null,null,null,8,"Rajasthan",129,"Jhalawar",800618,"Jhalrapatan","00679"]
[null,null,null,null,8,"Rajasthan",129,"Jhalawar",800619,"Aklera","00680"]
[null,null,null,null,8,"Rajasthan",129,"Jhalawar",800620,"Bhawani Mandi","00682"]
[null,null,null,null,8,"Rajasthan",129,"Jhalawar",800621,"Pirawa","00683"]
[null,null,null,null,8,"Rajasthan",130,"Udaipur",800622,"Fatehnagar","00685"]
[null,null,null,null,8,"Rajasthan",130,"Udaipur",800623,"Udaipur ","00689"]
[null,null,null,null,8,"Rajasthan",130,"Udaipur",800624,"Bhinder","00690"]
[null,null,null,null,8,"Rajasthan",130,"Udaipur",800625,"Kanor","00690"]
[null,null,null,null,8,"Rajasthan",130,"Udaipur",800626,"Salumbar","00692"]
[null,null,null,null,8,"Rajasthan",131,"Pratapgarh",800627,"Chhoti Sadri","00698"]
[null,null,null,null,8,"Rajasthan",131,"Pratapgarh",800628,"Pratapgarh","00699"]
[null,null,null,null,9,"Uttar Pradesh",132,"Saharanpur",800629,"Behat","00701"]
[null,null,null,null,9,"Uttar Pradesh",132,"Saharanpur",800630,"Saharanpur ","00702"]
[null,null,null,null,9,"Uttar Pradesh",132,"Saharanpur",800631,"Chilkana Sultanpur","00703"]
[null,null,null,null,9,"Uttar Pradesh",132,"Saharanpur",800632,"Sarsawa ","00703"]
[null,null,null,null,9,"Uttar Pradesh",132,"Saharanpur",800633,"Nakur ","00703"]
[null,null,null,null,9,"Uttar Pradesh",132,"Saharanpur",800634,"Ambehta","00703"]
[null,null,null,null,9,"Uttar Pradesh",132,"Saharanpur",800635,"Gangoh ","00703"]
[null,null,null,null,9,"Uttar Pradesh",132,"Saharanpur",800636,"Titron","00703"]
[null,null,null,null,9,"Uttar Pradesh",132,"Saharanpur",800637,"Deoband ","00704"]
[null,null,null,null,9,"Uttar Pradesh",132,"Saharanpur",800638,"Nanauta","00705"]
[null,null,null,null,9,"Uttar Pradesh",132,"Saharanpur",800639,"Rampur Maniharan","00705"]
[null,null,null,null,9,"Uttar Pradesh",133,"Muzaffarnagar",800640,"Un","00706"]
[null,null,null,null,9,"Uttar Pradesh",133,"Muzaffarnagar",800641,"Jhinjhana","00706"]
[null,null,null,null,9,"Uttar Pradesh",133,"Muzaffarnagar",800642,"Kairana ","00706"]
[null,null,null,null,9,"Uttar Pradesh",133,"Muzaffarnagar",800643,"Kandhla ","00706"]
[null,null,null,null,9,"Uttar Pradesh",133,"Muzaffarnagar",800644,"Ailam","00707"]
[null,null,null,null,9,"Uttar Pradesh",133,"Muzaffarnagar",800645,"Shamli ","00707"]
[null,null,null,null,9,"Uttar Pradesh",133,"Muzaffarnagar",800646,"Banat","00707"]
[null,null,null,null,9,"Uttar Pradesh",133,"Muzaffarnagar",800647,"Garhi Pukhta","00707"]
[null,null,null,null,9,"Uttar Pradesh",133,"Muzaffarnagar",800648,"Thana Bhawan","00707"]
[null,null,null,null,9,"Uttar Pradesh",133,"Muzaffarnagar",800649,"Jalalabad","00707"]
[null,null,null,null,9,"Uttar Pradesh",133,"Muzaffarnagar",800650,"Purquazi ","00708"]
[null,null,null,null,9,"Uttar Pradesh",133,"Muzaffarnagar",800651,"Charthawal","00708"]
[null,null,null,null,9,"Uttar Pradesh",133,"Muzaffarnagar",800652,"Muzaffarnagar ","00708"]
[null,null,null,null,9,"Uttar Pradesh",133,"Muzaffarnagar",800653,"Sisauli","00709"]
[null,null,null,null,9,"Uttar Pradesh",133,"Muzaffarnagar",800654,"Budhana ","00709"]
[null,null,null,null,9,"Uttar Pradesh",133,"Muzaffarnagar",800655,"Shahpur","00709"]
[null,null,null,null,9,"Uttar Pradesh",133,"Muzaffarnagar",800656,"Khatauli ","00710"]
[null,null,null,null,9,"Uttar Pradesh",133,"Muzaffarnagar",800657,"Jansath","00711"]
[null,null,null,null,9,"Uttar Pradesh",133,"Muzaffarnagar",800658,"Bhokarhedi","00711"]
[null,null,null,null,9,"Uttar Pradesh",133,"Muzaffarnagar",800659,"Miranpur","00711"]
[null,null,null,null,9,"Uttar Pradesh",134,"Bijnor",800660,"Sahanpur","00712"]
[null,null,null,null,9,"Uttar Pradesh",134,"Bijnor",800661,"Najibabad ","00712"]
[null,null,null,null,9,"Uttar Pradesh",134,"Bijnor",800662,"Jalalabad","00712"]
[null,null,null,null,9,"Uttar Pradesh",134,"Bijnor",800663,"Kiratpur","00712"]
[null,null,null,null,9,"Uttar Pradesh",134,"Bijnor",800664,"Mandawar","00713"]
[null,null,null,null,9,"Uttar Pradesh",134,"Bijnor",800665,"Bijnor ","00713"]
[null,null,null,null,9,"Uttar Pradesh",134,"Bijnor",800666,"Jhalu","00713"]
[null,null,null,null,9,"Uttar Pradesh",134,"Bijnor",800667,"Haldaur ","00713"]
[null,null,null,null,9,"Uttar Pradesh",134,"Bijnor",800668,"Nagina ","00714"]
[null,null,null,null,9,"Uttar Pradesh",134,"Bijnor",800669,"Warhapur","00714"]
[null,null,null,null,9,"Uttar Pradesh",134,"Bijnor",800670,"Afzalgarh ","00715"]
[null,null,null,null,9,"Uttar Pradesh",134,"Bijnor",800671,"Sherkot ","00715"]
[null,null,null,null,9,"Uttar Pradesh",134,"Bijnor",800672,"Dhampur ","00715"]
[null,null,null,null,9,"Uttar Pradesh",134,"Bijnor",800673,"Nehtaur ","00715"]
[null,null,null,null,9,"Uttar Pradesh",134,"Bijnor",800674,"Seohara","00715"]
[null,null,null,null,9,"Uttar Pradesh",134,"Bijnor",800675,"Sahaspur","00715"]
[null,null,null,null,9,"Uttar Pradesh",134,"Bijnor",800676,"Noorpur ","00716"]
[null,null,null,null,9,"Uttar Pradesh",134,"Bijnor",800677,"Chandpur ","00716"]
[null,null,null,null,9,"Uttar Pradesh",135,"Moradabad",800678,"Thakurdwara ","00717"]
[null,null,null,null,9,"Uttar Pradesh",135,"Moradabad",800679,"Kanth","00718"]
[null,null,null,null,9,"Uttar Pradesh",135,"Moradabad",800680,"Umri Kalan","00718"]
[null,null,null,null,9,"Uttar Pradesh",135,"Moradabad",800681,"Bhojpur Dharampur","00719"]
[null,null,null,null,9,"Uttar Pradesh",135,"Moradabad",800682,"Moradabad ","00719"]
[null,null,null,null,9,"Uttar Pradesh",135,"Moradabad",800683,"Kundarki","00720"]
[null,null,null,null,9,"Uttar Pradesh",135,"Moradabad",800684,"Bilari ","00720"]
[null,null,null,null,9,"Uttar Pradesh",135,"Moradabad",800685,"Sirsi","00721"]
[null,null,null,null,9,"Uttar Pradesh",135,"Moradabad",800686,"Sambhal ","00721"]
[null,null,null,null,9,"Uttar Pradesh",135,"Moradabad",800687,"Bahjoi ","00722"]
[null,null,null,null,9,"Uttar Pradesh",135,"Moradabad",800688,"Narauli","00722"]
[null,null,null,null,9,"Uttar Pradesh",135,"Moradabad",800689,"Chandausi ","00722"]
[null,null,null,null,9,"Uttar Pradesh",136,"Rampur",800690,"Maswasi","00723"]
[null,null,null,null,9,"Uttar Pradesh",136,"Rampur",800691,"Suar ","00723"]
[null,null,null,null,9,"Uttar Pradesh",136,"Rampur",800692,"Tanda ","00724"]
[null,null,null,null,9,"Uttar Pradesh",136,"Rampur",800693,"Bilaspur ","00725"]
[null,null,null,null,9,"Uttar Pradesh",136,"Rampur",800694,"Kemri","00725"]
[null,null,null,null,9,"Uttar Pradesh",136,"Rampur",800695,"Rampur ","00726"]
[null,null,null,null,9,"Uttar Pradesh",136,"Rampur",800696,"Shahabad","00727"]
[null,null,null,null,9,"Uttar Pradesh",136,"Rampur",800697,"Milak ","00728"]
[null,null,null,null,9,"Uttar Pradesh",137,"Jyotiba Phule Nagar",800698,"Dhanaura ","00729"]
[null,null,null,null,9,"Uttar Pradesh",137,"Jyotiba Phule Nagar",800699,"Bachhraon ","00729"]
[null,null,null,null,9,"Uttar Pradesh",137,"Jyotiba Phule Nagar",800700,"Gajraula","00729"]
[null,null,null,null,9,"Uttar Pradesh",137,"Jyotiba Phule Nagar",800701,"Naugawan Sadat","00730"]
[null,null,null,null,9,"Uttar Pradesh",137,"Jyotiba Phule Nagar",800702,"Amroha ","00730"]
[null,null,null,null,9,"Uttar Pradesh",137,"Jyotiba Phule Nagar",800703,"Joya","00730"]
[null,null,null,null,9,"Uttar Pradesh",137,"Jyotiba Phule Nagar",800704,"Hasanpur ","00731"]
[null,null,null,null,9,"Uttar Pradesh",137,"Jyotiba Phule Nagar",800705,"Ujhari","00731"]
[null,null,null,null,9,"Uttar Pradesh",138,"Meerut",800706,"Karnawal","00732"]
[null,null,null,null,9,"Uttar Pradesh",138,"Meerut",800707,"Sardhana ","00732"]
[null,null,null,null,9,"Uttar Pradesh",138,"Meerut",800708,"Daurala","00732"]
[null,null,null,null,9,"Uttar Pradesh",138,"Meerut",800709,"Lawar","00732"]
[null,null,null,null,9,"Uttar Pradesh",138,"Meerut",800710,"Phalauda","00733"]
[null,null,null,null,9,"Uttar Pradesh",138,"Meerut",800711,"Bahsuma","00733"]
[null,null,null,null,9,"Uttar Pradesh",138,"Meerut",800712,"Hastinapur","00733"]
[null,null,null,null,9,"Uttar Pradesh",138,"Meerut",800713,"Mawana ","00733"]
[null,null,null,null,9,"Uttar Pradesh",138,"Meerut",800714,"Parikshitgarh","00733"]
[null,null,null,null,9,"Uttar Pradesh",138,"Meerut",800715,"Kithaur","00733"]
[null,null,null,null,9,"Uttar Pradesh",138,"Meerut",800716,"Meerut ","00734"]
[null,null,null,null,9,"Uttar Pradesh",138,"Meerut",800717,"Meerut (CB)","00734"]
[null,null,null,null,9,"Uttar Pradesh",138,"Meerut",800718,"Sewalkhas","00734"]
[null,null,null,null,9,"Uttar Pradesh",138,"Meerut",800719,"Kharkhoda","00734"]
[null,null,null,null,9,"Uttar Pradesh",139,"Baghpat",800720,"Chhaprauli","00735"]
[null,null,null,null,9,"Uttar Pradesh",139,"Baghpat",800721,"Tikri","00735"]
[null,null,null,null,9,"Uttar Pradesh",139,"Baghpat",800722,"Doghat","00735"]
[null,null,null,null,9,"Uttar Pradesh",139,"Baghpat",800723,"Baraut ","00735"]
[null,null,null,null,9,"Uttar Pradesh",139,"Baghpat",800724,"Baghpat ","00736"]
[null,null,null,null,9,"Uttar Pradesh",139,"Baghpat",800725,"Agarwal Mandi (Tatiri)","00736"]
[null,null,null,null,9,"Uttar Pradesh",139,"Baghpat",800726,"Aminagar Sarai","00736"]
[null,null,null,null,9,"Uttar Pradesh",139,"Baghpat",800727,"Khekada","00737"]
[null,null,null,null,9,"Uttar Pradesh",140,"Ghaziabad",800728,"Patala","00738"]
[null,null,null,null,9,"Uttar Pradesh",140,"Ghaziabad",800729,"Niwari","00738"]
[null,null,null,null,9,"Uttar Pradesh",140,"Ghaziabad",800730,"Modinagar ","00738"]
[null,null,null,null,9,"Uttar Pradesh",140,"Ghaziabad",800731,"Faridnagar","00738"]
[null,null,null,null,9,"Uttar Pradesh",140,"Ghaziabad",800732,"Muradnagar ","00738"]
[null,null,null,null,9,"Uttar Pradesh",140,"Ghaziabad",800733,"Loni ","00739"]
[null,null,null,null,9,"Uttar Pradesh",140,"Ghaziabad",800734,"Ghaziabad ","00739"]
[null,null,null,null,9,"Uttar Pradesh",140,"Ghaziabad",800735,"Dasna","00739"]
[null,null,null,null,9,"Uttar Pradesh",140,"Ghaziabad",800736,"Pilkhuwa ","00740"]
[null,null,null,null,9,"Uttar Pradesh",140,"Ghaziabad",800737,"Hapur ","00740"]
[null,null,null,null,9,"Uttar Pradesh",140,"Ghaziabad",800738,"Babugarh","00740"]
[null,null,null,null,9,"Uttar Pradesh",140,"Ghaziabad",800739,"Garhmukhteshwar ","00741"]
[null,null,null,null,9,"Uttar Pradesh",141,"Gautam Buddha Nagar",800740,"Dadri ","00742"]
[null,null,null,null,9,"Uttar Pradesh",141,"Gautam Buddha Nagar",800741,"Bilaspur","00743"]
[null,null,null,null,9,"Uttar Pradesh",141,"Gautam Buddha Nagar",800742,"Dankaur","00743"]
[null,null,null,null,9,"Uttar Pradesh",141,"Gautam Buddha Nagar",800743,"Rabupura","00744"]
[null,null,null,null,9,"Uttar Pradesh",141,"Gautam Buddha Nagar",800744,"Jahangirpur","00744"]
[null,null,null,null,9,"Uttar Pradesh",141,"Gautam Buddha Nagar",800745,"Jewar","00744"]
[null,null,null,null,9,"Uttar Pradesh",142,"Bulandshahr ",800746,"Sikandrabad ","00745"]
[null,null,null,null,9,"Uttar Pradesh",142,"Bulandshahr ",800747,"Kakod","00745"]
[null,null,null,null,9,"Uttar Pradesh",142,"Bulandshahr ",800748,"Aurangabad","00746"]
[null,null,null,null,9,"Uttar Pradesh",142,"Bulandshahr ",800749,"Bulandshahr","00746"]
[null,null,null,null,9,"Uttar Pradesh",142,"Bulandshahr ",800750,"Gulaothi ","00746"]
[null,null,null,null,9,"Uttar Pradesh",142,"Bulandshahr ",800751,"Bhawan Bahadur Nagar","00747"]
[null,null,null,null,9,"Uttar Pradesh",142,"Bulandshahr ",800752,"Siana ","00747"]
[null,null,null,null,9,"Uttar Pradesh",142,"Bulandshahr ",800753,"Bugrasi","00747"]
[null,null,null,null,9,"Uttar Pradesh",142,"Bulandshahr ",800754,"Khanpur","00747"]
[null,null,null,null,9,"Uttar Pradesh",142,"Bulandshahr ",800755,"Anupshahr ","00748"]
[null,null,null,null,9,"Uttar Pradesh",142,"Bulandshahr ",800756,"Jahangirabad ","00748"]
[null,null,null,null,9,"Uttar Pradesh",142,"Bulandshahr ",800757,"Dibai ","00749"]
[null,null,null,null,9,"Uttar Pradesh",142,"Bulandshahr ",800758,"Naraura","00749"]
[null,null,null,null,9,"Uttar Pradesh",142,"Bulandshahr ",800759,"Shikarpur ","00750"]
[null,null,null,null,9,"Uttar Pradesh",142,"Bulandshahr ",800760,"Pahasu","00750"]
[null,null,null,null,9,"Uttar Pradesh",142,"Bulandshahr ",800761,"Chhatari","00750"]
[null,null,null,null,9,"Uttar Pradesh",142,"Bulandshahr ",800762,"Khurja","00751"]
[null,null,null,null,9,"Uttar Pradesh",143,"Aligarh",800763,"Jatari","00752"]
[null,null,null,null,9,"Uttar Pradesh",143,"Aligarh",800764,"Khair ","00752"]
[null,null,null,null,9,"Uttar Pradesh",143,"Aligarh",800765,"Atrauli ","00754"]
[null,null,null,null,9,"Uttar Pradesh",143,"Aligarh",800766,"Chharra Rafatpur","00754"]
[null,null,null,null,9,"Uttar Pradesh",143,"Aligarh",800767,"Harduaganj","00755"]
[null,null,null,null,9,"Uttar Pradesh",143,"Aligarh",800768,"Aligarh ","00755"]
[null,null,null,null,9,"Uttar Pradesh",143,"Aligarh",800769,"Jalali","00755"]
[null,null,null,null,9,"Uttar Pradesh",143,"Aligarh",800770,"Kauriaganj","00755"]
[null,null,null,null,9,"Uttar Pradesh",143,"Aligarh",800771,"Pilkhana","00755"]
[null,null,null,null,9,"Uttar Pradesh",143,"Aligarh",800772,"Vijaigarh","00755"]
[null,null,null,null,9,"Uttar Pradesh",143,"Aligarh",800773,"Iglas","00756"]
[null,null,null,null,9,"Uttar Pradesh",143,"Aligarh",800774,"Beswan","00756"]
[null,null,null,null,9,"Uttar Pradesh",144,"Mahamaya Nagar",800775,"Sasni","00757"]
[null,null,null,null,9,"Uttar Pradesh",144,"Mahamaya Nagar",800776,"Sikandrarao ","00758"]
[null,null,null,null,9,"Uttar Pradesh",144,"Mahamaya Nagar",800777,"Purdilnagar","00758"]
[null,null,null,null,9,"Uttar Pradesh",144,"Mahamaya Nagar",800778,"Hasayan","00758"]
[null,null,null,null,9,"Uttar Pradesh",144,"Mahamaya Nagar",800779,"Mendu","00759"]
[null,null,null,null,9,"Uttar Pradesh",144,"Mahamaya Nagar",800780,"Hathras","00759"]
[null,null,null,null,9,"Uttar Pradesh",144,"Mahamaya Nagar",800781,"Mursan","00759"]
[null,null,null,null,9,"Uttar Pradesh",144,"Mahamaya Nagar",800782,"Sadabad","00760"]
[null,null,null,null,9,"Uttar Pradesh",144,"Mahamaya Nagar",800783,"Sahpau","00760"]
[null,null,null,null,9,"Uttar Pradesh",145,"Mathura",800784,"Kosi Kalan","00761"]
[null,null,null,null,9,"Uttar Pradesh",145,"Mathura",800785,"Nandgaon","00761"]
[null,null,null,null,9,"Uttar Pradesh",145,"Mathura",800786,"Barsana","00761"]
[null,null,null,null,9,"Uttar Pradesh",145,"Mathura",800787,"Chhata","00761"]
[null,null,null,null,9,"Uttar Pradesh",145,"Mathura",800788,"Chaumuhan","00761"]
[null,null,null,null,9,"Uttar Pradesh",145,"Mathura",800789,"Bajna","00762"]
[null,null,null,null,9,"Uttar Pradesh",145,"Mathura",800790,"Raya","00763"]
[null,null,null,null,9,"Uttar Pradesh",145,"Mathura",800791,"Gokul","00763"]
[null,null,null,null,9,"Uttar Pradesh",145,"Mathura",800792,"Mahaban","00763"]
[null,null,null,null,9,"Uttar Pradesh",145,"Mathura",800793,"Baldeo","00763"]
[null,null,null,null,9,"Uttar Pradesh",145,"Mathura",800794,"Farah","00764"]
[null,null,null,null,9,"Uttar Pradesh",145,"Mathura",800795,"Vrindavan ","00764"]
[null,null,null,null,9,"Uttar Pradesh",145,"Mathura",800796,"Radhakund","00764"]
[null,null,null,null,9,"Uttar Pradesh",145,"Mathura",800797,"Govardhan","00764"]
[null,null,null,null,9,"Uttar Pradesh",145,"Mathura",800798,"Saunkh","00764"]
[null,null,null,null,9,"Uttar Pradesh",145,"Mathura",800799,"Mathura ","00764"]
[null,null,null,null,9,"Uttar Pradesh",145,"Mathura",800800,"Mathura (CB)","00764"]
[null,null,null,null,9,"Uttar Pradesh",146,"Agra",800801,"Etmadpur ","00765"]
[null,null,null,null,9,"Uttar Pradesh",146,"Agra",800802,"Dayalbagh","00766"]
[null,null,null,null,9,"Uttar Pradesh",146,"Agra",800803,"Swamibagh","00766"]
[null,null,null,null,9,"Uttar Pradesh",146,"Agra",800804,"Agra ","00766"]
[null,null,null,null,9,"Uttar Pradesh",146,"Agra",800805,"Agra (CB)","00766"]
[null,null,null,null,9,"Uttar Pradesh",146,"Agra",800806,"Achhnera ","00767"]
[null,null,null,null,9,"Uttar Pradesh",146,"Agra",800807,"Kiraoali","00767"]
[null,null,null,null,9,"Uttar Pradesh",146,"Agra",800808,"Fatehpur Sikri ","00767"]
[null,null,null,null,9,"Uttar Pradesh",146,"Agra",800809,"Jagner","00768"]
[null,null,null,null,9,"Uttar Pradesh",146,"Agra",800810,"Kheragarh","00768"]
[null,null,null,null,9,"Uttar Pradesh",146,"Agra",800811,"Shamsabad ","00769"]
[null,null,null,null,9,"Uttar Pradesh",146,"Agra",800812,"Fatehabad","00769"]
[null,null,null,null,9,"Uttar Pradesh",146,"Agra",800813,"Pinahat","00770"]
[null,null,null,null,9,"Uttar Pradesh",146,"Agra",800814,"Bah ","00770"]
[null,null,null,null,9,"Uttar Pradesh",147,"Firozabad",800815,"Tundla ","00771"]
[null,null,null,null,9,"Uttar Pradesh",147,"Firozabad",800816,"Firozabad ","00772"]
[null,null,null,null,9,"Uttar Pradesh",147,"Firozabad",800817,"Fariha","00773"]
[null,null,null,null,9,"Uttar Pradesh",147,"Firozabad",800818,"Jasrana","00773"]
[null,null,null,null,9,"Uttar Pradesh",147,"Firozabad",800819,"Shikohabad ","00774"]
[null,null,null,null,9,"Uttar Pradesh",147,"Firozabad",800820,"Sirsaganj","00774"]
[null,null,null,null,9,"Uttar Pradesh",148,"Mainpuri",800821,"Kuraoali","00775"]
[null,null,null,null,9,"Uttar Pradesh",148,"Mainpuri",800822,"Jyoti Khuriya","00775"]
[null,null,null,null,9,"Uttar Pradesh",148,"Mainpuri",800823,"Ghiraur","00775"]
[null,null,null,null,9,"Uttar Pradesh",148,"Mainpuri",800824,"Mainpuri","00775"]
[null,null,null,null,9,"Uttar Pradesh",148,"Mainpuri",800825,"Karhal","00776"]
[null,null,null,null,9,"Uttar Pradesh",148,"Mainpuri",800826,"Bhogaon","00777"]
[null,null,null,null,9,"Uttar Pradesh",148,"Mainpuri",800827,"Bewar","00777"]
[null,null,null,null,9,"Uttar Pradesh",148,"Mainpuri",800828,"Kusmara","00777"]
[null,null,null,null,9,"Uttar Pradesh",148,"Mainpuri",800829,"Kishni","00777"]
[null,null,null,null,9,"Uttar Pradesh",149,"Budaun",800830,"Gawan","00778"]
[null,null,null,null,9,"Uttar Pradesh",149,"Budaun",800831,"Babrala","00778"]
[null,null,null,null,9,"Uttar Pradesh",149,"Budaun",800832,"Gunnaur","00778"]
[null,null,null,null,9,"Uttar Pradesh",149,"Budaun",800833,"Islamnagar","00779"]
[null,null,null,null,9,"Uttar Pradesh",149,"Budaun",800834,"Faizganj","00779"]
[null,null,null,null,9,"Uttar Pradesh",149,"Budaun",800835,"Mundiya","00779"]
[null,null,null,null,9,"Uttar Pradesh",149,"Budaun",800836,"Bisauli ","00779"]
[null,null,null,null,9,"Uttar Pradesh",149,"Budaun",800837,"Saidpur","00779"]
[null,null,null,null,9,"Uttar Pradesh",149,"Budaun",800838,"Wazirganj","00779"]
[null,null,null,null,9,"Uttar Pradesh",149,"Budaun",800839,"Rudayan","00780"]
[null,null,null,null,9,"Uttar Pradesh",149,"Budaun",800840,"Bilsi ","00780"]
[null,null,null,null,9,"Uttar Pradesh",149,"Budaun",800841,"Sahaswan ","00781"]
[null,null,null,null,9,"Uttar Pradesh",149,"Budaun",800842,"Kachhla","00782"]
[null,null,null,null,9,"Uttar Pradesh",149,"Budaun",800843,"Ujhani ","00782"]
[null,null,null,null,9,"Uttar Pradesh",149,"Budaun",800844,"Budaun ","00782"]
[null,null,null,null,9,"Uttar Pradesh",149,"Budaun",800845,"Kunwargaon","00782"]
[null,null,null,null,9,"Uttar Pradesh",149,"Budaun",800846,"Gulariya","00782"]
[null,null,null,null,9,"Uttar Pradesh",149,"Budaun",800847,"Sakhanu","00782"]
[null,null,null,null,9,"Uttar Pradesh",149,"Budaun",800848,"Kakrala ","00783"]
[null,null,null,null,9,"Uttar Pradesh",149,"Budaun",800849,"Allapur","00783"]
[null,null,null,null,9,"Uttar Pradesh",149,"Budaun",800850,"Dataganj","00783"]
[null,null,null,null,9,"Uttar Pradesh",149,"Budaun",800851,"Usawan","00783"]
[null,null,null,null,9,"Uttar Pradesh",149,"Budaun",800852,"Usehat","00783"]
[null,null,null,null,9,"Uttar Pradesh",150,"Bareilly",800853,"Baheri ","00784"]
[null,null,null,null,9,"Uttar Pradesh",150,"Bareilly",800854,"Faridpur","00784"]
[null,null,null,null,9,"Uttar Pradesh",150,"Bareilly",800855,"Richha","00784"]
[null,null,null,null,9,"Uttar Pradesh",150,"Bareilly",800856,"Deoranian","00784"]
[null,null,null,null,9,"Uttar Pradesh",150,"Bareilly",800857,"Shergarh","00784"]
[null,null,null,null,9,"Uttar Pradesh",150,"Bareilly",800858,"Shishgarh","00785"]
[null,null,null,null,9,"Uttar Pradesh",150,"Bareilly",800859,"Mirganj","00785"]
[null,null,null,null,9,"Uttar Pradesh",150,"Bareilly",800860,"Fatehganj Pashchimi","00785"]
[null,null,null,null,9,"Uttar Pradesh",150,"Bareilly",800861,"Shahi","00785"]
[null,null,null,null,9,"Uttar Pradesh",150,"Bareilly",800862,"Bisharatganj","00786"]
[null,null,null,null,9,"Uttar Pradesh",150,"Bareilly",800863,"Aonla ","00786"]
[null,null,null,null,9,"Uttar Pradesh",150,"Bareilly",800864,"Sirauli","00786"]
[null,null,null,null,9,"Uttar Pradesh",150,"Bareilly",800865,"Dhaura Tanda","00787"]
[null,null,null,null,9,"Uttar Pradesh",150,"Bareilly",800866,"Bareilly","00787"]
[null,null,null,null,9,"Uttar Pradesh",150,"Bareilly",800867,"Bareilly (CB)","00787"]
[null,null,null,null,9,"Uttar Pradesh",150,"Bareilly",800868,"Thiriya Nizamat Khan","00787"]
[null,null,null,null,9,"Uttar Pradesh",150,"Bareilly",800869,"Rithora","00787"]
[null,null,null,null,9,"Uttar Pradesh",150,"Bareilly",800870,"Sainthal","00788"]
[null,null,null,null,9,"Uttar Pradesh",150,"Bareilly",800871,"Nawabganj ","00788"]
[null,null,null,null,9,"Uttar Pradesh",150,"Bareilly",800872,"Fatehganj Purvi","00789"]
[null,null,null,null,9,"Uttar Pradesh",150,"Bareilly",800873,"Faridpur ","00789"]
[null,null,null,null,9,"Uttar Pradesh",151,"Pilibhit",800874,"Gulariya Bhindara","00790"]
[null,null,null,null,9,"Uttar Pradesh",151,"Pilibhit",800875,"Nyoria Husainpur","00790"]
[null,null,null,null,9,"Uttar Pradesh",151,"Pilibhit",800876,"Jahanabad","00790"]
[null,null,null,null,9,"Uttar Pradesh",151,"Pilibhit",800877,"Pilibhit ","00790"]
[null,null,null,null,9,"Uttar Pradesh",151,"Pilibhit",800878,"Barkhera","00791"]
[null,null,null,null,9,"Uttar Pradesh",151,"Pilibhit",800879,"Bisalpur ","00791"]
[null,null,null,null,9,"Uttar Pradesh",151,"Pilibhit",800880,"Bilsanda","00791"]
[null,null,null,null,9,"Uttar Pradesh",151,"Pilibhit",800881,"Kalinagar","00792"]
[null,null,null,null,9,"Uttar Pradesh",151,"Pilibhit",800882,"Puranpur ","00792"]
[null,null,null,null,9,"Uttar Pradesh",152,"Shahjahanpur",800883,"Khutar","00793"]
[null,null,null,null,9,"Uttar Pradesh",152,"Shahjahanpur",800884,"Powayan","00793"]
[null,null,null,null,9,"Uttar Pradesh",152,"Shahjahanpur",800885,"Khudaganj","00794"]
[null,null,null,null,9,"Uttar Pradesh",152,"Shahjahanpur",800886,"Katra","00794"]
[null,null,null,null,9,"Uttar Pradesh",152,"Shahjahanpur",800887,"Tilhar ","00794"]
[null,null,null,null,9,"Uttar Pradesh",152,"Shahjahanpur",800888,"Railway Settlement Roza","00795"]
[null,null,null,null,9,"Uttar Pradesh",152,"Shahjahanpur",800889,"Shahjahanpur ","00795"]
[null,null,null,null,9,"Uttar Pradesh",152,"Shahjahanpur",800890,"Shahjahanpur (CB)","00795"]
[null,null,null,null,9,"Uttar Pradesh",152,"Shahjahanpur",800891,"Kanth","00795"]
[null,null,null,null,9,"Uttar Pradesh",152,"Shahjahanpur",800892,"Jalalabad ","00796"]
[null,null,null,null,9,"Uttar Pradesh",152,"Shahjahanpur",800893,"Allahganj","00796"]
[null,null,null,null,9,"Uttar Pradesh",153,"Kheri",800894,"Singahi Bhiraura","00797"]
[null,null,null,null,9,"Uttar Pradesh",153,"Kheri",800895,"Paliya Kalan ","00798"]
[null,null,null,null,9,"Uttar Pradesh",153,"Kheri",800896,"Mailani","00799"]
[null,null,null,null,9,"Uttar Pradesh",153,"Kheri",800897,"Gola Gokaran Nath ","00799"]
[null,null,null,null,9,"Uttar Pradesh",153,"Kheri",800898,"Mohammadi ","00800"]
[null,null,null,null,9,"Uttar Pradesh",153,"Kheri",800899,"Barwar","00800"]
[null,null,null,null,9,"Uttar Pradesh",153,"Kheri",800900,"Lakhimpur ","00801"]
[null,null,null,null,9,"Uttar Pradesh",153,"Kheri",800901,"Kheri","00801"]
[null,null,null,null,9,"Uttar Pradesh",153,"Kheri",800902,"Oel Dhakwa","00801"]
[null,null,null,null,9,"Uttar Pradesh",153,"Kheri",800903,"Dhaurehra","00802"]
[null,null,null,null,9,"Uttar Pradesh",154,"Sitapur",800904,"Maholi","00803"]
[null,null,null,null,9,"Uttar Pradesh",154,"Sitapur",800905,"Misrikh-cum-Neemsar ","00803"]
[null,null,null,null,9,"Uttar Pradesh",154,"Sitapur",800906,"Khairabad ","00804"]
[null,null,null,null,9,"Uttar Pradesh",154,"Sitapur",800907,"Sitapur ","00804"]
[null,null,null,null,9,"Uttar Pradesh",154,"Sitapur",800908,"Hargaon","00804"]
[null,null,null,null,9,"Uttar Pradesh",154,"Sitapur",800909,"Laharpur ","00805"]
[null,null,null,null,9,"Uttar Pradesh",154,"Sitapur",800910,"Tambaur-cum-Ahamdabad","00805"]
[null,null,null,null,9,"Uttar Pradesh",154,"Sitapur",800911,"Biswan ","00806"]
[null,null,null,null,9,"Uttar Pradesh",154,"Sitapur",800912,"Mahmudabad ","00807"]
[null,null,null,null,9,"Uttar Pradesh",154,"Sitapur",800913,"Paintepur","00807"]
[null,null,null,null,9,"Uttar Pradesh",154,"Sitapur",800914,"Sidhauli","00808"]
[null,null,null,null,9,"Uttar Pradesh",155,"Hardoi",800915,"Shahabad ","00809"]
[null,null,null,null,9,"Uttar Pradesh",155,"Hardoi",800916,"Pihani ","00809"]
[null,null,null,null,9,"Uttar Pradesh",155,"Hardoi",800917,"Pali","00810"]
[null,null,null,null,9,"Uttar Pradesh",155,"Hardoi",800918,"Gopamau","00811"]
[null,null,null,null,9,"Uttar Pradesh",155,"Hardoi",800919,"Hardoi","00811"]
[null,null,null,null,9,"Uttar Pradesh",155,"Hardoi",800920,"Sandi ","00812"]
[null,null,null,null,9,"Uttar Pradesh",155,"Hardoi",800921,"Bilgram ","00812"]
[null,null,null,null,9,"Uttar Pradesh",155,"Hardoi",800922,"Madhoganj","00812"]
[null,null,null,null,9,"Uttar Pradesh",155,"Hardoi",800923,"Mallawan ","00812"]
[null,null,null,null,9,"Uttar Pradesh",155,"Hardoi",800924,"Kursath","00812"]
[null,null,null,null,9,"Uttar Pradesh",155,"Hardoi",800925,"Kachhauna Patseni","00813"]
[null,null,null,null,9,"Uttar Pradesh",155,"Hardoi",800926,"Beniganj","00813"]
[null,null,null,null,9,"Uttar Pradesh",155,"Hardoi",800927,"Sandila ","00813"]
[null,null,null,null,9,"Uttar Pradesh",156,"Unnao",800928,"Ganj Muradabad","00814"]
[null,null,null,null,9,"Uttar Pradesh",156,"Unnao",800929,"Bangarmau ","00814"]
[null,null,null,null,9,"Uttar Pradesh",156,"Unnao",800930,"Fatehpur Chaurasi","00814"]
[null,null,null,null,9,"Uttar Pradesh",156,"Unnao",800931,"Ugu","00814"]
[null,null,null,null,9,"Uttar Pradesh",156,"Unnao",800932,"Safipur","00814"]
[null,null,null,null,9,"Uttar Pradesh",156,"Unnao",800933,"Kursath","00814"]
[null,null,null,null,9,"Uttar Pradesh",156,"Unnao",800934,"Auras","00815"]
[null,null,null,null,9,"Uttar Pradesh",156,"Unnao",800935,"Hyderabad","00815"]
[null,null,null,null,9,"Uttar Pradesh",156,"Unnao",800936,"Rasulabad","00815"]
[null,null,null,null,9,"Uttar Pradesh",156,"Unnao",800937,"Mohan","00815"]
[null,null,null,null,9,"Uttar Pradesh",156,"Unnao",800938,"Nyotini","00815"]
[null,null,null,null,9,"Uttar Pradesh",156,"Unnao",800939,"Nawabganj","00815"]
[null,null,null,null,9,"Uttar Pradesh",156,"Unnao",800940,"Unnao ","00816"]
[null,null,null,null,9,"Uttar Pradesh",156,"Unnao",800941,"Gangaghat ","00816"]
[null,null,null,null,9,"Uttar Pradesh",156,"Unnao",800942,"Purwa","00817"]
[null,null,null,null,9,"Uttar Pradesh",156,"Unnao",800943,"Maurawan","00817"]
[null,null,null,null,9,"Uttar Pradesh",156,"Unnao",800944,"Bighapur","00818"]
[null,null,null,null,9,"Uttar Pradesh",156,"Unnao",800945,"Bhagwant Nagar","00818"]
[null,null,null,null,9,"Uttar Pradesh",157,"Lucknow",800946,"Malihabad","00819"]
[null,null,null,null,9,"Uttar Pradesh",157,"Lucknow",800947,"Mahona","00820"]
[null,null,null,null,9,"Uttar Pradesh",157,"Lucknow",800948,"Itaunja","00820"]
[null,null,null,null,9,"Uttar Pradesh",157,"Lucknow",800949,"Bakshi Ka Talab","00820"]
[null,null,null,null,9,"Uttar Pradesh",157,"Lucknow",800950,"Kakori","00821"]
[null,null,null,null,9,"Uttar Pradesh",157,"Lucknow",800951,"Lucknow ","00821"]
[null,null,null,null,9,"Uttar Pradesh",157,"Lucknow",800952,"Lucknow (CB)","00821"]
[null,null,null,null,9,"Uttar Pradesh",157,"Lucknow",800953,"Gosainganj","00822"]
[null,null,null,null,9,"Uttar Pradesh",157,"Lucknow",800954,"Amethi","00822"]
[null,null,null,null,9,"Uttar Pradesh",157,"Lucknow",800955,"Nagram","00822"]
[null,null,null,null,9,"Uttar Pradesh",158,"Rae Bareli",800956,"Bachhrawan","00823"]
[null,null,null,null,9,"Uttar Pradesh",158,"Rae Bareli",800957,"Maharajganj","00823"]
[null,null,null,null,9,"Uttar Pradesh",158,"Rae Bareli",800958,"Jais ","00824"]
[null,null,null,null,9,"Uttar Pradesh",158,"Rae Bareli",800959,"Rae Bareli ","00825"]
[null,null,null,null,9,"Uttar Pradesh",158,"Rae Bareli",800960,"Lalganj","00826"]
[null,null,null,null,9,"Uttar Pradesh",158,"Rae Bareli",800961,"Dalmau","00827"]
[null,null,null,null,9,"Uttar Pradesh",158,"Rae Bareli",800962,"Unchahar","00828"]
[null,null,null,null,9,"Uttar Pradesh",158,"Rae Bareli",800963,"Parsadepur","00829"]
[null,null,null,null,9,"Uttar Pradesh",158,"Rae Bareli",800964,"Salon","00829"]
[null,null,null,null,9,"Uttar Pradesh",159,"Farrukhabad",800965,"Kampil","00830"]
[null,null,null,null,9,"Uttar Pradesh",159,"Farrukhabad",800966,"Kaimganj ","00830"]
[null,null,null,null,9,"Uttar Pradesh",159,"Farrukhabad",800967,"Shamsabad","00830"]
[null,null,null,null,9,"Uttar Pradesh",159,"Farrukhabad",800968,"Farrukhabad-cum-Fatehgarh ","00832"]
[null,null,null,null,9,"Uttar Pradesh",159,"Farrukhabad",800969,"Fatehgarh (CB)","00832"]
[null,null,null,null,9,"Uttar Pradesh",159,"Farrukhabad",800970,"Mohammadabad","00832"]
[null,null,null,null,9,"Uttar Pradesh",159,"Farrukhabad",800971,"Kamalganj","00832"]
[null,null,null,null,9,"Uttar Pradesh",160,"Kannauj",800972,"Samdhan","00833"]
[null,null,null,null,9,"Uttar Pradesh",160,"Kannauj",800973,"Gursahaiganj ","00833"]
[null,null,null,null,9,"Uttar Pradesh",160,"Kannauj",800974,"Sikanderpur","00833"]
[null,null,null,null,9,"Uttar Pradesh",160,"Kannauj",800975,"Chhibramau ","00833"]
[null,null,null,null,9,"Uttar Pradesh",160,"Kannauj",800976,"Saurikh","00833"]
[null,null,null,null,9,"Uttar Pradesh",160,"Kannauj",800977,"Talgram","00833"]
[null,null,null,null,9,"Uttar Pradesh",160,"Kannauj",800978,"Kannauj ","00834"]
[null,null,null,null,9,"Uttar Pradesh",160,"Kannauj",800979,"Tirwaganj","00835"]
[null,null,null,null,9,"Uttar Pradesh",161,"Etawah",800980,"Jaswantnagar ","00836"]
[null,null,null,null,9,"Uttar Pradesh",161,"Etawah",800981,"Etawah ","00838"]
[null,null,null,null,9,"Uttar Pradesh",161,"Etawah",800982,"Ekdil","00838"]
[null,null,null,null,9,"Uttar Pradesh",161,"Etawah",800983,"Bharthana ","00839"]
[null,null,null,null,9,"Uttar Pradesh",161,"Etawah",800984,"Bakewar","00839"]
[null,null,null,null,9,"Uttar Pradesh",161,"Etawah",800985,"Lakhna","00839"]
[null,null,null,null,9,"Uttar Pradesh",162,"Auraiya",800986,"Bidhuna","00841"]
[null,null,null,null,9,"Uttar Pradesh",162,"Auraiya",800987,"Achhalda","00841"]
[null,null,null,null,9,"Uttar Pradesh",162,"Auraiya",800988,"Babarpur Ajitmal","00842"]
[null,null,null,null,9,"Uttar Pradesh",162,"Auraiya",800989,"Atasu","00842"]
[null,null,null,null,9,"Uttar Pradesh",162,"Auraiya",800990,"Phaphund","00842"]
[null,null,null,null,9,"Uttar Pradesh",162,"Auraiya",800991,"Dibiyapur","00842"]
[null,null,null,null,9,"Uttar Pradesh",162,"Auraiya",800992,"Auraiya ","00842"]
[null,null,null,null,9,"Uttar Pradesh",163,"Kanpur Dehat",800993,"Rasulabad","00843"]
[null,null,null,null,9,"Uttar Pradesh",163,"Kanpur Dehat",800994,"Jhinjhak","00844"]
[null,null,null,null,9,"Uttar Pradesh",163,"Kanpur Dehat",800995,"Derapur","00844"]
[null,null,null,null,9,"Uttar Pradesh",163,"Kanpur Dehat",800996,"Shivli","00845"]
[null,null,null,null,9,"Uttar Pradesh",163,"Kanpur Dehat",800997,"Rura","00845"]
[null,null,null,null,9,"Uttar Pradesh",163,"Kanpur Dehat",800998,"Akbarpur","00845"]
[null,null,null,null,9,"Uttar Pradesh",163,"Kanpur Dehat",800999,"Amraudha","00846"]
[null,null,null,null,9,"Uttar Pradesh",163,"Kanpur Dehat",801000,"Pukhrayan ","00846"]
[null,null,null,null,9,"Uttar Pradesh",163,"Kanpur Dehat",801001,"Sikandra","00847"]
[null,null,null,null,9,"Uttar Pradesh",164,"Kanpur Nagar",801002,"Bilhaur ","00848"]
[null,null,null,null,9,"Uttar Pradesh",164,"Kanpur Nagar",801003,"Shivrajpur","00848"]
[null,null,null,null,9,"Uttar Pradesh",164,"Kanpur Nagar",801004,"Bithoor","00849"]
[null,null,null,null,9,"Uttar Pradesh",164,"Kanpur Nagar",801005,"Kanpur","00849"]
[null,null,null,null,9,"Uttar Pradesh",164,"Kanpur Nagar",801006,"Kanpur (CB)","00849"]
[null,null,null,null,9,"Uttar Pradesh",164,"Kanpur Nagar",801007,"Ghatampur ","00850"]
[null,null,null,null,9,"Uttar Pradesh",165,"Jalaun ",801008,"Rampura","00851"]
[null,null,null,null,9,"Uttar Pradesh",165,"Jalaun ",801009,"Umri","00851"]
[null,null,null,null,9,"Uttar Pradesh",165,"Jalaun ",801010,"Madhogarh","00851"]
[null,null,null,null,9,"Uttar Pradesh",165,"Jalaun ",801011,"Jalaun ","00852"]
[null,null,null,null,9,"Uttar Pradesh",165,"Jalaun ",801012,"Kalpi ","00853"]
[null,null,null,null,9,"Uttar Pradesh",165,"Jalaun ",801013,"Kadaura","00853"]
[null,null,null,null,9,"Uttar Pradesh",165,"Jalaun ",801014,"Orai","00854"]
[null,null,null,null,9,"Uttar Pradesh",165,"Jalaun ",801015,"Kotra","00854"]
[null,null,null,null,9,"Uttar Pradesh",165,"Jalaun ",801016,"Konch ","00855"]
[null,null,null,null,9,"Uttar Pradesh",165,"Jalaun ",801017,"Nadigaon","00855"]
[null,null,null,null,9,"Uttar Pradesh",166,"Jhansi",801018,"Samthar ","00856"]
[null,null,null,null,9,"Uttar Pradesh",166,"Jhansi",801019,"Moth","00856"]
[null,null,null,null,9,"Uttar Pradesh",166,"Jhansi",801020,"Chirgaon ","00856"]
[null,null,null,null,9,"Uttar Pradesh",166,"Jhansi",801021,"Erich","00857"]
[null,null,null,null,9,"Uttar Pradesh",166,"Jhansi",801022,"Gursarai ","00857"]
[null,null,null,null,9,"Uttar Pradesh",166,"Jhansi",801023,"Garautha","00857"]
[null,null,null,null,9,"Uttar Pradesh",166,"Jhansi",801024,"Tondi Fatehpur","00858"]
[null,null,null,null,9,"Uttar Pradesh",166,"Jhansi",801025,"Mauranipur","00859"]
[null,null,null,null,9,"Uttar Pradesh",166,"Jhansi",801026,"Ranipur","00859"]
[null,null,null,null,9,"Uttar Pradesh",166,"Jhansi",801027,"Kathera","00859"]
[null,null,null,null,9,"Uttar Pradesh",166,"Jhansi",801028,"Barua Sagar ","00860"]
[null,null,null,null,9,"Uttar Pradesh",166,"Jhansi",801029,"Baragaon","00860"]
[null,null,null,null,9,"Uttar Pradesh",166,"Jhansi",801030,"Jhansi ","00860"]
[null,null,null,null,9,"Uttar Pradesh",166,"Jhansi",801031,"Jhansi (CB)","00860"]
[null,null,null,null,9,"Uttar Pradesh",166,"Jhansi",801032,"Jhansi Railway Settlement (ITS)","00860"]
[null,null,null,null,9,"Uttar Pradesh",166,"Jhansi",801033,"Babina (CB)","00860"]
[null,null,null,null,9,"Uttar Pradesh",167,"Lalitpur",801034,"Talbehat","00861"]
[null,null,null,null,9,"Uttar Pradesh",167,"Lalitpur",801035,"Lalitpur ","00862"]
[null,null,null,null,9,"Uttar Pradesh",167,"Lalitpur",801036,"Pali","00862"]
[null,null,null,null,9,"Uttar Pradesh",167,"Lalitpur",801037,"Mahroni","00863"]
[null,null,null,null,9,"Uttar Pradesh",168,"Hamirpur",801038,"Kurara","00864"]
[null,null,null,null,9,"Uttar Pradesh",168,"Hamirpur",801039,"Hamirpur ","00864"]
[null,null,null,null,9,"Uttar Pradesh",168,"Hamirpur",801040,"Sumerpur ","00864"]
[null,null,null,null,9,"Uttar Pradesh",168,"Hamirpur",801041,"Gohand","00866"]
[null,null,null,null,9,"Uttar Pradesh",168,"Hamirpur",801042,"Rath ","00865"]
[null,null,null,null,9,"Uttar Pradesh",168,"Hamirpur",801043,"Sarila","00866"]
[null,null,null,null,9,"Uttar Pradesh",168,"Hamirpur",801044,"Maudaha ","00867"]
[null,null,null,null,9,"Uttar Pradesh",169,"Mahoba",801045,"Kul Pahar","00868"]
[null,null,null,null,9,"Uttar Pradesh",169,"Mahoba",801046,"Kharela","00869"]
[null,null,null,null,9,"Uttar Pradesh",169,"Mahoba",801047,"Charkhari ","00869"]
[null,null,null,null,9,"Uttar Pradesh",169,"Mahoba",801048,"Mahoba ","00870"]
[null,null,null,null,9,"Uttar Pradesh",169,"Mahoba",801049,"Kabrai","00870"]
[null,null,null,null,9,"Uttar Pradesh",170,"Banda",801050,"Mataundh","00871"]
[null,null,null,null,9,"Uttar Pradesh",170,"Banda",801051,"Banda","00871"]
[null,null,null,null,9,"Uttar Pradesh",170,"Banda",801052,"Tindwari","00871"]
[null,null,null,null,9,"Uttar Pradesh",170,"Banda",801053,"Baberu","00872"]
[null,null,null,null,9,"Uttar Pradesh",170,"Banda",801054,"Oran","00873"]
[null,null,null,null,9,"Uttar Pradesh",170,"Banda",801055,"Bisanda Buzurg","00873"]
[null,null,null,null,9,"Uttar Pradesh",170,"Banda",801056,"Atarra ","00873"]
[null,null,null,null,9,"Uttar Pradesh",170,"Banda",801057,"Naraini","00874"]
[null,null,null,null,9,"Uttar Pradesh",171,"Chitrakoot",801058,"Manikpur Sarhat","00875"]
[null,null,null,null,9,"Uttar Pradesh",171,"Chitrakoot",801059,"Chitrakoot Dham (Karwi) ","00875"]
[null,null,null,null,9,"Uttar Pradesh",171,"Chitrakoot",801060,"Rajapur","00876"]
[null,null,null,null,9,"Uttar Pradesh",172,"Fatehpur",801061,"Kora Jahanabad","00877"]
[null,null,null,null,9,"Uttar Pradesh",172,"Fatehpur",801062,"Bindki ","00877"]
[null,null,null,null,9,"Uttar Pradesh",172,"Fatehpur",801063,"Bahuwa","00878"]
[null,null,null,null,9,"Uttar Pradesh",172,"Fatehpur",801064,"Fatehpur ","00878"]
[null,null,null,null,9,"Uttar Pradesh",172,"Fatehpur",801065,"Khaga","00879"]
[null,null,null,null,9,"Uttar Pradesh",172,"Fatehpur",801066,"Kishunpur","00879"]
[null,null,null,null,9,"Uttar Pradesh",172,"Fatehpur",801067,"Hathgram","00879"]
[null,null,null,null,9,"Uttar Pradesh",173,"Pratapgarh",801068,"Manikpur","00881"]
[null,null,null,null,9,"Uttar Pradesh",173,"Pratapgarh",801069,"Kunda","00881"]
[null,null,null,null,9,"Uttar Pradesh",173,"Pratapgarh",801070,"Antu","00882"]
[null,null,null,null,9,"Uttar Pradesh",173,"Pratapgarh",801071,"Bela Pratapgarh ","00882"]
[null,null,null,null,9,"Uttar Pradesh",173,"Pratapgarh",801072,"Pratapgarh City","00882"]
[null,null,null,null,9,"Uttar Pradesh",173,"Pratapgarh",801073,"Katra Medniganj","00882"]
[null,null,null,null,9,"Uttar Pradesh",173,"Pratapgarh",801074,"Patti","00883"]
[null,null,null,null,9,"Uttar Pradesh",174,"Kaushambi",801075,"Ajhuwa","00885"]
[null,null,null,null,9,"Uttar Pradesh",174,"Kaushambi",801076,"Sirathu","00885"]
[null,null,null,null,9,"Uttar Pradesh",174,"Kaushambi",801077,"Manjhanpur","00886"]
[null,null,null,null,9,"Uttar Pradesh",174,"Kaushambi",801078,"Karari","00886"]
[null,null,null,null,9,"Uttar Pradesh",174,"Kaushambi",801079,"Bharwari","00887"]
[null,null,null,null,9,"Uttar Pradesh",174,"Kaushambi",801080,"Chail","00887"]
[null,null,null,null,9,"Uttar Pradesh",174,"Kaushambi",801081,"Sarai Aquil","00887"]
[null,null,null,null,9,"Uttar Pradesh",175,"Allahabad ",801082,"Mau Aima","00888"]
[null,null,null,null,9,"Uttar Pradesh",175,"Allahabad ",801083,"Lal Gopalganj Nindaura","00888"]
[null,null,null,null,9,"Uttar Pradesh",175,"Allahabad ",801084,"Jhusi","00889"]
[null,null,null,null,9,"Uttar Pradesh",175,"Allahabad ",801085,"Phulpur","00889"]
[null,null,null,null,9,"Uttar Pradesh",175,"Allahabad ",801086,"Allahabad","00890"]
[null,null,null,null,9,"Uttar Pradesh",175,"Allahabad ",801087,"Allahabad (CB)","00890"]
[null,null,null,null,9,"Uttar Pradesh",175,"Allahabad ",801088,"Shankargarh","00891"]
[null,null,null,null,9,"Uttar Pradesh",175,"Allahabad ",801089,"Handia","00893"]
[null,null,null,null,9,"Uttar Pradesh",175,"Allahabad ",801090,"Sirsa","00894"]
[null,null,null,null,9,"Uttar Pradesh",175,"Allahabad ",801091,"Bharatganj","00894"]
[null,null,null,null,9,"Uttar Pradesh",175,"Allahabad ",801092,"Koraon","00895"]
[null,null,null,null,9,"Uttar Pradesh",176,"Bara Banki",801093,"Fatehpur","00896"]
[null,null,null,null,9,"Uttar Pradesh",176,"Bara Banki",801094,"Ramnagar","00897"]
[null,null,null,null,9,"Uttar Pradesh",176,"Bara Banki",801095,"Dewa","00898"]
[null,null,null,null,9,"Uttar Pradesh",176,"Bara Banki",801096,"Nawabganj","00898"]
[null,null,null,null,9,"Uttar Pradesh",176,"Bara Banki",801097,"Banki","00898"]
[null,null,null,null,9,"Uttar Pradesh",176,"Bara Banki",801098,"Satrikh","00898"]
[null,null,null,null,9,"Uttar Pradesh",176,"Bara Banki",801099,"Zaidpur","00898"]
[null,null,null,null,9,"Uttar Pradesh",176,"Bara Banki",801100,"Tikait Nagar","00899"]
[null,null,null,null,9,"Uttar Pradesh",176,"Bara Banki",801101,"Dariyabad","00900"]
[null,null,null,null,9,"Uttar Pradesh",176,"Bara Banki",801102,"Siddhaur","00901"]
[null,null,null,null,9,"Uttar Pradesh",176,"Bara Banki",801103,"Haidergarh","00901"]
[null,null,null,null,9,"Uttar Pradesh",176,"Bara Banki",801104,"Subeha","00901"]
[null,null,null,null,9,"Uttar Pradesh",177,"Faizabad",801105,"Rudauli ","00902"]
[null,null,null,null,9,"Uttar Pradesh",177,"Faizabad",801106,"Bhadarsa","00904"]
[null,null,null,null,9,"Uttar Pradesh",177,"Faizabad",801107,"Faizabad (CB)","00905"]
[null,null,null,null,9,"Uttar Pradesh",177,"Faizabad",801108,"Faizabad ","00905"]
[null,null,null,null,9,"Uttar Pradesh",177,"Faizabad",801109,"Ayodhya ","00905"]
[null,null,null,null,9,"Uttar Pradesh",177,"Faizabad",801110,"Gosainganj","00905"]
[null,null,null,null,9,"Uttar Pradesh",177,"Faizabad",801111,"Bikapur","00906"]
[null,null,null,null,9,"Uttar Pradesh",178,"Ambedkar Nagar",801112,"Iltifatganj Bazar","00907"]
[null,null,null,null,9,"Uttar Pradesh",178,"Ambedkar Nagar",801113,"Tanda ","00907"]
[null,null,null,null,9,"Uttar Pradesh",178,"Ambedkar Nagar",801114,"Ashrafpur Kichhauchha","00907"]
[null,null,null,null,9,"Uttar Pradesh",178,"Ambedkar Nagar",801115,"Jalalpur ","00909"]
[null,null,null,null,9,"Uttar Pradesh",178,"Ambedkar Nagar",801116,"Akbarpur ","00910"]
[null,null,null,null,9,"Uttar Pradesh",179,"Sultanpur",801117,"Musafirkhana","00912"]
[null,null,null,null,9,"Uttar Pradesh",179,"Sultanpur",801118,"Amethi","00914"]
[null,null,null,null,9,"Uttar Pradesh",179,"Sultanpur",801119,"Sultanpur ","00915"]
[null,null,null,null,9,"Uttar Pradesh",179,"Sultanpur",801120,"Koeripur","00917"]
[null,null,null,null,9,"Uttar Pradesh",179,"Sultanpur",801121,"Dostpur","00918"]
[null,null,null,null,9,"Uttar Pradesh",179,"Sultanpur",801122,"Kadipur","00918"]
[null,null,null,null,9,"Uttar Pradesh",180,"Bahraich",801123,"Nanpara ","00919"]
[null,null,null,null,9,"Uttar Pradesh",180,"Bahraich",801124,"Risiya Bazar","00921"]
[null,null,null,null,9,"Uttar Pradesh",180,"Bahraich",801125,"Bahraich ","00921"]
[null,null,null,null,9,"Uttar Pradesh",180,"Bahraich",801126,"Jarwal","00922"]
[null,null,null,null,9,"Uttar Pradesh",181,"Shrawasti",801127,"Bhinga","00923"]
[null,null,null,null,9,"Uttar Pradesh",181,"Shrawasti",801128,"Ikauna","00924"]
[null,null,null,null,9,"Uttar Pradesh",182,"Balrampur",801129,"Balrampur","00925"]
[null,null,null,null,9,"Uttar Pradesh",182,"Balrampur",801130,"Tulsipur","00926"]
[null,null,null,null,9,"Uttar Pradesh",182,"Balrampur",801131,"Pachperwa","00926"]
[null,null,null,null,9,"Uttar Pradesh",182,"Balrampur",801132,"Utraula ","00927"]
[null,null,null,null,9,"Uttar Pradesh",183,"Gonda",801133,"Khargupur","00928"]
[null,null,null,null,9,"Uttar Pradesh",183,"Gonda",801134,"Gonda ","00928"]
[null,null,null,null,9,"Uttar Pradesh",183,"Gonda",801135,"Katra","00929"]
[null,null,null,null,9,"Uttar Pradesh",183,"Gonda",801136,"Colonelganj ","00929"]
[null,null,null,null,9,"Uttar Pradesh",183,"Gonda",801137,"Nawabganj ","00930"]
[null,null,null,null,9,"Uttar Pradesh",183,"Gonda",801138,"Mankapur","00931"]
[null,null,null,null,9,"Uttar Pradesh",184,"Siddharthnagar",801139,"Barhani Bazar","00932"]
[null,null,null,null,9,"Uttar Pradesh",184,"Siddharthnagar",801140,"Shohratgarh","00932"]
[null,null,null,null,9,"Uttar Pradesh",184,"Siddharthnagar",801141,"Siddharthnagar ","00933"]
[null,null,null,null,9,"Uttar Pradesh",184,"Siddharthnagar",801142,"Uska Bazar","00933"]
[null,null,null,null,9,"Uttar Pradesh",184,"Siddharthnagar",801143,"Bansi ","00934"]
[null,null,null,null,9,"Uttar Pradesh",184,"Siddharthnagar",801144,"Domariyaganj","00936"]
[null,null,null,null,9,"Uttar Pradesh",185,"Basti",801145,"Harraiya","00938"]
[null,null,null,null,9,"Uttar Pradesh",185,"Basti",801146,"Bhabnan Bazar","00938"]
[null,null,null,null,9,"Uttar Pradesh",185,"Basti",801147,"Basti ","00939"]
[null,null,null,null,9,"Uttar Pradesh",186,"Sant Kabir Nagar",801148,"Mehdawal","00941"]
[null,null,null,null,9,"Uttar Pradesh",186,"Sant Kabir Nagar",801149,"Khalilabad ","00942"]
[null,null,null,null,9,"Uttar Pradesh",186,"Sant Kabir Nagar",801150,"Maghar","00942"]
[null,null,null,null,9,"Uttar Pradesh",186,"Sant Kabir Nagar",801151,"Hariharpur","00943"]
[null,null,null,null,9,"Uttar Pradesh",187,"Mahrajganj",801152,"Nautanwa ","00944"]
[null,null,null,null,9,"Uttar Pradesh",187,"Mahrajganj",801153,"Nichlaul","00945"]
[null,null,null,null,9,"Uttar Pradesh",187,"Mahrajganj",801154,"Siswa Bazar","00945"]
[null,null,null,null,9,"Uttar Pradesh",187,"Mahrajganj",801155,"Anandnagar","00946"]
[null,null,null,null,9,"Uttar Pradesh",187,"Mahrajganj",801156,"Ghughuli","00947"]
[null,null,null,null,9,"Uttar Pradesh",187,"Mahrajganj",801157,"Maharajganj ","00947"]
[null,null,null,null,9,"Uttar Pradesh",188,"Gorakhpur",801158,"Pipiganj","00948"]
[null,null,null,null,9,"Uttar Pradesh",188,"Gorakhpur",801159,"Sahjanwan","00949"]
[null,null,null,null,9,"Uttar Pradesh",188,"Gorakhpur",801160,"Gorakhpur ","00950"]
[null,null,null,null,9,"Uttar Pradesh",188,"Gorakhpur",801161,"Pipraich","00950"]
[null,null,null,null,9,"Uttar Pradesh",188,"Gorakhpur",801162,"Mundera Bazar","00951"]
[null,null,null,null,9,"Uttar Pradesh",188,"Gorakhpur",801163,"Bansgaon","00952"]
[null,null,null,null,9,"Uttar Pradesh",188,"Gorakhpur",801164,"Gola Bazar","00954"]
[null,null,null,null,9,"Uttar Pradesh",188,"Gorakhpur",801165,"Barhalganj","00954"]
[null,null,null,null,9,"Uttar Pradesh",189,"Kushinagar",801166,"Khadda","00955"]
[null,null,null,null,9,"Uttar Pradesh",189,"Kushinagar",801167,"Padrauna ","00955"]
[null,null,null,null,9,"Uttar Pradesh",189,"Kushinagar",801168,"Ramkola","00956"]
[null,null,null,null,9,"Uttar Pradesh",189,"Kushinagar",801169,"Kaptanganj","00956"]
[null,null,null,null,9,"Uttar Pradesh",189,"Kushinagar",801170,"Hata","00956"]
[null,null,null,null,9,"Uttar Pradesh",189,"Kushinagar",801171,"Kushinagar","00957"]
[null,null,null,null,9,"Uttar Pradesh",189,"Kushinagar",801172,"Sewarhi","00958"]
[null,null,null,null,9,"Uttar Pradesh",190,"Deoria",801173,"Gauri Bazar","00959"]
[null,null,null,null,9,"Uttar Pradesh",190,"Deoria",801174,"Rampur Karkhana","00959"]
[null,null,null,null,9,"Uttar Pradesh",190,"Deoria",801175,"Deoria ","00959"]
[null,null,null,null,9,"Uttar Pradesh",190,"Deoria",801176,"Rudrapur","00960"]
[null,null,null,null,9,"Uttar Pradesh",190,"Deoria",801177,"Gaura Barhaj ","00961"]
[null,null,null,null,9,"Uttar Pradesh",190,"Deoria",801178,"Bhatni Bazar","00962"]
[null,null,null,null,9,"Uttar Pradesh",190,"Deoria",801179,"Majhauliraj","00962"]
[null,null,null,null,9,"Uttar Pradesh",190,"Deoria",801180,"Salempur","00962"]
[null,null,null,null,9,"Uttar Pradesh",190,"Deoria",801181,"Lar","00962"]
[null,null,null,null,9,"Uttar Pradesh",190,"Deoria",801182,"Bhatpar Rani","00963"]
[null,null,null,null,9,"Uttar Pradesh",191,"Azamgarh",801183,"Atrauliya","00964"]
[null,null,null,null,9,"Uttar Pradesh",191,"Azamgarh",801184,"Mahrajganj","00965"]
[null,null,null,null,9,"Uttar Pradesh",191,"Azamgarh",801185,"Bilariaganj","00965"]
[null,null,null,null,9,"Uttar Pradesh",191,"Azamgarh",801186,"Jiyanpur","00965"]
[null,null,null,null,9,"Uttar Pradesh",191,"Azamgarh",801187,"Azmatgarh","00965"]
[null,null,null,null,9,"Uttar Pradesh",191,"Azamgarh",801188,"Mubarakpur ","00966"]
[null,null,null,null,9,"Uttar Pradesh",191,"Azamgarh",801189,"Azamgarh ","00966"]
[null,null,null,null,9,"Uttar Pradesh",191,"Azamgarh",801190,"Nizamabad","00967"]
[null,null,null,null,9,"Uttar Pradesh",191,"Azamgarh",801191,"Sarai Mir","00967"]
[null,null,null,null,9,"Uttar Pradesh",191,"Azamgarh",801192,"Phulpur","00968"]
[null,null,null,null,9,"Uttar Pradesh",191,"Azamgarh",801193,"Katghar Lalganj","00969"]
[null,null,null,null,9,"Uttar Pradesh",191,"Azamgarh",801194,"Mehnagar","00970"]
[null,null,null,null,9,"Uttar Pradesh",192,"Mau",801195,"Dohrighat","00971"]
[null,null,null,null,9,"Uttar Pradesh",192,"Mau",801196,"Amila","00971"]
[null,null,null,null,9,"Uttar Pradesh",192,"Mau",801197,"Ghosi","00971"]
[null,null,null,null,9,"Uttar Pradesh",192,"Mau",801198,"Kopaganj","00973"]
[null,null,null,null,9,"Uttar Pradesh",192,"Mau",801199,"Adari","00973"]
[null,null,null,null,9,"Uttar Pradesh",192,"Mau",801200,"Maunath Bhanjan ","00973"]
[null,null,null,null,9,"Uttar Pradesh",192,"Mau",801201,"Muhammadabad","00974"]
[null,null,null,null,9,"Uttar Pradesh",193,"Ballia",801202,"Belthara Road","00975"]
[null,null,null,null,9,"Uttar Pradesh",193,"Ballia",801203,"Sikanderpur","00976"]
[null,null,null,null,9,"Uttar Pradesh",193,"Ballia",801204,"Rasra ","00977"]
[null,null,null,null,9,"Uttar Pradesh",193,"Ballia",801205,"Chitbara Gaon","00978"]
[null,null,null,null,9,"Uttar Pradesh",193,"Ballia",801206,"Ballia ","00978"]
[null,null,null,null,9,"Uttar Pradesh",193,"Ballia",801207,"Maniyar","00979"]
[null,null,null,null,9,"Uttar Pradesh",193,"Ballia",801208,"Bansdih","00979"]
[null,null,null,null,9,"Uttar Pradesh",193,"Ballia",801209,"Sahatwar","00979"]
[null,null,null,null,9,"Uttar Pradesh",193,"Ballia",801210,"Reoti","00979"]
[null,null,null,null,9,"Uttar Pradesh",194,"Jaunpur",801211,"Shahganj ","00981"]
[null,null,null,null,9,"Uttar Pradesh",194,"Jaunpur",801212,"Khetasarai","00981"]
[null,null,null,null,9,"Uttar Pradesh",194,"Jaunpur",801213,"Mogra Badshahpur ","00983"]
[null,null,null,null,9,"Uttar Pradesh",194,"Jaunpur",801214,"Machhlishahr","00983"]
[null,null,null,null,9,"Uttar Pradesh",194,"Jaunpur",801215,"Jaunpur ","00984"]
[null,null,null,null,9,"Uttar Pradesh",194,"Jaunpur",801216,"Jafarabad","00984"]
[null,null,null,null,9,"Uttar Pradesh",194,"Jaunpur",801217,"Mariahu","00985"]
[null,null,null,null,9,"Uttar Pradesh",194,"Jaunpur",801218,"Kerakat","00986"]
[null,null,null,null,9,"Uttar Pradesh",195,"Ghazipur",801219,"Sadat","00987"]
[null,null,null,null,9,"Uttar Pradesh",195,"Ghazipur",801220,"Saidpur","00988"]
[null,null,null,null,9,"Uttar Pradesh",195,"Ghazipur",801221,"Jangipur","00989"]
[null,null,null,null,9,"Uttar Pradesh",195,"Ghazipur",801222,"Ghazipur","00989"]
[null,null,null,null,9,"Uttar Pradesh",195,"Ghazipur",801223,"Bahadurganj","00990"]
[null,null,null,null,9,"Uttar Pradesh",195,"Ghazipur",801224,"Mohammadabad ","00990"]
[null,null,null,null,9,"Uttar Pradesh",195,"Ghazipur",801225,"Dildarnagar Fatehpur Bazar","00991"]
[null,null,null,null,9,"Uttar Pradesh",195,"Ghazipur",801226,"Zamania ","00991"]
[null,null,null,null,9,"Uttar Pradesh",196,"Chandauli",801227,"Mughalsarai ","00993"]
[null,null,null,null,9,"Uttar Pradesh",196,"Chandauli",801228,"Mughalsarai Railway Settlement (ITS)","00993"]
[null,null,null,null,9,"Uttar Pradesh",196,"Chandauli",801229,"Chandauli","00993"]
[null,null,null,null,9,"Uttar Pradesh",196,"Chandauli",801230,"Saiyad Raza","00993"]
[null,null,null,null,9,"Uttar Pradesh",196,"Chandauli",801231,"Chakia","00994"]
[null,null,null,null,9,"Uttar Pradesh",197,"Varanasi",801232,"Gangapur","00996"]
[null,null,null,null,9,"Uttar Pradesh",197,"Varanasi",801233,"Varanasi (CB)","00996"]
[null,null,null,null,9,"Uttar Pradesh",197,"Varanasi",801234,"Maruadih Railway Settlement (ITS)","00996"]
[null,null,null,null,9,"Uttar Pradesh",197,"Varanasi",801235,"Varanasi ","00996"]
[null,null,null,null,9,"Uttar Pradesh",197,"Varanasi",801236,"Ramnagar ","00996"]
[null,null,null,null,9,"Uttar Pradesh",198,"Sant Ravidas Nagar (Bhadohi)",801237,"Suriyawan","00997"]
[null,null,null,null,9,"Uttar Pradesh",198,"Sant Ravidas Nagar (Bhadohi)",801238,"Nai Bazar","00997"]
[null,null,null,null,9,"Uttar Pradesh",198,"Sant Ravidas Nagar (Bhadohi)",801239,"Bhadohi ","00997"]
[null,null,null,null,9,"Uttar Pradesh",198,"Sant Ravidas Nagar (Bhadohi)",801240,"Gyanpur","00998"]
[null,null,null,null,9,"Uttar Pradesh",198,"Sant Ravidas Nagar (Bhadohi)",801241,"Gopiganj ","00998"]
[null,null,null,null,9,"Uttar Pradesh",198,"Sant Ravidas Nagar (Bhadohi)",801242,"Khamaria","00999"]
[null,null,null,null,9,"Uttar Pradesh",198,"Sant Ravidas Nagar (Bhadohi)",801243,"Ghosia Bazar","00999"]
[null,null,null,null,9,"Uttar Pradesh",199,"Mirzapur",801244,"Mirzapur-cum-Vindhyachal ","01000"]
[null,null,null,null,9,"Uttar Pradesh",199,"Mirzapur",801245,"Kachhwa","01000"]
[null,null,null,null,9,"Uttar Pradesh",199,"Mirzapur",801246,"Chunar ","01003"]
[null,null,null,null,9,"Uttar Pradesh",199,"Mirzapur",801247,"Ahraura ","01003"]
[null,null,null,null,9,"Uttar Pradesh",200,"Sonbhadra",801248,"Ghorawal","01004"]
[null,null,null,null,9,"Uttar Pradesh",200,"Sonbhadra",801249,"Sonbhadra ","01005"]
[null,null,null,null,9,"Uttar Pradesh",200,"Sonbhadra",801250,"Churk Ghurma","01005"]
[null,null,null,null,9,"Uttar Pradesh",200,"Sonbhadra",801251,"Chopan","01005"]
[null,null,null,null,9,"Uttar Pradesh",200,"Sonbhadra",801252,"Obra","01005"]
[null,null,null,null,9,"Uttar Pradesh",200,"Sonbhadra",801253,"Dudhi","01006"]
[null,null,null,null,9,"Uttar Pradesh",200,"Sonbhadra",801254,"Renukoot ","01006"]
[null,null,null,null,9,"Uttar Pradesh",200,"Sonbhadra",801255,"Hindalco Industries Ltd. (Renukoot) (ITS)","01006"]
[null,null,null,null,9,"Uttar Pradesh",200,"Sonbhadra",801256,"Kanaudia Chamical & Industries Ltd. (Renukoot) (ITS)","01006"]
[null,null,null,null,9,"Uttar Pradesh",200,"Sonbhadra",801257,"Pipri","01006"]
[null,null,null,null,9,"Uttar Pradesh",201,"Etah",801258,"Raja Ka Rampur","01007"]
[null,null,null,null,9,"Uttar Pradesh",201,"Etah",801259,"Aliganj ","01007"]
[null,null,null,null,9,"Uttar Pradesh",201,"Etah",801260,"Jaithara","01007"]
[null,null,null,null,9,"Uttar Pradesh",201,"Etah",801261,"Sakit","01008"]
[null,null,null,null,9,"Uttar Pradesh",201,"Etah",801262,"Etah ","01008"]
[null,null,null,null,9,"Uttar Pradesh",201,"Etah",801263,"Marehra ","01008"]
[null,null,null,null,9,"Uttar Pradesh",201,"Etah",801264,"Nidhauli Kalan","01008"]
[null,null,null,null,9,"Uttar Pradesh",201,"Etah",801265,"Jalesar ","01009"]
[null,null,null,null,9,"Uttar Pradesh",201,"Etah",801266,"Awagarh","01009"]
[null,null,null,null,9,"Uttar Pradesh",202,"Kanshiram Nagar",801267,"Soron ","01010"]
[null,null,null,null,9,"Uttar Pradesh",202,"Kanshiram Nagar",801268,"Bilram","01010"]
[null,null,null,null,9,"Uttar Pradesh",202,"Kanshiram Nagar",801269,"Kasganj ","01010"]
[null,null,null,null,9,"Uttar Pradesh",202,"Kanshiram Nagar",801270,"Sahawar","01011"]
[null,null,null,null,9,"Uttar Pradesh",202,"Kanshiram Nagar",801271,"Amanpur","01011"]
[null,null,null,null,9,"Uttar Pradesh",202,"Kanshiram Nagar",801272,"Mohanpur","01012"]
[null,null,null,null,9,"Uttar Pradesh",202,"Kanshiram Nagar",801273,"Ganj Dundawara ","01012"]
[null,null,null,null,9,"Uttar Pradesh",202,"Kanshiram Nagar",801274,"Patiyali","01012"]
[null,null,null,null,9,"Uttar Pradesh",202,"Kanshiram Nagar",801275,"Sidhpura","01012"]
[null,null,null,null,9,"Uttar Pradesh",202,"Kanshiram Nagar",801276,"Bhargain","01012"]
[null,null,null,null,10,"Bihar",203,"Pashchim Champaran",801277,"Ramnagar","01014"]
[null,null,null,null,10,"Bihar",203,"Pashchim Champaran",801278,"Narkatiaganj (Nagar Parishad)","01017"]
[null,null,null,null,10,"Bihar",203,"Pashchim Champaran",801279,"Bagaha (Nagar Parishad)","01019"]
[null,null,null,null,10,"Bihar",203,"Pashchim Champaran",801280,"Chanpatia","01025"]
[null,null,null,null,10,"Bihar",203,"Pashchim Champaran",801281,"Bettiah (Nagar Parishad)","01028"]
[null,null,null,null,10,"Bihar",204,"Purba Champaran",801282,"Raxaul Bazar  (Nagar Parishad)","01031"]
[null,null,null,null,10,"Bihar",204,"Purba Champaran",801283,"Sugauli","01034"]
[null,null,null,null,10,"Bihar",204,"Purba Champaran",801284,"Dhaka","01039"]
[null,null,null,null,10,"Bihar",204,"Purba Champaran",801285,"Motihari (Nagar Parishad)","01041"]
[null,null,null,null,10,"Bihar",204,"Purba Champaran",801286,"Areraj","01045"]
[null,null,null,null,10,"Bihar",204,"Purba Champaran",801287,"Kesaria","01047"]
[null,null,null,null,10,"Bihar",204,"Purba Champaran",801288,"Chakia","01051"]
[null,null,null,null,10,"Bihar",204,"Purba Champaran",801289,"Pakri Dayal","01052"]
[null,null,null,null,10,"Bihar",204,"Purba Champaran",801290,"Madhuban","01055"]
[null,null,null,null,10,"Bihar",204,"Purba Champaran",801291,"Mehsi","01057"]
[null,null,null,null,10,"Bihar",205,"Sheohar",801292,"Sheohar","01060"]
[null,null,null,null,10,"Bihar",206,"Sitamarhi",801293,"Bairgania","01063"]
[null,null,null,null,10,"Bihar",206,"Sitamarhi",801294,"Belsand","01072"]
[null,null,null,null,10,"Bihar",206,"Sitamarhi",801295,"Sitamarhi (Nagar Parishad)","01074"]
[null,null,null,null,10,"Bihar",206,"Sitamarhi",801296,"Dumra","01074"]
[null,null,null,null,10,"Bihar",206,"Sitamarhi",801297,"Janakpur Road","01077"]
[null,null,null,null,10,"Bihar",207,"Madhubani",801298,"Jainagar","01083"]
[null,null,null,null,10,"Bihar",207,"Madhubani",801299,"Madhubani (Nagar Parishad)","01093"]
[null,null,null,null,10,"Bihar",207,"Madhubani",801300,"Jhanjharpur","01097"]
[null,null,null,null,10,"Bihar",207,"Madhubani",801301,"Ghoghardiha","01098"]
[null,null,null,null,10,"Bihar",208,"Supaul",801302,"Nirmali","01101"]
[null,null,null,null,10,"Bihar",208,"Supaul",801303,"Birpur","01102"]
[null,null,null,null,10,"Bihar",208,"Supaul",801304,"Supaul (Nagar Parishad)","01109"]
[null,null,null,null,10,"Bihar",209,"Araria",801305,"Jogabani","01113"]
[null,null,null,null,10,"Bihar",209,"Araria",801306,"Forbesganj (Nagar Parishad)","01113"]
[null,null,null,null,10,"Bihar",209,"Araria",801307,"Araria (Nagar Parishad)","01116"]
[null,null,null,null,10,"Bihar",210,"Kishanganj",801308,"Thakurganj","01123"]
[null,null,null,null,10,"Bihar",210,"Kishanganj",801309,"Bahadurganj","01125"]
[null,null,null,null,10,"Bihar",210,"Kishanganj",801310,"Kishanganj (Nagar Parishad)","01127"]
[null,null,null,null,10,"Bihar",211,"Purnia",801311,"Banmankhi Bazar","01128"]
[null,null,null,null,10,"Bihar",211,"Purnia",801312,"Purnia ","01134"]
[null,null,null,null,10,"Bihar",211,"Purnia",801313,"Kasba","01135"]
[null,null,null,null,10,"Bihar",212,"Katihar",801314,"Katihar","01151"]
[null,null,null,null,10,"Bihar",212,"Katihar",801315,"Manihari","01156"]
[null,null,null,null,10,"Bihar",213,"Madhepura",801316,"Madhepura (Nagar Parishad)","01161"]
[null,null,null,null,10,"Bihar",213,"Madhepura",801317,"Murliganj","01164"]
[null,null,null,null,10,"Bihar",214,"Saharsa",801318,"Saharsa (Nagar Parishad)","01174"]
[null,null,null,null,10,"Bihar",215,"Darbhanga",801319,"Darbhanga ","01184"]
[null,null,null,null,10,"Bihar",215,"Darbhanga",801320,"Benipur (Nagar Parishad)","01188"]
[null,null,null,null,10,"Bihar",216,"Muzaffarpur",801321,"Sahebganj","01199"]
[null,null,null,null,10,"Bihar",216,"Muzaffarpur",801322,"Motipur","01200"]
[null,null,null,null,10,"Bihar",216,"Muzaffarpur",801323,"Kanti","01204"]
[null,null,null,null,10,"Bihar",216,"Muzaffarpur",801324,"Muzaffarpur ","01212"]
[null,null,null,null,10,"Bihar",217,"Gopalganj",801325,"Kataiya","01215"]
[null,null,null,null,10,"Bihar",217,"Gopalganj",801326,"Mirganj","01222"]
[null,null,null,null,10,"Bihar",217,"Gopalganj",801327,"Gopalganj (Nagar Parishad)","01224"]
[null,null,null,null,10,"Bihar",217,"Gopalganj",801328,"Barauli","01226"]
[null,null,null,null,10,"Bihar",218,"Siwan",801329,"Siwan (Nagar Parishad)","01230"]
[null,null,null,null,10,"Bihar",218,"Siwan",801330,"Maharajganj","01236"]
[null,null,null,null,10,"Bihar",218,"Siwan",801331,"Mairwa","01240"]
[null,null,null,null,10,"Bihar",219,"Saran",801332,"Revelganj","01257"]
[null,null,null,null,10,"Bihar",219,"Saran",801333,"Chapra (Nagar Parishad)","01258"]
[null,null,null,null,10,"Bihar",219,"Saran",801334,"Marhaura","01260"]
[null,null,null,null,10,"Bihar",219,"Saran",801335,"Dighwara","01266"]
[null,null,null,null,10,"Bihar",219,"Saran",801336,"Sonepur","01267"]
[null,null,null,null,10,"Bihar",220,"Vaishali",801337,"Lalganj","01270"]
[null,null,null,null,10,"Bihar",220,"Vaishali",801338,"Hajipur (Nagar Parishad)","01278"]
[null,null,null,null,10,"Bihar",220,"Vaishali",801339,"Mahnar Bazar","01283"]
[null,null,null,null,10,"Bihar",221,"Samastipur",801340,"Samastipur (Nagar Parishad + OG)","01288"]
[null,null,null,null,10,"Bihar",221,"Samastipur",801341,"Dalsinghsarai","01297"]
[null,null,null,null,10,"Bihar",221,"Samastipur",801342,"Rosera","01300"]
[null,null,null,null,10,"Bihar",222,"Begusarai",801343,"Barauni (Nagar Parishad)","01311"]
[null,null,null,null,10,"Bihar",222,"Begusarai",801344,"Teghra","01311"]
[null,null,null,null,10,"Bihar",222,"Begusarai",801345,"Bihat (Nagar Parishad)","01312"]
[null,null,null,null,10,"Bihar",222,"Begusarai",801346,"Begusarai  ","01314"]
[null,null,null,null,10,"Bihar",222,"Begusarai",801347,"Bakhri","01316"]
[null,null,null,null,10,"Bihar",222,"Begusarai",801348,"Balia","01319"]
[null,null,null,null,10,"Bihar",223,"Khagaria",801349,"Khagaria (Nagar Parishad)","01323"]
[null,null,null,null,10,"Bihar",223,"Khagaria",801350,"Gogri Jamalpur","01327"]
[null,null,null,null,10,"Bihar",224,"Bhagalpur",801351,"Naugachhia","01332"]
[null,null,null,null,10,"Bihar",224,"Bhagalpur",801352,"Colgong","01336"]
[null,null,null,null,10,"Bihar",224,"Bhagalpur",801353,"Sultanganj (Nagar Parishad)","01340"]
[null,null,null,null,10,"Bihar",224,"Bhagalpur",801354,"Bhagalpur ","01343"]
[null,null,null,null,10,"Bihar",225,"Banka",801355,"Amarpur","01346"]
[null,null,null,null,10,"Bihar",225,"Banka",801356,"Banka","01350"]
[null,null,null,null,10,"Bihar",226,"Munger",801357,"Munger ","01356"]
[null,null,null,null,10,"Bihar",226,"Munger",801358,"Jamalpur (Nagar Parishad)","01358"]
[null,null,null,null,10,"Bihar",226,"Munger",801359,"Kharagpur","01360"]
[null,null,null,null,10,"Bihar",227,"Lakhisarai",801360,"Barahiya","01365"]
[null,null,null,null,10,"Bihar",227,"Lakhisarai",801361,"Lakhisarai (Nagar Parishad)","01368"]
[null,null,null,null,10,"Bihar",228,"Sheikhpura",801362,"Barbigha","01372"]
[null,null,null,null,10,"Bihar",228,"Sheikhpura",801363,"Sheikhpura (Nagar Parishad)","01374"]
[null,null,null,null,10,"Bihar",229,"Nalanda",801364,"Biharsharif ","01386"]
[null,null,null,null,10,"Bihar",229,"Nalanda",801365,"Hilsa (Nagar Parishad)","01390"]
[null,null,null,null,10,"Bihar",229,"Nalanda",801366,"Islampur","01392"]
[null,null,null,null,10,"Bihar",229,"Nalanda",801367,"Rajgir","01394"]
[null,null,null,null,10,"Bihar",229,"Nalanda",801368,"Silao","01395"]
[null,null,null,null,10,"Bihar",230,"Patna",801369,"Maner","01398"]
[null,null,null,null,10,"Bihar",230,"Patna",801370,"Dinapur Nizamat (Nagar Parishad)","01399"]
[null,null,null,null,10,"Bihar",230,"Patna",801371,"Dinapur Cantonment (CB)","01399"]
[null,null,null,null,10,"Bihar",230,"Patna",801372,"Khagaul (Nagar Parishad)","01399"]
[null,null,null,null,10,"Bihar",230,"Patna",801373,"Patna","01400"]
[null,null,null,null,10,"Bihar",230,"Patna",801374,"Phulwari Sharif (Nagar Parishad)","01402"]
[null,null,null,null,10,"Bihar",230,"Patna",801375,"Bihta","01403"]
[null,null,null,null,10,"Bihar",230,"Patna",801376,"Naubatpur","01404"]
[null,null,null,null,10,"Bihar",230,"Patna",801377,"Bikram","01405"]
[null,null,null,null,10,"Bihar",230,"Patna",801378,"Masaurhi (Nagar Parishad)","01408"]
[null,null,null,null,10,"Bihar",230,"Patna",801379,"Fatwah","01411"]
[null,null,null,null,10,"Bihar",230,"Patna",801380,"Khusrupur","01413"]
[null,null,null,null,10,"Bihar",230,"Patna",801381,"Bakhtiarpur","01414"]
[null,null,null,null,10,"Bihar",230,"Patna",801382,"Barh (Nagar Parishad)","01417"]
[null,null,null,null,10,"Bihar",230,"Patna",801383,"Mokameh (Nagar Parishad)","01420"]
[null,null,null,null,10,"Bihar",231,"Bhojpur",801384,"Shahpur","01421"]
[null,null,null,null,10,"Bihar",231,"Bhojpur",801385,"Arrah ","01422"]
[null,null,null,null,10,"Bihar",231,"Bhojpur",801386,"Koilwar","01424"]
[null,null,null,null,10,"Bihar",231,"Bhojpur",801387,"Behea","01427"]
[null,null,null,null,10,"Bihar",231,"Bhojpur",801388,"Jagdishpur","01428"]
[null,null,null,null,10,"Bihar",231,"Bhojpur",801389,"Piro","01429"]
[null,null,null,null,10,"Bihar",232,"Buxar",801390,"Dumraon (Nagar Parishad)","01440"]
[null,null,null,null,10,"Bihar",232,"Buxar",801391,"Buxar (Nagar Parishad)","01441"]
[null,null,null,null,10,"Bihar",233,"Kaimur (Bhabua)",801392,"Bhabua (Nagar Parishad)","01453"]
[null,null,null,null,10,"Bihar",234,"Rohtas",801393,"Koath","01459"]
[null,null,null,null,10,"Bihar",234,"Rohtas",801394,"Bikramganj","01461"]
[null,null,null,null,10,"Bihar",234,"Rohtas",801395,"Nasriganj","01463"]
[null,null,null,null,10,"Bihar",234,"Rohtas",801396,"Nokha","01466"]
[null,null,null,null,10,"Bihar",234,"Rohtas",801397,"Sasaram (Nagar Parishad)","01471"]
[null,null,null,null,10,"Bihar",234,"Rohtas",801398,"Dehri (Nagar Parishad)","01473"]
[null,null,null,null,10,"Bihar",235,"Aurangabad",801399,"Daudnagar","01476"]
[null,null,null,null,10,"Bihar",235,"Aurangabad",801400,"Rafiganj","01479"]
[null,null,null,null,10,"Bihar",235,"Aurangabad",801401,"Aurangabad (Nagar Parishad)","01481"]
[null,null,null,null,10,"Bihar",235,"Aurangabad",801402,"Nabinagar","01483"]
[null,null,null,null,10,"Bihar",236,"Gaya",801403,"Tikari","01488"]
[null,null,null,null,10,"Bihar",236,"Gaya",801404,"Gaya","01495"]
[null,null,null,null,10,"Bihar",236,"Gaya",801405,"Sherghati","01503"]
[null,null,null,null,10,"Bihar",236,"Gaya",801406,"Bodh Gaya","01505"]
[null,null,null,null,10,"Bihar",237,"Nawada",801407,"Nawada (Nagar Parishad)","01512"]
[null,null,null,null,10,"Bihar",237,"Nawada",801408,"Warisaliganj","01513"]
[null,null,null,null,10,"Bihar",237,"Nawada",801409,"Hisua","01520"]
[null,null,null,null,10,"Bihar",237,"Nawada",801410,"Rajauli","01524"]
[null,null,null,null,10,"Bihar",238,"Jamui",801411,"Jamui (Nagar Parishad)","01527"]
[null,null,null,null,10,"Bihar",238,"Jamui",801412,"Jhajha","01530"]
[null,null,null,null,10,"Bihar",239,"Jehanabad ",801413,"Jehanabad (Nagar Parishad) ","01536"]
[null,null,null,null,10,"Bihar",239,"Jehanabad ",801414,"Makhdumpur","01540"]
[null,null,null,null,10,"Bihar",240,"Arwal",801415,"Arwal (Nagar Parishad)","01542"]
[null,null,null,null,11,"Sikkim",241,"North  District",801416,"Mangan","01548"]
[null,null,null,null,11,"Sikkim",242,"West District",801417,"Gyalshing","01549"]
[null,null,null,null,11,"Sikkim",242,"West District",801418,"Nayabazar Notified Bazar Area","01550"]
[null,null,null,null,11,"Sikkim",243,"South District",801419,"Namchi ","01551"]
[null,null,null,null,11,"Sikkim",243,"South District",801420,"Jorethang","01551"]
[null,null,null,null,11,"Sikkim",244,"East District",801421,"Gangtok ","01553"]
[null,null,null,null,11,"Sikkim",244,"East District",801422,"Singtam","01553"]
[null,null,null,null,11,"Sikkim",244,"East District",801423,"Rangpo","01553"]
[null,null,null,null,12,"Arunachal Pradesh",245,"Tawang",801424,"Tawang ","01559"]
[null,null,null,null,12,"Arunachal Pradesh",246,"West Kameng",801425,"Dirang ","01566"]
[null,null,null,null,12,"Arunachal Pradesh",246,"West Kameng",801426,"Bomdila ","01569"]
[null,null,null,null,12,"Arunachal Pradesh",247,"East Kameng",801427,"Seppa ","01584"]
[null,null,null,null,12,"Arunachal Pradesh",248,"Papum Pare",801428,"Itanagar ","01596"]
[null,null,null,null,12,"Arunachal Pradesh",248,"Papum Pare",801429,"Naharlagun ","01597"]
[null,null,null,null,12,"Arunachal Pradesh",248,"Papum Pare",801430,"Sagalee ","01601"]
[null,null,null,null,12,"Arunachal Pradesh",249,"Upper Subansiri",801431,"Daporijo ","01615"]
[null,null,null,null,12,"Arunachal Pradesh",250,"West Siang",801432,"Aalo ","01634"]
[null,null,null,null,12,"Arunachal Pradesh",250,"West Siang",801433,"Basar ","01636"]
[null,null,null,null,12,"Arunachal Pradesh",251,"East Siang",801434,"Boleng ","01643"]
[null,null,null,null,12,"Arunachal Pradesh",251,"East Siang",801435,"Pasighat ","01655"]
[null,null,null,null,12,"Arunachal Pradesh",252,"Upper Siang",801436,"Yingkiong ","01663"]
[null,null,null,null,12,"Arunachal Pradesh",253,"Changlang",801437,"Changlang ","01671"]
[null,null,null,null,12,"Arunachal Pradesh",253,"Changlang",801438,"Jairampur ","01678"]
[null,null,null,null,12,"Arunachal Pradesh",253,"Changlang",801439,"Miao ","01680"]
[null,null,null,null,12,"Arunachal Pradesh",254,"Tirap",801440,"Deomali ","01684"]
[null,null,null,null,12,"Arunachal Pradesh",254,"Tirap",801441,"Khonsa ","01686"]
[null,null,null,null,12,"Arunachal Pradesh",254,"Tirap",801442,"Longding","01690"]
[null,null,null,null,12,"Arunachal Pradesh",255,"Lower Subansiri",801443,"Ziro ","01695"]
[null,null,null,null,12,"Arunachal Pradesh",256,"Kurung Kumey",801444,"Koloriang ","01708"]
[null,null,null,null,12,"Arunachal Pradesh",257,"Dibang Valley",801445,"Anini ","01718"]
[null,null,null,null,12,"Arunachal Pradesh",258,"Lower Dibang Valley",801446,"Roing ","01724"]
[null,null,null,null,12,"Arunachal Pradesh",259,"Lohit",801447,"Tezu ","01729"]
[null,null,null,null,12,"Arunachal Pradesh",259,"Lohit",801448,"Namsai ","01732"]
[null,null,null,null,12,"Arunachal Pradesh",260,"Anjaw",801449,"Hawai ","01743"]
[null,null,null,null,13,"Nagaland",261,"Mon",801450,"Naginimora ","01744"]
[null,null,null,null,13,"Nagaland",261,"Mon",801451,"Mon ","01748"]
[null,null,null,null,13,"Nagaland",262,"Mokokchung",801452,"Tuli ","01760"]
[null,null,null,null,13,"Nagaland",262,"Mokokchung",801453,"Changtongya ","01761"]
[null,null,null,null,13,"Nagaland",262,"Mokokchung",801454,"Mokokchung ","01766"]
[null,null,null,null,13,"Nagaland",263,"Zunheboto",801455,"Zunheboto ","01772"]
[null,null,null,null,13,"Nagaland",264,"Wokha",801456,"Wokha ","01789"]
[null,null,null,null,13,"Nagaland",265,"Dimapur ",801457,"Dimapur ","01796"]
[null,null,null,null,13,"Nagaland",265,"Dimapur ",801458,"Chumukedima ","01797"]
[null,null,null,null,13,"Nagaland",265,"Dimapur ",801459,"Medziphema ","01799"]
[null,null,null,null,13,"Nagaland",266,"Phek",801460,"Phek ","01801"]
[null,null,null,null,13,"Nagaland",266,"Phek",801461,"Pfutsero ","01809"]
[null,null,null,null,13,"Nagaland",267,"Tuensang",801462,"Tuensang ","01817"]
[null,null,null,null,13,"Nagaland",268,"Longleng",801463,"Longleng ","01833"]
[null,null,null,null,13,"Nagaland",269,"Kiphire",801464,"Kiphire ","01837"]
[null,null,null,null,13,"Nagaland",270,"Kohima",801465,"Tseminyu ","01843"]
[null,null,null,null,13,"Nagaland",270,"Kohima",801466,"Kohima ","01849"]
[null,null,null,null,13,"Nagaland",271,"Peren",801467,"Jalukie ","01852"]
[null,null,null,null,13,"Nagaland",271,"Peren",801468,"Peren ","01857"]
[null,null,null,null,14,"Manipur",277,"Imphal West",801469,"Nambol ","01880"]
[null,null,null,null,14,"Manipur",275,"Bishnupur",801470,"Oinam","01873"]
[null,null,null,null,14,"Manipur",275,"Bishnupur",801471,"Bishnupur","01874"]
[null,null,null,null,14,"Manipur",275,"Bishnupur",801472,"Ningthoukhong (MCl)","01874"]
[null,null,null,null,14,"Manipur",275,"Bishnupur",801473,"Moirang","01875"]
[null,null,null,null,14,"Manipur",275,"Bishnupur",801474,"Kwakta","01875"]
[null,null,null,null,14,"Manipur",275,"Bishnupur",801475,"Kumbi","01875"]
[null,null,null,null,14,"Manipur",278,"Imphal East",801476,"Lilong (Thoubal) ","01886"]
[null,null,null,null,14,"Manipur",276,"Thoubal",801477,"Heirok","01877"]
[null,null,null,null,14,"Manipur",276,"Thoubal",801478,"Wangjing","01877"]
[null,null,null,null,14,"Manipur",276,"Thoubal",801479,"Thoubal","01877"]
[null,null,null,null,14,"Manipur",276,"Thoubal",801480,"Sikhong Sekmai","01877"]
[null,null,null,null,14,"Manipur",276,"Thoubal",801481,"Yairipok","01877"]
[null,null,null,null,14,"Manipur",276,"Thoubal",801482,"Sugnu","01878"]
[null,null,null,null,14,"Manipur",276,"Thoubal",801483,"Kakching Khunou","01878"]
[null,null,null,null,14,"Manipur",276,"Thoubal",801484,"Kakching ","01878"]
[null,null,null,null,14,"Manipur",277,"Imphal West",801485,"Lamsang","01879"]
[null,null,null,null,14,"Manipur",277,"Imphal West",801486,"Sekmai Bazar","01879"]
[null,null,null,null,14,"Manipur",278,"Imphal East",801487,"Imphal ","01885"]
[null,null,null,null,14,"Manipur",277,"Imphal West",801488,"Samurou NP ","01882"]
[null,null,null,null,14,"Manipur",277,"Imphal West",801489,"Mayang Imphal (MCl)","01882"]
[null,null,null,null,14,"Manipur",277,"Imphal West",801490,"Thongkhong Laxmi Bazar","01882"]
[null,null,null,null,14,"Manipur",277,"Imphal West",801491,"Wangoi","01882"]
[null,null,null,null,14,"Manipur",277,"Imphal West",801492,"Lilong (Imphal West) ","01882"]
[null,null,null,null,14,"Manipur",278,"Imphal East",801493,"Jiribam ","01883"]
[null,null,null,null,14,"Manipur",278,"Imphal East",801494,"Lamlai","01884"]
[null,null,null,null,14,"Manipur",278,"Imphal East",801495,"Andro","01886"]
[null,null,null,null,14,"Manipur",280,"Chandel",801496,"Moreh (ST)","01893"]
[null,null,null,null,15,"Mizoram",281,"Mamit",801497,"Zawlnuam ","01896"]
[null,null,null,null,15,"Mizoram",281,"Mamit",801498,"Mamit ","01896"]
[null,null,null,null,15,"Mizoram",281,"Mamit",801499,"Lengpui ","01898"]
[null,null,null,null,15,"Mizoram",282,"Kolasib",801500,"N. Kawnpui ","01899"]
[null,null,null,null,15,"Mizoram",282,"Kolasib",801501,"Vairengte ","01900"]
[null,null,null,null,15,"Mizoram",282,"Kolasib",801502,"Bairabi ","01900"]
[null,null,null,null,15,"Mizoram",282,"Kolasib",801503,"Kolasib ","01900"]
[null,null,null,null,15,"Mizoram",283,"Aizawl",801504,"Darlawn ","01902"]
[null,null,null,null,15,"Mizoram",283,"Aizawl",801505,"Sairang ","01901"]
[null,null,null,null,15,"Mizoram",283,"Aizawl",801506,"Aizawl ","01901"]
[null,null,null,null,15,"Mizoram",283,"Aizawl",801507,"Saitual ","01905"]
[null,null,null,null,15,"Mizoram",284,"Champhai",801508,"Khawzawl ","01907"]
[null,null,null,null,15,"Mizoram",284,"Champhai",801509,"Khawhai ","01907"]
[null,null,null,null,15,"Mizoram",284,"Champhai",801510,"Champhai ","01908"]
[null,null,null,null,15,"Mizoram",284,"Champhai",801511,"Biate ","01911"]
[null,null,null,null,15,"Mizoram",285,"Serchhip",801512,"Serchhip ","01910"]
[null,null,null,null,15,"Mizoram",285,"Serchhip",801513,"Thenzawl ","01910"]
[null,null,null,null,15,"Mizoram",285,"Serchhip",801514,"North Vanlaiphai ","01911"]
[null,null,null,null,15,"Mizoram",286,"Lunglei",801515,"Tlabung ","01913"]
[null,null,null,null,15,"Mizoram",286,"Lunglei",801516,"Lunglei ","01914"]
[null,null,null,null,15,"Mizoram",286,"Lunglei",801517,"Hnahthial ","01915"]
[null,null,null,null,15,"Mizoram",287,"Lawngtlai",801518,"Lawngtlai             ","01917"]
[null,null,null,null,15,"Mizoram",288,"Saiha",801519,"Saiha ","01921"]
[null,null,null,null,16,"Tripura",289,"Khowai Tripura",801520,"Khowai","99999"]
[null,null,null,null,16,"Tripura",289,"Khowai Tripura",801521,"Teliamura","99999"]
[null,null,null,null,16,"Tripura",289,"Khowai Tripura",801522,"Ranirbazar","99999"]
[null,null,null,null,16,"Tripura",289,"Khowai Tripura",801523,"Agartala ","99999"]
[null,null,null,null,16,"Tripura",289,"Khowai Tripura",801524,"Bishalgarh","99999"]
[null,null,null,null,16,"Tripura",289,"Khowai Tripura",801525,"Sonamura","99999"]
[null,null,null,null,16,"Tripura",290,"Shipahijala Tripura",801526,"Udaipur","99999"]
[null,null,null,null,16,"Tripura",290,"Shipahijala Tripura",801527,"Amarpur","99999"]
[null,null,null,null,16,"Tripura",290,"Shipahijala Tripura",801528,"Santir Bazar","99999"]
[null,null,null,null,16,"Tripura",290,"Shipahijala Tripura",801529,"Belonia","99999"]
[null,null,null,null,16,"Tripura",290,"Shipahijala Tripura",801530,"Sabroom","99999"]
[null,null,null,null,16,"Tripura",291,"Gomoti Tripura",801531,"Kamalpur","99999"]
[null,null,null,null,16,"Tripura",291,"Gomoti Tripura",801532,"Ambassa","99999"]
[null,null,null,null,16,"Tripura",292,"South Tripura",801533,"Kailasahar","99999"]
[null,null,null,null,16,"Tripura",292,"South Tripura",801534,"Dharmanagar","99999"]
[null,null,null,null,16,"Tripura",292,"South Tripura",801535,"Kumarghat","99999"]
[null,null,null,null,17,"Meghalaya",293,"West Garo Hills",801536,"Tura","01965"]
[null,null,null,null,17,"Meghalaya",294,"East Garo Hills",801537,"Resubelpara ","01970"]
[null,null,null,null,17,"Meghalaya",294,"East Garo Hills",801538,"Williamnagar ","01974"]
[null,null,null,null,17,"Meghalaya",295,"South Garo Hills",801539,"Baghmara ","01977"]
[null,null,null,null,17,"Meghalaya",296,"West Khasi Hills",801540,"Nongstoin ","01980"]
[null,null,null,null,17,"Meghalaya",296,"West Khasi Hills",801541,"Mairang ","01982"]
[null,null,null,null,17,"Meghalaya",297,"Ribhoi",801542,"Nongpoh ","01985"]
[null,null,null,null,17,"Meghalaya",298,"East Khasi Hills",801543,"Shillong (CB)","01989"]
[null,null,null,null,17,"Meghalaya",298,"East Khasi Hills",801544,"Shillong ","01989"]
[null,null,null,null,17,"Meghalaya",299,"Jaintia Hills",801545,"Jowai","01996"]
[null,null,null,null,18,"Assam",300,"Kokrajhar",801546,"Gossaigaon ","02001"]
[null,null,null,null,18,"Assam",300,"Kokrajhar",801547,"Kokrajhar ","02004"]
[null,null,null,null,18,"Assam",301,"Dhubri",801548,"Gauripur ","02008"]
[null,null,null,null,18,"Assam",301,"Dhubri",801549,"Dhubri ","02008"]
[null,null,null,null,18,"Assam",301,"Dhubri",801550,"Sapatgram ","02005"]
[null,null,null,null,18,"Assam",301,"Dhubri",801551,"Bilasipara ","02009"]
[null,null,null,null,18,"Assam",301,"Dhubri",801552,"Chapar ","02010"]
[null,null,null,null,18,"Assam",302,"Goalpara",801553,"Lakhipur ","02013"]
[null,null,null,null,18,"Assam",302,"Goalpara",801554,"Goalpara ","02014"]
[null,null,null,null,18,"Assam",303,"Barpeta",801555,"Barpeta Road ","02018"]
[null,null,null,null,18,"Assam",303,"Barpeta",801556,"Sarbhog ","02018"]
[null,null,null,null,18,"Assam",303,"Barpeta",801557,"Barpeta ","02022"]
[null,null,null,null,18,"Assam",303,"Barpeta",801558,"Howli ","02022"]
[null,null,null,null,18,"Assam",303,"Barpeta",801559,"Sarthebari ","02023"]
[null,null,null,null,18,"Assam",303,"Barpeta",801560,"Pathsala ","02024"]
[null,null,null,null,18,"Assam",304,"Morigaon",801561,"Marigaon ","02029"]
[null,null,null,null,18,"Assam",305,"Nagaon",801562,"Dhing ","02034"]
[null,null,null,null,18,"Assam",305,"Nagaon",801563,"Nagaon ","02035"]
[null,null,null,null,18,"Assam",305,"Nagaon",801564,"Raha ","02036"]
[null,null,null,null,18,"Assam",305,"Nagaon",801565,"Kampur Town ","02037"]
[null,null,null,null,18,"Assam",305,"Nagaon",801566,"Hojai ","02038"]
[null,null,null,null,18,"Assam",305,"Nagaon",801567,"Doboka ","02039"]
[null,null,null,null,18,"Assam",305,"Nagaon",801568,"Lumding ","02040"]
[null,null,null,null,18,"Assam",305,"Nagaon",801569,"Lanka ","02040"]
[null,null,null,null,18,"Assam",306,"Sonitpur",801570,"Dhekiajuli ","02041"]
[null,null,null,null,18,"Assam",306,"Sonitpur",801571,"Rangapara ","02042"]
[null,null,null,null,18,"Assam",306,"Sonitpur",801572,"Tezpur ","02043"]
[null,null,null,null,18,"Assam",306,"Sonitpur",801573,"Biswanath Chariali ","02045"]
[null,null,null,null,18,"Assam",306,"Sonitpur",801574,"Gohpur  ","02047"]
[null,null,null,null,18,"Assam",307,"Lakhimpur",801575,"Narayanpur ","02048"]
[null,null,null,null,18,"Assam",307,"Lakhimpur",801576,"Bihpuria ","02049"]
[null,null,null,null,18,"Assam",307,"Lakhimpur",801577,"North Lakhimpur ","02052"]
[null,null,null,null,18,"Assam",307,"Lakhimpur",801578,"Dhakuakhana ","02053"]
[null,null,null,null,18,"Assam",308,"Dhemaji",801579,"Dhemaji ","02055"]
[null,null,null,null,18,"Assam",308,"Dhemaji",801580,"Silapathar ","02056"]
[null,null,null,null,18,"Assam",309,"Tinsukia",801581,"Doom Dooma ","02060"]
[null,null,null,null,18,"Assam",309,"Tinsukia",801582,"Makum ","02060"]
[null,null,null,null,18,"Assam",309,"Tinsukia",801583,"Tinsukia ","02061"]
[null,null,null,null,18,"Assam",309,"Tinsukia",801584,"Digboi ","02062"]
[null,null,null,null,18,"Assam",309,"Tinsukia",801585,"Margherita ","02062"]
[null,null,null,null,18,"Assam",310,"Dibrugarh",801586,"Dibrugarh ","02064"]
[null,null,null,null,18,"Assam",310,"Dibrugarh",801587,"Chabua ","02065"]
[null,null,null,null,18,"Assam",310,"Dibrugarh",801588,"Naharkatiya ","02069"]
[null,null,null,null,18,"Assam",311,"Sivasagar",801589,"Sivasagar ","02071"]
[null,null,null,null,18,"Assam",311,"Sivasagar",801590,"Amguri ","02072"]
[null,null,null,null,18,"Assam",311,"Sivasagar",801591,"Nazira ","02073"]
[null,null,null,null,18,"Assam",311,"Sivasagar",801592,"Simaluguri ","02073"]
[null,null,null,null,18,"Assam",311,"Sivasagar",801593,"Sonari ","02074"]
[null,null,null,null,18,"Assam",311,"Sivasagar",801594,"Moranhat ","02075"]
[null,null,null,null,18,"Assam",312,"Jorhat",801595,"Jorhat ","02077"]
[null,null,null,null,18,"Assam",312,"Jorhat",801596,"Teok  ","02079"]
[null,null,null,null,18,"Assam",312,"Jorhat",801597,"Titabor Town ","02080"]
[null,null,null,null,18,"Assam",312,"Jorhat",801598,"Mariani ","02081"]
[null,null,null,null,18,"Assam",313,"Golaghat",801599,"Bokakhat ","02082"]
[null,null,null,null,18,"Assam",313,"Golaghat",801600,"Dergaon ","02084"]
[null,null,null,null,18,"Assam",313,"Golaghat",801601,"Golaghat ","02085"]
[null,null,null,null,18,"Assam",313,"Golaghat",801602,"Sarupathar ","02087"]
[null,null,null,null,18,"Assam",313,"Golaghat",801603,"Barpathar ","02087"]
[null,null,null,null,18,"Assam",314,"Karbi Anglong",801604,"Hamren ","02088"]
[null,null,null,null,18,"Assam",314,"Karbi Anglong",801605,"Donkamokam ","02088"]
[null,null,null,null,18,"Assam",314,"Karbi Anglong",801606,"Diphu ","02089"]
[null,null,null,null,18,"Assam",314,"Karbi Anglong",801607,"Bokajan ","02089"]
[null,null,null,null,18,"Assam",314,"Karbi Anglong",801608,"Howraghat ","02090"]
[null,null,null,null,18,"Assam",314,"Karbi Anglong",801609,"Dokmoka ","02090"]
[null,null,null,null,18,"Assam",315,"Dima Hasao",801610,"Umrangso ","02092"]
[null,null,null,null,18,"Assam",315,"Dima Hasao",801611,"Haflong ","02093"]
[null,null,null,null,18,"Assam",315,"Dima Hasao",801612,"Mahur ","02094"]
[null,null,null,null,18,"Assam",315,"Dima Hasao",801613,"Maibong ","02095"]
[null,null,null,null,18,"Assam",316,"Cachar",801614,"Silchar ","02097"]
[null,null,null,null,18,"Assam",316,"Cachar",801615,"Lakhipur ","02100"]
[null,null,null,null,18,"Assam",317,"Karimganj",801616,"Karimganj ","02101"]
[null,null,null,null,18,"Assam",317,"Karimganj",801617,"Badarpur ","02102"]
[null,null,null,null,18,"Assam",318,"Hailakandi",801618,"Hailakandi ","02107"]
[null,null,null,null,18,"Assam",318,"Hailakandi",801619,"Lala ","02108"]
[null,null,null,null,18,"Assam",319,"Bongaigaon",801620,"Bongaigaon ","02110"]
[null,null,null,null,18,"Assam",319,"Bongaigaon",801621,"Abhayapuri ","02112"]
[null,null,null,null,18,"Assam",320,"Chirang",801622,"Basugaon ","02004"]
[null,null,null,null,18,"Assam",320,"Chirang",801623,"Bijni ","02115"]
[null,null,null,null,18,"Assam",321,"Kamrup",801624,"Rangia ","02116"]
[null,null,null,null,18,"Assam",321,"Kamrup",801625,"Palasbari ","02125"]
[null,null,null,null,18,"Assam",322,"Kamrup Metropolitan",801626,"North Guwahati ","02126"]
[null,null,null,null,18,"Assam",322,"Kamrup Metropolitan",801627,"Guwahati ","02129"]
[null,null,null,null,18,"Assam",323,"Nalbari",801628,"Tihu ","02132"]
[null,null,null,null,18,"Assam",323,"Nalbari",801629,"Nalbari ","02136"]
[null,null,null,null,18,"Assam",325,"Darrang",801630,"Mangaldoi ","02148"]
[null,null,null,null,18,"Assam",325,"Darrang",801631,"Kharupatia ","02149"]
[null,null,null,null,18,"Assam",326,"Udalguri",801632,"Tangla ","02151"]
[null,null,null,null,18,"Assam",326,"Udalguri",801633,"Udalguri ","02152"]
[null,null,null,null,19,"West Bengal",327,"Darjiling ",801634,"Darjiling","99999"]
[null,null,null,null,19,"West Bengal",327,"Darjiling ",801635,"Kalimpong","99999"]
[null,null,null,null,19,"West Bengal",327,"Darjiling ",801636,"Mirik (NA)","99999"]
[null,null,null,null,19,"West Bengal",327,"Darjiling ",801637,"Kurseong","99999"]
[null,null,null,null,19,"West Bengal",328,"Jalpaiguri ",801638,"Siliguri  ","99999"]
[null,null,null,null,19,"West Bengal",328,"Jalpaiguri ",801639,"Mal","99999"]
[null,null,null,null,19,"West Bengal",328,"Jalpaiguri ",801640,"Jalpaiguri","99999"]
[null,null,null,null,19,"West Bengal",328,"Jalpaiguri ",801641,"Dhupguri","99999"]
[null,null,null,null,19,"West Bengal",328,"Jalpaiguri ",801642,"Alipurduar","99999"]
[null,null,null,null,19,"West Bengal",329,"Koch Bihar ",801643,"Haldibari","99999"]
[null,null,null,null,19,"West Bengal",329,"Koch Bihar ",801644,"Mekliganj","99999"]
[null,null,null,null,19,"West Bengal",329,"Koch Bihar ",801645,"Mathabhanga","99999"]
[null,null,null,null,19,"West Bengal",329,"Koch Bihar ",801646,"Koch Bihar","99999"]
[null,null,null,null,19,"West Bengal",329,"Koch Bihar ",801647,"Tufanganj","99999"]
[null,null,null,null,19,"West Bengal",329,"Koch Bihar ",801648,"Dinhata","99999"]
[null,null,null,null,19,"West Bengal",330,"Uttar Dinajpur",801649,"Islampur","99999"]
[null,null,null,null,19,"West Bengal",330,"Uttar Dinajpur",801650,"Dalkhola","99999"]
[null,null,null,null,19,"West Bengal",330,"Uttar Dinajpur",801651,"Raiganj","99999"]
[null,null,null,null,19,"West Bengal",330,"Uttar Dinajpur",801652,"Kaliaganj","99999"]
[null,null,null,null,19,"West Bengal",331,"Dakshin Dinajpur",801653,"Gangarampur","99999"]
[null,null,null,null,19,"West Bengal",331,"Dakshin Dinajpur",801654,"Balurghat ","99999"]
[null,null,null,null,19,"West Bengal",332,"Maldah ",801655,"Old Malda","99999"]
[null,null,null,null,19,"West Bengal",332,"Maldah ",801656,"English Bazar","99999"]
[null,null,null,null,19,"West Bengal",333,"Murshidabad ",801657,"Dhulian","99999"]
[null,null,null,null,19,"West Bengal",333,"Murshidabad ",801658,"Jangipur","99999"]
[null,null,null,null,19,"West Bengal",333,"Murshidabad ",801659,"Jiaganj-Azimganj","99999"]
[null,null,null,null,19,"West Bengal",333,"Murshidabad ",801660,"Murshidabad","99999"]
[null,null,null,null,19,"West Bengal",333,"Murshidabad ",801661,"Kandi","99999"]
[null,null,null,null,19,"West Bengal",333,"Murshidabad ",801662,"Berhampore","99999"]
[null,null,null,null,19,"West Bengal",333,"Murshidabad ",801663,"Beldanga","99999"]
[null,null,null,null,19,"West Bengal",334,"Birbhum",801664,"Nalhati","99999"]
[null,null,null,null,19,"West Bengal",334,"Birbhum",801665,"Rampurhat","99999"]
[null,null,null,null,19,"West Bengal",334,"Birbhum",801666,"Suri","99999"]
[null,null,null,null,19,"West Bengal",334,"Birbhum",801667,"Sainthia","99999"]
[null,null,null,null,19,"West Bengal",334,"Birbhum",801668,"Dubrajpur","99999"]
[null,null,null,null,19,"West Bengal",334,"Birbhum",801669,"Bolpur","99999"]
[null,null,null,null,19,"West Bengal",335,"Barddhaman ",801670,"Kulti","99999"]
[null,null,null,null,19,"West Bengal",335,"Barddhaman ",801671,"Asansol ","99999"]
[null,null,null,null,19,"West Bengal",335,"Barddhaman ",801672,"Jamuria ","99999"]
[null,null,null,null,19,"West Bengal",335,"Barddhaman ",801673,"Raniganj","99999"]
[null,null,null,null,19,"West Bengal",335,"Barddhaman ",801674,"Durgapur ","99999"]
[null,null,null,null,19,"West Bengal",335,"Barddhaman ",801675,"Katwa","99999"]
[null,null,null,null,19,"West Bengal",335,"Barddhaman ",801676,"Dainhat","99999"]
[null,null,null,null,19,"West Bengal",335,"Barddhaman ",801677,"Guskara","99999"]
[null,null,null,null,19,"West Bengal",335,"Barddhaman ",801678,"Barddhaman","99999"]
[null,null,null,null,19,"West Bengal",335,"Barddhaman ",801679,"Kalna","99999"]
[null,null,null,null,19,"West Bengal",335,"Barddhaman ",801680,"Memari","99999"]
[null,null,null,null,19,"West Bengal",336,"Nadia ",801681,"Nabadwip","99999"]
[null,null,null,null,19,"West Bengal",336,"Nadia ",801682,"Krishnanagar","99999"]
[null,null,null,null,19,"West Bengal",336,"Nadia ",801683,"Santipur","99999"]
[null,null,null,null,19,"West Bengal",336,"Nadia ",801684,"Taherpur","99999"]
[null,null,null,null,19,"West Bengal",336,"Nadia ",801685,"Birnagar","99999"]
[null,null,null,null,19,"West Bengal",336,"Nadia ",801686,"Ranaghat","99999"]
[null,null,null,null,19,"West Bengal",336,"Nadia ",801687,"Coopers Camp","99999"]
[null,null,null,null,19,"West Bengal",336,"Nadia ",801688,"Chakdaha","99999"]
[null,null,null,null,19,"West Bengal",336,"Nadia ",801689,"Kalyani","99999"]
[null,null,null,null,19,"West Bengal",336,"Nadia ",801690,"Gayespur","99999"]
[null,null,null,null,19,"West Bengal",337,"North Twenty Four Parganas",801691,"Bongaon","99999"]
[null,null,null,null,19,"West Bengal",337,"North Twenty Four Parganas",801692,"Halisahar","99999"]
[null,null,null,null,19,"West Bengal",337,"North Twenty Four Parganas",801693,"Kanchrapara ","99999"]
[null,null,null,null,19,"West Bengal",337,"North Twenty Four Parganas",801694,"Naihati","99999"]
[null,null,null,null,19,"West Bengal",337,"North Twenty Four Parganas",801695,"Bhatpara ","99999"]
[null,null,null,null,19,"West Bengal",337,"North Twenty Four Parganas",801696,"Gobardanga","99999"]
[null,null,null,null,19,"West Bengal",337,"North Twenty Four Parganas",801697,"Habra","99999"]
[null,null,null,null,19,"West Bengal",337,"North Twenty Four Parganas",801698,"Ashokenagar Kalyangarh","99999"]
[null,null,null,null,19,"West Bengal",337,"North Twenty Four Parganas",801699,"Garulia","99999"]
[null,null,null,null,19,"West Bengal",337,"North Twenty Four Parganas",801700,"North Barrackpore","99999"]
[null,null,null,null,19,"West Bengal",337,"North Twenty Four Parganas",801701,"Barrackpur Cantonment (CB)","99999"]
[null,null,null,null,19,"West Bengal",337,"North Twenty Four Parganas",801702,"Barrackpore","99999"]
[null,null,null,null,19,"West Bengal",337,"North Twenty Four Parganas",801703,"Titagarh","99999"]
[null,null,null,null,19,"West Bengal",337,"North Twenty Four Parganas",801704,"Khardah","99999"]
[null,null,null,null,19,"West Bengal",337,"North Twenty Four Parganas",801705,"Panihati","99999"]
[null,null,null,null,19,"West Bengal",337,"North Twenty Four Parganas",801706,"Baduria","99999"]
[null,null,null,null,19,"West Bengal",337,"North Twenty Four Parganas",801707,"Barasat","99999"]
[null,null,null,null,19,"West Bengal",337,"North Twenty Four Parganas",801708,"Madhyamgram","99999"]
[null,null,null,null,19,"West Bengal",337,"North Twenty Four Parganas",801709,"New Barrackpore","99999"]
[null,null,null,null,19,"West Bengal",337,"North Twenty Four Parganas",801710,"North DumDum","99999"]
[null,null,null,null,19,"West Bengal",337,"North Twenty Four Parganas",801711,"Kamarhati","99999"]
[null,null,null,null,19,"West Bengal",337,"North Twenty Four Parganas",801712,"Baranagar","99999"]
[null,null,null,null,19,"West Bengal",337,"North Twenty Four Parganas",801713,"Dum Dum","99999"]
[null,null,null,null,19,"West Bengal",337,"North Twenty Four Parganas",801714,"South DumDum","99999"]
[null,null,null,null,19,"West Bengal",337,"North Twenty Four Parganas",801715,"Rajarhat Gopalpur","99999"]
[null,null,null,null,19,"West Bengal",337,"North Twenty Four Parganas",801716,"Bidhannagar","99999"]
[null,null,null,null,19,"West Bengal",337,"North Twenty Four Parganas",801717,"Nabadiganta Industrial Township (ITS)","99999"]
[null,null,null,null,19,"West Bengal",337,"North Twenty Four Parganas",801718,"Basirhat","99999"]
[null,null,null,null,19,"West Bengal",337,"North Twenty Four Parganas",801719,"Taki","99999"]
[null,null,null,null,19,"West Bengal",338,"Hugli ",801720,"Bansberia","99999"]
[null,null,null,null,19,"West Bengal",338,"Hugli ",801721,"Hugli-Chinsurah ","99999"]
[null,null,null,null,19,"West Bengal",338,"Hugli ",801722,"Chandannagar","99999"]
[null,null,null,null,19,"West Bengal",338,"Hugli ",801723,"Tarakeswar","99999"]
[null,null,null,null,19,"West Bengal",338,"Hugli ",801724,"Arambag","99999"]
[null,null,null,null,19,"West Bengal",338,"Hugli ",801725,"Bhadreswar","99999"]
[null,null,null,null,19,"West Bengal",338,"Hugli ",801726,"Champdani","99999"]
[null,null,null,null,19,"West Bengal",338,"Hugli ",801727,"Baidyabati","99999"]
[null,null,null,null,19,"West Bengal",338,"Hugli ",801728,"Serampore","99999"]
[null,null,null,null,19,"West Bengal",338,"Hugli ",801729,"Rishra","99999"]
[null,null,null,null,19,"West Bengal",338,"Hugli ",801730,"Konnagar","99999"]
[null,null,null,null,19,"West Bengal",338,"Hugli ",801731,"Dankuni","99999"]
[null,null,null,null,19,"West Bengal",338,"Hugli ",801732,"Uttarpara Kotrung","99999"]
[null,null,null,null,19,"West Bengal",339,"Bankura ",801733,"Bankura","99999"]
[null,null,null,null,19,"West Bengal",339,"Bankura ",801734,"Sonamukhi","99999"]
[null,null,null,null,19,"West Bengal",339,"Bankura ",801735,"Bishnupur","99999"]
[null,null,null,null,19,"West Bengal",340,"Puruliya",801736,"Jhalda","99999"]
[null,null,null,null,19,"West Bengal",340,"Puruliya",801737,"Raghunathpur","99999"]
[null,null,null,null,19,"West Bengal",340,"Puruliya",801738,"Puruliya","99999"]
[null,null,null,null,19,"West Bengal",341,"Haora ",801739,"Bally","99999"]
[null,null,null,null,19,"West Bengal",341,"Haora ",801740,"Haora","99999"]
[null,null,null,null,19,"West Bengal",341,"Haora ",801741,"Uluberia ","99999"]
[null,null,null,null,19,"West Bengal",342,"Kolkata",801742,"Kolkata ","99999"]
[null,null,null,null,19,"West Bengal",343,"South Twenty Four Parganas",801743,"Maheshtala","99999"]
[null,null,null,null,19,"West Bengal",343,"South Twenty Four Parganas",801744,"Budge Budge","99999"]
[null,null,null,null,19,"West Bengal",343,"South Twenty Four Parganas",801745,"Pujali","99999"]
[null,null,null,null,19,"West Bengal",343,"South Twenty Four Parganas",801746,"Rajpur Sonarpur","99999"]
[null,null,null,null,19,"West Bengal",343,"South Twenty Four Parganas",801747,"Baruipur","99999"]
[null,null,null,null,19,"West Bengal",343,"South Twenty Four Parganas",801748,"Diamond Harbour","99999"]
[null,null,null,null,19,"West Bengal",343,"South Twenty Four Parganas",801749,"Jaynagar Mazilpur","99999"]
[null,null,null,null,19,"West Bengal",344,"Paschim Medinipur",801750,"Ramjibanpur","99999"]
[null,null,null,null,19,"West Bengal",344,"Paschim Medinipur",801751,"Kshirpai","99999"]
[null,null,null,null,19,"West Bengal",344,"Paschim Medinipur",801752,"Chandrakona","99999"]
[null,null,null,null,19,"West Bengal",344,"Paschim Medinipur",801753,"Kharar","99999"]
[null,null,null,null,19,"West Bengal",344,"Paschim Medinipur",801754,"Ghatal","99999"]
[null,null,null,null,19,"West Bengal",344,"Paschim Medinipur",801755,"Medinipur","99999"]
[null,null,null,null,19,"West Bengal",344,"Paschim Medinipur",801756,"Jhargram","99999"]
[null,null,null,null,19,"West Bengal",344,"Paschim Medinipur",801757,"Kharagpur","99999"]
[null,null,null,null,19,"West Bengal",345,"Purba Medinipur",801758,"Panskura","99999"]
[null,null,null,null,19,"West Bengal",345,"Purba Medinipur",801759,"Tamluk","99999"]
[null,null,null,null,19,"West Bengal",345,"Purba Medinipur",801760,"Haldia","99999"]
[null,null,null,null,19,"West Bengal",345,"Purba Medinipur",801761,"Egra","99999"]
[null,null,null,null,19,"West Bengal",345,"Purba Medinipur",801762,"Contai","99999"]
[null,null,null,null,20,"Jharkhand",346,"Garhwa ",801763,"Majhion","02499"]
[null,null,null,null,20,"Jharkhand",346,"Garhwa ",801764,"Garhwa","02509"]
[null,null,null,null,20,"Jharkhand",347,"Chatra",801765,"Chatra (Nagar Parishad)","02518"]
[null,null,null,null,20,"Jharkhand",348,"Kodarma",801766,"Kodarma","02527"]
[null,null,null,null,20,"Jharkhand",348,"Kodarma",801767,"Jhumri Tilaiya (Nagar Parishad)","02527"]
[null,null,null,null,20,"Jharkhand",349,"Giridih",801768,"Giridih (Nagar Parishad)","02539"]
[null,null,null,null,20,"Jharkhand",350,"Deoghar",801769,"Deoghar  ","02545"]
[null,null,null,null,20,"Jharkhand",350,"Deoghar",801770,"Madhupur (Nagar Parishad)","02550"]
[null,null,null,null,20,"Jharkhand",351,"Godda",801771,"Godda","02561"]
[null,null,null,null,20,"Jharkhand",352,"Sahibganj",801772,"Sahibganj (Nagar Parishad)","02564"]
[null,null,null,null,20,"Jharkhand",352,"Sahibganj",801773,"Rajmahal","02569"]
[null,null,null,null,20,"Jharkhand",353,"Pakur",801774,"Pakaur","02576"]
[null,null,null,null,20,"Jharkhand",354,"Dhanbad",801775,"Dhanbad ","02584"]
[null,null,null,null,20,"Jharkhand",354,"Dhanbad",801776,"Chirkunda","02587"]
[null,null,null,null,20,"Jharkhand",355,"Bokaro",801777,"Phusro (Nagar Parishad)","02590"]
[null,null,null,null,20,"Jharkhand",355,"Bokaro",801778,"Chas (Nagar Parishad)","02595"]
[null,null,null,null,20,"Jharkhand",356,"Lohardaga",801779,"Lohardaga (Nagar Parishad)","02601"]
[null,null,null,null,20,"Jharkhand",357,"Purbi Singhbhum",801780,"Mango ","02606"]
[null,null,null,null,20,"Jharkhand",357,"Purbi Singhbhum",801781,"Jamshedpur","02606"]
[null,null,null,null,20,"Jharkhand",357,"Purbi Singhbhum",801782,"Jugsalai","02606"]
[null,null,null,null,20,"Jharkhand",357,"Purbi Singhbhum",801783,"Chakulia","02613"]
[null,null,null,null,20,"Jharkhand",358,"Palamu",801784,"Hussainabad","02615"]
[null,null,null,null,20,"Jharkhand",358,"Palamu",801785,"Bishrampur","02624"]
[null,null,null,null,20,"Jharkhand",358,"Palamu",801786,"Medininagar (Daltonganj) (Nagar Parishad)","02633"]
[null,null,null,null,20,"Jharkhand",359,"Latehar",801787,"Latehar","02639"]
[null,null,null,null,20,"Jharkhand",360,"Hazaribagh",801788,"Hazaribag (Nagar Parishad)","02653"]
[null,null,null,null,20,"Jharkhand",361,"Ramgarh",801789,"Ramgarh Cantonment (CB)","02662"]
[null,null,null,null,20,"Jharkhand",362,"Dumka",801790,"Basukinath","02667"]
[null,null,null,null,20,"Jharkhand",362,"Dumka",801791,"Dumka (Nagar Parishad)","02673"]
[null,null,null,null,20,"Jharkhand",363,"Jamtara",801792,"Jamtara","02678"]
[null,null,null,null,20,"Jharkhand",363,"Jamtara",801793,"Mihijam","02678"]
[null,null,null,null,20,"Jharkhand",364,"Ranchi",801794,"Ranchi ","02684"]
[null,null,null,null,20,"Jharkhand",364,"Ranchi",801795,"Bundu","02698"]
[null,null,null,null,20,"Jharkhand",365,"Khunti",801796,"Khunti","02704"]
[null,null,null,null,20,"Jharkhand",366,"Gumla",801797,"Gumla","02712"]
[null,null,null,null,20,"Jharkhand",367,"Simdega",801798,"Simdega","02718"]
[null,null,null,null,20,"Jharkhand",368,"Pashchimi Singhbhum",801799,"Chakardharpur (Nagar Parishad)","02731"]
[null,null,null,null,20,"Jharkhand",368,"Pashchimi Singhbhum",801800,"Chaibasa (Nagar Parishad)","02739"]
[null,null,null,null,20,"Jharkhand",369,"Saraikela-Kharsawan",801801,"Adityapur (Nagar Parishad)","02752"]
[null,null,null,null,20,"Jharkhand",369,"Saraikela-Kharsawan",801802,"Seraikela","02753"]
[null,null,null,null,21,"Odisha",370,"Bargarh",801803,"Padmapur ","02757"]
[null,null,null,null,21,"Odisha",370,"Bargarh",801804,"Barapali ","02763"]
[null,null,null,null,21,"Odisha",370,"Bargarh",801805,"Bargarh","02765"]
[null,null,null,null,21,"Odisha",371,"Jharsuguda",801806,"Belpahar","02772"]
[null,null,null,null,21,"Odisha",371,"Jharsuguda",801807,"Brajarajnagar","02774"]
[null,null,null,null,21,"Odisha",371,"Jharsuguda",801808,"Jharsuguda","02776"]
[null,null,null,null,21,"Odisha",372,"Sambalpur",801809,"Kochinda ","02782"]
[null,null,null,null,21,"Odisha",372,"Sambalpur",801810,"Hirakud ","02787"]
[null,null,null,null,21,"Odisha",372,"Sambalpur",801811,"Burla ","02788"]
[null,null,null,null,21,"Odisha",372,"Sambalpur",801812,"Redhakhol ","02797"]
[null,null,null,null,21,"Odisha",372,"Sambalpur",801813,"Sambalpur ","02799"]
[null,null,null,null,21,"Odisha",373,"Debagarh",801814,"Debagarh","02800"]
[null,null,null,null,21,"Odisha",374,"Sundargarh",801815,"Sundargarh","02808"]
[null,null,null,null,21,"Odisha",374,"Sundargarh",801816,"Rajagangapur","02814"]
[null,null,null,null,21,"Odisha",374,"Sundargarh",801817,"O.C.L. (ITS)","02814"]
[null,null,null,null,21,"Odisha",374,"Sundargarh",801818,"Biramitrapur","02816"]
[null,null,null,null,21,"Odisha",374,"Sundargarh",801819,"Raurkela ","02832"]
[null,null,null,null,21,"Odisha",374,"Sundargarh",801820,"Raurkela  ","02833"]
[null,null,null,null,21,"Odisha",375,"Kendujhar",801821,"Barbil","02834"]
[null,null,null,null,21,"Odisha",375,"Kendujhar",801822,"Joda ","02837"]
[null,null,null,null,21,"Odisha",375,"Kendujhar",801823,"Kendujhar","02845"]
[null,null,null,null,21,"Odisha",375,"Kendujhar",801824,"Anandpur","02854"]
[null,null,null,null,21,"Odisha",376,"Mayurbhanj",801825,"Rairangpur","02861"]
[null,null,null,null,21,"Odisha",376,"Mayurbhanj",801826,"Karanjia ","02870"]
[null,null,null,null,21,"Odisha",376,"Mayurbhanj",801827,"Udala ","02884"]
[null,null,null,null,21,"Odisha",376,"Mayurbhanj",801828,"Baripada ","02888"]
[null,null,null,null,21,"Odisha",377,"Baleshwar",801829,"Jaleshwar ","02890"]
[null,null,null,null,21,"Odisha",377,"Baleshwar",801830,"Remuna ","02902"]
[null,null,null,null,21,"Odisha",377,"Baleshwar",801831,"Nilagiri ","02903"]
[null,null,null,null,21,"Odisha",377,"Baleshwar",801832,"Soro ","02907"]
[null,null,null,null,21,"Odisha",377,"Baleshwar",801833,"Baleshwar ","02909"]
[null,null,null,null,21,"Odisha",378,"Bhadrak",801834,"Dhamanagar ","02913"]
[null,null,null,null,21,"Odisha",378,"Bhadrak",801835,"Bhadrak ","02914"]
[null,null,null,null,21,"Odisha",378,"Bhadrak",801836,"Basudebpur ","02915"]
[null,null,null,null,21,"Odisha",379,"Kendrapara ",801837,"Pattamundai ","02926"]
[null,null,null,null,21,"Odisha",379,"Kendrapara ",801838,"Kendrapara","02927"]
[null,null,null,null,21,"Odisha",380,"Jagatsinghapur ",801839,"Paradip","02934"]
[null,null,null,null,21,"Odisha",380,"Jagatsinghapur ",801840,"Jagatsinghapur","02940"]
[null,null,null,null,21,"Odisha",381,"Cuttack",801841,"Banki ","02948"]
[null,null,null,null,21,"Odisha",381,"Cuttack",801842,"Athagad ","02950"]
[null,null,null,null,21,"Odisha",381,"Cuttack",801843,"Choudwar ","02954"]
[null,null,null,null,21,"Odisha",381,"Cuttack",801844,"Cuttack ","02968"]
[null,null,null,null,21,"Odisha",382,"Jajapur  ",801845,"Byasanagar ","02974"]
[null,null,null,null,21,"Odisha",382,"Jajapur  ",801846,"Jajapur","02977"]
[null,null,null,null,21,"Odisha",383,"Dhenkanal",801847,"Kamakshyanagar ","02988"]
[null,null,null,null,21,"Odisha",383,"Dhenkanal",801848,"Bhuban ","02990"]
[null,null,null,null,21,"Odisha",383,"Dhenkanal",801849,"Dhenkanal","02999"]
[null,null,null,null,21,"Odisha",384,"Anugul  ",801850,"Talcher","03006"]
[null,null,null,null,21,"Odisha",384,"Anugul  ",801851,"Anugul","03011"]
[null,null,null,null,21,"Odisha",384,"Anugul  ",801852,"Athmallik ","03017"]
[null,null,null,null,21,"Odisha",385,"Nayagarh  ",801853,"Khandapada ","03026"]
[null,null,null,null,21,"Odisha",385,"Nayagarh  ",801854,"Nayagarh ","03028"]
[null,null,null,null,21,"Odisha",386,"Khordha ",801855,"Khordha","03036"]
[null,null,null,null,21,"Odisha",386,"Khordha ",801856,"Jatani ","03049"]
[null,null,null,null,21,"Odisha",386,"Khordha ",801857,"Balugaon ","03053"]
[null,null,null,null,21,"Odisha",386,"Khordha ",801858,"Banapur ","03054"]
[null,null,null,null,21,"Odisha",386,"Khordha ",801859,"Bhubaneswar","03055"]
[null,null,null,null,21,"Odisha",387,"Puri",801860,"Pipili ","03057"]
[null,null,null,null,21,"Odisha",387,"Puri",801861,"Nimapada ","03058"]
[null,null,null,null,21,"Odisha",387,"Puri",801862,"Konark ","03061"]
[null,null,null,null,21,"Odisha",387,"Puri",801863,"Puri","03070"]
[null,null,null,null,21,"Odisha",388,"Ganjam",801864,"Buguda ","03072"]
[null,null,null,null,21,"Odisha",388,"Ganjam",801865,"Bhanjanagar ","03074"]
[null,null,null,null,21,"Odisha",388,"Ganjam",801866,"Bellaguntha ","03074"]
[null,null,null,null,21,"Odisha",388,"Ganjam",801867,"Surada ","03076"]
[null,null,null,null,21,"Odisha",388,"Ganjam",801868,"Asika ","03078"]
[null,null,null,null,21,"Odisha",388,"Ganjam",801869,"Kabisurjyanagar ","03080"]
[null,null,null,null,21,"Odisha",388,"Ganjam",801870,"Polasara ","03081"]
[null,null,null,null,21,"Odisha",388,"Ganjam",801871,"Kodala ","03082"]
[null,null,null,null,21,"Odisha",388,"Ganjam",801872,"Khalikote ","03083"]
[null,null,null,null,21,"Odisha",388,"Ganjam",801873,"Rambha ","03084"]
[null,null,null,null,21,"Odisha",388,"Ganjam",801874,"Chhatrapur ","03085"]
[null,null,null,null,21,"Odisha",388,"Ganjam",801875,"Ganjam ","03086"]
[null,null,null,null,21,"Odisha",388,"Ganjam",801876,"Purusottampur ","03089"]
[null,null,null,null,21,"Odisha",388,"Ganjam",801877,"Hinjilicut ","03090"]
[null,null,null,null,21,"Odisha",388,"Ganjam",801878,"Gopalpur ","03094"]
[null,null,null,null,21,"Odisha",388,"Ganjam",801879,"Digapahandi ","03096"]
[null,null,null,null,21,"Odisha",388,"Ganjam",801880,"Chikiti ","03097"]
[null,null,null,null,21,"Odisha",388,"Ganjam",801881,"Brahmapur ","03099"]
[null,null,null,null,21,"Odisha",389,"Gajapati",801882,"Kashinagar ","03104"]
[null,null,null,null,21,"Odisha",389,"Gajapati",801883,"Paralakhemundi ","03105"]
[null,null,null,null,21,"Odisha",390,"Kandhamal",801884,"Phulabani","03112"]
[null,null,null,null,21,"Odisha",390,"Kandhamal",801885,"G. Udayagiri ","03114"]
[null,null,null,null,21,"Odisha",391,"Baudh",801886,"Baudhgarh ","03130"]
[null,null,null,null,21,"Odisha",392,"Subarnapur",801887,"Binika ","03135"]
[null,null,null,null,21,"Odisha",392,"Subarnapur",801888,"Sonapur","03139"]
[null,null,null,null,21,"Odisha",392,"Subarnapur",801889,"Tarbha ","03140"]
[null,null,null,null,21,"Odisha",393,"Balangir",801890,"Balangir","03142"]
[null,null,null,null,21,"Odisha",393,"Balangir",801891,"Patnagarh ","03144"]
[null,null,null,null,21,"Odisha",393,"Balangir",801892,"Kantabanji ","03149"]
[null,null,null,null,21,"Odisha",393,"Balangir",801893,"Titlagarh","03152"]
[null,null,null,null,21,"Odisha",394,"Nuapada",801894,"Khariar Road ","03153"]
[null,null,null,null,21,"Odisha",394,"Nuapada",801895,"Khariar ","03156"]
[null,null,null,null,21,"Odisha",395,"Kalahandi",801896,"Kesinga ","03159"]
[null,null,null,null,21,"Odisha",395,"Kalahandi",801897,"Bhawanipatna","03164"]
[null,null,null,null,21,"Odisha",395,"Kalahandi",801898,"Junagarh ","03166"]
[null,null,null,null,21,"Odisha",396,"Rayagada  ",801899,"Rayagada","03181"]
[null,null,null,null,21,"Odisha",396,"Rayagada  ",801900,"Gunupur","03183"]
[null,null,null,null,21,"Odisha",396,"Rayagada  ",801901,"Gudari ","03184"]
[null,null,null,null,21,"Odisha",397,"Nabarangapur ",801902,"Umarkote ","03189"]
[null,null,null,null,21,"Odisha",397,"Nabarangapur ",801903,"Nabarangapur ","03196"]
[null,null,null,null,21,"Odisha",398,"Koraput",801904,"Kotpad ","03199"]
[null,null,null,null,21,"Odisha",398,"Koraput",801905,"Koraput ","03208"]
[null,null,null,null,21,"Odisha",398,"Koraput",801906,"Jeypur","03209"]
[null,null,null,null,21,"Odisha",398,"Koraput",801907,"Sunabeda .","03216"]
[null,null,null,null,21,"Odisha",399,"Malkangiri  ",801908,"Malkangiri ","03220"]
[null,null,null,null,21,"Odisha",399,"Malkangiri  ",801909,"Balimela ","03226"]
[null,null,null,null,22,"Chhattisgarh",400,"Koriya",801910,"Shivpur Charcha","03232"]
[null,null,null,null,22,"Chhattisgarh",400,"Koriya",801911,"Baikunthpur","03232"]
[null,null,null,null,22,"Chhattisgarh",400,"Koriya",801912,"Manendragarh","03234"]
[null,null,null,null,22,"Chhattisgarh",400,"Koriya",801913,"Khongapani","03234"]
[null,null,null,null,22,"Chhattisgarh",400,"Koriya",801914,"Jhagrakhand","03234"]
[null,null,null,null,22,"Chhattisgarh",400,"Koriya",801915,"Nai-Ledri","03234"]
[null,null,null,null,22,"Chhattisgarh",400,"Koriya",801916,"Chirmiri  ","03235"]
[null,null,null,null,22,"Chhattisgarh",401,"Surguja",801917,"Ramanujganj","03236"]
[null,null,null,null,22,"Chhattisgarh",401,"Surguja",801918,"Balrampur","03237"]
[null,null,null,null,22,"Chhattisgarh",401,"Surguja",801919,"Wadrafnagar","03238"]
[null,null,null,null,22,"Chhattisgarh",401,"Surguja",801920,"Pratappur","03239"]
[null,null,null,null,22,"Chhattisgarh",401,"Surguja",801921,"Jarhi","03239"]
[null,null,null,null,22,"Chhattisgarh",401,"Surguja",801922,"Kusmi","03240"]
[null,null,null,null,22,"Chhattisgarh",401,"Surguja",801923,"Surajpur","03242"]
[null,null,null,null,22,"Chhattisgarh",401,"Surguja",801924,"Bishrampur","03242"]
[null,null,null,null,22,"Chhattisgarh",401,"Surguja",801925,"Bhatgaon","03244"]
[null,null,null,null,22,"Chhattisgarh",401,"Surguja",801926,"Premnagar","03246"]
[null,null,null,null,22,"Chhattisgarh",401,"Surguja",801927,"Ambikapur","03247"]
[null,null,null,null,22,"Chhattisgarh",401,"Surguja",801928,"Lakhanpur","03248"]
[null,null,null,null,22,"Chhattisgarh",401,"Surguja",801929,"Rajpur","03250"]
[null,null,null,null,22,"Chhattisgarh",401,"Surguja",801930,"Sitapur","03252"]
[null,null,null,null,22,"Chhattisgarh",402,"Jashpur ",801931,"Bagicha","03255"]
[null,null,null,null,22,"Chhattisgarh",402,"Jashpur ",801932,"JashpurNagar ","03257"]
[null,null,null,null,22,"Chhattisgarh",402,"Jashpur ",801933,"Pathalgaon","03262"]
[null,null,null,null,22,"Chhattisgarh",402,"Jashpur ",801934,"Kotba","03262"]
[null,null,null,null,22,"Chhattisgarh",403,"Raigarh",801935,"Dharamjaigarh","03263"]
[null,null,null,null,22,"Chhattisgarh",403,"Raigarh",801936,"Lailunga","03264"]
[null,null,null,null,22,"Chhattisgarh",403,"Raigarh",801937,"Gharghoda","03265"]
[null,null,null,null,22,"Chhattisgarh",403,"Raigarh",801938,"Kirodimalnagar","03267"]
[null,null,null,null,22,"Chhattisgarh",403,"Raigarh",801939,"Raigarh","03267"]
[null,null,null,null,22,"Chhattisgarh",403,"Raigarh",801940,"Pusaur","03268"]
[null,null,null,null,22,"Chhattisgarh",403,"Raigarh",801941,"Kharsia ","03269"]
[null,null,null,null,22,"Chhattisgarh",403,"Raigarh",801942,"Sarangarh","03270"]
[null,null,null,null,22,"Chhattisgarh",403,"Raigarh",801943,"Sariya","03271"]
[null,null,null,null,22,"Chhattisgarh",403,"Raigarh",801944,"Baramkela","03271"]
[null,null,null,null,22,"Chhattisgarh",404,"Korba ",801945,"Katghora","03272"]
[null,null,null,null,22,"Chhattisgarh",404,"Korba ",801946,"Chhurikala","03272"]
[null,null,null,null,22,"Chhattisgarh",404,"Korba ",801947,"Dipka","03272"]
[null,null,null,null,22,"Chhattisgarh",404,"Korba ",801948,"Pali","03274"]
[null,null,null,null,22,"Chhattisgarh",404,"Korba ",801949,"Korba ","03275"]
[null,null,null,null,22,"Chhattisgarh",405,"Janjgir - Champa",801950,"Naila-Janjgir","03277"]
[null,null,null,null,22,"Chhattisgarh",405,"Janjgir - Champa",801951,"Akaltara","03278"]
[null,null,null,null,22,"Chhattisgarh",405,"Janjgir - Champa",801952,"Baloda","03279"]
[null,null,null,null,22,"Chhattisgarh",405,"Janjgir - Champa",801953,"Nawagarh","03280"]
[null,null,null,null,22,"Chhattisgarh",405,"Janjgir - Champa",801954,"Shivrinarayan","03280"]
[null,null,null,null,22,"Chhattisgarh",405,"Janjgir - Champa",801955,"Champa","03281"]
[null,null,null,null,22,"Chhattisgarh",405,"Janjgir - Champa",801956,"Saragaon","03281"]
[null,null,null,null,22,"Chhattisgarh",405,"Janjgir - Champa",801957,"Sakti","03282"]
[null,null,null,null,22,"Chhattisgarh",405,"Janjgir - Champa",801958,"Naya Baradwar","03282"]
[null,null,null,null,22,"Chhattisgarh",405,"Janjgir - Champa",801959,"Rahaud","03283"]
[null,null,null,null,22,"Chhattisgarh",405,"Janjgir - Champa",801960,"Kharod","03283"]
[null,null,null,null,22,"Chhattisgarh",405,"Janjgir - Champa",801961,"Dabhra","03284"]
[null,null,null,null,22,"Chhattisgarh",405,"Janjgir - Champa",801962,"Chandrapur","03284"]
[null,null,null,null,22,"Chhattisgarh",405,"Janjgir - Champa",801963,"Adbhar","03285"]
[null,null,null,null,22,"Chhattisgarh",405,"Janjgir - Champa",801964,"Jaijepur","03286"]
[null,null,null,null,22,"Chhattisgarh",406,"Bilaspur",801965,"Gaurella","03287"]
[null,null,null,null,22,"Chhattisgarh",406,"Bilaspur",801966,"Pendra","03289"]
[null,null,null,null,22,"Chhattisgarh",406,"Bilaspur",801967,"Lormi","03290"]
[null,null,null,null,22,"Chhattisgarh",406,"Bilaspur",801968,"Kota","03291"]
[null,null,null,null,22,"Chhattisgarh",406,"Bilaspur",801969,"Ratanpur","03291"]
[null,null,null,null,22,"Chhattisgarh",406,"Bilaspur",801970,"Mungeli ","03292"]
[null,null,null,null,22,"Chhattisgarh",406,"Bilaspur",801971,"Pathariya","03293"]
[null,null,null,null,22,"Chhattisgarh",406,"Bilaspur",801972,"Sargaon","03293"]
[null,null,null,null,22,"Chhattisgarh",406,"Bilaspur",801973,"Takhatpur","03294"]
[null,null,null,null,22,"Chhattisgarh",406,"Bilaspur",801974,"Sakari","03294"]
[null,null,null,null,22,"Chhattisgarh",406,"Bilaspur",801975,"Bilaspur ","03295"]
[null,null,null,null,22,"Chhattisgarh",406,"Bilaspur",801976,"Tifra","03295"]
[null,null,null,null,22,"Chhattisgarh",406,"Bilaspur",801977,"Sirgitti","03295"]
[null,null,null,null,22,"Chhattisgarh",406,"Bilaspur",801978,"Malhar","03296"]
[null,null,null,null,22,"Chhattisgarh",406,"Bilaspur",801979,"Bodri","03297"]
[null,null,null,null,22,"Chhattisgarh",406,"Bilaspur",801980,"Bilha","03297"]
[null,null,null,null,22,"Chhattisgarh",407,"Kabeerdham",801981,"Kawardha ","03298"]
[null,null,null,null,22,"Chhattisgarh",407,"Kabeerdham",801982,"Pipariya","03298"]
[null,null,null,null,22,"Chhattisgarh",407,"Kabeerdham",801983,"Bodla","03299"]
[null,null,null,null,22,"Chhattisgarh",407,"Kabeerdham",801984,"Sahaspur-Lohara","03300"]
[null,null,null,null,22,"Chhattisgarh",407,"Kabeerdham",801985,"Pandariya","03301"]
[null,null,null,null,22,"Chhattisgarh",407,"Kabeerdham",801986,"Pandatarai","03301"]
[null,null,null,null,22,"Chhattisgarh",408,"Rajnandgaon",801987,"Gandai","03302"]
[null,null,null,null,22,"Chhattisgarh",408,"Rajnandgaon",801988,"Chhuikhadan","03302"]
[null,null,null,null,22,"Chhattisgarh",408,"Rajnandgaon",801989,"Khairagarh","03303"]
[null,null,null,null,22,"Chhattisgarh",408,"Rajnandgaon",801990,"Dongargarh","03304"]
[null,null,null,null,22,"Chhattisgarh",408,"Rajnandgaon",801991,"Rajnandgaon ","03305"]
[null,null,null,null,22,"Chhattisgarh",408,"Rajnandgaon",801992,"Chhuriya","03306"]
[null,null,null,null,22,"Chhattisgarh",408,"Rajnandgaon",801993,"Dongargaon","03307"]
[null,null,null,null,22,"Chhattisgarh",408,"Rajnandgaon",801994,"Ambagarh Chowki","03310"]
[null,null,null,null,22,"Chhattisgarh",409,"Durg",801995,"Nawagarh","03311"]
[null,null,null,null,22,"Chhattisgarh",409,"Durg",801996,"Maro","03311"]
[null,null,null,null,22,"Chhattisgarh",409,"Durg",801997,"Bemetara","03312"]
[null,null,null,null,22,"Chhattisgarh",409,"Durg",801998,"Saja","03313"]
[null,null,null,null,22,"Chhattisgarh",409,"Durg",801999,"Devkar ","03313"]
[null,null,null,null,22,"Chhattisgarh",409,"Durg",802000,"Parpondi","03313"]
[null,null,null,null,22,"Chhattisgarh",409,"Durg",802001,"Than-Khamharia","03314"]
[null,null,null,null,22,"Chhattisgarh",409,"Durg",802002,"Berla","03315"]
[null,null,null,null,22,"Chhattisgarh",409,"Durg",802003,"Dhamdha","03316"]
[null,null,null,null,22,"Chhattisgarh",409,"Durg",802004,"Ahiwara","03316"]
[null,null,null,null,22,"Chhattisgarh",409,"Durg",802005,"Kumhari ","03318"]
[null,null,null,null,22,"Chhattisgarh",409,"Durg",802006,"Jamul ","03316"]
[null,null,null,null,22,"Chhattisgarh",409,"Durg",802007,"Bhilai Charoda","03316"]
[null,null,null,null,22,"Chhattisgarh",409,"Durg",802008,"Bhilai Nagar ","03317"]
[null,null,null,null,22,"Chhattisgarh",409,"Durg",802009,"Durg ","03317"]
[null,null,null,null,22,"Chhattisgarh",409,"Durg",802010,"Utai","03317"]
[null,null,null,null,22,"Chhattisgarh",409,"Durg",802011,"Patan","03318"]
[null,null,null,null,22,"Chhattisgarh",409,"Durg",802012,"Arjunda","03319"]
[null,null,null,null,22,"Chhattisgarh",409,"Durg",802013,"Gunderdehi","03319"]
[null,null,null,null,22,"Chhattisgarh",409,"Durg",802014,"Daundi Lohara","03320"]
[null,null,null,null,22,"Chhattisgarh",409,"Durg",802015,"Balod","03321"]
[null,null,null,null,22,"Chhattisgarh",409,"Durg",802016,"Dalli-Rajhara","03322"]
[null,null,null,null,22,"Chhattisgarh",409,"Durg",802017,"Chikhalakasa","03322"]
[null,null,null,null,22,"Chhattisgarh",409,"Durg",802018,"Doundi","03322"]
[null,null,null,null,22,"Chhattisgarh",409,"Durg",802019,"Gurur","03323"]
[null,null,null,null,22,"Chhattisgarh",410,"Raipur",802020,"Simga","03324"]
[null,null,null,null,22,"Chhattisgarh",410,"Raipur",802021,"Bhatapara","03325"]
[null,null,null,null,22,"Chhattisgarh",410,"Raipur",802022,"Baloda Bazar","03326"]
[null,null,null,null,22,"Chhattisgarh",410,"Raipur",802023,"Lawan","03326"]
[null,null,null,null,22,"Chhattisgarh",410,"Raipur",802024,"Palari","03327"]
[null,null,null,null,22,"Chhattisgarh",410,"Raipur",802025,"Tundra","03328"]
[null,null,null,null,22,"Chhattisgarh",410,"Raipur",802026,"Kasdol","03328"]
[null,null,null,null,22,"Chhattisgarh",410,"Raipur",802027,"Bhatgaon","03329"]
[null,null,null,null,22,"Chhattisgarh",410,"Raipur",802028,"Bilaigarh","03329"]
[null,null,null,null,22,"Chhattisgarh",410,"Raipur",802029,"Arang ","03330"]
[null,null,null,null,22,"Chhattisgarh",410,"Raipur",802030,"Abhanpur","03331"]
[null,null,null,null,22,"Chhattisgarh",410,"Raipur",802031,"Gobra Nawapara","03331"]
[null,null,null,null,22,"Chhattisgarh",410,"Raipur",802032,"Koora","03332"]
[null,null,null,null,22,"Chhattisgarh",410,"Raipur",802033,"Birgaon","03332"]
[null,null,null,null,22,"Chhattisgarh",410,"Raipur",802034,"Raipur","03332"]
[null,null,null,null,22,"Chhattisgarh",410,"Raipur",802035,"Mana-Camp","03332"]
[null,null,null,null,22,"Chhattisgarh",410,"Raipur",802036,"Fingeshwar","03333"]
[null,null,null,null,22,"Chhattisgarh",410,"Raipur",802037,"Rajim","03333"]
[null,null,null,null,22,"Chhattisgarh",410,"Raipur",802038,"Tilda Newra ","03334"]
[null,null,null,null,22,"Chhattisgarh",410,"Raipur",802039,"Kharora","03334"]
[null,null,null,null,22,"Chhattisgarh",410,"Raipur",802040,"Gariyaband","03335"]
[null,null,null,null,22,"Chhattisgarh",410,"Raipur",802041,"Chhura","03336"]
[null,null,null,null,22,"Chhattisgarh",411,"Mahasamund",802042,"Basna ","03339"]
[null,null,null,null,22,"Chhattisgarh",411,"Mahasamund",802043,"Saraipali","03340"]
[null,null,null,null,22,"Chhattisgarh",411,"Mahasamund",802044,"Tumgaon","03341"]
[null,null,null,null,22,"Chhattisgarh",411,"Mahasamund",802045,"Mahasamund ","03341"]
[null,null,null,null,22,"Chhattisgarh",411,"Mahasamund",802046,"Pithora","03342"]
[null,null,null,null,22,"Chhattisgarh",411,"Mahasamund",802047,"Bagbahara","03343"]
[null,null,null,null,22,"Chhattisgarh",412,"Dhamtari ",802048,"Bhakhara","03344"]
[null,null,null,null,22,"Chhattisgarh",412,"Dhamtari ",802049,"Kurud","03344"]
[null,null,null,null,22,"Chhattisgarh",412,"Dhamtari ",802050,"Magarlod","03345"]
[null,null,null,null,22,"Chhattisgarh",412,"Dhamtari ",802051,"Aamadi","03346"]
[null,null,null,null,22,"Chhattisgarh",412,"Dhamtari ",802052,"Dhamtari ","03346"]
[null,null,null,null,22,"Chhattisgarh",412,"Dhamtari ",802053,"Nagari","03347"]
[null,null,null,null,22,"Chhattisgarh",413,"Uttar Bastar Kanker",802054,"Charama","03348"]
[null,null,null,null,22,"Chhattisgarh",413,"Uttar Bastar Kanker",802055,"Bhanupratappur","03349"]
[null,null,null,null,22,"Chhattisgarh",413,"Uttar Bastar Kanker",802056,"Kanker ","03351"]
[null,null,null,null,22,"Chhattisgarh",413,"Uttar Bastar Kanker",802057,"Narharpur","03352"]
[null,null,null,null,22,"Chhattisgarh",413,"Uttar Bastar Kanker",802058,"Antagarh","03353"]
[null,null,null,null,22,"Chhattisgarh",413,"Uttar Bastar Kanker",802059,"Pakhanjur","03354"]
[null,null,null,null,22,"Chhattisgarh",414,"Bastar",802060,"Keskal","03355"]
[null,null,null,null,22,"Chhattisgarh",414,"Bastar",802061,"Visrampuree","03356"]
[null,null,null,null,22,"Chhattisgarh",414,"Bastar",802062,"Kondagaon","03357"]
[null,null,null,null,22,"Chhattisgarh",414,"Bastar",802063,"Farasgaon","03359"]
[null,null,null,null,22,"Chhattisgarh",414,"Bastar",802064,"Jagdalpur ","03360"]
[null,null,null,null,22,"Chhattisgarh",414,"Bastar",802065,"Bastar","03363"]
[null,null,null,null,22,"Chhattisgarh",415,"Narayanpur",802066,"Narayanpur","03367"]
[null,null,null,null,22,"Chhattisgarh",416,"Dakshin Bastar Dantewada",802067,"Dantewada","03369"]
[null,null,null,null,22,"Chhattisgarh",416,"Dakshin Bastar Dantewada",802068,"Bade Bacheli","03369"]
[null,null,null,null,22,"Chhattisgarh",416,"Dakshin Bastar Dantewada",802069,"Barsur","03370"]
[null,null,null,null,22,"Chhattisgarh",416,"Dakshin Bastar Dantewada",802070,"Geedam","03370"]
[null,null,null,null,22,"Chhattisgarh",416,"Dakshin Bastar Dantewada",802071,"Kirandul","03372"]
[null,null,null,null,22,"Chhattisgarh",416,"Dakshin Bastar Dantewada",802072,"Dornapal","03373"]
[null,null,null,null,22,"Chhattisgarh",416,"Dakshin Bastar Dantewada",802073,"Konta","03373"]
[null,null,null,null,22,"Chhattisgarh",416,"Dakshin Bastar Dantewada",802074,"Sukma","03375"]
[null,null,null,null,22,"Chhattisgarh",417,"Bijapur",802075,"Bhopalpattanam","03376"]
[null,null,null,null,22,"Chhattisgarh",417,"Bijapur",802076,"Bijapur","03378"]
[null,null,null,null,22,"Chhattisgarh",417,"Bijapur",802077,"Bhairamgarh","03379"]
[null,null,null,null,23,"Madhya Pradesh",418,"Sheopur ",802078,"Vijaypur","03380"]
[null,null,null,null,23,"Madhya Pradesh",418,"Sheopur ",802079,"Sheopur ","03382"]
[null,null,null,null,23,"Madhya Pradesh",418,"Sheopur ",802080,"Badoda","03383"]
[null,null,null,null,23,"Madhya Pradesh",419,"Morena",802081,"Ambah","03385"]
[null,null,null,null,23,"Madhya Pradesh",419,"Morena",802082,"Porsa","03386"]
[null,null,null,null,23,"Madhya Pradesh",419,"Morena",802083,"Morena","03387"]
[null,null,null,null,23,"Madhya Pradesh",419,"Morena",802084,"Bamor","03387"]
[null,null,null,null,23,"Madhya Pradesh",419,"Morena",802085,"Joura","03388"]
[null,null,null,null,23,"Madhya Pradesh",419,"Morena",802086,"Kailaras","03389"]
[null,null,null,null,23,"Madhya Pradesh",419,"Morena",802087,"Jhundpura","03390"]
[null,null,null,null,23,"Madhya Pradesh",419,"Morena",802088,"Sabalgarh","03390"]
[null,null,null,null,23,"Madhya Pradesh",420,"Bhind",802089,"Phuphkalan","03392"]
[null,null,null,null,23,"Madhya Pradesh",420,"Bhind",802090,"Bhind","03392"]
[null,null,null,null,23,"Madhya Pradesh",420,"Bhind",802091,"Akoda","03392"]
[null,null,null,null,23,"Madhya Pradesh",420,"Bhind",802092,"Mehgaon","03393"]
[null,null,null,null,23,"Madhya Pradesh",420,"Bhind",802093,"Gormi","03394"]
[null,null,null,null,23,"Madhya Pradesh",420,"Bhind",802094,"Gohad","03395"]
[null,null,null,null,23,"Madhya Pradesh",420,"Bhind",802095,"Mau","03395"]
[null,null,null,null,23,"Madhya Pradesh",420,"Bhind",802096,"Mihona","03397"]
[null,null,null,null,23,"Madhya Pradesh",420,"Bhind",802097,"Lahar","03398"]
[null,null,null,null,23,"Madhya Pradesh",420,"Bhind",802098,"Alampur","03398"]
[null,null,null,null,23,"Madhya Pradesh",420,"Bhind",802099,"Daboh","03398"]
[null,null,null,null,23,"Madhya Pradesh",421,"Gwalior",802100,"Gwalior- Revised","03399"]
[null,null,null,null,23,"Madhya Pradesh",421,"Gwalior",802101,"Morar Cantt (CB)","03399"]
[null,null,null,null,23,"Madhya Pradesh",421,"Gwalior",802102,"Bilaua","03400"]
[null,null,null,null,23,"Madhya Pradesh",421,"Gwalior",802103,"Pichhore","03400"]
[null,null,null,null,23,"Madhya Pradesh",421,"Gwalior",802104,"Dabra","03400"]
[null,null,null,null,23,"Madhya Pradesh",421,"Gwalior",802105,"Bhitarwar","03401"]
[null,null,null,null,23,"Madhya Pradesh",421,"Gwalior",802106,"Antari","03402"]
[null,null,null,null,23,"Madhya Pradesh",422,"Datia",802107,"Seondha","03403"]
[null,null,null,null,23,"Madhya Pradesh",422,"Datia",802108,"Indergarh","03404"]
[null,null,null,null,23,"Madhya Pradesh",422,"Datia",802109,"Datia","03405"]
[null,null,null,null,23,"Madhya Pradesh",422,"Datia",802110,"Badoni","03405"]
[null,null,null,null,23,"Madhya Pradesh",422,"Datia",802111,"Bhander","03406"]
[null,null,null,null,23,"Madhya Pradesh",423,"Shivpuri",802112,"Shivpuri","03408"]
[null,null,null,null,23,"Madhya Pradesh",423,"Shivpuri",802113,"Narwar","03409"]
[null,null,null,null,23,"Madhya Pradesh",423,"Shivpuri",802114,"Karera","03410"]
[null,null,null,null,23,"Madhya Pradesh",423,"Shivpuri",802115,"Kolaras","03411"]
[null,null,null,null,23,"Madhya Pradesh",423,"Shivpuri",802116,"Badarwas","03412"]
[null,null,null,null,23,"Madhya Pradesh",423,"Shivpuri",802117,"Pichhore","03413"]
[null,null,null,null,23,"Madhya Pradesh",423,"Shivpuri",802118,"Khaniyadhana","03414"]
[null,null,null,null,23,"Madhya Pradesh",424,"Tikamgarh",802119,"Tarichar Kalan","03415"]
[null,null,null,null,23,"Madhya Pradesh",424,"Tikamgarh",802120,"Niwari","03415"]
[null,null,null,null,23,"Madhya Pradesh",424,"Tikamgarh",802121,"Orchha","03416"]
[null,null,null,null,23,"Madhya Pradesh",424,"Tikamgarh",802122,"Jeron Khalsa","03417"]
[null,null,null,null,23,"Madhya Pradesh",424,"Tikamgarh",802123,"Prithvipur","03417"]
[null,null,null,null,23,"Madhya Pradesh",424,"Tikamgarh",802124,"Lidhora Khas","03418"]
[null,null,null,null,23,"Madhya Pradesh",424,"Tikamgarh",802125,"Jatara","03418"]
[null,null,null,null,23,"Madhya Pradesh",424,"Tikamgarh",802126,"Palera","03420"]
[null,null,null,null,23,"Madhya Pradesh",424,"Tikamgarh",802127,"Baldeogarh","03421"]
[null,null,null,null,23,"Madhya Pradesh",424,"Tikamgarh",802128,"Khargapur","03422"]
[null,null,null,null,23,"Madhya Pradesh",424,"Tikamgarh",802129,"Kari","03423"]
[null,null,null,null,23,"Madhya Pradesh",424,"Tikamgarh",802130,"Tikamgarh","03423"]
[null,null,null,null,23,"Madhya Pradesh",424,"Tikamgarh",802131,"Badagaon","03423"]
[null,null,null,null,23,"Madhya Pradesh",425,"Chhatarpur",802132,"Barigarh","03424"]
[null,null,null,null,23,"Madhya Pradesh",425,"Chhatarpur",802133,"Laundi","03425"]
[null,null,null,null,23,"Madhya Pradesh",425,"Chhatarpur",802134,"Chandla","03426"]
[null,null,null,null,23,"Madhya Pradesh",425,"Chhatarpur",802135,"Harpalpur","03427"]
[null,null,null,null,23,"Madhya Pradesh",425,"Chhatarpur",802136,"Nowgong","03427"]
[null,null,null,null,23,"Madhya Pradesh",425,"Chhatarpur",802137,"Garhi - Malhera","03428"]
[null,null,null,null,23,"Madhya Pradesh",425,"Chhatarpur",802138,"Maharajpur","03428"]
[null,null,null,null,23,"Madhya Pradesh",425,"Chhatarpur",802139,"Chhatarpur ","03429"]
[null,null,null,null,23,"Madhya Pradesh",425,"Chhatarpur",802140,"Rajnagar","03430"]
[null,null,null,null,23,"Madhya Pradesh",425,"Chhatarpur",802141,"Khajuraho","03430"]
[null,null,null,null,23,"Madhya Pradesh",425,"Chhatarpur",802142,"Bada Malhera","03431"]
[null,null,null,null,23,"Madhya Pradesh",425,"Chhatarpur",802143,"Ghuwara","03432"]
[null,null,null,null,23,"Madhya Pradesh",425,"Chhatarpur",802144,"Satai","03433"]
[null,null,null,null,23,"Madhya Pradesh",425,"Chhatarpur",802145,"Bijawar","03433"]
[null,null,null,null,23,"Madhya Pradesh",425,"Chhatarpur",802146,"Buxwaha","03434"]
[null,null,null,null,23,"Madhya Pradesh",426,"Panna",802147,"Ajaigarh","03435"]
[null,null,null,null,23,"Madhya Pradesh",426,"Panna",802148,"Panna ","03436"]
[null,null,null,null,23,"Madhya Pradesh",426,"Panna",802149,"Devendranagar","03437"]
[null,null,null,null,23,"Madhya Pradesh",426,"Panna",802150,"Kakarhati","03437"]
[null,null,null,null,23,"Madhya Pradesh",426,"Panna",802151,"Amanganj","03439"]
[null,null,null,null,23,"Madhya Pradesh",426,"Panna",802152,"Pawai","03440"]
[null,null,null,null,23,"Madhya Pradesh",427,"Sagar",802153,"Bina- Etawa","03443"]
[null,null,null,null,23,"Madhya Pradesh",427,"Sagar",802154,"Khurai","03444"]
[null,null,null,null,23,"Madhya Pradesh",427,"Sagar",802155,"Banda","03446"]
[null,null,null,null,23,"Madhya Pradesh",427,"Sagar",802156,"Shahgarh","03447"]
[null,null,null,null,23,"Madhya Pradesh",427,"Sagar",802157,"Rahatgarh","03448"]
[null,null,null,null,23,"Madhya Pradesh",427,"Sagar",802158,"Shahpur","03449"]
[null,null,null,null,23,"Madhya Pradesh",427,"Sagar",802159,"Sagar","03449"]
[null,null,null,null,23,"Madhya Pradesh",427,"Sagar",802160,"Sagar Cantt (CB)","03449"]
[null,null,null,null,23,"Madhya Pradesh",427,"Sagar",802161,"Garhakota ","03450"]
[null,null,null,null,23,"Madhya Pradesh",427,"Sagar",802162,"Rehli","03451"]
[null,null,null,null,23,"Madhya Pradesh",427,"Sagar",802163,"Deori","03453"]
[null,null,null,null,23,"Madhya Pradesh",428,"Damoh",802164,"Hatta","03454"]
[null,null,null,null,23,"Madhya Pradesh",428,"Damoh",802165,"Patharia","03457"]
[null,null,null,null,23,"Madhya Pradesh",428,"Damoh",802166,"Hindoria","03458"]
[null,null,null,null,23,"Madhya Pradesh",428,"Damoh",802167,"Damoh ","03458"]
[null,null,null,null,23,"Madhya Pradesh",428,"Damoh",802168,"Tendukheda","03460"]
[null,null,null,null,23,"Madhya Pradesh",429,"Satna",802169,"Kothi","03461"]
[null,null,null,null,23,"Madhya Pradesh",429,"Satna",802170,"Satna","03461"]
[null,null,null,null,23,"Madhya Pradesh",429,"Satna",802171,"Chitrakoot","03462"]
[null,null,null,null,23,"Madhya Pradesh",429,"Satna",802172,"Birsinghpur","03463"]
[null,null,null,null,23,"Madhya Pradesh",429,"Satna",802173,"Jaitwara","03463"]
[null,null,null,null,23,"Madhya Pradesh",429,"Satna",802174,"Nagod","03464"]
[null,null,null,null,23,"Madhya Pradesh",429,"Satna",802175,"Unchahara","03465"]
[null,null,null,null,23,"Madhya Pradesh",429,"Satna",802176,"Rampur Baghelan","03466"]
[null,null,null,null,23,"Madhya Pradesh",429,"Satna",802177,"Kotar","03467"]
[null,null,null,null,23,"Madhya Pradesh",429,"Satna",802178,"Amarpatan","03468"]
[null,null,null,null,23,"Madhya Pradesh",429,"Satna",802179,"Maihar","03470"]
[null,null,null,null,23,"Madhya Pradesh",430,"Rewa",802180,"Chakghat","03471"]
[null,null,null,null,23,"Madhya Pradesh",430,"Rewa",802181,"Teonthar","03471"]
[null,null,null,null,23,"Madhya Pradesh",430,"Rewa",802182,"Sirmour","03473"]
[null,null,null,null,23,"Madhya Pradesh",430,"Rewa",802183,"Baikunthpur","03473"]
[null,null,null,null,23,"Madhya Pradesh",430,"Rewa",802184,"Mangawan","03474"]
[null,null,null,null,23,"Madhya Pradesh",430,"Rewa",802185,"Semaria","03475"]
[null,null,null,null,23,"Madhya Pradesh",430,"Rewa",802186,"Hanumana","03476"]
[null,null,null,null,23,"Madhya Pradesh",430,"Rewa",802187,"Mauganj","03477"]
[null,null,null,null,23,"Madhya Pradesh",430,"Rewa",802188,"Naigarhi","03478"]
[null,null,null,null,23,"Madhya Pradesh",430,"Rewa",802189,"Rewa ","03479"]
[null,null,null,null,23,"Madhya Pradesh",430,"Rewa",802190,"Govindgarh","03479"]
[null,null,null,null,23,"Madhya Pradesh",430,"Rewa",802191,"Gurh","03481"]
[null,null,null,null,23,"Madhya Pradesh",431,"Umaria",802192,"Umaria","03482"]
[null,null,null,null,23,"Madhya Pradesh",431,"Umaria",802193,"Chandia","03483"]
[null,null,null,null,23,"Madhya Pradesh",431,"Umaria",802194,"Pali","03485"]
[null,null,null,null,23,"Madhya Pradesh",431,"Umaria",802195,"Nowrozabad (Khodargama)","03486"]
[null,null,null,null,23,"Madhya Pradesh",432,"Neemuch ",802196,"Diken","03487"]
[null,null,null,null,23,"Madhya Pradesh",432,"Neemuch ",802197,"Jawad","03487"]
[null,null,null,null,23,"Madhya Pradesh",432,"Neemuch ",802198,"Singoli","03488"]
[null,null,null,null,23,"Madhya Pradesh",432,"Neemuch ",802199,"Ratangarh","03488"]
[null,null,null,null,23,"Madhya Pradesh",432,"Neemuch ",802200,"Neemuch ","03489"]
[null,null,null,null,23,"Madhya Pradesh",432,"Neemuch ",802201,"Jiran","03490"]
[null,null,null,null,23,"Madhya Pradesh",432,"Neemuch ",802202,"Rampura","03491"]
[null,null,null,null,23,"Madhya Pradesh",432,"Neemuch ",802203,"Manasa","03491"]
[null,null,null,null,23,"Madhya Pradesh",432,"Neemuch ",802204,"Kukdeshwar","03491"]
[null,null,null,null,23,"Madhya Pradesh",433,"Mandsaur",802205,"Bhanpura","03492"]
[null,null,null,null,23,"Madhya Pradesh",433,"Mandsaur",802206,"Malhargarh","03493"]
[null,null,null,null,23,"Madhya Pradesh",433,"Mandsaur",802207,"Narayangarh","03493"]
[null,null,null,null,23,"Madhya Pradesh",433,"Mandsaur",802208,"Piplya Mandi","03493"]
[null,null,null,null,23,"Madhya Pradesh",433,"Mandsaur",802209,"Garoth","03494"]
[null,null,null,null,23,"Madhya Pradesh",433,"Mandsaur",802210,"Shamgarh","03495"]
[null,null,null,null,23,"Madhya Pradesh",433,"Mandsaur",802211,"Mandsaur","03496"]
[null,null,null,null,23,"Madhya Pradesh",433,"Mandsaur",802212,"Nagri","03497"]
[null,null,null,null,23,"Madhya Pradesh",433,"Mandsaur",802213,"Sitamau","03498"]
[null,null,null,null,23,"Madhya Pradesh",433,"Mandsaur",802214,"Suwasara","03499"]
[null,null,null,null,23,"Madhya Pradesh",434,"Ratlam",802215,"Piploda","03500"]
[null,null,null,null,23,"Madhya Pradesh",434,"Ratlam",802216,"Jaora ","03501"]
[null,null,null,null,23,"Madhya Pradesh",434,"Ratlam",802217,"Badawada","03501"]
[null,null,null,null,23,"Madhya Pradesh",434,"Ratlam",802218,"Alot","03502"]
[null,null,null,null,23,"Madhya Pradesh",434,"Ratlam",802219,"Tal","03503"]
[null,null,null,null,23,"Madhya Pradesh",434,"Ratlam",802220,"Sailana","03504"]
[null,null,null,null,23,"Madhya Pradesh",434,"Ratlam",802221,"Namli","03507"]
[null,null,null,null,23,"Madhya Pradesh",434,"Ratlam",802222,"Ratlam ","03507"]
[null,null,null,null,23,"Madhya Pradesh",434,"Ratlam",802223,"Dhamnod","03507"]
[null,null,null,null,23,"Madhya Pradesh",435,"Ujjain",802224,"Khacharod","03508"]
[null,null,null,null,23,"Madhya Pradesh",435,"Ujjain",802225,"Nagda","03509"]
[null,null,null,null,23,"Madhya Pradesh",435,"Ujjain",802226,"Unhel","03509"]
[null,null,null,null,23,"Madhya Pradesh",435,"Ujjain",802227,"Mahidpur ","03510"]
[null,null,null,null,23,"Madhya Pradesh",435,"Ujjain",802228,"Tarana","03512"]
[null,null,null,null,23,"Madhya Pradesh",435,"Ujjain",802229,"Makdon","03512"]
[null,null,null,null,23,"Madhya Pradesh",435,"Ujjain",802230,"Ujjain ","03513"]
[null,null,null,null,23,"Madhya Pradesh",435,"Ujjain",802231,"Badnagar ","03514"]
[null,null,null,null,23,"Madhya Pradesh",436,"Shajapur",802232,"Soyatkalan","03515"]
[null,null,null,null,23,"Madhya Pradesh",436,"Shajapur",802233,"Susner","03515"]
[null,null,null,null,23,"Madhya Pradesh",436,"Shajapur",802234,"Nalkheda","03516"]
[null,null,null,null,23,"Madhya Pradesh",436,"Shajapur",802235,"Badagaon","03516"]
[null,null,null,null,23,"Madhya Pradesh",436,"Shajapur",802236,"Badod","03517"]
[null,null,null,null,23,"Madhya Pradesh",436,"Shajapur",802237,"Agar","03518"]
[null,null,null,null,23,"Madhya Pradesh",436,"Shajapur",802238,"Kanad","03518"]
[null,null,null,null,23,"Madhya Pradesh",436,"Shajapur",802239,"Shajapur","03519"]
[null,null,null,null,23,"Madhya Pradesh",436,"Shajapur",802240,"Maksi","03519"]
[null,null,null,null,23,"Madhya Pradesh",436,"Shajapur",802241,"Shujalpur","03522"]
[null,null,null,null,23,"Madhya Pradesh",436,"Shajapur",802242,"Akodia","03522"]
[null,null,null,null,23,"Madhya Pradesh",436,"Shajapur",802243,"Polaykalan","03522"]
[null,null,null,null,23,"Madhya Pradesh",437,"Dewas",802244,"Tonk Khurd","03524"]
[null,null,null,null,23,"Madhya Pradesh",437,"Dewas",802245,"Bhaurasa","03525"]
[null,null,null,null,23,"Madhya Pradesh",437,"Dewas",802246,"Sonkatch","03525"]
[null,null,null,null,23,"Madhya Pradesh",437,"Dewas",802247,"Pipalrawan","03525"]
[null,null,null,null,23,"Madhya Pradesh",437,"Dewas",802248,"Dewas ","03526"]
[null,null,null,null,23,"Madhya Pradesh",437,"Dewas",802249,"Kannod","03527"]
[null,null,null,null,23,"Madhya Pradesh",437,"Dewas",802250,"Loharda","03528"]
[null,null,null,null,23,"Madhya Pradesh",437,"Dewas",802251,"Kantaphod","03528"]
[null,null,null,null,23,"Madhya Pradesh",437,"Dewas",802252,"Satwas","03528"]
[null,null,null,null,23,"Madhya Pradesh",437,"Dewas",802253,"Karnawad","03529"]
[null,null,null,null,23,"Madhya Pradesh",437,"Dewas",802254,"Bagli","03529"]
[null,null,null,null,23,"Madhya Pradesh",437,"Dewas",802255,"Hatpiplya","03530"]
[null,null,null,null,23,"Madhya Pradesh",437,"Dewas",802256,"Khategaon","03531"]
[null,null,null,null,23,"Madhya Pradesh",438,"Dhar",802257,"Badnawar","03532"]
[null,null,null,null,23,"Madhya Pradesh",438,"Dhar",802258,"Rajgarh","03533"]
[null,null,null,null,23,"Madhya Pradesh",438,"Dhar",802259,"Sardarpur","03533"]
[null,null,null,null,23,"Madhya Pradesh",438,"Dhar",802260,"Dhar","03534"]
[null,null,null,null,23,"Madhya Pradesh",438,"Dhar",802261,"Pithampur","03534"]
[null,null,null,null,23,"Madhya Pradesh",438,"Dhar",802262,"Mandav","03534"]
[null,null,null,null,23,"Madhya Pradesh",438,"Dhar",802263,"Kukshi","03536"]
[null,null,null,null,23,"Madhya Pradesh",438,"Dhar",802264,"Dahi","03537"]
[null,null,null,null,23,"Madhya Pradesh",438,"Dhar",802265,"Manawar","03538"]
[null,null,null,null,23,"Madhya Pradesh",438,"Dhar",802266,"Dhamnod","03539"]
[null,null,null,null,23,"Madhya Pradesh",438,"Dhar",802267,"Dharampuri","03539"]
[null,null,null,null,23,"Madhya Pradesh",439,"Indore",802268,"Runji-Gautampura","03540"]
[null,null,null,null,23,"Madhya Pradesh",439,"Indore",802269,"Depalpur","03540"]
[null,null,null,null,23,"Madhya Pradesh",439,"Indore",802270,"Betma","03540"]
[null,null,null,null,23,"Madhya Pradesh",439,"Indore",802271,"Hatod","03541"]
[null,null,null,null,23,"Madhya Pradesh",439,"Indore",802272,"Sawer","03542"]
[null,null,null,null,23,"Madhya Pradesh",439,"Indore",802273,"Indore ","03543"]
[null,null,null,null,23,"Madhya Pradesh",439,"Indore",802274,"Rau","03543"]
[null,null,null,null,23,"Madhya Pradesh",439,"Indore",802275,"Mhow Cantt (CB)","03544"]
[null,null,null,null,23,"Madhya Pradesh",439,"Indore",802276,"Mhowgaon","03544"]
[null,null,null,null,23,"Madhya Pradesh",439,"Indore",802277,"Manpur","03544"]
[null,null,null,null,23,"Madhya Pradesh",440,"West Nimar",802278,"Barwaha","03545"]
[null,null,null,null,23,"Madhya Pradesh",440,"West Nimar",802279,"Sanawad","03545"]
[null,null,null,null,23,"Madhya Pradesh",440,"West Nimar",802280,"Maheshwar","03546"]
[null,null,null,null,23,"Madhya Pradesh",440,"West Nimar",802281,"Mandleshwar","03546"]
[null,null,null,null,23,"Madhya Pradesh",440,"West Nimar",802282,"Kasrawad","03547"]
[null,null,null,null,23,"Madhya Pradesh",440,"West Nimar",802283,"Bhikangaon","03549"]
[null,null,null,null,23,"Madhya Pradesh",440,"West Nimar",802284,"Khargone ","03550"]
[null,null,null,null,23,"Madhya Pradesh",441,"Barwani ",802285,"Barwani","03554"]
[null,null,null,null,23,"Madhya Pradesh",441,"Barwani ",802286,"Anjad","03557"]
[null,null,null,null,23,"Madhya Pradesh",441,"Barwani ",802287,"Rajpur","03558"]
[null,null,null,null,23,"Madhya Pradesh",441,"Barwani ",802288,"Palsud","03558"]
[null,null,null,null,23,"Madhya Pradesh",441,"Barwani ",802289,"Pansemal","03559"]
[null,null,null,null,23,"Madhya Pradesh",441,"Barwani ",802290,"Khetia","03559"]
[null,null,null,null,23,"Madhya Pradesh",441,"Barwani ",802291,"Sendhwa","03561"]
[null,null,null,null,23,"Madhya Pradesh",442,"Rajgarh",802292,"Machalpur","03563"]
[null,null,null,null,23,"Madhya Pradesh",442,"Rajgarh",802293,"Jirapur","03563"]
[null,null,null,null,23,"Madhya Pradesh",442,"Rajgarh",802294,"Khilchipur","03564"]
[null,null,null,null,23,"Madhya Pradesh",442,"Rajgarh",802295,"Chhapiheda","03564"]
[null,null,null,null,23,"Madhya Pradesh",442,"Rajgarh",802296,"Rajgarh","03565"]
[null,null,null,null,23,"Madhya Pradesh",442,"Rajgarh",802297,"Khujner","03565"]
[null,null,null,null,23,"Madhya Pradesh",442,"Rajgarh",802298,"Suthaliya","03566"]
[null,null,null,null,23,"Madhya Pradesh",442,"Rajgarh",802299,"Biaora ","03566"]
[null,null,null,null,23,"Madhya Pradesh",442,"Rajgarh",802300,"Sarangpur","03567"]
[null,null,null,null,23,"Madhya Pradesh",442,"Rajgarh",802301,"Narsinghgarh","03568"]
[null,null,null,null,23,"Madhya Pradesh",442,"Rajgarh",802302,"Boda","03568"]
[null,null,null,null,23,"Madhya Pradesh",442,"Rajgarh",802303,"Pachore","03569"]
[null,null,null,null,23,"Madhya Pradesh",442,"Rajgarh",802304,"Talen","03569"]
[null,null,null,null,23,"Madhya Pradesh",443,"Vidisha",802305,"Lateri","03570"]
[null,null,null,null,23,"Madhya Pradesh",443,"Vidisha",802306,"Sironj","03571"]
[null,null,null,null,23,"Madhya Pradesh",443,"Vidisha",802307,"Kurwai","03572"]
[null,null,null,null,23,"Madhya Pradesh",443,"Vidisha",802308,"Basoda ","03573"]
[null,null,null,null,23,"Madhya Pradesh",443,"Vidisha",802309,"Shamshabad","03576"]
[null,null,null,null,23,"Madhya Pradesh",443,"Vidisha",802310,"Vidisha","03579"]
[null,null,null,null,23,"Madhya Pradesh",444,"Bhopal",802311,"Berasia","03580"]
[null,null,null,null,23,"Madhya Pradesh",444,"Bhopal",802312,"Bhopal ","03581"]
[null,null,null,null,23,"Madhya Pradesh",444,"Bhopal",802313,"Kolar","03581"]
[null,null,null,null,23,"Madhya Pradesh",445,"Sehore",802314,"Sehore ","03582"]
[null,null,null,null,23,"Madhya Pradesh",445,"Sehore",802315,"Ashta ","03584"]
[null,null,null,null,23,"Madhya Pradesh",445,"Sehore",802316,"Kothri","03584"]
[null,null,null,null,23,"Madhya Pradesh",445,"Sehore",802317,"Jawar","03585"]
[null,null,null,null,23,"Madhya Pradesh",445,"Sehore",802318,"Ichhawar","03586"]
[null,null,null,null,23,"Madhya Pradesh",445,"Sehore",802319,"Nasrullaganj","03587"]
[null,null,null,null,23,"Madhya Pradesh",445,"Sehore",802320,"Budni","03588"]
[null,null,null,null,23,"Madhya Pradesh",445,"Sehore",802321,"Rehti","03589"]
[null,null,null,null,23,"Madhya Pradesh",446,"Raisen",802322,"Sanchi","03590"]
[null,null,null,null,23,"Madhya Pradesh",446,"Raisen",802323,"Raisen","03590"]
[null,null,null,null,23,"Madhya Pradesh",446,"Raisen",802324,"Gairatganj","03591"]
[null,null,null,null,23,"Madhya Pradesh",446,"Raisen",802325,"Begamganj","03592"]
[null,null,null,null,23,"Madhya Pradesh",446,"Raisen",802326,"Sultanpur","03593"]
[null,null,null,null,23,"Madhya Pradesh",446,"Raisen",802327,"Mandideep","03593"]
[null,null,null,null,23,"Madhya Pradesh",446,"Raisen",802328,"Obedullaganj","03593"]
[null,null,null,null,23,"Madhya Pradesh",446,"Raisen",802329,"Baraily ","03594"]
[null,null,null,null,23,"Madhya Pradesh",446,"Raisen",802330,"Badi","03595"]
[null,null,null,null,23,"Madhya Pradesh",446,"Raisen",802331,"Silwani","03596"]
[null,null,null,null,23,"Madhya Pradesh",446,"Raisen",802332,"Udaipura","03597"]
[null,null,null,null,23,"Madhya Pradesh",447,"Betul",802333,"Bhainsdehi","03598"]
[null,null,null,null,23,"Madhya Pradesh",447,"Betul",802334,"Athner","03599"]
[null,null,null,null,23,"Madhya Pradesh",447,"Betul",802335,"Betul","03600"]
[null,null,null,null,23,"Madhya Pradesh",447,"Betul",802336,"Betul-Bazar","03600"]
[null,null,null,null,23,"Madhya Pradesh",447,"Betul",802337,"Chicholi","03601"]
[null,null,null,null,23,"Madhya Pradesh",447,"Betul",802338,"Sarni","03602"]
[null,null,null,null,23,"Madhya Pradesh",447,"Betul",802339,"Multai","03604"]
[null,null,null,null,23,"Madhya Pradesh",447,"Betul",802340,"Amla","03605"]
[null,null,null,null,23,"Madhya Pradesh",448,"Harda ",802341,"Khirkiya","03606"]
[null,null,null,null,23,"Madhya Pradesh",448,"Harda ",802342,"Harda ","03608"]
[null,null,null,null,23,"Madhya Pradesh",448,"Harda ",802343,"Timarni","03610"]
[null,null,null,null,23,"Madhya Pradesh",449,"Hoshangabad",802344,"Seoni-Malwa","03612"]
[null,null,null,null,23,"Madhya Pradesh",449,"Hoshangabad",802345,"Itarsi ","03613"]
[null,null,null,null,23,"Madhya Pradesh",449,"Hoshangabad",802346,"Hoshangabad","03614"]
[null,null,null,null,23,"Madhya Pradesh",449,"Hoshangabad",802347,"Babai","03616"]
[null,null,null,null,23,"Madhya Pradesh",449,"Hoshangabad",802348,"Sohagpur","03617"]
[null,null,null,null,23,"Madhya Pradesh",449,"Hoshangabad",802349,"Pipariya","03618"]
[null,null,null,null,23,"Madhya Pradesh",449,"Hoshangabad",802350,"Pachmarhi Cantt (CB)","03618"]
[null,null,null,null,23,"Madhya Pradesh",450,"Katni ",802351,"Murwara (Katni) ","03620"]
[null,null,null,null,23,"Madhya Pradesh",450,"Katni ",802352,"Barhi","03622"]
[null,null,null,null,23,"Madhya Pradesh",450,"Katni ",802353,"Kymore","03624"]
[null,null,null,null,23,"Madhya Pradesh",450,"Katni ",802354,"Vijayraghavgarh","03624"]
[null,null,null,null,23,"Madhya Pradesh",451,"Jabalpur",802355,"Sihora","03627"]
[null,null,null,null,23,"Madhya Pradesh",451,"Jabalpur",802356,"Majholi","03628"]
[null,null,null,null,23,"Madhya Pradesh",451,"Jabalpur",802357,"Katangi","03629"]
[null,null,null,null,23,"Madhya Pradesh",451,"Jabalpur",802358,"Patan","03629"]
[null,null,null,null,23,"Madhya Pradesh",451,"Jabalpur",802359,"Shahpura","03630"]
[null,null,null,null,23,"Madhya Pradesh",451,"Jabalpur",802360,"Jabalpur Cantt (CB)","03631"]
[null,null,null,null,23,"Madhya Pradesh",451,"Jabalpur",802361,"Jabalpur ","03631"]
[null,null,null,null,23,"Madhya Pradesh",451,"Jabalpur",802362,"Bhedaghat","03631"]
[null,null,null,null,23,"Madhya Pradesh",451,"Jabalpur",802363,"Barela","03631"]
[null,null,null,null,23,"Madhya Pradesh",451,"Jabalpur",802364,"Panagar","03632"]
[null,null,null,null,23,"Madhya Pradesh",452,"Narsimhapur",802365,"Gotegaon ","03634"]
[null,null,null,null,23,"Madhya Pradesh",452,"Narsimhapur",802366,"Gadarwara ","03635"]
[null,null,null,null,23,"Madhya Pradesh",452,"Narsimhapur",802367,"Narsimhapur ","03636"]
[null,null,null,null,23,"Madhya Pradesh",452,"Narsimhapur",802368,"Kareli","03637"]
[null,null,null,null,23,"Madhya Pradesh",452,"Narsimhapur",802369,"Tendukheda","03638"]
[null,null,null,null,23,"Madhya Pradesh",453,"Dindori ",802370,"Shahpura","03639"]
[null,null,null,null,23,"Madhya Pradesh",453,"Dindori ",802371,"Dindori","03640"]
[null,null,null,null,23,"Madhya Pradesh",454,"Mandla",802372,"Niwas","03641"]
[null,null,null,null,23,"Madhya Pradesh",454,"Mandla",802373,"Mandla ","03643"]
[null,null,null,null,23,"Madhya Pradesh",454,"Mandla",802374,"Bamhani","03643"]
[null,null,null,null,23,"Madhya Pradesh",454,"Mandla",802375,"Bichhiya","03645"]
[null,null,null,null,23,"Madhya Pradesh",454,"Mandla",802376,"Nainpur ","03646"]
[null,null,null,null,23,"Madhya Pradesh",455,"Chhindwara",802377,"Amarwara","03648"]
[null,null,null,null,23,"Madhya Pradesh",455,"Chhindwara",802378,"Harrai","03649"]
[null,null,null,null,23,"Madhya Pradesh",455,"Chhindwara",802379,"Chaurai Khas","03650"]
[null,null,null,null,23,"Madhya Pradesh",455,"Chhindwara",802380,"Jamai","03651"]
[null,null,null,null,23,"Madhya Pradesh",455,"Chhindwara",802381,"Damua","03651"]
[null,null,null,null,23,"Madhya Pradesh",455,"Chhindwara",802382,"Neuton Chikhli Kalan","03652"]
[null,null,null,null,23,"Madhya Pradesh",455,"Chhindwara",802383,"Dongar Parasia ","03652"]
[null,null,null,null,23,"Madhya Pradesh",455,"Chhindwara",802384,"Chandameta- Butaria","03652"]
[null,null,null,null,23,"Madhya Pradesh",455,"Chhindwara",802385,"Badkuhi","03652"]
[null,null,null,null,23,"Madhya Pradesh",455,"Chhindwara",802386,"Chhindwara ","03654"]
[null,null,null,null,23,"Madhya Pradesh",455,"Chhindwara",802387,"Sausar","03656"]
[null,null,null,null,23,"Madhya Pradesh",455,"Chhindwara",802388,"Mohgaon","03656"]
[null,null,null,null,23,"Madhya Pradesh",455,"Chhindwara",802389,"Lodhikheda","03656"]
[null,null,null,null,23,"Madhya Pradesh",455,"Chhindwara",802390,"Piplanarayanwar","03656"]
[null,null,null,null,23,"Madhya Pradesh",455,"Chhindwara",802391,"Pandhurna","03658"]
[null,null,null,null,23,"Madhya Pradesh",456,"Seoni",802392,"Lakhnadon","03659"]
[null,null,null,null,23,"Madhya Pradesh",456,"Seoni",802393,"Seoni","03664"]
[null,null,null,null,23,"Madhya Pradesh",456,"Seoni",802394,"Barghat","03665"]
[null,null,null,null,23,"Madhya Pradesh",457,"Balaghat",802395,"Katangi","03667"]
[null,null,null,null,23,"Madhya Pradesh",457,"Balaghat",802396,"Waraseoni ","03669"]
[null,null,null,null,23,"Madhya Pradesh",457,"Balaghat",802397,"Balaghat","03672"]
[null,null,null,null,23,"Madhya Pradesh",457,"Balaghat",802398,"Baihar","03674"]
[null,null,null,null,23,"Madhya Pradesh",457,"Balaghat",802399,"Malajkhand","03674"]
[null,null,null,null,23,"Madhya Pradesh",457,"Balaghat",802400,"Lanji","03676"]
[null,null,null,null,23,"Madhya Pradesh",458,"Guna",802401,"Guna","03677"]
[null,null,null,null,23,"Madhya Pradesh",458,"Guna",802402,"Raghogarh -Vijaypur","03679"]
[null,null,null,null,23,"Madhya Pradesh",458,"Guna",802403,"Kumbhraj","03681"]
[null,null,null,null,23,"Madhya Pradesh",458,"Guna",802404,"Aron","03682"]
[null,null,null,null,23,"Madhya Pradesh",458,"Guna",802405,"Chachaura-Binaganj","03683"]
[null,null,null,null,23,"Madhya Pradesh",459,"Ashoknagar",802406,"Isagarh","03684"]
[null,null,null,null,23,"Madhya Pradesh",459,"Ashoknagar",802407,"Chanderi","03685"]
[null,null,null,null,23,"Madhya Pradesh",459,"Ashoknagar",802408,"Ashoknagar","03686"]
[null,null,null,null,23,"Madhya Pradesh",459,"Ashoknagar",802409,"Mungaoli ","03688"]
[null,null,null,null,23,"Madhya Pradesh",460,"Shahdol",802410,"Khand(Bansagar)","03689"]
[null,null,null,null,23,"Madhya Pradesh",460,"Shahdol",802411,"Beohari","03689"]
[null,null,null,null,23,"Madhya Pradesh",460,"Shahdol",802412,"Jaisinghnagar","03690"]
[null,null,null,null,23,"Madhya Pradesh",460,"Shahdol",802413,"Shahdol","03691"]
[null,null,null,null,23,"Madhya Pradesh",460,"Shahdol",802414,"Burhar","03691"]
[null,null,null,null,23,"Madhya Pradesh",460,"Shahdol",802415,"Dhanpuri (Nargada Hari Dafai)","03691"]
[null,null,null,null,23,"Madhya Pradesh",461,"Anuppur",802416,"Bijuri","03693"]
[null,null,null,null,23,"Madhya Pradesh",461,"Anuppur",802417,"Kotma","03693"]
[null,null,null,null,23,"Madhya Pradesh",461,"Anuppur",802418,"Pasan","03694"]
[null,null,null,null,23,"Madhya Pradesh",461,"Anuppur",802419,"Anuppur","03694"]
[null,null,null,null,23,"Madhya Pradesh",461,"Anuppur",802420,"Jaithari","03695"]
[null,null,null,null,23,"Madhya Pradesh",461,"Anuppur",802421,"Amarkantak","03696"]
[null,null,null,null,23,"Madhya Pradesh",462,"Sidhi",802422,"Rampur Naikin","03697"]
[null,null,null,null,23,"Madhya Pradesh",462,"Sidhi",802423,"Churhat","03698"]
[null,null,null,null,23,"Madhya Pradesh",462,"Sidhi",802424,"Sidhi","03699"]
[null,null,null,null,23,"Madhya Pradesh",462,"Sidhi",802425,"Majhauli","03701"]
[null,null,null,null,23,"Madhya Pradesh",463,"Singrauli",802426,"Singrauli ","03705"]
[null,null,null,null,23,"Madhya Pradesh",464,"Jhabua",802427,"Thandla","03706"]
[null,null,null,null,23,"Madhya Pradesh",464,"Jhabua",802428,"Petlawad","03707"]
[null,null,null,null,23,"Madhya Pradesh",464,"Jhabua",802429,"Jhabua","03709"]
[null,null,null,null,23,"Madhya Pradesh",464,"Jhabua",802430,"Ranapur","03710"]
[null,null,null,null,23,"Madhya Pradesh",465,"Alirajpur",802431,"Bhavra","03711"]
[null,null,null,null,23,"Madhya Pradesh",465,"Alirajpur",802432,"Jobat","03712"]
[null,null,null,null,23,"Madhya Pradesh",465,"Alirajpur",802433,"Alirajpur","03713"]
[null,null,null,null,23,"Madhya Pradesh",466,"East Nimar",802434,"Chhanera","03714"]
[null,null,null,null,23,"Madhya Pradesh",466,"East Nimar",802435,"Khandwa ","03716"]
[null,null,null,null,23,"Madhya Pradesh",466,"East Nimar",802436,"Omkareshwar","03717"]
[null,null,null,null,23,"Madhya Pradesh",466,"East Nimar",802437,"Mundi","03717"]
[null,null,null,null,23,"Madhya Pradesh",466,"East Nimar",802438,"Pandhana","03718"]
[null,null,null,null,23,"Madhya Pradesh",467,"Burhanpur",802439,"Burhanpur ","03719"]
[null,null,null,null,23,"Madhya Pradesh",467,"Burhanpur",802440,"Shahpur","03719"]
[null,null,null,null,23,"Madhya Pradesh",467,"Burhanpur",802441,"Nepanagar","03721"]
[null,null,null,null,24,"Gujarat",468,"Kachchh",802442,"Rapar","03723"]
[null,null,null,null,24,"Gujarat",468,"Kachchh",802443,"Bhachau","03724"]
[null,null,null,null,24,"Gujarat",468,"Kachchh",802444,"Anjar","03725"]
[null,null,null,null,24,"Gujarat",468,"Kachchh",802445,"Bhuj ","03726"]
[null,null,null,null,24,"Gujarat",468,"Kachchh",802446,"Mandvi","03729"]
[null,null,null,null,24,"Gujarat",468,"Kachchh",802447,"Gandhidham","03731"]
[null,null,null,null,24,"Gujarat",469,"Banas Kantha",802448,"Tharad","03733"]
[null,null,null,null,24,"Gujarat",469,"Banas Kantha",802449,"Dhanera","03734"]
[null,null,null,null,24,"Gujarat",469,"Banas Kantha",802450,"Palanpur ","03739"]
[null,null,null,null,24,"Gujarat",469,"Banas Kantha",802451,"Deesa","03740"]
[null,null,null,null,24,"Gujarat",469,"Banas Kantha",802452,"Bhabhar","03742"]
[null,null,null,null,24,"Gujarat",469,"Banas Kantha",802453,"Thara","03743"]
[null,null,null,null,24,"Gujarat",470,"Patan  ",802454,"Radhanpur","03745"]
[null,null,null,null,24,"Gujarat",470,"Patan  ",802455,"Sidhpur ","03746"]
[null,null,null,null,24,"Gujarat",470,"Patan  ",802456,"Patan ","03747"]
[null,null,null,null,24,"Gujarat",470,"Patan  ",802457,"Harij","03748"]
[null,null,null,null,24,"Gujarat",470,"Patan  ",802458,"Chanasma","03750"]
[null,null,null,null,24,"Gujarat",471,"Mahesana",802459,"Kheralu","03752"]
[null,null,null,null,24,"Gujarat",471,"Mahesana",802460,"Unjha","03753"]
[null,null,null,null,24,"Gujarat",471,"Mahesana",802461,"Visnagar ","03754"]
[null,null,null,null,24,"Gujarat",471,"Mahesana",802462,"Vadnagar","03755"]
[null,null,null,null,24,"Gujarat",471,"Mahesana",802463,"Vijapur ","03756"]
[null,null,null,null,24,"Gujarat",471,"Mahesana",802464,"Mahesana ","03757"]
[null,null,null,null,24,"Gujarat",471,"Mahesana",802465,"Kadi ","03759"]
[null,null,null,null,24,"Gujarat",472,"Sabar Kantha",802466,"Khedbrahma","03760"]
[null,null,null,null,24,"Gujarat",472,"Sabar Kantha",802467,"Vadali","03762"]
[null,null,null,null,24,"Gujarat",472,"Sabar Kantha",802468,"Idar ","03763"]
[null,null,null,null,24,"Gujarat",472,"Sabar Kantha",802469,"Himatnagar","03766"]
[null,null,null,null,24,"Gujarat",472,"Sabar Kantha",802470,"Prantij","03767"]
[null,null,null,null,24,"Gujarat",472,"Sabar Kantha",802471,"Talod","03768"]
[null,null,null,null,24,"Gujarat",472,"Sabar Kantha",802472,"Modasa","03769"]
[null,null,null,null,24,"Gujarat",472,"Sabar Kantha",802473,"Bayad","03772"]
[null,null,null,null,24,"Gujarat",473,"Gandhinagar",802474,"Chhatral INA (INA)","03773"]
[null,null,null,null,24,"Gujarat",473,"Gandhinagar",802475,"Kalol ","03773"]
[null,null,null,null,24,"Gujarat",473,"Gandhinagar",802476,"Kalol INA (INA)","03773"]
[null,null,null,null,24,"Gujarat",473,"Gandhinagar",802477,"Mansa","03774"]
[null,null,null,null,24,"Gujarat",473,"Gandhinagar",802478,"Pethapur","03775"]
[null,null,null,null,24,"Gujarat",473,"Gandhinagar",802479,"Gandhinagar","03775"]
[null,null,null,null,24,"Gujarat",473,"Gandhinagar",802480,"Dehgam","03776"]
[null,null,null,null,24,"Gujarat",474,"Ahmadabad",802481,"Viramgam","03779"]
[null,null,null,null,24,"Gujarat",474,"Ahmadabad",802482,"Sanand ","03780"]
[null,null,null,null,24,"Gujarat",474,"Ahmadabad",802483,"Ahmadabad Cantonment (CB)","03781"]
[null,null,null,null,24,"Gujarat",474,"Ahmadabad",802484,"Ahmadabad ","03782"]
[null,null,null,null,24,"Gujarat",474,"Ahmadabad",802485,"Bareja","03782"]
[null,null,null,null,24,"Gujarat",474,"Ahmadabad",802486,"Dholka ","03783"]
[null,null,null,null,24,"Gujarat",474,"Ahmadabad",802487,"Bavla ","03784"]
[null,null,null,null,24,"Gujarat",474,"Ahmadabad",802488,"Barwala","03786"]
[null,null,null,null,24,"Gujarat",474,"Ahmadabad",802489,"Dhandhuka","03787"]
[null,null,null,null,24,"Gujarat",475,"Surendranagar",802490,"Halvad","03788"]
[null,null,null,null,24,"Gujarat",475,"Surendranagar",802491,"Dhrangadhra","03789"]
[null,null,null,null,24,"Gujarat",475,"Surendranagar",802492,"Patdi","03790"]
[null,null,null,null,24,"Gujarat",475,"Surendranagar",802493,"Surendranagar Dudhrej","03792"]
[null,null,null,null,24,"Gujarat",475,"Surendranagar",802494,"Wadhwan","03792"]
[null,null,null,null,24,"Gujarat",475,"Surendranagar",802495,"Thangadh","03794"]
[null,null,null,null,24,"Gujarat",475,"Surendranagar",802496,"Chotila","03794"]
[null,null,null,null,24,"Gujarat",475,"Surendranagar",802497,"Limbdi","03797"]
[null,null,null,null,24,"Gujarat",476,"Rajkot",802498,"Maliya","03798"]
[null,null,null,null,24,"Gujarat",476,"Rajkot",802499,"Morvi ","03799"]
[null,null,null,null,24,"Gujarat",476,"Rajkot",802500,"Wankaner","03801"]
[null,null,null,null,24,"Gujarat",476,"Rajkot",802501,"Rajkot","03803"]
[null,null,null,null,24,"Gujarat",476,"Rajkot",802502,"Lodhika (INA)","03804"]
[null,null,null,null,24,"Gujarat",476,"Rajkot",802503,"Jasdan","03806"]
[null,null,null,null,24,"Gujarat",476,"Rajkot",802504,"Gondal","03807"]
[null,null,null,null,24,"Gujarat",476,"Rajkot",802505,"Bhayavadar","03809"]
[null,null,null,null,24,"Gujarat",476,"Rajkot",802506,"Upleta","03809"]
[null,null,null,null,24,"Gujarat",476,"Rajkot",802507,"Dhoraji","03810"]
[null,null,null,null,24,"Gujarat",476,"Rajkot",802508,"Jetpur Navagadh","03811"]
[null,null,null,null,24,"Gujarat",477,"Jamnagar",802509,"Okha","03812"]
[null,null,null,null,24,"Gujarat",477,"Jamnagar",802510,"Dwarka","03812"]
[null,null,null,null,24,"Gujarat",477,"Jamnagar",802511,"Salaya","03813"]
[null,null,null,null,24,"Gujarat",477,"Jamnagar",802512,"Khambhalia","03813"]
[null,null,null,null,24,"Gujarat",477,"Jamnagar",802513,"Sikka","03814"]
[null,null,null,null,24,"Gujarat",477,"Jamnagar",802514,"GSFC (Motikhavdi Sikka) (INA)","03814"]
[null,null,null,null,24,"Gujarat",477,"Jamnagar",802515,"Reliance Complex (INA)","03814"]
[null,null,null,null,24,"Gujarat",477,"Jamnagar",802516,"Jamnagar","03814"]
[null,null,null,null,24,"Gujarat",477,"Jamnagar",802517,"Dhrol","03816"]
[null,null,null,null,24,"Gujarat",477,"Jamnagar",802518,"Kalavad","03817"]
[null,null,null,null,24,"Gujarat",477,"Jamnagar",802519,"Raval","03819"]
[null,null,null,null,24,"Gujarat",477,"Jamnagar",802520,"Bhanvad","03820"]
[null,null,null,null,24,"Gujarat",477,"Jamnagar",802521,"Jamjodhpur","03821"]
[null,null,null,null,24,"Gujarat",478,"Porbandar ",802522,"Porbandar ","03822"]
[null,null,null,null,24,"Gujarat",478,"Porbandar ",802523,"Chhaya","03822"]
[null,null,null,null,24,"Gujarat",478,"Porbandar ",802524,"Ranavav","03823"]
[null,null,null,null,24,"Gujarat",478,"Porbandar ",802525,"Kutiyana","03824"]
[null,null,null,null,24,"Gujarat",479,"Junagadh",802526,"Bantwa","03825"]
[null,null,null,null,24,"Gujarat",479,"Junagadh",802527,"Manavadar","03825"]
[null,null,null,null,24,"Gujarat",479,"Junagadh",802528,"Vanthali","03826"]
[null,null,null,null,24,"Gujarat",479,"Junagadh",802529,"Junagadh ","03827"]
[null,null,null,null,24,"Gujarat",479,"Junagadh",802530,"Visavadar","03829"]
[null,null,null,null,24,"Gujarat",479,"Junagadh",802531,"Keshod","03831"]
[null,null,null,null,24,"Gujarat",479,"Junagadh",802532,"Mangrol ","03832"]
[null,null,null,null,24,"Gujarat",479,"Junagadh",802533,"Chorvad","03833"]
[null,null,null,null,24,"Gujarat",479,"Junagadh",802534,"Talala","03834"]
[null,null,null,null,24,"Gujarat",479,"Junagadh",802535,"Veraval ","03835"]
[null,null,null,null,24,"Gujarat",479,"Junagadh",802536,"Sutrapada","03836"]
[null,null,null,null,24,"Gujarat",479,"Junagadh",802537,"Kodinar","03837"]
[null,null,null,null,24,"Gujarat",479,"Junagadh",802538,"Una","03838"]
[null,null,null,null,24,"Gujarat",480,"Amreli",802539,"Babra","03840"]
[null,null,null,null,24,"Gujarat",480,"Amreli",802540,"Lathi","03841"]
[null,null,null,null,24,"Gujarat",480,"Amreli",802541,"Damnagar","03841"]
[null,null,null,null,24,"Gujarat",480,"Amreli",802542,"Amreli ","03843"]
[null,null,null,null,24,"Gujarat",480,"Amreli",802543,"Bagasara","03844"]
[null,null,null,null,24,"Gujarat",480,"Amreli",802544,"Chalala","03845"]
[null,null,null,null,24,"Gujarat",480,"Amreli",802545,"Savarkundla","03846"]
[null,null,null,null,24,"Gujarat",480,"Amreli",802546,"Jafrabad","03848"]
[null,null,null,null,24,"Gujarat",480,"Amreli",802547,"Rajula","03849"]
[null,null,null,null,24,"Gujarat",481,"Bhavnagar",802548,"Botad","03850"]
[null,null,null,null,24,"Gujarat",481,"Bhavnagar",802549,"Vallabhipur","03851"]
[null,null,null,null,24,"Gujarat",481,"Bhavnagar",802550,"Gadhada","03852"]
[null,null,null,null,24,"Gujarat",481,"Bhavnagar",802551,"Bhavnagar","03854"]
[null,null,null,null,24,"Gujarat",481,"Bhavnagar",802552,"Sihor","03856"]
[null,null,null,null,24,"Gujarat",481,"Bhavnagar",802553,"Gariadhar","03857"]
[null,null,null,null,24,"Gujarat",481,"Bhavnagar",802554,"Palitana","03858"]
[null,null,null,null,24,"Gujarat",481,"Bhavnagar",802555,"Talaja","03859"]
[null,null,null,null,24,"Gujarat",481,"Bhavnagar",802556,"Alang-Sosiya (INA)","03859"]
[null,null,null,null,24,"Gujarat",481,"Bhavnagar",802557,"Mahuva ","03860"]
[null,null,null,null,24,"Gujarat",482,"Anand  ",802558,"Sojitra","03862"]
[null,null,null,null,24,"Gujarat",482,"Anand  ",802559,"Umreth","03863"]
[null,null,null,null,24,"Gujarat",482,"Anand  ",802560,"Boriavi","03864"]
[null,null,null,null,24,"Gujarat",482,"Anand  ",802561,"Ode","03864"]
[null,null,null,null,24,"Gujarat",482,"Anand  ",802562,"Anand ","03864"]
[null,null,null,null,24,"Gujarat",482,"Anand  ",802563,"Vallabh Vidyanagar","03864"]
[null,null,null,null,24,"Gujarat",482,"Anand  ",802564,"Karamsad","03864"]
[null,null,null,null,24,"Gujarat",482,"Anand  ",802565,"Vithal Udyognagar (INA)","03864"]
[null,null,null,null,24,"Gujarat",482,"Anand  ",802566,"Petlad","03865"]
[null,null,null,null,24,"Gujarat",482,"Anand  ",802567,"Khambhat ","03866"]
[null,null,null,null,24,"Gujarat",482,"Anand  ",802568,"Borsad","03867"]
[null,null,null,null,24,"Gujarat",482,"Anand  ",802569,"Vasna Borsad (INA)","03867"]
[null,null,null,null,24,"Gujarat",482,"Anand  ",802570,"Anklav","03868"]
[null,null,null,null,24,"Gujarat",483,"Kheda",802571,"Kapadvanj","03869"]
[null,null,null,null,24,"Gujarat",483,"Kheda",802572,"Balasinor","03871"]
[null,null,null,null,24,"Gujarat",483,"Kheda",802573,"Kathlal","03872"]
[null,null,null,null,24,"Gujarat",483,"Kheda",802574,"Mehmedabad","03873"]
[null,null,null,null,24,"Gujarat",483,"Kheda",802575,"Kheda","03874"]
[null,null,null,null,24,"Gujarat",483,"Kheda",802576,"Nadiad ","03876"]
[null,null,null,null,24,"Gujarat",483,"Kheda",802577,"Chaklasi","03876"]
[null,null,null,null,24,"Gujarat",483,"Kheda",802578,"Kanjari","03876"]
[null,null,null,null,24,"Gujarat",483,"Kheda",802579,"Mahudha","03877"]
[null,null,null,null,24,"Gujarat",483,"Kheda",802580,"Thasra","03878"]
[null,null,null,null,24,"Gujarat",483,"Kheda",802581,"Dakor ","03878"]
[null,null,null,null,24,"Gujarat",484,"Panch Mahals",802582,"Santrampur","03881"]
[null,null,null,null,24,"Gujarat",484,"Panch Mahals",802583,"Lunawada","03882"]
[null,null,null,null,24,"Gujarat",484,"Panch Mahals",802584,"Shehera","03883"]
[null,null,null,null,24,"Gujarat",484,"Panch Mahals",802585,"Godhra","03885"]
[null,null,null,null,24,"Gujarat",484,"Panch Mahals",802586,"Kalol ","03886"]
[null,null,null,null,24,"Gujarat",484,"Panch Mahals",802587,"Kalol (INA)","03886"]
[null,null,null,null,24,"Gujarat",484,"Panch Mahals",802588,"Halol ","03888"]
[null,null,null,null,24,"Gujarat",485,"Dohad  ",802589,"Jhalod","03891"]
[null,null,null,null,24,"Gujarat",485,"Dohad  ",802590,"Dohad ","03893"]
[null,null,null,null,24,"Gujarat",485,"Dohad  ",802591,"Devgadbaria","03895"]
[null,null,null,null,24,"Gujarat",486,"Vadodara",802592,"Savli","03897"]
[null,null,null,null,24,"Gujarat",486,"Vadodara",802593,"Nandesari (INA)","03898"]
[null,null,null,null,24,"Gujarat",486,"Vadodara",802594,"Petro-Chemical Complex (INA)","03898"]
[null,null,null,null,24,"Gujarat",486,"Vadodara",802595,"GSFC Complex (INA)","03898"]
[null,null,null,null,24,"Gujarat",486,"Vadodara",802596,"Vadodara","03898"]
[null,null,null,null,24,"Gujarat",486,"Vadodara",802597,"Por-Ramangamdi (INA)","03898"]
[null,null,null,null,24,"Gujarat",486,"Vadodara",802598,"Vaghodia (INA)","03899"]
[null,null,null,null,24,"Gujarat",486,"Vadodara",802599,"Chhota Udaipur","03901"]
[null,null,null,null,24,"Gujarat",486,"Vadodara",802600,"Dabhoi","03905"]
[null,null,null,null,24,"Gujarat",486,"Vadodara",802601,"Padra ","03906"]
[null,null,null,null,24,"Gujarat",486,"Vadodara",802602,"Karjan","03907"]
[null,null,null,null,24,"Gujarat",487,"Narmada",802603,"Rajpipla","03910"]
[null,null,null,null,24,"Gujarat",488,"Bharuch",802604,"Jambusar","03913"]
[null,null,null,null,24,"Gujarat",488,"Bharuch",802605,"Amod","03914"]
[null,null,null,null,24,"Gujarat",488,"Bharuch",802606,"Bharuch (INA)","03916"]
[null,null,null,null,24,"Gujarat",488,"Bharuch",802607,"Bharuch","03916"]
[null,null,null,null,24,"Gujarat",488,"Bharuch",802608,"Anklesvar ","03918"]
[null,null,null,null,24,"Gujarat",488,"Bharuch",802609,"Anklesvar (INA)","03918"]
[null,null,null,null,24,"Gujarat",488,"Bharuch",802610,"Panoli (INA)","03918"]
[null,null,null,null,24,"Gujarat",488,"Bharuch",802611,"Valia - Jhagadia (GNFC Scooter Project Area) (INA)","03920"]
[null,null,null,null,24,"Gujarat",488,"Bharuch",802612,"Valia (Naldhari) (INA)","03920"]
[null,null,null,null,24,"Gujarat",489,"The Dangs",802613,"Saputara (NA)","03921"]
[null,null,null,null,24,"Gujarat",490,"Navsari  ",802614,"Navsari ","03922"]
[null,null,null,null,24,"Gujarat",490,"Navsari  ",802615,"Vijalpor","03923"]
[null,null,null,null,24,"Gujarat",490,"Navsari  ",802616,"Gandevi","03924"]
[null,null,null,null,24,"Gujarat",490,"Navsari  ",802617,"Bilimora","03924"]
[null,null,null,null,24,"Gujarat",491,"Valsad",802618,"Valsad ","03927"]
[null,null,null,null,24,"Gujarat",491,"Valsad",802619,"Valsad (INA)","03927"]
[null,null,null,null,24,"Gujarat",491,"Valsad",802620,"Dharampur","03928"]
[null,null,null,null,24,"Gujarat",491,"Valsad",802621,"Pardi","03929"]
[null,null,null,null,24,"Gujarat",491,"Valsad",802622,"Vapi","03929"]
[null,null,null,null,24,"Gujarat",491,"Valsad",802623,"Vapi (INA)","03929"]
[null,null,null,null,24,"Gujarat",491,"Valsad",802624,"Sarigam (INA)","03931"]
[null,null,null,null,24,"Gujarat",491,"Valsad",802625,"Umbergaon","03931"]
[null,null,null,null,24,"Gujarat",491,"Valsad",802626,"Umbergaon (INA)","03931"]
[null,null,null,null,24,"Gujarat",492,"Surat",802627,"Tarsadi","03933"]
[null,null,null,null,24,"Gujarat",492,"Surat",802628,"Mandvi","03935"]
[null,null,null,null,24,"Gujarat",492,"Surat",802629,"Surat ","03938"]
[null,null,null,null,24,"Gujarat",492,"Surat",802630,"Hajira (INA)","03938"]
[null,null,null,null,24,"Gujarat",492,"Surat",802631,"Magdalla (INA)","03938"]
[null,null,null,null,24,"Gujarat",492,"Surat",802632,"Sachin (INA)","03938"]
[null,null,null,null,24,"Gujarat",492,"Surat",802633,"Kansad","03938"]
[null,null,null,null,24,"Gujarat",492,"Surat",802634,"Bardoli","03940"]
[null,null,null,null,24,"Gujarat",493,"Tapi",802635,"Songadh","03944"]
[null,null,null,null,24,"Gujarat",493,"Tapi",802636,"Vyara","03945"]
[null,null,null,null,25,"Daman and Diu",494,"Diu",802637,"Diu ","03947"]
[null,null,null,null,25,"Daman and Diu",495,"Daman",802638,"Daman ","03948"]
[null,null,null,null,26,"Dadra and Nagar Haveli",496,"Dadra & Nagar Haveli",802639,"Silvassa ","03949"]
[null,null,null,null,27,"Maharashtra",497,"Nandurbar",802640,"Talode ","03952"]
[null,null,null,null,27,"Maharashtra",497,"Nandurbar",802641,"Shahade ","03953"]
[null,null,null,null,27,"Maharashtra",497,"Nandurbar",802642,"Nandurbar ","03954"]
[null,null,null,null,27,"Maharashtra",497,"Nandurbar",802643,"Nawapur ","03955"]
[null,null,null,null,27,"Maharashtra",498,"Dhule",802644,"Shirpur-Warwade  ","03956"]
[null,null,null,null,27,"Maharashtra",498,"Dhule",802645,"Dondaicha-Warwade ","03957"]
[null,null,null,null,27,"Maharashtra",498,"Dhule",802646,"Dhule  ","03959"]
[null,null,null,null,27,"Maharashtra",499,"Jalgaon",802647,"Chopda  ","03960"]
[null,null,null,null,27,"Maharashtra",499,"Jalgaon",802648,"Yawal  ","03961"]
[null,null,null,null,27,"Maharashtra",499,"Jalgaon",802649,"Faizpur ","03961"]
[null,null,null,null,27,"Maharashtra",499,"Jalgaon",802650,"Savda  ","03962"]
[null,null,null,null,27,"Maharashtra",499,"Jalgaon",802651,"Raver  ","03962"]
[null,null,null,null,27,"Maharashtra",499,"Jalgaon",802652,"Bhusawal  ","03965"]
[null,null,null,null,27,"Maharashtra",499,"Jalgaon",802653,"Jalgaon ","03966"]
[null,null,null,null,27,"Maharashtra",499,"Jalgaon",802654,"Erandol ","03967"]
[null,null,null,null,27,"Maharashtra",499,"Jalgaon",802655,"Dharangaon  ","03968"]
[null,null,null,null,27,"Maharashtra",499,"Jalgaon",802656,"Amalner  ","03969"]
[null,null,null,null,27,"Maharashtra",499,"Jalgaon",802657,"Parola ","03970"]
[null,null,null,null,27,"Maharashtra",499,"Jalgaon",802658,"Bhadgaon ","03971"]
[null,null,null,null,27,"Maharashtra",499,"Jalgaon",802659,"Chalisgaon","03972"]
[null,null,null,null,27,"Maharashtra",499,"Jalgaon",802660,"Pachora  ","03973"]
[null,null,null,null,27,"Maharashtra",499,"Jalgaon",802661,"Jamner  ","03974"]
[null,null,null,null,27,"Maharashtra",500,"Buldana",802662,"Jalgaon (Jamod) ","03975"]
[null,null,null,null,27,"Maharashtra",500,"Buldana",802663,"Shegaon ","03977"]
[null,null,null,null,27,"Maharashtra",500,"Buldana",802664,"Nandura ","03978"]
[null,null,null,null,27,"Maharashtra",500,"Buldana",802665,"Malkapur ","03979"]
[null,null,null,null,27,"Maharashtra",500,"Buldana",802666,"Khamgaon ","03981"]
[null,null,null,null,27,"Maharashtra",500,"Buldana",802667,"Mehkar ","03982"]
[null,null,null,null,27,"Maharashtra",500,"Buldana",802668,"Chikhli ","03983"]
[null,null,null,null,27,"Maharashtra",500,"Buldana",802669,"Buldana ","03984"]
[null,null,null,null,27,"Maharashtra",500,"Buldana",802670,"Deulgaon Raja ","03985"]
[null,null,null,null,27,"Maharashtra",500,"Buldana",802671,"Sindkhed Raja ","03986"]
[null,null,null,null,27,"Maharashtra",500,"Buldana",802672,"Lonar ","03987"]
[null,null,null,null,27,"Maharashtra",501,"Akola",802673,"Telhara ","03988"]
[null,null,null,null,27,"Maharashtra",501,"Akola",802674,"Akot ","03989"]
[null,null,null,null,27,"Maharashtra",501,"Akola",802675,"Balapur ","03990"]
[null,null,null,null,27,"Maharashtra",501,"Akola",802676,"Akola ","03991"]
[null,null,null,null,27,"Maharashtra",501,"Akola",802677,"Murtijapur ","03992"]
[null,null,null,null,27,"Maharashtra",501,"Akola",802678,"Patur ","03993"]
[null,null,null,null,27,"Maharashtra",502,"Washim",802679,"Mangrulpir ","03996"]
[null,null,null,null,27,"Maharashtra",502,"Washim",802680,"Karanja ","03997"]
[null,null,null,null,27,"Maharashtra",502,"Washim",802681,"Washim ","03999"]
[null,null,null,null,27,"Maharashtra",502,"Washim",802682,"Risod ","04000"]
[null,null,null,null,27,"Maharashtra",503,"Amravati",802683,"Chikhaldara  ","04002"]
[null,null,null,null,27,"Maharashtra",503,"Amravati",802684,"Anjangaon ","04003"]
[null,null,null,null,27,"Maharashtra",503,"Amravati",802685,"Achalpur ","04004"]
[null,null,null,null,27,"Maharashtra",503,"Amravati",802686,"Chandurbazar ","04005"]
[null,null,null,null,27,"Maharashtra",503,"Amravati",802687,"Morshi ","04006"]
[null,null,null,null,27,"Maharashtra",503,"Amravati",802688,"Warud ","04007"]
[null,null,null,null,27,"Maharashtra",503,"Amravati",802689,"Shendurjana ","04007"]
[null,null,null,null,27,"Maharashtra",503,"Amravati",802690,"Amravati ","04009"]
[null,null,null,null,27,"Maharashtra",503,"Amravati",802691,"Daryapur Banosa  ","04011"]
[null,null,null,null,27,"Maharashtra",503,"Amravati",802692,"Chandur Railway ","04013"]
[null,null,null,null,27,"Maharashtra",503,"Amravati",802693,"Dattapur Dhamangaon ","04014"]
[null,null,null,null,27,"Maharashtra",504,"Wardha",802694,"Arvi ","04017"]
[null,null,null,null,27,"Maharashtra",504,"Wardha",802695,"Sindi ","04018"]
[null,null,null,null,27,"Maharashtra",504,"Wardha",802696,"Wardha ","04019"]
[null,null,null,null,27,"Maharashtra",504,"Wardha",802697,"Pulgaon ","04020"]
[null,null,null,null,27,"Maharashtra",504,"Wardha",802698,"Deoli ","04020"]
[null,null,null,null,27,"Maharashtra",504,"Wardha",802699,"Hinganghat ","04021"]
[null,null,null,null,27,"Maharashtra",505,"Nagpur",802700,"Mowad ","04023"]
[null,null,null,null,27,"Maharashtra",505,"Nagpur",802701,"Narkhed ","04023"]
[null,null,null,null,27,"Maharashtra",505,"Nagpur",802702,"Katol ","04024"]
[null,null,null,null,27,"Maharashtra",505,"Nagpur",802703,"Kalameshwar  ","04025"]
[null,null,null,null,27,"Maharashtra",505,"Nagpur",802704,"Mohpa ","04025"]
[null,null,null,null,27,"Maharashtra",505,"Nagpur",802705,"Savner ","04026"]
[null,null,null,null,27,"Maharashtra",505,"Nagpur",802706,"Khapa ","04026"]
[null,null,null,null,27,"Maharashtra",505,"Nagpur",802707,"Ramtek ","04028"]
[null,null,null,null,27,"Maharashtra",505,"Nagpur",802708,"Kamptee ","04030"]
[null,null,null,null,27,"Maharashtra",505,"Nagpur",802709,"Kamptee (CB)","04030"]
[null,null,null,null,27,"Maharashtra",505,"Nagpur",802710,"Nagpur ","04032"]
[null,null,null,null,27,"Maharashtra",505,"Nagpur",802711,"Umred ","04034"]
[null,null,null,null,27,"Maharashtra",506,"Bhandara",802712,"Tumsar ","04037"]
[null,null,null,null,27,"Maharashtra",506,"Bhandara",802713,"Bhandara ","04039"]
[null,null,null,null,27,"Maharashtra",506,"Bhandara",802714,"Pauni ","04042"]
[null,null,null,null,27,"Maharashtra",507,"Gondiya",802715,"Tirora ","04044"]
[null,null,null,null,27,"Maharashtra",507,"Gondiya",802716,"Gondiya ","04046"]
[null,null,null,null,27,"Maharashtra",508,"Gadchiroli",802717,"Desaiganj ","04052"]
[null,null,null,null,27,"Maharashtra",508,"Gadchiroli",802718,"Gadchiroli ","04057"]
[null,null,null,null,27,"Maharashtra",509,"Chandrapur",802719,"Warora ","04064"]
[null,null,null,null,27,"Maharashtra",509,"Chandrapur",802720,"Brahmapuri ","04067"]
[null,null,null,null,27,"Maharashtra",509,"Chandrapur",802721,"Bhadravati ","04070"]
[null,null,null,null,27,"Maharashtra",509,"Chandrapur",802722,"Chandrapur ","04071"]
[null,null,null,null,27,"Maharashtra",509,"Chandrapur",802723,"Mul ","04072"]
[null,null,null,null,27,"Maharashtra",509,"Chandrapur",802724,"Ballarpur ","04074"]
[null,null,null,null,27,"Maharashtra",509,"Chandrapur",802725,"Rajura ","04077"]
[null,null,null,null,27,"Maharashtra",510,"Yavatmal",802726,"Ner ","04079"]
[null,null,null,null,27,"Maharashtra",510,"Yavatmal",802727,"Yavatmal ","04082"]
[null,null,null,null,27,"Maharashtra",510,"Yavatmal",802728,"Darwha ","04083"]
[null,null,null,null,27,"Maharashtra",510,"Yavatmal",802729,"Digras ","04084"]
[null,null,null,null,27,"Maharashtra",510,"Yavatmal",802730,"Pusad ","04085"]
[null,null,null,null,27,"Maharashtra",510,"Yavatmal",802731,"Umarkhed ","04086"]
[null,null,null,null,27,"Maharashtra",510,"Yavatmal",802732,"Ghatanji ","04089"]
[null,null,null,null,27,"Maharashtra",510,"Yavatmal",802733,"Pandharkaoda ","04090"]
[null,null,null,null,27,"Maharashtra",510,"Yavatmal",802734,"Wani ","04094"]
[null,null,null,null,27,"Maharashtra",511,"Nanded",802735,"Kinwat ","04096"]
[null,null,null,null,27,"Maharashtra",511,"Nanded",802736,"Hadgaon ","04098"]
[null,null,null,null,27,"Maharashtra",511,"Nanded",802737,"Nanded Waghala ","04100"]
[null,null,null,null,27,"Maharashtra",511,"Nanded",802738,"Mudkhed ","04101"]
[null,null,null,null,27,"Maharashtra",511,"Nanded",802739,"Bhokar ","04102"]
[null,null,null,null,27,"Maharashtra",511,"Nanded",802740,"Peth Umri ","04103"]
[null,null,null,null,27,"Maharashtra",511,"Nanded",802741,"Dharmabad ","04104"]
[null,null,null,null,27,"Maharashtra",511,"Nanded",802742,"Kundalwadi ","04105"]
[null,null,null,null,27,"Maharashtra",511,"Nanded",802743,"Biloli ","04105"]
[null,null,null,null,27,"Maharashtra",511,"Nanded",802744,"Loha ","04107"]
[null,null,null,null,27,"Maharashtra",511,"Nanded",802745,"Kandhar ","04108"]
[null,null,null,null,27,"Maharashtra",511,"Nanded",802746,"Mukhed ","04109"]
[null,null,null,null,27,"Maharashtra",511,"Nanded",802747,"Deglur ","04110"]
[null,null,null,null,27,"Maharashtra",512,"Hingoli",802748,"Hingoli ","04112"]
[null,null,null,null,27,"Maharashtra",512,"Hingoli",802749,"Kalamnuri ","04114"]
[null,null,null,null,27,"Maharashtra",512,"Hingoli",802750,"Basmath ","04115"]
[null,null,null,null,27,"Maharashtra",513,"Parbhani",802751,"Sailu ","04116"]
[null,null,null,null,27,"Maharashtra",513,"Parbhani",802752,"Jintur ","04117"]
[null,null,null,null,27,"Maharashtra",513,"Parbhani",802753,"Parbhani ","04118"]
[null,null,null,null,27,"Maharashtra",513,"Parbhani",802754,"Manwath ","04119"]
[null,null,null,null,27,"Maharashtra",513,"Parbhani",802755,"Pathri ","04120"]
[null,null,null,null,27,"Maharashtra",513,"Parbhani",802756,"Sonpeth ","04121"]
[null,null,null,null,27,"Maharashtra",513,"Parbhani",802757,"Gangakhed ","04122"]
[null,null,null,null,27,"Maharashtra",513,"Parbhani",802758,"Purna ","04124"]
[null,null,null,null,27,"Maharashtra",514,"Jalna",802759,"Bhokardan ","04125"]
[null,null,null,null,27,"Maharashtra",514,"Jalna",802760,"Jalna ","04127"]
[null,null,null,null,27,"Maharashtra",514,"Jalna",802761,"Ambad ","04129"]
[null,null,null,null,27,"Maharashtra",514,"Jalna",802762,"Partur ","04131"]
[null,null,null,null,27,"Maharashtra",515,"Aurangabad",802763,"Kannad ","04133"]
[null,null,null,null,27,"Maharashtra",515,"Aurangabad",802764,"Sillod ","04135"]
[null,null,null,null,27,"Maharashtra",515,"Aurangabad",802765,"Aurangabad ","04137"]
[null,null,null,null,27,"Maharashtra",515,"Aurangabad",802766,"Aurangabad (CB)","04137"]
[null,null,null,null,27,"Maharashtra",515,"Aurangabad",802767,"Khuldabad ","04138"]
[null,null,null,null,27,"Maharashtra",515,"Aurangabad",802768,"Vaijapur ","04139"]
[null,null,null,null,27,"Maharashtra",515,"Aurangabad",802769,"Gangapur ","04140"]
[null,null,null,null,27,"Maharashtra",515,"Aurangabad",802770,"Paithan ","04141"]
[null,null,null,null,27,"Maharashtra",516,"Nashik",802771,"Satana ","04145"]
[null,null,null,null,27,"Maharashtra",516,"Nashik",802772,"Malegaon","04146"]
[null,null,null,null,27,"Maharashtra",516,"Nashik",802773,"Nandgaon ","04147"]
[null,null,null,null,27,"Maharashtra",516,"Nashik",802774,"Manmad ","04147"]
[null,null,null,null,27,"Maharashtra",516,"Nashik",802775,"Trimbak ","04151"]
[null,null,null,null,27,"Maharashtra",516,"Nashik",802776,"Nashik ","04152"]
[null,null,null,null,27,"Maharashtra",516,"Nashik",802777,"Deolali (CB)","04152"]
[null,null,null,null,27,"Maharashtra",516,"Nashik",802778,"Bhagur ","04152"]
[null,null,null,null,27,"Maharashtra",516,"Nashik",802779,"Igatpuri ","04153"]
[null,null,null,null,27,"Maharashtra",516,"Nashik",802780,"Sinnar ","04154"]
[null,null,null,null,27,"Maharashtra",516,"Nashik",802781,"Yevla ","04156"]
[null,null,null,null,27,"Maharashtra",517,"Thane",802782,"Dahanu ","04158"]
[null,null,null,null,27,"Maharashtra",517,"Thane",802783,"Jawhar ","04160"]
[null,null,null,null,27,"Maharashtra",517,"Thane",802784,"Palghar ","04163"]
[null,null,null,null,27,"Maharashtra",517,"Thane",802785,"Vasai-Virar City","04164"]
[null,null,null,null,27,"Maharashtra",517,"Thane",802786,"Mira-Bhayandar ","04165"]
[null,null,null,null,27,"Maharashtra",517,"Thane",802787,"Thane ","04165"]
[null,null,null,null,27,"Maharashtra",517,"Thane",802788,"Navi Mumbai ","04165"]
[null,null,null,null,27,"Maharashtra",517,"Thane",802789,"Bhiwandi Nizampur ","04166"]
[null,null,null,null,27,"Maharashtra",517,"Thane",802790,"Kalyan-Dombivli ","04168"]
[null,null,null,null,27,"Maharashtra",517,"Thane",802791,"Ulhasnagar ","04169"]
[null,null,null,null,27,"Maharashtra",517,"Thane",802792,"Badlapur ","04170"]
[null,null,null,null,27,"Maharashtra",517,"Thane",802793,"Ambarnath","04170"]
[null,null,null,null,27,"Maharashtra",519,"Mumbai",802794,"Greater Mumbai  ","99999"]
[null,null,null,null,27,"Maharashtra",520,"Raigarh",802795,"Uran ","04172"]
[null,null,null,null,27,"Maharashtra",520,"Raigarh",802796,"Panvel ","04173"]
[null,null,null,null,27,"Maharashtra",520,"Raigarh",802797,"Matheran ","04174"]
[null,null,null,null,27,"Maharashtra",520,"Raigarh",802798,"Karjat ","04174"]
[null,null,null,null,27,"Maharashtra",520,"Raigarh",802799,"Khopoli ","04175"]
[null,null,null,null,27,"Maharashtra",520,"Raigarh",802800,"Pen ","04176"]
[null,null,null,null,27,"Maharashtra",520,"Raigarh",802801,"Alibag ","04177"]
[null,null,null,null,27,"Maharashtra",520,"Raigarh",802802,"Murud Janjira ","04178"]
[null,null,null,null,27,"Maharashtra",520,"Raigarh",802803,"Roha Ashtami ","04179"]
[null,null,null,null,27,"Maharashtra",520,"Raigarh",802804,"Shrivardhan ","04183"]
[null,null,null,null,27,"Maharashtra",520,"Raigarh",802805,"Mahad ","04185"]
[null,null,null,null,27,"Maharashtra",521,"Pune",802806,"Junnar ","04187"]
[null,null,null,null,27,"Maharashtra",521,"Pune",802807,"Shirur ","04189"]
[null,null,null,null,27,"Maharashtra",521,"Pune",802808,"Alandi ","04190"]
[null,null,null,null,27,"Maharashtra",521,"Pune",802809,"Talegaon Dabhade ","04191"]
[null,null,null,null,27,"Maharashtra",521,"Pune",802810,"Lonavala ","04191"]
[null,null,null,null,27,"Maharashtra",521,"Pune",802811,"Pimpri Chinchwad ","04193"]
[null,null,null,null,27,"Maharashtra",521,"Pune",802812,"Dehu Road (CB)","04193"]
[null,null,null,null,27,"Maharashtra",521,"Pune",802813,"Pune (CB)","04194"]
[null,null,null,null,27,"Maharashtra",521,"Pune",802814,"Pune ","04194"]
[null,null,null,null,27,"Maharashtra",521,"Pune",802815,"Kirkee (CB)","04194"]
[null,null,null,null,27,"Maharashtra",521,"Pune",802816,"Daund ","04195"]
[null,null,null,null,27,"Maharashtra",521,"Pune",802817,"Sasvad ","04196"]
[null,null,null,null,27,"Maharashtra",521,"Pune",802818,"Jejuri ","04196"]
[null,null,null,null,27,"Maharashtra",521,"Pune",802819,"Bhor ","04198"]
[null,null,null,null,27,"Maharashtra",521,"Pune",802820,"Baramati ","04199"]
[null,null,null,null,27,"Maharashtra",521,"Pune",802821,"Indapur ","04200"]
[null,null,null,null,27,"Maharashtra",522,"Ahmadnagar",802822,"Sangamner ","04202"]
[null,null,null,null,27,"Maharashtra",522,"Ahmadnagar",802823,"Kopargaon ","04203"]
[null,null,null,null,27,"Maharashtra",522,"Ahmadnagar",802824,"Shirdi","04204"]
[null,null,null,null,27,"Maharashtra",522,"Ahmadnagar",802825,"Rahta Pimplas ","04204"]
[null,null,null,null,27,"Maharashtra",522,"Ahmadnagar",802826,"Shrirampur ","04205"]
[null,null,null,null,27,"Maharashtra",522,"Ahmadnagar",802827,"Pathardi ","04208"]
[null,null,null,null,27,"Maharashtra",522,"Ahmadnagar",802828,"Ahmadnagar ","04209"]
[null,null,null,null,27,"Maharashtra",522,"Ahmadnagar",802829,"Ahmadnagar (CB)","04209"]
[null,null,null,null,27,"Maharashtra",522,"Ahmadnagar",802830,"Rahuri ","04210"]
[null,null,null,null,27,"Maharashtra",522,"Ahmadnagar",802831,"Deolali Pravara ","04210"]
[null,null,null,null,27,"Maharashtra",522,"Ahmadnagar",802832,"Shrigonda ","04212"]
[null,null,null,null,27,"Maharashtra",523,"Bid",802833,"Georai ","04218"]
[null,null,null,null,27,"Maharashtra",523,"Bid",802834,"Manjlegaon ","04219"]
[null,null,null,null,27,"Maharashtra",523,"Bid",802835,"Bid ","04221"]
[null,null,null,null,27,"Maharashtra",523,"Bid",802836,"Kaij","04222"]
[null,null,null,null,27,"Maharashtra",523,"Bid",802837,"Dharur ","04223"]
[null,null,null,null,27,"Maharashtra",523,"Bid",802838,"Parli ","04224"]
[null,null,null,null,27,"Maharashtra",523,"Bid",802839,"Ambejogai ","04225"]
[null,null,null,null,27,"Maharashtra",524,"Latur",802840,"Latur ","04226"]
[null,null,null,null,27,"Maharashtra",524,"Latur",802841,"Ahmadpur ","04228"]
[null,null,null,null,27,"Maharashtra",524,"Latur",802842,"Ausa ","04232"]
[null,null,null,null,27,"Maharashtra",524,"Latur",802843,"Nilanga ","04233"]
[null,null,null,null,27,"Maharashtra",524,"Latur",802844,"Udgir ","04235"]
[null,null,null,null,27,"Maharashtra",525,"Osmanabad",802845,"Paranda ","04236"]
[null,null,null,null,27,"Maharashtra",525,"Osmanabad",802846,"Bhum  ","04237"]
[null,null,null,null,27,"Maharashtra",525,"Osmanabad",802847,"Kalamb ","04239"]
[null,null,null,null,27,"Maharashtra",525,"Osmanabad",802848,"Osmanabad ","04240"]
[null,null,null,null,27,"Maharashtra",525,"Osmanabad",802849,"Tuljapur ","04241"]
[null,null,null,null,27,"Maharashtra",525,"Osmanabad",802850,"Naldurg ","04241"]
[null,null,null,null,27,"Maharashtra",525,"Osmanabad",802851,"Murum ","04243"]
[null,null,null,null,27,"Maharashtra",525,"Osmanabad",802852,"Umarga ","04243"]
[null,null,null,null,27,"Maharashtra",526,"Solapur",802853,"Karmala ","04244"]
[null,null,null,null,27,"Maharashtra",526,"Solapur",802854,"Kurduvadi ","04245"]
[null,null,null,null,27,"Maharashtra",526,"Solapur",802855,"Barshi ","04246"]
[null,null,null,null,27,"Maharashtra",526,"Solapur",802856,"Solapur  ","04247"]
[null,null,null,null,27,"Maharashtra",526,"Solapur",802857,"Pandharpur ","04249"]
[null,null,null,null,27,"Maharashtra",526,"Solapur",802858,"Sangole ","04251"]
[null,null,null,null,27,"Maharashtra",526,"Solapur",802859,"Mangalvedhe ","04252"]
[null,null,null,null,27,"Maharashtra",526,"Solapur",802860,"Akkalkot ","04254"]
[null,null,null,null,27,"Maharashtra",526,"Solapur",802861,"Maindargi ","04254"]
[null,null,null,null,27,"Maharashtra",526,"Solapur",802862,"Dudhani ","04254"]
[null,null,null,null,27,"Maharashtra",527,"Satara",802863,"Mahabaleshwar ","04255"]
[null,null,null,null,27,"Maharashtra",527,"Satara",802864,"Panchgani ","04255"]
[null,null,null,null,27,"Maharashtra",527,"Satara",802865,"Wai ","04256"]
[null,null,null,null,27,"Maharashtra",527,"Satara",802866,"Phaltan ","04258"]
[null,null,null,null,27,"Maharashtra",527,"Satara",802867,"Mhaswad ","04259"]
[null,null,null,null,27,"Maharashtra",527,"Satara",802868,"Rahimatpur ","04261"]
[null,null,null,null,27,"Maharashtra",527,"Satara",802869,"Satara ","04262"]
[null,null,null,null,27,"Maharashtra",527,"Satara",802870,"Karad ","04265"]
[null,null,null,null,27,"Maharashtra",527,"Satara",802871,"Malkapur","04265"]
[null,null,null,null,27,"Maharashtra",528,"Ratnagiri",802872,"Dapoli Camp ","04267"]
[null,null,null,null,27,"Maharashtra",528,"Ratnagiri",802873,"Khed ","04268"]
[null,null,null,null,27,"Maharashtra",528,"Ratnagiri",802874,"Chiplun ","04269"]
[null,null,null,null,27,"Maharashtra",528,"Ratnagiri",802875,"Ratnagiri ","04271"]
[null,null,null,null,27,"Maharashtra",528,"Ratnagiri",802876,"Rajapur ","04274"]
[null,null,null,null,27,"Maharashtra",529,"Sindhudurg",802877,"Kankavli","04277"]
[null,null,null,null,27,"Maharashtra",529,"Sindhudurg",802878,"Malwan ","04278"]
[null,null,null,null,27,"Maharashtra",529,"Sindhudurg",802879,"Vengurla ","04279"]
[null,null,null,null,27,"Maharashtra",529,"Sindhudurg",802880,"Sawantwadi ","04281"]
[null,null,null,null,27,"Maharashtra",530,"Kolhapur",802881,"Malkapur ","04283"]
[null,null,null,null,27,"Maharashtra",530,"Kolhapur",802882,"Panhala ","04284"]
[null,null,null,null,27,"Maharashtra",530,"Kolhapur",802883,"Vadgaon Kasba ","04285"]
[null,null,null,null,27,"Maharashtra",530,"Kolhapur",802884,"Ichalkaranji ","04285"]
[null,null,null,null,27,"Maharashtra",530,"Kolhapur",802885,"Jaysingpur ","04286"]
[null,null,null,null,27,"Maharashtra",530,"Kolhapur",802886,"Kurundvad ","04286"]
[null,null,null,null,27,"Maharashtra",530,"Kolhapur",802887,"Kolhapur ","04287"]
[null,null,null,null,27,"Maharashtra",530,"Kolhapur",802888,"Kagal ","04290"]
[null,null,null,null,27,"Maharashtra",530,"Kolhapur",802889,"Murgud ","04290"]
[null,null,null,null,27,"Maharashtra",530,"Kolhapur",802890,"Gadhinglaj ","04293"]
[null,null,null,null,27,"Maharashtra",531,"Sangli",802891,"Uran Islampur ","04296"]
[null,null,null,null,27,"Maharashtra",531,"Sangli",802892,"Ashta ","04296"]
[null,null,null,null,27,"Maharashtra",531,"Sangli",802893,"Vita ","04299"]
[null,null,null,null,27,"Maharashtra",531,"Sangli",802894,"Tasgaon ","04301"]
[null,null,null,null,27,"Maharashtra",531,"Sangli",802895,"Sangli Miraj Kupwad ","04302"]
[null,null,null,null,28,"Andhra Pradesh",532,"Adilabad",802896,"Adilabad","04306"]
[null,null,null,null,28,"Andhra Pradesh",532,"Adilabad",802897,"Kagaznagar","04318"]
[null,null,null,null,28,"Andhra Pradesh",532,"Adilabad",802898,"Bhainsa","04339"]
[null,null,null,null,28,"Andhra Pradesh",532,"Adilabad",802899,"Nirmal","04344"]
[null,null,null,null,28,"Andhra Pradesh",532,"Adilabad",802900,"Bellampalle ","04349"]
[null,null,null,null,28,"Andhra Pradesh",532,"Adilabad",802901,"Mandamarri","04352"]
[null,null,null,null,28,"Andhra Pradesh",532,"Adilabad",802902,"Mancherial ","04354"]
[null,null,null,null,28,"Andhra Pradesh",533,"Nizamabad",802903,"Armur ","04360"]
[null,null,null,null,28,"Andhra Pradesh",533,"Nizamabad",802904,"Nizamabad ","04368"]
[null,null,null,null,28,"Andhra Pradesh",533,"Nizamabad",802905,"Bodhan","04370"]
[null,null,null,null,28,"Andhra Pradesh",533,"Nizamabad",802906,"Kamareddy","04390"]
[null,null,null,null,28,"Andhra Pradesh",534,"Karimnagar",802907,"Ramagundam  ","04400"]
[null,null,null,null,28,"Andhra Pradesh",534,"Karimnagar",802908,"Jagtial ","04414"]
[null,null,null,null,28,"Andhra Pradesh",534,"Karimnagar",802909,"Koratla","04416"]
[null,null,null,null,28,"Andhra Pradesh",534,"Karimnagar",802910,"Metpalle","04417"]
[null,null,null,null,28,"Andhra Pradesh",534,"Karimnagar",802911,"Karimnagar","04438"]
[null,null,null,null,28,"Andhra Pradesh",534,"Karimnagar",802912,"Sircilla ","04435"]
[null,null,null,null,28,"Andhra Pradesh",535,"Medak",802913,"Medak ","04456"]
[null,null,null,null,28,"Andhra Pradesh",535,"Medak",802914,"Siddipet ","04459"]
[null,null,null,null,28,"Andhra Pradesh",535,"Medak",802915,"Zahirabad ","04474"]
[null,null,null,null,28,"Andhra Pradesh",535,"Medak",802916,"Sadasivpet ","04490"]
[null,null,null,null,28,"Andhra Pradesh",535,"Medak",802917,"Sangareddy ","04492"]
[null,null,null,null,28,"Andhra Pradesh",537,"Rangareddy",802918,"GHMC ","04543"]
[null,null,null,null,28,"Andhra Pradesh",536,"Hyderabad",802919,"Secunderabad (CB)","04499"]
[null,null,null,null,28,"Andhra Pradesh",537,"Rangareddy",802920,"Vicarabad","04530"]
[null,null,null,null,28,"Andhra Pradesh",537,"Rangareddy",802921,"Tandur","04534"]
[null,null,null,null,28,"Andhra Pradesh",538,"Mahbubnagar",802922,"Mahbubnagar ","04568"]
[null,null,null,null,28,"Andhra Pradesh",538,"Mahbubnagar",802923,"Narayanpet","04570"]
[null,null,null,null,28,"Andhra Pradesh",538,"Mahbubnagar",802924,"Wanaparthy","04595"]
[null,null,null,null,28,"Andhra Pradesh",538,"Mahbubnagar",802925,"Gadwal ","04603"]
[null,null,null,null,28,"Andhra Pradesh",539,"Nalgonda",802926,"Bhongir","04628"]
[null,null,null,null,28,"Andhra Pradesh",539,"Nalgonda",802927,"Suryapet ","04638"]
[null,null,null,null,28,"Andhra Pradesh",539,"Nalgonda",802928,"Nalgonda ","04646"]
[null,null,null,null,28,"Andhra Pradesh",539,"Nalgonda",802929,"Miryalaguda ","04664"]
[null,null,null,null,28,"Andhra Pradesh",540,"Warangal",802930,"Warangal ","04707"]
[null,null,null,null,28,"Andhra Pradesh",540,"Warangal",802931,"Jangaon","04699"]
[null,null,null,null,28,"Andhra Pradesh",541,"Khammam",802932,"Manugur","04727"]
[null,null,null,null,28,"Andhra Pradesh",541,"Khammam",802933,"Palwancha","04737"]
[null,null,null,null,28,"Andhra Pradesh",541,"Khammam",802934,"Kothagudem","04738"]
[null,null,null,null,28,"Andhra Pradesh",541,"Khammam",802935,"Yellandu ","04740"]
[null,null,null,null,28,"Andhra Pradesh",541,"Khammam",802936,"Sathupalle","04751"]
[null,null,null,null,28,"Andhra Pradesh",541,"Khammam",802937,"Khammam ","04757"]
[null,null,null,null,28,"Andhra Pradesh",542,"Srikakulam",802938,"Palasa Kasibugga","04775"]
[null,null,null,null,28,"Andhra Pradesh",542,"Srikakulam",802939,"Ichchapuram","04778"]
[null,null,null,null,28,"Andhra Pradesh",542,"Srikakulam",802940,"Rajam","04796"]
[null,null,null,null,28,"Andhra Pradesh",542,"Srikakulam",802941,"Amadalavalasa","04798"]
[null,null,null,null,28,"Andhra Pradesh",542,"Srikakulam",802942,"Srikakulam ","04806"]
[null,null,null,null,28,"Andhra Pradesh",543,"Vizianagaram",802943,"Parvathipuram","04812"]
[null,null,null,null,28,"Andhra Pradesh",543,"Vizianagaram",802944,"Bobbili","04816"]
[null,null,null,null,28,"Andhra Pradesh",543,"Vizianagaram",802945,"Salur","04817"]
[null,null,null,null,28,"Andhra Pradesh",543,"Vizianagaram",802946,"Vizianagaram ","04836"]
[null,null,null,null,28,"Andhra Pradesh",544,"Visakhapatnam",802947,"GVMC","04870"]
[null,null,null,null,28,"Andhra Pradesh",544,"Visakhapatnam",802948,"Bheemunipatnam ","04865"]
[null,null,null,null,28,"Andhra Pradesh",544,"Visakhapatnam",802949,"Anakapalle","04871"]
[null,null,null,null,28,"Andhra Pradesh",545,"East Godavari",802950,"Tuni","04890"]
[null,null,null,null,28,"Andhra Pradesh",545,"East Godavari",802951,"Peddapuram","04903"]
[null,null,null,null,28,"Andhra Pradesh",545,"East Godavari",802952,"Rajahmundry ","04907"]
[null,null,null,null,28,"Andhra Pradesh",545,"East Godavari",802953,"Samalkot","04910"]
[null,null,null,null,28,"Andhra Pradesh",545,"East Godavari",802954,"Pithapuram ","04911"]
[null,null,null,null,28,"Andhra Pradesh",545,"East Godavari",802955,"Kakinada ","04914"]
[null,null,null,null,28,"Andhra Pradesh",545,"East Godavari",802956,"Mandapeta ","04920"]
[null,null,null,null,28,"Andhra Pradesh",545,"East Godavari",802957,"Ramachandrapuram","04924"]
[null,null,null,null,28,"Andhra Pradesh",545,"East Godavari",802958,"Amalapuram","04941"]
[null,null,null,null,28,"Andhra Pradesh",546,"West Godavari",802959,"Kovvur","04958"]
[null,null,null,null,28,"Andhra Pradesh",546,"West Godavari",802960,"Nidadavole","04960"]
[null,null,null,null,28,"Andhra Pradesh",546,"West Godavari",802961,"Tadepalligudem ","04961"]
[null,null,null,null,28,"Andhra Pradesh",546,"West Godavari",802962,"Eluru","04966"]
[null,null,null,null,28,"Andhra Pradesh",546,"West Godavari",802963,"Tanuku ","04972"]
[null,null,null,null,28,"Andhra Pradesh",546,"West Godavari",802964,"Bhimavaram ","04984"]
[null,null,null,null,28,"Andhra Pradesh",546,"West Godavari",802965,"Narasapur","04987"]
[null,null,null,null,28,"Andhra Pradesh",546,"West Godavari",802966,"Palacole ","04988"]
[null,null,null,null,28,"Andhra Pradesh",547,"Krishna",802967,"Jaggaiahpet","04991"]
[null,null,null,null,28,"Andhra Pradesh",547,"Krishna",802968,"Nuzvid","05003"]
[null,null,null,null,28,"Andhra Pradesh",547,"Krishna",802969,"Vijayawada ","05024"]
[null,null,null,null,28,"Andhra Pradesh",547,"Krishna",802970,"Gudivada","05021"]
[null,null,null,null,28,"Andhra Pradesh",547,"Krishna",802971,"Pedana","05030"]
[null,null,null,null,28,"Andhra Pradesh",547,"Krishna",802972,"Machilipatnam","05034"]
[null,null,null,null,28,"Andhra Pradesh",548,"Guntur",802973,"Macherla","05040"]
[null,null,null,null,28,"Andhra Pradesh",548,"Guntur",802974,"Piduguralla","05047"]
[null,null,null,null,28,"Andhra Pradesh",548,"Guntur",802975,"Tadepalle ","05054"]
[null,null,null,null,28,"Andhra Pradesh",548,"Guntur",802976,"Mangalagiri ","05055"]
[null,null,null,null,28,"Andhra Pradesh",548,"Guntur",802977,"Sattenapalle","05058"]
[null,null,null,null,28,"Andhra Pradesh",548,"Guntur",802978,"Vinukonda ","05062"]
[null,null,null,null,28,"Andhra Pradesh",548,"Guntur",802979,"Narasaraopet ","05067"]
[null,null,null,null,28,"Andhra Pradesh",548,"Guntur",802980,"Chilakaluripet","05070"]
[null,null,null,null,28,"Andhra Pradesh",548,"Guntur",802981,"Guntur","05074"]
[null,null,null,null,28,"Andhra Pradesh",548,"Guntur",802982,"Tenali","05078"]
[null,null,null,null,28,"Andhra Pradesh",548,"Guntur",802983,"Ponnur","05084"]
[null,null,null,null,28,"Andhra Pradesh",548,"Guntur",802984,"Bapatla","05093"]
[null,null,null,null,28,"Andhra Pradesh",548,"Guntur",802985,"Repalle","05096"]
[null,null,null,null,28,"Andhra Pradesh",549,"Prakasam",802986,"Markapur","05115"]
[null,null,null,null,28,"Andhra Pradesh",549,"Prakasam",802987,"Chirala  ","05124"]
[null,null,null,null,28,"Andhra Pradesh",549,"Prakasam",802988,"Ongole  ","05139"]
[null,null,null,null,28,"Andhra Pradesh",549,"Prakasam",802989,"Kandukur","05148"]
[null,null,null,null,28,"Andhra Pradesh",550,"Sri Potti Sriramulu Nellore",802990,"Kavali ","05158"]
[null,null,null,null,28,"Andhra Pradesh",550,"Sri Potti Sriramulu Nellore",802991,"Nellore","05177"]
[null,null,null,null,28,"Andhra Pradesh",550,"Sri Potti Sriramulu Nellore",802992,"Gudur ","05190"]
[null,null,null,null,28,"Andhra Pradesh",550,"Sri Potti Sriramulu Nellore",802993,"Venkatagiri ","05187"]
[null,null,null,null,28,"Andhra Pradesh",551,"Y.S.R.",802994,"Badvel ","05211"]
[null,null,null,null,28,"Andhra Pradesh",551,"Y.S.R.",802995,"Proddatur ","05214"]
[null,null,null,null,28,"Andhra Pradesh",551,"Y.S.R.",802996,"Jammalamadugu","05215"]
[null,null,null,null,28,"Andhra Pradesh",551,"Y.S.R.",802997,"Pulivendla","05219"]
[null,null,null,null,28,"Andhra Pradesh",551,"Y.S.R.",802998,"Kadapa ","05231"]
[null,null,null,null,28,"Andhra Pradesh",551,"Y.S.R.",802999,"Rayachoti","05239"]
[null,null,null,null,28,"Andhra Pradesh",551,"Y.S.R.",803000,"Rajampet ","05246"]
[null,null,null,null,28,"Andhra Pradesh",552,"Kurnool",803001,"Yemmiganur","05254"]
[null,null,null,null,28,"Andhra Pradesh",552,"Kurnool",803002,"Kurnool","05259"]
[null,null,null,null,28,"Andhra Pradesh",552,"Kurnool",803003,"Adoni ","05271"]
[null,null,null,null,28,"Andhra Pradesh",552,"Kurnool",803004,"Nandyal ","05284"]
[null,null,null,null,28,"Andhra Pradesh",552,"Kurnool",803005,"Dhone","05289"]
[null,null,null,null,28,"Andhra Pradesh",553,"Anantapur",803006,"Rayadurg","05305"]
[null,null,null,null,28,"Andhra Pradesh",553,"Anantapur",803007,"Guntakal","05309"]
[null,null,null,null,28,"Andhra Pradesh",553,"Anantapur",803008,"Tadpatri","05313"]
[null,null,null,null,28,"Andhra Pradesh",553,"Anantapur",803009,"Anantapur ","05331"]
[null,null,null,null,28,"Andhra Pradesh",553,"Anantapur",803010,"Dharmavaram","05336"]
[null,null,null,null,28,"Andhra Pradesh",553,"Anantapur",803011,"Kadiri","05343"]
[null,null,null,null,28,"Andhra Pradesh",553,"Anantapur",803012,"Hindupur","05364"]
[null,null,null,null,28,"Andhra Pradesh",554,"Chittoor",803013,"Srikalahasti","05378"]
[null,null,null,null,28,"Andhra Pradesh",554,"Chittoor",803014,"Tirupati ","05383"]
[null,null,null,null,28,"Andhra Pradesh",554,"Chittoor",803015,"Madanapalle ","05392"]
[null,null,null,null,28,"Andhra Pradesh",554,"Chittoor",803016,"Nagari","05406"]
[null,null,null,null,28,"Andhra Pradesh",554,"Chittoor",803017,"Puttur","05407"]
[null,null,null,null,28,"Andhra Pradesh",554,"Chittoor",803018,"Punganur","05415"]
[null,null,null,null,28,"Andhra Pradesh",554,"Chittoor",803019,"Chittoor ","05421"]
[null,null,null,null,28,"Andhra Pradesh",554,"Chittoor",803020,"Palamaner  ","05422"]
[null,null,null,null,29,"Karnataka",555,"Belgaum",803021,"Nipani  ","05433"]
[null,null,null,null,29,"Karnataka",555,"Belgaum",803022,"Sadalgi ","05433"]
[null,null,null,null,29,"Karnataka",555,"Belgaum",803023,"Chikodi","05433"]
[null,null,null,null,29,"Karnataka",555,"Belgaum",803024,"Athni ","05434"]
[null,null,null,null,29,"Karnataka",555,"Belgaum",803025,"Kudchi ","05435"]
[null,null,null,null,29,"Karnataka",555,"Belgaum",803026,"Raybag ","05435"]
[null,null,null,null,29,"Karnataka",555,"Belgaum",803027,"Mudalgi","05436"]
[null,null,null,null,29,"Karnataka",555,"Belgaum",803028,"Konnur ","05436"]
[null,null,null,null,29,"Karnataka",555,"Belgaum",803029,"Gokak Falls ","05436"]
[null,null,null,null,29,"Karnataka",555,"Belgaum",803030,"Gokak ","05436"]
[null,null,null,null,29,"Karnataka",555,"Belgaum",803031,"Sankeshwar","05437"]
[null,null,null,null,29,"Karnataka",555,"Belgaum",803032,"Hukeri ","05437"]
[null,null,null,null,29,"Karnataka",555,"Belgaum",803033,"Belgaum","05438"]
[null,null,null,null,29,"Karnataka",555,"Belgaum",803034,"Belgaum Cantonment (CB)","05438"]
[null,null,null,null,29,"Karnataka",555,"Belgaum",803035,"Khanapur ","05439"]
[null,null,null,null,29,"Karnataka",555,"Belgaum",803036,"Bail Hongal","05440"]
[null,null,null,null,29,"Karnataka",555,"Belgaum",803037,"Saundatti-Yellamma","05441"]
[null,null,null,null,29,"Karnataka",555,"Belgaum",803038,"Ramdurg ","05442"]
[null,null,null,null,29,"Karnataka",556,"Bagalkot ",803039,"Mahalingpur","99999"]
[null,null,null,null,29,"Karnataka",556,"Bagalkot ",803040,"Terdal","05443"]
[null,null,null,null,29,"Karnataka",556,"Bagalkot ",803041,"Jamkhandi ","05443"]
[null,null,null,null,29,"Karnataka",556,"Bagalkot ",803042,"Rabkavi Banhatti ","05443"]
[null,null,null,null,29,"Karnataka",556,"Bagalkot ",803043,"Bilgi ","05444"]
[null,null,null,null,29,"Karnataka",556,"Bagalkot ",803044,"Mudhol","05445"]
[null,null,null,null,29,"Karnataka",556,"Bagalkot ",803045,"Kerur ","05446"]
[null,null,null,null,29,"Karnataka",556,"Bagalkot ",803046,"Badami","05446"]
[null,null,null,null,29,"Karnataka",556,"Bagalkot ",803047,"Guledgudda","05446"]
[null,null,null,null,29,"Karnataka",556,"Bagalkot ",803048,"Bagalkot ","05447"]
[null,null,null,null,29,"Karnataka",556,"Bagalkot ",803049,"Hungund ","05448"]
[null,null,null,null,29,"Karnataka",556,"Bagalkot ",803050,"Ilkal ","05448"]
[null,null,null,null,29,"Karnataka",557,"Bijapur",803051,"Bijapur ","05449"]
[null,null,null,null,29,"Karnataka",557,"Bijapur",803052,"Indi","05450"]
[null,null,null,null,29,"Karnataka",557,"Bijapur",803053,"Sindgi","05451"]
[null,null,null,null,29,"Karnataka",557,"Bijapur",803054,"Basavana Bagevadi","05452"]
[null,null,null,null,29,"Karnataka",557,"Bijapur",803055,"Muddebihal","05453"]
[null,null,null,null,29,"Karnataka",557,"Bijapur",803056,"Talikota","05453"]
[null,null,null,null,29,"Karnataka",558,"Bidar",803057,"Basavakalyan ","05454"]
[null,null,null,null,29,"Karnataka",558,"Bidar",803058,"Bhalki","05455"]
[null,null,null,null,29,"Karnataka",558,"Bidar",803059,"Aurad ","05456"]
[null,null,null,null,29,"Karnataka",558,"Bidar",803060,"Bidar ","05457"]
[null,null,null,null,29,"Karnataka",558,"Bidar",803061,"Homnabad","05458"]
[null,null,null,null,29,"Karnataka",558,"Bidar",803062,"Chitgoppa","05458"]
[null,null,null,null,29,"Karnataka",559,"Raichur",803063,"Mudgal ","05459"]
[null,null,null,null,29,"Karnataka",559,"Raichur",803064,"Lingsugur","05459"]
[null,null,null,null,29,"Karnataka",559,"Raichur",803065,"Hatti Gold Mines","05459"]
[null,null,null,null,29,"Karnataka",559,"Raichur",803066,"Devadurga","05460"]
[null,null,null,null,29,"Karnataka",559,"Raichur",803067,"Raichur ","05461"]
[null,null,null,null,29,"Karnataka",559,"Raichur",803068,"Manvi","05462"]
[null,null,null,null,29,"Karnataka",559,"Raichur",803069,"Sindhnur ","05463"]
[null,null,null,null,29,"Karnataka",560,"Koppal",803070,"Yelbarga ","05464"]
[null,null,null,null,29,"Karnataka",560,"Koppal",803071,"Kushtagi","05465"]
[null,null,null,null,29,"Karnataka",560,"Koppal",803072,"Gangawati ","05466"]
[null,null,null,null,29,"Karnataka",560,"Koppal",803073,"Koppal ","05467"]
[null,null,null,null,29,"Karnataka",561,"Gadag",803074,"Nargund","05468"]
[null,null,null,null,29,"Karnataka",561,"Gadag",803075,"Ron","05469"]
[null,null,null,null,29,"Karnataka",561,"Gadag",803076,"Gajendragarh","05469"]
[null,null,null,null,29,"Karnataka",561,"Gadag",803077,"Naregal ","05469"]
[null,null,null,null,29,"Karnataka",561,"Gadag",803078,"Gadag-Betigeri ","05470"]
[null,null,null,null,29,"Karnataka",561,"Gadag",803079,"Mulgund ","05470"]
[null,null,null,null,29,"Karnataka",561,"Gadag",803080,"Shirhatti ","05471"]
[null,null,null,null,29,"Karnataka",561,"Gadag",803081,"Lakshmeshwar","05471"]
[null,null,null,null,29,"Karnataka",561,"Gadag",803082,"Mundargi","05472"]
[null,null,null,null,29,"Karnataka",562,"Dharwad",803083,"Hubli-Dharwad ","99999"]
[null,null,null,null,29,"Karnataka",562,"Dharwad",803084,"Alnavar ","05473"]
[null,null,null,null,29,"Karnataka",562,"Dharwad",803085,"Navalgund","05474"]
[null,null,null,null,29,"Karnataka",562,"Dharwad",803086,"Annigeri","05474"]
[null,null,null,null,29,"Karnataka",562,"Dharwad",803087,"Kalghatgi ","05476"]
[null,null,null,null,29,"Karnataka",562,"Dharwad",803088,"Kundgol ","05477"]
[null,null,null,null,29,"Karnataka",563,"Uttara Kannada",803089,"Dandeli ","99999"]
[null,null,null,null,29,"Karnataka",563,"Uttara Kannada",803090,"Karwar ","05478"]
[null,null,null,null,29,"Karnataka",563,"Uttara Kannada",803091,"Haliyal ","05480"]
[null,null,null,null,29,"Karnataka",563,"Uttara Kannada",803092,"Yellapur ","05481"]
[null,null,null,null,29,"Karnataka",563,"Uttara Kannada",803093,"Mundgod ","05482"]
[null,null,null,null,29,"Karnataka",563,"Uttara Kannada",803094,"Sirsi ","05483"]
[null,null,null,null,29,"Karnataka",563,"Uttara Kannada",803095,"Ankola ","05484"]
[null,null,null,null,29,"Karnataka",563,"Uttara Kannada",803096,"Kumta ","05485"]
[null,null,null,null,29,"Karnataka",563,"Uttara Kannada",803097,"Siddapur ","05486"]
[null,null,null,null,29,"Karnataka",563,"Uttara Kannada",803098,"Honavar ","05487"]
[null,null,null,null,29,"Karnataka",563,"Uttara Kannada",803099,"Bhatkal","05488"]
[null,null,null,null,29,"Karnataka",564,"Haveri",803100,"Shiggaon","05489"]
[null,null,null,null,29,"Karnataka",564,"Haveri",803101,"Bankapura","05489"]
[null,null,null,null,29,"Karnataka",564,"Haveri",803102,"Savanur","05490"]
[null,null,null,null,29,"Karnataka",564,"Haveri",803103,"Hangal","05491"]
[null,null,null,null,29,"Karnataka",564,"Haveri",803104,"Haveri ","05492"]
[null,null,null,null,29,"Karnataka",564,"Haveri",803105,"Byadgi","05493"]
[null,null,null,null,29,"Karnataka",564,"Haveri",803106,"Hirekerur ","05494"]
[null,null,null,null,29,"Karnataka",564,"Haveri",803107,"Ranibennur ","05495"]
[null,null,null,null,29,"Karnataka",565,"Bellary",803108,"Hoovina Hadagalli","05496"]
[null,null,null,null,29,"Karnataka",565,"Bellary",803109,"Hospet ","05498"]
[null,null,null,null,29,"Karnataka",565,"Bellary",803110,"Kamalapuram ","05498"]
[null,null,null,null,29,"Karnataka",565,"Bellary",803111,"Kampli","05498"]
[null,null,null,null,29,"Karnataka",565,"Bellary",803112,"Siruguppa","05499"]
[null,null,null,null,29,"Karnataka",565,"Bellary",803113,"Tekkalakote ","05499"]
[null,null,null,null,29,"Karnataka",565,"Bellary",803114,"Bellary ","05500"]
[null,null,null,null,29,"Karnataka",565,"Bellary",803115,"Sandur","05501"]
[null,null,null,null,29,"Karnataka",565,"Bellary",803116,"Kudligi ","05502"]
[null,null,null,null,29,"Karnataka",565,"Bellary",803117,"Kotturu ","05502"]
[null,null,null,null,29,"Karnataka",566,"Chitradurga",803118,"Molakalmuru ","05503"]
[null,null,null,null,29,"Karnataka",566,"Chitradurga",803119,"Challakere","05504"]
[null,null,null,null,29,"Karnataka",566,"Chitradurga",803120,"Chitradurga ","05505"]
[null,null,null,null,29,"Karnataka",566,"Chitradurga",803121,"Holalkere ","05506"]
[null,null,null,null,29,"Karnataka",566,"Chitradurga",803122,"Hosdurga","05507"]
[null,null,null,null,29,"Karnataka",566,"Chitradurga",803123,"Hiriyur","05508"]
[null,null,null,null,29,"Karnataka",567,"Davanagere",803124,"Harihar ","05509"]
[null,null,null,null,29,"Karnataka",567,"Davanagere",803125,"Harapanahalli","05510"]
[null,null,null,null,29,"Karnataka",567,"Davanagere",803126,"Jagalur ","05511"]
[null,null,null,null,29,"Karnataka",567,"Davanagere",803127,"Davanagere ","05512"]
[null,null,null,null,29,"Karnataka",567,"Davanagere",803128,"Honnali ","05513"]
[null,null,null,null,29,"Karnataka",567,"Davanagere",803129,"Channagiri ","05514"]
[null,null,null,null,29,"Karnataka",568,"Shimoga",803130,"Jog Kargal ","05515"]
[null,null,null,null,29,"Karnataka",568,"Shimoga",803131,"Sagar ","05515"]
[null,null,null,null,29,"Karnataka",568,"Shimoga",803132,"Sorab ","05516"]
[null,null,null,null,29,"Karnataka",568,"Shimoga",803133,"Siralkoppa ","05517"]
[null,null,null,null,29,"Karnataka",568,"Shimoga",803134,"Shikarpur","05517"]
[null,null,null,null,29,"Karnataka",568,"Shimoga",803135,"Hosanagara ","05518"]
[null,null,null,null,29,"Karnataka",568,"Shimoga",803136,"Tirthahalli ","05519"]
[null,null,null,null,29,"Karnataka",568,"Shimoga",803137,"Shimoga ","05520"]
[null,null,null,null,29,"Karnataka",568,"Shimoga",803138,"Bhadravati ","05521"]
[null,null,null,null,29,"Karnataka",569,"Udupi",803139,"Kundapura","05522"]
[null,null,null,null,29,"Karnataka",569,"Udupi",803140,"Saligram ","05523"]
[null,null,null,null,29,"Karnataka",569,"Udupi",803141,"Udupi ","05523"]
[null,null,null,null,29,"Karnataka",569,"Udupi",803142,"Karkal","05524"]
[null,null,null,null,29,"Karnataka",570,"Chikmagalur",803143,"Sringeri ","05525"]
[null,null,null,null,29,"Karnataka",570,"Chikmagalur",803144,"Koppa ","05526"]
[null,null,null,null,29,"Karnataka",570,"Chikmagalur",803145,"Narasimharajapura ","05527"]
[null,null,null,null,29,"Karnataka",570,"Chikmagalur",803146,"Tarikere","05528"]
[null,null,null,null,29,"Karnataka",570,"Chikmagalur",803147,"Birur","05529"]
[null,null,null,null,29,"Karnataka",570,"Chikmagalur",803148,"Kadur","05529"]
[null,null,null,null,29,"Karnataka",570,"Chikmagalur",803149,"Chikmagalur ","05530"]
[null,null,null,null,29,"Karnataka",570,"Chikmagalur",803150,"Mudigere ","05531"]
[null,null,null,null,29,"Karnataka",570,"Chikmagalur",803151,"Kudremukh ","05531"]
[null,null,null,null,29,"Karnataka",571,"Tumkur",803152,"Chiknayakanhalli","05532"]
[null,null,null,null,29,"Karnataka",571,"Tumkur",803153,"Sira ","05533"]
[null,null,null,null,29,"Karnataka",571,"Tumkur",803154,"Pavagada","05534"]
[null,null,null,null,29,"Karnataka",571,"Tumkur",803155,"Madhugiri","05535"]
[null,null,null,null,29,"Karnataka",571,"Tumkur",803156,"Koratagere ","05536"]
[null,null,null,null,29,"Karnataka",571,"Tumkur",803157,"Tumkur ","05537"]
[null,null,null,null,29,"Karnataka",571,"Tumkur",803158,"Gubbi ","05538"]
[null,null,null,null,29,"Karnataka",571,"Tumkur",803159,"Tiptur ","05539"]
[null,null,null,null,29,"Karnataka",571,"Tumkur",803160,"Turuvekere ","05540"]
[null,null,null,null,29,"Karnataka",571,"Tumkur",803161,"Kunigal","05541"]
[null,null,null,null,29,"Karnataka",572,"Bangalore",803162,"BBMP","99999"]
[null,null,null,null,29,"Karnataka",572,"Bangalore",803163,"Anekal","05545"]
[null,null,null,null,29,"Karnataka",573,"Mandya",803164,"Krishnarajpet","05546"]
[null,null,null,null,29,"Karnataka",573,"Mandya",803165,"Nagamangala ","05547"]
[null,null,null,null,29,"Karnataka",573,"Mandya",803166,"Pandavapura ","05548"]
[null,null,null,null,29,"Karnataka",573,"Mandya",803167,"Shrirangapattana","05549"]
[null,null,null,null,29,"Karnataka",573,"Mandya",803168,"Mandya ","05550"]
[null,null,null,null,29,"Karnataka",573,"Mandya",803169,"Maddur","05551"]
[null,null,null,null,29,"Karnataka",573,"Mandya",803170,"Malavalli","05552"]
[null,null,null,null,29,"Karnataka",574,"Hassan",803171,"Sakleshpur","05553"]
[null,null,null,null,29,"Karnataka",574,"Hassan",803172,"Belur","05554"]
[null,null,null,null,29,"Karnataka",574,"Hassan",803173,"Arsikere ","05555"]
[null,null,null,null,29,"Karnataka",574,"Hassan",803174,"Hassan ","05556"]
[null,null,null,null,29,"Karnataka",574,"Hassan",803175,"Alur ","05557"]
[null,null,null,null,29,"Karnataka",574,"Hassan",803176,"Arkalgud ","05558"]
[null,null,null,null,29,"Karnataka",574,"Hassan",803177,"Hole Narsipur","05559"]
[null,null,null,null,29,"Karnataka",574,"Hassan",803178,"Channarayapatna ","05560"]
[null,null,null,null,29,"Karnataka",575,"Dakshina Kannada",803179,"Mulki ","05561"]
[null,null,null,null,29,"Karnataka",575,"Dakshina Kannada",803180,"Mudbidri","05561"]
[null,null,null,null,29,"Karnataka",575,"Dakshina Kannada",803181,"Mangalore","05561"]
[null,null,null,null,29,"Karnataka",575,"Dakshina Kannada",803182,"Ullal","05561"]
[null,null,null,null,29,"Karnataka",575,"Dakshina Kannada",803183,"Bantval","05562"]
[null,null,null,null,29,"Karnataka",575,"Dakshina Kannada",803184,"Beltangadi ","05563"]
[null,null,null,null,29,"Karnataka",575,"Dakshina Kannada",803185,"Puttur","05564"]
[null,null,null,null,29,"Karnataka",575,"Dakshina Kannada",803186,"Sulya ","05565"]
[null,null,null,null,29,"Karnataka",576,"Kodagu",803187,"Madikeri ","05566"]
[null,null,null,null,29,"Karnataka",576,"Kodagu",803188,"Somvarpet ","05567"]
[null,null,null,null,29,"Karnataka",576,"Kodagu",803189,"Kushalnagar ","05567"]
[null,null,null,null,29,"Karnataka",576,"Kodagu",803190,"Virajpet ","05568"]
[null,null,null,null,29,"Karnataka",577,"Mysore",803191,"Piriyapatna ","05569"]
[null,null,null,null,29,"Karnataka",577,"Mysore",803192,"Hunsur","05570"]
[null,null,null,null,29,"Karnataka",577,"Mysore",803193,"Krishnarajanagara","05571"]
[null,null,null,null,29,"Karnataka",577,"Mysore",803194,"Mysore","05572"]
[null,null,null,null,29,"Karnataka",577,"Mysore",803195,"Heggadadevankote ","05573"]
[null,null,null,null,29,"Karnataka",577,"Mysore",803196,"Saragur ","05573"]
[null,null,null,null,29,"Karnataka",577,"Mysore",803197,"Nanjangud","05574"]
[null,null,null,null,29,"Karnataka",577,"Mysore",803198,"Bannur","05575"]
[null,null,null,null,29,"Karnataka",577,"Mysore",803199,"Tirumakudal  Narsipur ","05575"]
[null,null,null,null,29,"Karnataka",578,"Chamarajanagar",803200,"Gundlupet","05576"]
[null,null,null,null,29,"Karnataka",578,"Chamarajanagar",803201,"Chamarajanagar ","05577"]
[null,null,null,null,29,"Karnataka",578,"Chamarajanagar",803202,"Yelandur ","05578"]
[null,null,null,null,29,"Karnataka",578,"Chamarajanagar",803203,"Kollegal ","05579"]
[null,null,null,null,29,"Karnataka",578,"Chamarajanagar",803204,"Hanur ","05579"]
[null,null,null,null,29,"Karnataka",579,"Gulbarga",803205,"Aland","05580"]
[null,null,null,null,29,"Karnataka",579,"Gulbarga",803206,"Afzalpur ","05581"]
[null,null,null,null,29,"Karnataka",579,"Gulbarga",803207,"Gulbarga","05582"]
[null,null,null,null,29,"Karnataka",579,"Gulbarga",803208,"Chincholi ","05583"]
[null,null,null,null,29,"Karnataka",579,"Gulbarga",803209,"Sedam","05584"]
[null,null,null,null,29,"Karnataka",579,"Gulbarga",803210,"Chitapur","05585"]
[null,null,null,null,29,"Karnataka",579,"Gulbarga",803211,"Shahabad ACC","05585"]
[null,null,null,null,29,"Karnataka",579,"Gulbarga",803212,"Shahabad ","05585"]
[null,null,null,null,29,"Karnataka",579,"Gulbarga",803213,"Wadi","05585"]
[null,null,null,null,29,"Karnataka",579,"Gulbarga",803214,"Jevargi ","05586"]
[null,null,null,null,29,"Karnataka",580,"Yadgir",803215,"Shorapur","05587"]
[null,null,null,null,29,"Karnataka",580,"Yadgir",803216,"Bhimarayanagudi ","05588"]
[null,null,null,null,29,"Karnataka",580,"Yadgir",803217,"Shahpur","05588"]
[null,null,null,null,29,"Karnataka",580,"Yadgir",803218,"Gurmatkal ","05589"]
[null,null,null,null,29,"Karnataka",580,"Yadgir",803219,"Yadgir ","05589"]
[null,null,null,null,29,"Karnataka",581,"Kolar",803220,"Srinivaspur","05590"]
[null,null,null,null,29,"Karnataka",581,"Kolar",803221,"Kolar ","05591"]
[null,null,null,null,29,"Karnataka",581,"Kolar",803222,"Malur","05592"]
[null,null,null,null,29,"Karnataka",581,"Kolar",803223,"Bangarapet","05593"]
[null,null,null,null,29,"Karnataka",581,"Kolar",803224,"Robertson Pet ","05593"]
[null,null,null,null,29,"Karnataka",581,"Kolar",803225,"Mulbagal","05594"]
[null,null,null,null,29,"Karnataka",582,"Chikkaballapura",803226,"Gauribidanur","05595"]
[null,null,null,null,29,"Karnataka",582,"Chikkaballapura",803227,"Chikkaballapura ","05596"]
[null,null,null,null,29,"Karnataka",582,"Chikkaballapura",803228,"Gudibanda ","05597"]
[null,null,null,null,29,"Karnataka",582,"Chikkaballapura",803229,"Bagepalli","05598"]
[null,null,null,null,29,"Karnataka",582,"Chikkaballapura",803230,"Sidlaghatta","05599"]
[null,null,null,null,29,"Karnataka",582,"Chikkaballapura",803231,"Chintamani ","05600"]
[null,null,null,null,29,"Karnataka",583,"Bangalore Rural",803232,"Nelamangala","05601"]
[null,null,null,null,29,"Karnataka",583,"Bangalore Rural",803233,"Dod Ballapur ","05602"]
[null,null,null,null,29,"Karnataka",583,"Bangalore Rural",803234,"Vijayapura","05603"]
[null,null,null,null,29,"Karnataka",583,"Bangalore Rural",803235,"Devanahalli","05603"]
[null,null,null,null,29,"Karnataka",583,"Bangalore Rural",803236,"Hosakote","05604"]
[null,null,null,null,29,"Karnataka",584,"Ramanagara",803237,"Magadi","05605"]
[null,null,null,null,29,"Karnataka",584,"Ramanagara",803238,"Ramanagara ","05606"]
[null,null,null,null,29,"Karnataka",584,"Ramanagara",803239,"Channapatna ","05607"]
[null,null,null,null,29,"Karnataka",584,"Ramanagara",803240,"Kanakapura","05608"]
[null,null,null,null,30,"Goa",585,"North Goa",803241,"Pernem ","05609"]
[null,null,null,null,30,"Goa",585,"North Goa",803242,"Mapusa ","05610"]
[null,null,null,null,30,"Goa",585,"North Goa",803243,"Panaji","05611"]
[null,null,null,null,30,"Goa",585,"North Goa",803244,"Bicholim ","05612"]
[null,null,null,null,30,"Goa",585,"North Goa",803245,"Sanquelim ","05612"]
[null,null,null,null,30,"Goa",585,"North Goa",803246,"Valpoi ","05613"]
[null,null,null,null,30,"Goa",585,"North Goa",803247,"Ponda ","05614"]
[null,null,null,null,30,"Goa",586,"South Goa",803248,"Mormugao ","05615"]
[null,null,null,null,30,"Goa",586,"South Goa",803249,"Margao ","05616"]
[null,null,null,null,30,"Goa",586,"South Goa",803250,"Cuncolim ","05616"]
[null,null,null,null,30,"Goa",586,"South Goa",803251,"Quepem ","05617"]
[null,null,null,null,30,"Goa",586,"South Goa",803252,"Curchorem-Cacora ","05617"]
[null,null,null,null,30,"Goa",586,"South Goa",803253,"Sanguem ","05618"]
[null,null,null,null,30,"Goa",586,"South Goa",803254,"Canacona ","05619"]
[null,null,null,null,32,"Kerala",588,"Kasaragod",803255,"Kasaragod","05630"]
[null,null,null,null,32,"Kerala",588,"Kasaragod",803256,"Kanhangad ","05631"]
[null,null,null,null,32,"Kerala",589,"Kannur",803257,"Payyannur","05632"]
[null,null,null,null,32,"Kerala",589,"Kannur",803258,"Taliparamba","05632"]
[null,null,null,null,32,"Kerala",589,"Kannur",803259,"Kannur","05633"]
[null,null,null,null,32,"Kerala",589,"Kannur",803260,"Kannur Cantonment (CB)","05633"]
[null,null,null,null,32,"Kerala",589,"Kannur",803261,"Mattannur","05634"]
[null,null,null,null,32,"Kerala",589,"Kannur",803262,"Koothuparamba","05634"]
[null,null,null,null,32,"Kerala",589,"Kannur",803263,"Thalassery","05634"]
[null,null,null,null,32,"Kerala",590,"Wayanad",803264,"Kalpetta","05637"]
[null,null,null,null,32,"Kerala",591,"Kozhikode",803265,"Vadakara","05638"]
[null,null,null,null,32,"Kerala",591,"Kozhikode",803266,"Quilandy","05639"]
[null,null,null,null,32,"Kerala",591,"Kozhikode",803267,"Kozhikode","05640"]
[null,null,null,null,32,"Kerala",592,"Malappuram",803268,"Manjeri","05641"]
[null,null,null,null,32,"Kerala",592,"Malappuram",803269,"Malappuram ","05641"]
[null,null,null,null,32,"Kerala",592,"Malappuram",803270,"Perinthalmanna","05643"]
[null,null,null,null,32,"Kerala",592,"Malappuram",803271,"Tirur","05644"]
[null,null,null,null,32,"Kerala",592,"Malappuram",803272,"Ponnani","05646"]
[null,null,null,null,32,"Kerala",593,"Palakkad",803273,"Shoranur","05647"]
[null,null,null,null,32,"Kerala",593,"Palakkad",803274,"Ottappalam","05647"]
[null,null,null,null,32,"Kerala",593,"Palakkad",803275,"Palakkad","05649"]
[null,null,null,null,32,"Kerala",593,"Palakkad",803276,"Chittur-Thathamangalam","05650"]
[null,null,null,null,32,"Kerala",594,"Thrissur",803277,"Kunnamkulam","05652"]
[null,null,null,null,32,"Kerala",594,"Thrissur",803278,"Guruvayoor","05653"]
[null,null,null,null,32,"Kerala",594,"Thrissur",803279,"Chavakkad","05653"]
[null,null,null,null,32,"Kerala",594,"Thrissur",803280,"Thrissur ","05654"]
[null,null,null,null,32,"Kerala",594,"Thrissur",803281,"Kodungallur ","05655"]
[null,null,null,null,32,"Kerala",594,"Thrissur",803282,"Irinjalakuda","05656"]
[null,null,null,null,32,"Kerala",594,"Thrissur",803283,"Chalakudy","05656"]
[null,null,null,null,32,"Kerala",595,"Ernakulam",803284,"Perumbavoor","05657"]
[null,null,null,null,32,"Kerala",595,"Ernakulam",803285,"Angamaly","05658"]
[null,null,null,null,32,"Kerala",595,"Ernakulam",803286,"Aluva","05658"]
[null,null,null,null,32,"Kerala",595,"Ernakulam",803287,"Paravur","05659"]
[null,null,null,null,32,"Kerala",595,"Ernakulam",803288,"Kochi ","05661"]
[null,null,null,null,32,"Kerala",595,"Ernakulam",803289,"Kalamassery","05661"]
[null,null,null,null,32,"Kerala",595,"Ernakulam",803290,"Thrippunithura","05661"]
[null,null,null,null,32,"Kerala",595,"Ernakulam",803291,"Muvattupuzha","05662"]
[null,null,null,null,32,"Kerala",595,"Ernakulam",803292,"Kothamangalam","05663"]
[null,null,null,null,32,"Kerala",596,"Idukki ",803293,"Thodupuzha","05666"]
[null,null,null,null,32,"Kerala",597,"Kottayam",803294,"Palai","05668"]
[null,null,null,null,32,"Kerala",597,"Kottayam",803295,"Vaikom","05669"]
[null,null,null,null,32,"Kerala",597,"Kottayam",803296,"Kottayam","05670"]
[null,null,null,null,32,"Kerala",597,"Kottayam",803297,"Changanassery","05671"]
[null,null,null,null,32,"Kerala",598,"Alappuzha",803298,"Cherthala","05673"]
[null,null,null,null,32,"Kerala",598,"Alappuzha",803299,"Alappuzha ","05674"]
[null,null,null,null,32,"Kerala",598,"Alappuzha",803300,"Kayamkulam","05676"]
[null,null,null,null,32,"Kerala",598,"Alappuzha",803301,"Chengannur","05677"]
[null,null,null,null,32,"Kerala",598,"Alappuzha",803302,"Mavelikkara","05678"]
[null,null,null,null,32,"Kerala",599,"Pathanamthitta",803303,"Thiruvalla","05679"]
[null,null,null,null,32,"Kerala",599,"Pathanamthitta",803304,"Pathanamthitta","05682"]
[null,null,null,null,32,"Kerala",599,"Pathanamthitta",803305,"Adoor","05683"]
[null,null,null,null,32,"Kerala",600,"Kollam",803306,"Kollam ","05688"]
[null,null,null,null,32,"Kerala",600,"Kollam",803307,"Punalur","05686"]
[null,null,null,null,32,"Kerala",600,"Kollam",803308,"Paravoor","05688"]
[null,null,null,null,32,"Kerala",601,"Thiruvananthapuram",803309,"Varkala","05689"]
[null,null,null,null,32,"Kerala",601,"Thiruvananthapuram",803310,"Attingal","05689"]
[null,null,null,null,32,"Kerala",601,"Thiruvananthapuram",803311,"Nedumangad","05690"]
[null,null,null,null,32,"Kerala",601,"Thiruvananthapuram",803312,"Thiruvananthapuram ","05691"]
[null,null,null,null,32,"Kerala",601,"Thiruvananthapuram",803313,"Neyyattinkara","05692"]
[null,null,null,null,33,"Tamil Nadu",602,"Thiruvallur",803314,"Gummidipoondi ","05693"]
[null,null,null,null,33,"Tamil Nadu",602,"Thiruvallur",803315,"Ponneri ","05694"]
[null,null,null,null,33,"Tamil Nadu",602,"Thiruvallur",803316,"Arani ","05694"]
[null,null,null,null,33,"Tamil Nadu",602,"Thiruvallur",803317,"Minjur ","05694"]
[null,null,null,null,33,"Tamil Nadu",602,"Thiruvallur",803318,"Uthukkottai ","05695"]
[null,null,null,null,33,"Tamil Nadu",602,"Thiruvallur",803319,"Tiruttani","05696"]
[null,null,null,null,33,"Tamil Nadu",602,"Thiruvallur",803320,"Pallipattu ","05697"]
[null,null,null,null,33,"Tamil Nadu",602,"Thiruvallur",803321,"Pothatturpettai ","05697"]
[null,null,null,null,33,"Tamil Nadu",602,"Thiruvallur",803322,"Thiruvallur","05698"]
[null,null,null,null,33,"Tamil Nadu",602,"Thiruvallur",803323,"Avadi","05699"]
[null,null,null,null,33,"Tamil Nadu",602,"Thiruvallur",803324,"Thirunindravur ","05699"]
[null,null,null,null,33,"Tamil Nadu",602,"Thiruvallur",803325,"Tiruverkadu  ","05700"]
[null,null,null,null,33,"Tamil Nadu",602,"Thiruvallur",803326,"Thirumazhisai ","05699"]
[null,null,null,null,33,"Tamil Nadu",602,"Thiruvallur",803327,"Poonamallee ","05699"]
[null,null,null,null,33,"Tamil Nadu",602,"Thiruvallur",803328,"Ambattur","05700"]
[null,null,null,null,33,"Tamil Nadu",602,"Thiruvallur",803329,"Maduravoyal","05700"]
[null,null,null,null,33,"Tamil Nadu",602,"Thiruvallur",803330,"Valasaravakkam","05700"]
[null,null,null,null,33,"Tamil Nadu",602,"Thiruvallur",803331,"Porur ","05700"]
[null,null,null,null,33,"Tamil Nadu",602,"Thiruvallur",803332,"Kattivakkam","05701"]
[null,null,null,null,33,"Tamil Nadu",602,"Thiruvallur",803333,"Tiruvottiyur","05701"]
[null,null,null,null,33,"Tamil Nadu",602,"Thiruvallur",803334,"Manali","05701"]
[null,null,null,null,33,"Tamil Nadu",602,"Thiruvallur",803335,"Naravarikuppam ","05701"]
[null,null,null,null,33,"Tamil Nadu",602,"Thiruvallur",803336,"Puzhal ","05701"]
[null,null,null,null,33,"Tamil Nadu",602,"Thiruvallur",803337,"Madavaram","05701"]
[null,null,null,null,33,"Tamil Nadu",602,"Thiruvallur",803338,"Chinnasekkadu ","05701"]
[null,null,null,null,33,"Tamil Nadu",603,"Chennai",803339,"Chennai ","99999"]
[null,null,null,null,33,"Tamil Nadu",604,"Kancheepuram",803340,"Mangadu ","05702"]
[null,null,null,null,33,"Tamil Nadu",604,"Kancheepuram",803341,"Kundrathur ","05702"]
[null,null,null,null,33,"Tamil Nadu",604,"Kancheepuram",803342,"Sriperumbudur ","05702"]
[null,null,null,null,33,"Tamil Nadu",604,"Kancheepuram",803343,"Chitlapakkam ","05703"]
[null,null,null,null,33,"Tamil Nadu",604,"Kancheepuram",803344,"Perungalathur ","05703"]
[null,null,null,null,33,"Tamil Nadu",604,"Kancheepuram",803345,"Tambaram","05703"]
[null,null,null,null,33,"Tamil Nadu",604,"Kancheepuram",803346,"Sembakkam ","05703"]
[null,null,null,null,33,"Tamil Nadu",604,"Kancheepuram",803347,"Peerkankaranai ","05703"]
[null,null,null,null,33,"Tamil Nadu",604,"Kancheepuram",803348,"Madambakkam ","05703"]
[null,null,null,null,33,"Tamil Nadu",604,"Kancheepuram",803349,"Nandambakkam ","05704"]
[null,null,null,null,33,"Tamil Nadu",604,"Kancheepuram",803350,"St.Thomas Mount-cum-Pallavaram (CB)","05704"]
[null,null,null,null,33,"Tamil Nadu",604,"Kancheepuram",803351,"Alandur","05704"]
[null,null,null,null,33,"Tamil Nadu",604,"Kancheepuram",803352,"Meenambakkam  ","05704"]
[null,null,null,null,33,"Tamil Nadu",604,"Kancheepuram",803353,"Anakaputhur","05704"]
[null,null,null,null,33,"Tamil Nadu",604,"Kancheepuram",803354,"Pammal","05704"]
[null,null,null,null,33,"Tamil Nadu",604,"Kancheepuram",803355,"Thiruneermalai ","05704"]
[null,null,null,null,33,"Tamil Nadu",604,"Kancheepuram",803356,"Pallavaram  ","05705"]
[null,null,null,null,33,"Tamil Nadu",604,"Kancheepuram",803357,"Puzhithivakkam (Ullagaram)","05705"]
[null,null,null,null,33,"Tamil Nadu",604,"Kancheepuram",803358,"Perungudi ","05705"]
[null,null,null,null,33,"Tamil Nadu",604,"Kancheepuram",803359,"Pallikaranai ","05705"]
[null,null,null,null,33,"Tamil Nadu",604,"Kancheepuram",803360,"Sholinganallur ","05705"]
[null,null,null,null,33,"Tamil Nadu",604,"Kancheepuram",803361,"Nandivaram - Guduvancheri ","05706"]
[null,null,null,null,33,"Tamil Nadu",604,"Kancheepuram",803362,"Maraimalainagar","05706"]
[null,null,null,null,33,"Tamil Nadu",604,"Kancheepuram",803363,"Thiruporur ","05706"]
[null,null,null,null,33,"Tamil Nadu",604,"Kancheepuram",803364,"Chengalpattu","05706"]
[null,null,null,null,33,"Tamil Nadu",604,"Kancheepuram",803365,"Kancheepuram","05707"]
[null,null,null,null,33,"Tamil Nadu",604,"Kancheepuram",803366,"Sevilimedu ","05707"]
[null,null,null,null,33,"Tamil Nadu",604,"Kancheepuram",803367,"Walajabad ","05707"]
[null,null,null,null,33,"Tamil Nadu",604,"Kancheepuram",803368,"Uthiramerur ","05708"]
[null,null,null,null,33,"Tamil Nadu",604,"Kancheepuram",803369,"Mamallapuram ","05709"]
[null,null,null,null,33,"Tamil Nadu",604,"Kancheepuram",803370,"Tirukalukundram ","05709"]
[null,null,null,null,33,"Tamil Nadu",604,"Kancheepuram",803371,"Karunguzhi ","05710"]
[null,null,null,null,33,"Tamil Nadu",604,"Kancheepuram",803372,"Maduranthakam","05710"]
[null,null,null,null,33,"Tamil Nadu",604,"Kancheepuram",803373,"Acharapakkam ","05710"]
[null,null,null,null,33,"Tamil Nadu",604,"Kancheepuram",803374,"Edakalinadu ","05711"]
[null,null,null,null,33,"Tamil Nadu",605,"Vellore",803375,"Gudiyatham","05712"]
[null,null,null,null,33,"Tamil Nadu",605,"Vellore",803376,"Pernampattu","05712"]
[null,null,null,null,33,"Tamil Nadu",605,"Vellore",803377,"Thiruvalam ","05713"]
[null,null,null,null,33,"Tamil Nadu",605,"Vellore",803378,"Katpadi ","05713"]
[null,null,null,null,33,"Tamil Nadu",605,"Vellore",803379,"Dharapadavedu","05713"]
[null,null,null,null,33,"Tamil Nadu",605,"Vellore",803380,"Gandhinagar ","05713"]
[null,null,null,null,33,"Tamil Nadu",605,"Vellore",803381,"Kalinjur ","05713"]
[null,null,null,null,33,"Tamil Nadu",605,"Vellore",803382,"Sholingur ","05714"]
[null,null,null,null,33,"Tamil Nadu",605,"Vellore",803383,"Ammoor ","05714"]
[null,null,null,null,33,"Tamil Nadu",605,"Vellore",803384,"Walajapet ","05714"]
[null,null,null,null,33,"Tamil Nadu",605,"Vellore",803385,"Ranipettai","05714"]
[null,null,null,null,33,"Tamil Nadu",605,"Vellore",803386,"Melvisharam","05714"]
[null,null,null,null,33,"Tamil Nadu",605,"Vellore",803387,"Arakonam","05715"]
[null,null,null,null,33,"Tamil Nadu",605,"Vellore",803388,"Thakkolam ","05715"]
[null,null,null,null,33,"Tamil Nadu",605,"Vellore",803389,"Nemili ","05715"]
[null,null,null,null,33,"Tamil Nadu",605,"Vellore",803390,"Kaveripakkam ","05715"]
[null,null,null,null,33,"Tamil Nadu",605,"Vellore",803391,"Panapakkam ","05715"]
[null,null,null,null,33,"Tamil Nadu",605,"Vellore",803392,"Arcot","05716"]
[null,null,null,null,33,"Tamil Nadu",605,"Vellore",803393,"Vilapakkam ","05716"]
[null,null,null,null,33,"Tamil Nadu",605,"Vellore",803394,"Timiri ","05716"]
[null,null,null,null,33,"Tamil Nadu",605,"Vellore",803395,"Kalavai ","05716"]
[null,null,null,null,33,"Tamil Nadu",605,"Vellore",803396,"Sathuvachari","05717"]
[null,null,null,null,33,"Tamil Nadu",605,"Vellore",803397,"Shenbakkam ","05717"]
[null,null,null,null,33,"Tamil Nadu",605,"Vellore",803398,"Vellore ","05717"]
[null,null,null,null,33,"Tamil Nadu",605,"Vellore",803399,"Pallikonda ","05717"]
[null,null,null,null,33,"Tamil Nadu",605,"Vellore",803400,"Thorapadi ","05717"]
[null,null,null,null,33,"Tamil Nadu",605,"Vellore",803401,"Allapuram ","05717"]
[null,null,null,null,33,"Tamil Nadu",605,"Vellore",803402,"Pennathur ","05717"]
[null,null,null,null,33,"Tamil Nadu",605,"Vellore",803403,"Odugathur ","05717"]
[null,null,null,null,33,"Tamil Nadu",605,"Vellore",803404,"Vaniyambadi","05718"]
[null,null,null,null,33,"Tamil Nadu",605,"Vellore",803405,"Alangayam ","05718"]
[null,null,null,null,33,"Tamil Nadu",605,"Vellore",803406,"Ambur","05719"]
[null,null,null,null,33,"Tamil Nadu",605,"Vellore",803407,"Uthayendram ","05719"]
[null,null,null,null,33,"Tamil Nadu",605,"Vellore",803408,"Natrampalli ","05720"]
[null,null,null,null,33,"Tamil Nadu",605,"Vellore",803409,"Jolarpet","05720"]
[null,null,null,null,33,"Tamil Nadu",605,"Vellore",803410,"Tirupathur","05720"]
[null,null,null,null,33,"Tamil Nadu",606,"Tiruvannamalai",803411,"Kannamangalam ","05721"]
[null,null,null,null,33,"Tamil Nadu",606,"Tiruvannamalai",803412,"Arani","05721"]
[null,null,null,null,33,"Tamil Nadu",606,"Tiruvannamalai",803413,"Tiruvethipuram","05722"]
[null,null,null,null,33,"Tamil Nadu",606,"Tiruvannamalai",803414,"Peranamallur ","05723"]
[null,null,null,null,33,"Tamil Nadu",606,"Tiruvannamalai",803415,"Vandavasi","05723"]
[null,null,null,null,33,"Tamil Nadu",606,"Tiruvannamalai",803416,"Desur ","05723"]
[null,null,null,null,33,"Tamil Nadu",606,"Tiruvannamalai",803417,"Kalambur ","05724"]
[null,null,null,null,33,"Tamil Nadu",606,"Tiruvannamalai",803418,"Polur ","05724"]
[null,null,null,null,33,"Tamil Nadu",606,"Tiruvannamalai",803419,"Chetpet ","05724"]
[null,null,null,null,33,"Tamil Nadu",606,"Tiruvannamalai",803420,"Pudupalayam ","05725"]
[null,null,null,null,33,"Tamil Nadu",606,"Tiruvannamalai",803421,"Chengam ","05725"]
[null,null,null,null,33,"Tamil Nadu",606,"Tiruvannamalai",803422,"Tiruvannamalai","05727"]
[null,null,null,null,33,"Tamil Nadu",606,"Tiruvannamalai",803423,"Kilpennathur ","05727"]
[null,null,null,null,33,"Tamil Nadu",606,"Tiruvannamalai",803424,"Vettavalam ","05727"]
[null,null,null,null,33,"Tamil Nadu",607,"Viluppuram",803425,"Gingee ","05728"]
[null,null,null,null,33,"Tamil Nadu",607,"Viluppuram",803426,"Ananthapuram ","05728"]
[null,null,null,null,33,"Tamil Nadu",607,"Viluppuram",803427,"Tindivanam","05729"]
[null,null,null,null,33,"Tamil Nadu",607,"Viluppuram",803428,"Marakkanam ","05729"]
[null,null,null,null,33,"Tamil Nadu",607,"Viluppuram",803429,"Kottakuppam ","05730"]
[null,null,null,null,33,"Tamil Nadu",607,"Viluppuram",803430,"Vikravandi ","05731"]
[null,null,null,null,33,"Tamil Nadu",607,"Viluppuram",803431,"Viluppuram","05731"]
[null,null,null,null,33,"Tamil Nadu",607,"Viluppuram",803432,"Valavanur ","05731"]
[null,null,null,null,33,"Tamil Nadu",607,"Viluppuram",803433,"Manalurpet ","05732"]
[null,null,null,null,33,"Tamil Nadu",607,"Viluppuram",803434,"Arakandanallur ","05732"]
[null,null,null,null,33,"Tamil Nadu",607,"Viluppuram",803435,"Tirukkoyilur ","05732"]
[null,null,null,null,33,"Tamil Nadu",607,"Viluppuram",803436,"Thiruvennainallur ","05732"]
[null,null,null,null,33,"Tamil Nadu",607,"Viluppuram",803437,"Sankarapuram ","05733"]
[null,null,null,null,33,"Tamil Nadu",607,"Viluppuram",803438,"Vadakkanandal ","05734"]
[null,null,null,null,33,"Tamil Nadu",607,"Viluppuram",803439,"Thiagadurgam ","05734"]
[null,null,null,null,33,"Tamil Nadu",607,"Viluppuram",803440,"Kallakkurichi","05734"]
[null,null,null,null,33,"Tamil Nadu",607,"Viluppuram",803441,"Chinnasalem ","05734"]
[null,null,null,null,33,"Tamil Nadu",607,"Viluppuram",803442,"Ulundurpettai ","05735"]
[null,null,null,null,33,"Tamil Nadu",608,"Salem",803443,"Kolathur ","05736"]
[null,null,null,null,33,"Tamil Nadu",608,"Salem",803444,"Mecheri ","05736"]
[null,null,null,null,33,"Tamil Nadu",608,"Salem",803445,"Veerakkalpudur ","05736"]
[null,null,null,null,33,"Tamil Nadu",608,"Salem",803446,"Mettur","05736"]
[null,null,null,null,33,"Tamil Nadu",608,"Salem",803447,"P.N.Patti ","05736"]
[null,null,null,null,33,"Tamil Nadu",608,"Salem",803448,"Nangavalli ","05736"]
[null,null,null,null,33,"Tamil Nadu",608,"Salem",803449,"Vanavasi ","05736"]
[null,null,null,null,33,"Tamil Nadu",608,"Salem",803450,"Jalakandapuram ","05736"]
[null,null,null,null,33,"Tamil Nadu",608,"Salem",803451,"Kadayampatti ","05737"]
[null,null,null,null,33,"Tamil Nadu",608,"Salem",803452,"Omalur ","05737"]
[null,null,null,null,33,"Tamil Nadu",608,"Salem",803453,"Karuppur ","05737"]
[null,null,null,null,33,"Tamil Nadu",608,"Salem",803454,"Tharamangalam ","05737"]
[null,null,null,null,33,"Tamil Nadu",608,"Salem",803455,"Poolampatti ","05738"]
[null,null,null,null,33,"Tamil Nadu",608,"Salem",803456,"Edappadi","05738"]
[null,null,null,null,33,"Tamil Nadu",608,"Salem",803457,"Konganapuram ","05738"]
[null,null,null,null,33,"Tamil Nadu",608,"Salem",803458,"Edaganasalai ","05739"]
[null,null,null,null,33,"Tamil Nadu",608,"Salem",803459,"Arasiramani ","05739"]
[null,null,null,null,33,"Tamil Nadu",608,"Salem",803460,"Thevur ","05739"]
[null,null,null,null,33,"Tamil Nadu",608,"Salem",803461,"Sankari ","05739"]
[null,null,null,null,33,"Tamil Nadu",608,"Salem",803462,"Kannankurichi ","05740"]
[null,null,null,null,33,"Tamil Nadu",608,"Salem",803463,"Salem ","05740"]
[null,null,null,null,33,"Tamil Nadu",608,"Salem",803464,"Ilampillai ","05740"]
[null,null,null,null,33,"Tamil Nadu",608,"Salem",803465,"Panaimarathupatti ","05740"]
[null,null,null,null,33,"Tamil Nadu",608,"Salem",803466,"Mallur ","05740"]
[null,null,null,null,33,"Tamil Nadu",608,"Salem",803467,"Attayampatti ","05740"]
[null,null,null,null,33,"Tamil Nadu",608,"Salem",803468,"Belur ","05742"]
[null,null,null,null,33,"Tamil Nadu",608,"Salem",803469,"Vazhapadi ","05742"]
[null,null,null,null,33,"Tamil Nadu",608,"Salem",803470,"Ayothiapattinam ","05742"]
[null,null,null,null,33,"Tamil Nadu",608,"Salem",803471,"Pethanaickenpalayam ","05743"]
[null,null,null,null,33,"Tamil Nadu",608,"Salem",803472,"Ethapur ","05743"]
[null,null,null,null,33,"Tamil Nadu",608,"Salem",803473,"Attur","05743"]
[null,null,null,null,33,"Tamil Nadu",608,"Salem",803474,"Narasingapuram","05743"]
[null,null,null,null,33,"Tamil Nadu",608,"Salem",803475,"Keeripatti ","05743"]
[null,null,null,null,33,"Tamil Nadu",608,"Salem",803476,"Veeraganur","05744"]
[null,null,null,null,33,"Tamil Nadu",608,"Salem",803477,"Thedavur ","05744"]
[null,null,null,null,33,"Tamil Nadu",608,"Salem",803478,"Gangavalli ","05744"]
[null,null,null,null,33,"Tamil Nadu",608,"Salem",803479,"Thammampatti ","05744"]
[null,null,null,null,33,"Tamil Nadu",608,"Salem",803480,"Sentharapatti ","05744"]
[null,null,null,null,33,"Tamil Nadu",609,"Namakkal   ",803481,"Mallasamudram ","05745"]
[null,null,null,null,33,"Tamil Nadu",609,"Namakkal   ",803482,"Kumarapalayam","05745"]
[null,null,null,null,33,"Tamil Nadu",609,"Namakkal   ",803483,"Padaiveedu ","05745"]
[null,null,null,null,33,"Tamil Nadu",609,"Namakkal   ",803484,"Tiruchengode","05745"]
[null,null,null,null,33,"Tamil Nadu",609,"Namakkal   ",803485,"Alampalayam ","05745"]
[null,null,null,null,33,"Tamil Nadu",609,"Namakkal   ",803486,"Pallipalayam","05745"]
[null,null,null,null,33,"Tamil Nadu",609,"Namakkal   ",803487,"Vennanthur ","05746"]
[null,null,null,null,33,"Tamil Nadu",609,"Namakkal   ",803488,"Athanur ","05746"]
[null,null,null,null,33,"Tamil Nadu",609,"Namakkal   ",803489,"R.Pudupatti ","05746"]
[null,null,null,null,33,"Tamil Nadu",609,"Namakkal   ",803490,"Namagiripettai ","05746"]
[null,null,null,null,33,"Tamil Nadu",609,"Namakkal   ",803491,"Seerapalli ","05746"]
[null,null,null,null,33,"Tamil Nadu",609,"Namakkal   ",803492,"Pattinam ","05746"]
[null,null,null,null,33,"Tamil Nadu",609,"Namakkal   ",803493,"Rasipuram","05746"]
[null,null,null,null,33,"Tamil Nadu",609,"Namakkal   ",803494,"Pillanallur ","05746"]
[null,null,null,null,33,"Tamil Nadu",609,"Namakkal   ",803495,"Kalappanaickenpatti ","05747"]
[null,null,null,null,33,"Tamil Nadu",609,"Namakkal   ",803496,"Senthamangalam ","05747"]
[null,null,null,null,33,"Tamil Nadu",609,"Namakkal   ",803497,"Namakkal","05747"]
[null,null,null,null,33,"Tamil Nadu",609,"Namakkal   ",803498,"Erumaipatti ","05747"]
[null,null,null,null,33,"Tamil Nadu",609,"Namakkal   ",803499,"Mohanur ","05747"]
[null,null,null,null,33,"Tamil Nadu",609,"Namakkal   ",803500,"Paramathi ","05748"]
[null,null,null,null,33,"Tamil Nadu",609,"Namakkal   ",803501,"Velur ","05748"]
[null,null,null,null,33,"Tamil Nadu",609,"Namakkal   ",803502,"Pothanur ","05748"]
[null,null,null,null,33,"Tamil Nadu",609,"Namakkal   ",803503,"Venkarai ","05748"]
[null,null,null,null,33,"Tamil Nadu",609,"Namakkal   ",803504,"Pandamangalam ","05748"]
[null,null,null,null,33,"Tamil Nadu",610,"Erode",803505,"Sathyamangalam","05749"]
[null,null,null,null,33,"Tamil Nadu",610,"Erode",803506,"Kembainaickenpalayam ","05749"]
[null,null,null,null,33,"Tamil Nadu",610,"Erode",803507,"Ariyappampalayam ","05749"]
[null,null,null,null,33,"Tamil Nadu",610,"Erode",803508,"Bhavanisagar ","05749"]
[null,null,null,null,33,"Tamil Nadu",610,"Erode",803509,"Punjaipuliampatti","05749"]
[null,null,null,null,33,"Tamil Nadu",610,"Erode",803510,"Nerunjipettai ","05750"]
[null,null,null,null,33,"Tamil Nadu",610,"Erode",803511,"Ammapettai ","05750"]
[null,null,null,null,33,"Tamil Nadu",610,"Erode",803512,"Anthiyur ","05750"]
[null,null,null,null,33,"Tamil Nadu",610,"Erode",803513,"Olagadam ","05750"]
[null,null,null,null,33,"Tamil Nadu",610,"Erode",803514,"Athani ","05750"]
[null,null,null,null,33,"Tamil Nadu",610,"Erode",803515,"Jambai ","05750"]
[null,null,null,null,33,"Tamil Nadu",610,"Erode",803516,"Appakudal ","05750"]
[null,null,null,null,33,"Tamil Nadu",610,"Erode",803517,"Bhavani","05750"]
[null,null,null,null,33,"Tamil Nadu",610,"Erode",803518,"Salangapalayam ","05750"]
[null,null,null,null,33,"Tamil Nadu",610,"Erode",803519,"Periyakodiveri ","05751"]
[null,null,null,null,33,"Tamil Nadu",610,"Erode",803520,"Vaniputhur ","05751"]
[null,null,null,null,33,"Tamil Nadu",610,"Erode",803521,"Lakkampatti ","05751"]
[null,null,null,null,33,"Tamil Nadu",610,"Erode",803522,"Kasipalayam (G) ","05751"]
[null,null,null,null,33,"Tamil Nadu",610,"Erode",803523,"Gobichettipalayam","05751"]
[null,null,null,null,33,"Tamil Nadu",610,"Erode",803524,"Kuhalur ","05751"]
[null,null,null,null,33,"Tamil Nadu",610,"Erode",803525,"P.Mettupalayam ","05751"]
[null,null,null,null,33,"Tamil Nadu",610,"Erode",803526,"Elathur ","05751"]
[null,null,null,null,33,"Tamil Nadu",610,"Erode",803527,"Kolappalur ","05751"]
[null,null,null,null,33,"Tamil Nadu",610,"Erode",803528,"Nambiyur ","05751"]
[null,null,null,null,33,"Tamil Nadu",610,"Erode",803529,"Pallapalayam ","05752"]
[null,null,null,null,33,"Tamil Nadu",610,"Erode",803530,"Kanjikoil ","05752"]
[null,null,null,null,33,"Tamil Nadu",610,"Erode",803531,"Nallampatti ","05752"]
[null,null,null,null,33,"Tamil Nadu",610,"Erode",803532,"Pethampalayam ","05752"]
[null,null,null,null,33,"Tamil Nadu",610,"Erode",803533,"Karumandi Chellipalayam ","05752"]
[null,null,null,null,33,"Tamil Nadu",610,"Erode",803534,"Perundurai ","05752"]
[null,null,null,null,33,"Tamil Nadu",610,"Erode",803535,"Chennimalai ","05752"]
[null,null,null,null,33,"Tamil Nadu",610,"Erode",803536,"Suriyampalayam ","05753"]
[null,null,null,null,33,"Tamil Nadu",610,"Erode",803537,"Chithode ","05753"]
[null,null,null,null,33,"Tamil Nadu",610,"Erode",803538,"Brahmana Periya Agraharam ","05753"]
[null,null,null,null,33,"Tamil Nadu",610,"Erode",803539,"Periyasemur","05753"]
[null,null,null,null,33,"Tamil Nadu",610,"Erode",803540,"Nasiyanur ","05753"]
[null,null,null,null,33,"Tamil Nadu",610,"Erode",803541,"Veerappanchatiram","05753"]
[null,null,null,null,33,"Tamil Nadu",610,"Erode",803542,"Erode ","05753"]
[null,null,null,null,33,"Tamil Nadu",610,"Erode",803543,"Surampatti","05753"]
[null,null,null,null,33,"Tamil Nadu",610,"Erode",803544,"Kasipalayam  (E)","05753"]
[null,null,null,null,33,"Tamil Nadu",610,"Erode",803545,"Avalpoondurai ","05753"]
[null,null,null,null,33,"Tamil Nadu",610,"Erode",803546,"Modakurichi ","05753"]
[null,null,null,null,33,"Tamil Nadu",610,"Erode",803547,"Pasur ","05753"]
[null,null,null,null,33,"Tamil Nadu",610,"Erode",803548,"Kilampadi ","05753"]
[null,null,null,null,33,"Tamil Nadu",610,"Erode",803549,"Vellottamparappu ","05753"]
[null,null,null,null,33,"Tamil Nadu",610,"Erode",803550,"Vadugapatti ","05753"]
[null,null,null,null,33,"Tamil Nadu",610,"Erode",803551,"Arachalur ","05753"]
[null,null,null,null,33,"Tamil Nadu",610,"Erode",803552,"Sivagiri ","05753"]
[null,null,null,null,33,"Tamil Nadu",610,"Erode",803553,"Unjalur ","05753"]
[null,null,null,null,33,"Tamil Nadu",610,"Erode",803554,"Kollankoil ","05753"]
[null,null,null,null,33,"Tamil Nadu",610,"Erode",803555,"Vengampudur ","05753"]
[null,null,null,null,33,"Tamil Nadu",610,"Erode",803556,"Kodumudi ","05753"]
[null,null,null,null,33,"Tamil Nadu",610,"Erode",803557,"Chennasamudram ","05753"]
[null,null,null,null,33,"Tamil Nadu",611,"The Nilgiris",803558,"Nelliyalam","05754"]
[null,null,null,null,33,"Tamil Nadu",611,"The Nilgiris",803559,"Devarshola ","05755"]
[null,null,null,null,33,"Tamil Nadu",611,"The Nilgiris",803560,"Gudalur","05755"]
[null,null,null,null,33,"Tamil Nadu",611,"The Nilgiris",803561,"O Valley ","05755"]
[null,null,null,null,33,"Tamil Nadu",611,"The Nilgiris",803562,"Sholur ","05756"]
[null,null,null,null,33,"Tamil Nadu",611,"The Nilgiris",803563,"Naduvattam ","05756"]
[null,null,null,null,33,"Tamil Nadu",611,"The Nilgiris",803564,"Udhagamandalam","05756"]
[null,null,null,null,33,"Tamil Nadu",611,"The Nilgiris",803565,"Kotagiri ","05757"]
[null,null,null,null,33,"Tamil Nadu",611,"The Nilgiris",803566,"Jagathala ","05757"]
[null,null,null,null,33,"Tamil Nadu",611,"The Nilgiris",803567,"Wellington (CB)","05758"]
[null,null,null,null,33,"Tamil Nadu",611,"The Nilgiris",803568,"Kethi ","05758"]
[null,null,null,null,33,"Tamil Nadu",611,"The Nilgiris",803569,"Adikaratti ","05758"]
[null,null,null,null,33,"Tamil Nadu",611,"The Nilgiris",803570,"Coonoor","05758"]
[null,null,null,null,33,"Tamil Nadu",611,"The Nilgiris",803571,"Huligal ","05758"]
[null,null,null,null,33,"Tamil Nadu",611,"The Nilgiris",803572,"Bikketti ","05759"]
[null,null,null,null,33,"Tamil Nadu",611,"The Nilgiris",803573,"Kilkunda ","05759"]
[null,null,null,null,33,"Tamil Nadu",612,"Dindigul",803574,"Keeranur ","05760"]
[null,null,null,null,33,"Tamil Nadu",612,"Dindigul",803575,"Neikkarapatti ","05760"]
[null,null,null,null,33,"Tamil Nadu",612,"Dindigul",803576,"Palani","05760"]
[null,null,null,null,33,"Tamil Nadu",612,"Dindigul",803577,"Ayakudi ","05760"]
[null,null,null,null,33,"Tamil Nadu",612,"Dindigul",803578,"Balasamudram ","05760"]
[null,null,null,null,33,"Tamil Nadu",612,"Dindigul",803579,"Oddanchatram ","05761"]
[null,null,null,null,33,"Tamil Nadu",612,"Dindigul",803580,"Palayam ","05762"]
[null,null,null,null,33,"Tamil Nadu",612,"Dindigul",803581,"Vedasandur ","05762"]
[null,null,null,null,33,"Tamil Nadu",612,"Dindigul",803582,"Eriodu ","05762"]
[null,null,null,null,33,"Tamil Nadu",612,"Dindigul",803583,"Ayyalur ","05762"]
[null,null,null,null,33,"Tamil Nadu",612,"Dindigul",803584,"Vadamadurai ","05762"]
[null,null,null,null,33,"Tamil Nadu",612,"Dindigul",803585,"Natham ","05763"]
[null,null,null,null,33,"Tamil Nadu",612,"Dindigul",803586,"Sriramapuram ","05764"]
[null,null,null,null,33,"Tamil Nadu",612,"Dindigul",803587,"Agaram ","05764"]
[null,null,null,null,33,"Tamil Nadu",612,"Dindigul",803588,"Thadikombu ","05764"]
[null,null,null,null,33,"Tamil Nadu",612,"Dindigul",803589,"Dindigul","05764"]
[null,null,null,null,33,"Tamil Nadu",612,"Dindigul",803590,"Kannivadi ","05764"]
[null,null,null,null,33,"Tamil Nadu",612,"Dindigul",803591,"Sithayankottai ","05765"]
[null,null,null,null,33,"Tamil Nadu",612,"Dindigul",803592,"Chinnalapatti ","05765"]
[null,null,null,null,33,"Tamil Nadu",612,"Dindigul",803593,"Ayyampalayam ","05765"]
[null,null,null,null,33,"Tamil Nadu",612,"Dindigul",803594,"Pannaikadu ","05766"]
[null,null,null,null,33,"Tamil Nadu",612,"Dindigul",803595,"Kodaikanal","05766"]
[null,null,null,null,33,"Tamil Nadu",612,"Dindigul",803596,"Sevugampatti ","05767"]
[null,null,null,null,33,"Tamil Nadu",612,"Dindigul",803597,"Ammainaickanur ","05767"]
[null,null,null,null,33,"Tamil Nadu",612,"Dindigul",803598,"Nilakkottai ","05767"]
[null,null,null,null,33,"Tamil Nadu",612,"Dindigul",803599,"Pattiveeranpatti ","05767"]
[null,null,null,null,33,"Tamil Nadu",612,"Dindigul",803600,"Batlagundu ","05767"]
[null,null,null,null,33,"Tamil Nadu",613,"Karur ",803601,"Aravakurichi ","05768"]
[null,null,null,null,33,"Tamil Nadu",613,"Karur ",803602,"Pallapatti ","05768"]
[null,null,null,null,33,"Tamil Nadu",613,"Karur ",803603,"TNPL Pugalur ","05769"]
[null,null,null,null,33,"Tamil Nadu",613,"Karur ",803604,"Punjaipugalur ","05769"]
[null,null,null,null,33,"Tamil Nadu",613,"Karur ",803605,"Punjai Thottakurichi ","05769"]
[null,null,null,null,33,"Tamil Nadu",613,"Karur ",803606,"Inam Karur","05769"]
[null,null,null,null,33,"Tamil Nadu",613,"Karur ",803607,"Karur","05769"]
[null,null,null,null,33,"Tamil Nadu",613,"Karur ",803608,"Puliyur ","05769"]
[null,null,null,null,33,"Tamil Nadu",613,"Karur ",803609,"Thanthoni","05769"]
[null,null,null,null,33,"Tamil Nadu",613,"Karur ",803610,"Uppidamangalam ","05769"]
[null,null,null,null,33,"Tamil Nadu",613,"Karur ",803611,"Krishnarayapuram ","05770"]
[null,null,null,null,33,"Tamil Nadu",613,"Karur ",803612,"P.J. Cholapuram ","05770"]
[null,null,null,null,33,"Tamil Nadu",613,"Karur ",803613,"Kulithalai","05771"]
[null,null,null,null,33,"Tamil Nadu",613,"Karur ",803614,"Marudur ","05771"]
[null,null,null,null,33,"Tamil Nadu",613,"Karur ",803615,"Nangavaram ","05771"]
[null,null,null,null,33,"Tamil Nadu",614,"Tiruchirappalli",803616,"Kattuputhur ","05773"]
[null,null,null,null,33,"Tamil Nadu",614,"Tiruchirappalli",803617,"Thottiyam ","05773"]
[null,null,null,null,33,"Tamil Nadu",614,"Tiruchirappalli",803618,"Mettupalayam ","05774"]
[null,null,null,null,33,"Tamil Nadu",614,"Tiruchirappalli",803619,"Thathaiyangarpet ","05774"]
[null,null,null,null,33,"Tamil Nadu",614,"Tiruchirappalli",803620,"Musiri ","05774"]
[null,null,null,null,33,"Tamil Nadu",614,"Tiruchirappalli",803621,"Uppiliapuram ","05775"]
[null,null,null,null,33,"Tamil Nadu",614,"Tiruchirappalli",803622,"Balakrishnampatti ","05775"]
[null,null,null,null,33,"Tamil Nadu",614,"Tiruchirappalli",803623,"Thuraiyur","05775"]
[null,null,null,null,33,"Tamil Nadu",614,"Tiruchirappalli",803624,"S. Kannanur ","05776"]
[null,null,null,null,33,"Tamil Nadu",614,"Tiruchirappalli",803625,"Manachanallur ","05776"]
[null,null,null,null,33,"Tamil Nadu",614,"Tiruchirappalli",803626,"Kallakudi ","05777"]
[null,null,null,null,33,"Tamil Nadu",614,"Tiruchirappalli",803627,"Pullampadi ","05777"]
[null,null,null,null,33,"Tamil Nadu",614,"Tiruchirappalli",803628,"Puvalur ","05777"]
[null,null,null,null,33,"Tamil Nadu",614,"Tiruchirappalli",803629,"Lalgudi ","05777"]
[null,null,null,null,33,"Tamil Nadu",614,"Tiruchirappalli",803630,"Sirugamani ","05778"]
[null,null,null,null,33,"Tamil Nadu",614,"Tiruchirappalli",803631,"Tiruchirappalli ","05779"]
[null,null,null,null,33,"Tamil Nadu",614,"Tiruchirappalli",803632,"Koothappar ","05780"]
[null,null,null,null,33,"Tamil Nadu",614,"Tiruchirappalli",803633,"Thiruverumbur ","05780"]
[null,null,null,null,33,"Tamil Nadu",614,"Tiruchirappalli",803634,"Thuvakudi ","05780"]
[null,null,null,null,33,"Tamil Nadu",614,"Tiruchirappalli",803635,"Manapparai","05781"]
[null,null,null,null,33,"Tamil Nadu",614,"Tiruchirappalli",803636,"Ponnampatti ","05781"]
[null,null,null,null,33,"Tamil Nadu",615,"Perambalur  ",803637,"Poolambadi ","05782"]
[null,null,null,null,33,"Tamil Nadu",615,"Perambalur  ",803638,"Arumbavur ","05782"]
[null,null,null,null,33,"Tamil Nadu",615,"Perambalur  ",803639,"Perambalur","05783"]
[null,null,null,null,33,"Tamil Nadu",615,"Perambalur  ",803640,"Kurumbalur ","05783"]
[null,null,null,null,33,"Tamil Nadu",615,"Perambalur  ",803641,"Labbaikudikadu ","05784"]
[null,null,null,null,33,"Tamil Nadu",616,"Ariyalur  ",803642,"Varadarajanpettai ","05786"]
[null,null,null,null,33,"Tamil Nadu",616,"Ariyalur  ",803643,"Jayankondam","05786"]
[null,null,null,null,33,"Tamil Nadu",616,"Ariyalur  ",803644,"Udayarpalayam ","05786"]
[null,null,null,null,33,"Tamil Nadu",616,"Ariyalur  ",803645,"Ariyalur","05787"]
[null,null,null,null,33,"Tamil Nadu",617,"Cuddalore",803646,"Thorapadi ","05788"]
[null,null,null,null,33,"Tamil Nadu",617,"Cuddalore",803647,"Melpattampakkam ","05788"]
[null,null,null,null,33,"Tamil Nadu",617,"Cuddalore",803648,"Nellikuppam","05788"]
[null,null,null,null,33,"Tamil Nadu",617,"Cuddalore",803649,"Panruti","05788"]
[null,null,null,null,33,"Tamil Nadu",617,"Cuddalore",803650,"Cuddalore","05789"]
[null,null,null,null,33,"Tamil Nadu",617,"Cuddalore",803651,"Kurinjipadi ","05790"]
[null,null,null,null,33,"Tamil Nadu",617,"Cuddalore",803652,"Vadalur ","05790"]
[null,null,null,null,33,"Tamil Nadu",617,"Cuddalore",803653,"Parangipettai ","05791"]
[null,null,null,null,33,"Tamil Nadu",617,"Cuddalore",803654,"Sethiathoppu ","05791"]
[null,null,null,null,33,"Tamil Nadu",617,"Cuddalore",803655,"Bhuvanagiri ","05791"]
[null,null,null,null,33,"Tamil Nadu",617,"Cuddalore",803656,"Killai ","05791"]
[null,null,null,null,33,"Tamil Nadu",617,"Cuddalore",803657,"Chidambaram","05791"]
[null,null,null,null,33,"Tamil Nadu",617,"Cuddalore",803658,"Annamalai Nagar ","05791"]
[null,null,null,null,33,"Tamil Nadu",617,"Cuddalore",803659,"Srimushnam ","05792"]
[null,null,null,null,33,"Tamil Nadu",617,"Cuddalore",803660,"Lalpet ","05792"]
[null,null,null,null,33,"Tamil Nadu",617,"Cuddalore",803661,"Kattumannarkoil ","05792"]
[null,null,null,null,33,"Tamil Nadu",617,"Cuddalore",803662,"Mangalampet ","05793"]
[null,null,null,null,33,"Tamil Nadu",617,"Cuddalore",803663,"Gangaikondan ","05793"]
[null,null,null,null,33,"Tamil Nadu",617,"Cuddalore",803664,"Virudhachalam","05793"]
[null,null,null,null,33,"Tamil Nadu",617,"Cuddalore",803665,"Pennadam ","05794"]
[null,null,null,null,33,"Tamil Nadu",617,"Cuddalore",803666,"Tittakudi ","05794"]
[null,null,null,null,33,"Tamil Nadu",618,"Nagapattinam  ",803667,"Sirkali","05795"]
[null,null,null,null,33,"Tamil Nadu",618,"Nagapattinam  ",803668,"Vaitheeswarankoil ","05795"]
[null,null,null,null,33,"Tamil Nadu",618,"Nagapattinam  ",803669,"Manalmedu ","05796"]
[null,null,null,null,33,"Tamil Nadu",618,"Nagapattinam  ",803670,"Mayiladuthurai","05796"]
[null,null,null,null,33,"Tamil Nadu",618,"Nagapattinam  ",803671,"Kuthalam ","05797"]
[null,null,null,null,33,"Tamil Nadu",618,"Nagapattinam  ",803672,"Tharangambadi ","05798"]
[null,null,null,null,33,"Tamil Nadu",618,"Nagapattinam  ",803673,"Tittacheri ","05799"]
[null,null,null,null,33,"Tamil Nadu",618,"Nagapattinam  ",803674,"Nagapattinam","05799"]
[null,null,null,null,33,"Tamil Nadu",618,"Nagapattinam  ",803675,"Kilvelur ","05800"]
[null,null,null,null,33,"Tamil Nadu",618,"Nagapattinam  ",803676,"Velankanni ","05800"]
[null,null,null,null,33,"Tamil Nadu",618,"Nagapattinam  ",803677,"Thalainayar ","05802"]
[null,null,null,null,33,"Tamil Nadu",618,"Nagapattinam  ",803678,"Vedaranyam","05802"]
[null,null,null,null,33,"Tamil Nadu",619,"Thiruvarur",803679,"Valangaiman ","05803"]
[null,null,null,null,33,"Tamil Nadu",619,"Thiruvarur",803680,"Kodavasal ","05804"]
[null,null,null,null,33,"Tamil Nadu",619,"Thiruvarur",803681,"Koradacheri ","05804"]
[null,null,null,null,33,"Tamil Nadu",619,"Thiruvarur",803682,"Peralam ","05805"]
[null,null,null,null,33,"Tamil Nadu",619,"Thiruvarur",803683,"Nannilam ","05805"]
[null,null,null,null,33,"Tamil Nadu",619,"Thiruvarur",803684,"Thiruvarur","05806"]
[null,null,null,null,33,"Tamil Nadu",619,"Thiruvarur",803685,"Needamangalam ","05807"]
[null,null,null,null,33,"Tamil Nadu",619,"Thiruvarur",803686,"Kuthanallur","05807"]
[null,null,null,null,33,"Tamil Nadu",619,"Thiruvarur",803687,"Mannargudi","05808"]
[null,null,null,null,33,"Tamil Nadu",619,"Thiruvarur",803688,"Thiruthuraipoondi","05809"]
[null,null,null,null,33,"Tamil Nadu",619,"Thiruvarur",803689,"Muthupet ","05809"]
[null,null,null,null,33,"Tamil Nadu",620,"Thanjavur",803690,"Thiruppanandal ","05810"]
[null,null,null,null,33,"Tamil Nadu",620,"Thanjavur",803691,"Aduthurai alias Maruthuvakudi ","05810"]
[null,null,null,null,33,"Tamil Nadu",620,"Thanjavur",803692,"Veppathur ","05810"]
[null,null,null,null,33,"Tamil Nadu",620,"Thanjavur",803693,"Thirupuvanam ","05810"]
[null,null,null,null,33,"Tamil Nadu",620,"Thanjavur",803694,"Thiruvidaimarudur ","05810"]
[null,null,null,null,33,"Tamil Nadu",620,"Thanjavur",803695,"Cholapuram ","05811"]
[null,null,null,null,33,"Tamil Nadu",620,"Thanjavur",803696,"Thirunageswaram ","05811"]
[null,null,null,null,33,"Tamil Nadu",620,"Thanjavur",803697,"Kumbakonam","05811"]
[null,null,null,null,33,"Tamil Nadu",620,"Thanjavur",803698,"Swamimalai ","05811"]
[null,null,null,null,33,"Tamil Nadu",620,"Thanjavur",803699,"Dharasuram ","05811"]
[null,null,null,null,33,"Tamil Nadu",620,"Thanjavur",803700,"Papanasam ","05812"]
[null,null,null,null,33,"Tamil Nadu",620,"Thanjavur",803701,"Ayyampettai ","05812"]
[null,null,null,null,33,"Tamil Nadu",620,"Thanjavur",803702,"Melattur ","05812"]
[null,null,null,null,33,"Tamil Nadu",620,"Thanjavur",803703,"Ammapettai ","05812"]
[null,null,null,null,33,"Tamil Nadu",620,"Thanjavur",803704,"Thiruvaiyaru ","05813"]
[null,null,null,null,33,"Tamil Nadu",620,"Thanjavur",803705,"Melathiruppanthuruthi ","05813"]
[null,null,null,null,33,"Tamil Nadu",620,"Thanjavur",803706,"Thirukkattupalli ","05813"]
[null,null,null,null,33,"Tamil Nadu",620,"Thanjavur",803707,"Thanjavur","05814"]
[null,null,null,null,33,"Tamil Nadu",620,"Thanjavur",803708,"Vallam ","05814"]
[null,null,null,null,33,"Tamil Nadu",620,"Thanjavur",803709,"Orathanadu (Mukthambalpuram) ","05815"]
[null,null,null,null,33,"Tamil Nadu",620,"Thanjavur",803710,"Madukkur ","05816"]
[null,null,null,null,33,"Tamil Nadu",620,"Thanjavur",803711,"Pattukkottai","05816"]
[null,null,null,null,33,"Tamil Nadu",620,"Thanjavur",803712,"Adiramapattinam ","05816"]
[null,null,null,null,33,"Tamil Nadu",620,"Thanjavur",803713,"Peravurani ","05817"]
[null,null,null,null,33,"Tamil Nadu",620,"Thanjavur",803714,"Perumagalur ","05817"]
[null,null,null,null,33,"Tamil Nadu",621,"Pudukkottai",803715,"Iluppur ","05818"]
[null,null,null,null,33,"Tamil Nadu",621,"Pudukkottai",803716,"Annavasal ","05818"]
[null,null,null,null,33,"Tamil Nadu",621,"Pudukkottai",803717,"Keeranur ","05819"]
[null,null,null,null,33,"Tamil Nadu",621,"Pudukkottai",803718,"Pudukkottai","05821"]
[null,null,null,null,33,"Tamil Nadu",621,"Pudukkottai",803719,"Arimalam ","05822"]
[null,null,null,null,33,"Tamil Nadu",621,"Pudukkottai",803720,"Ponnamaravathi ","05823"]
[null,null,null,null,33,"Tamil Nadu",621,"Pudukkottai",803721,"Alangudi ","05824"]
[null,null,null,null,33,"Tamil Nadu",621,"Pudukkottai",803722,"Keeramangalam ","05824"]
[null,null,null,null,33,"Tamil Nadu",621,"Pudukkottai",803723,"Karambakkudi ","05825"]
[null,null,null,null,33,"Tamil Nadu",621,"Pudukkottai",803724,"Aranthangi","05826"]
[null,null,null,null,33,"Tamil Nadu",622,"Sivaganga",803725,"Nerkuppai ","05829"]
[null,null,null,null,33,"Tamil Nadu",622,"Sivaganga",803726,"Singampuneri ","05829"]
[null,null,null,null,33,"Tamil Nadu",622,"Sivaganga",803727,"Tirupathur ","05829"]
[null,null,null,null,33,"Tamil Nadu",622,"Sivaganga",803728,"Kanadukathan ","05830"]
[null,null,null,null,33,"Tamil Nadu",622,"Sivaganga",803729,"Pallathur ","05830"]
[null,null,null,null,33,"Tamil Nadu",622,"Sivaganga",803730,"Kottaiyur ","05830"]
[null,null,null,null,33,"Tamil Nadu",622,"Sivaganga",803731,"Kandanur ","05830"]
[null,null,null,null,33,"Tamil Nadu",622,"Sivaganga",803732,"Puduvayal ","05830"]
[null,null,null,null,33,"Tamil Nadu",622,"Sivaganga",803733,"Karaikkudi","05830"]
[null,null,null,null,33,"Tamil Nadu",622,"Sivaganga",803734,"Devakottai","05831"]
[null,null,null,null,33,"Tamil Nadu",622,"Sivaganga",803735,"Nattarasankottai ","05832"]
[null,null,null,null,33,"Tamil Nadu",622,"Sivaganga",803736,"Sivaganga","05832"]
[null,null,null,null,33,"Tamil Nadu",622,"Sivaganga",803737,"Thirupuvanam ","05833"]
[null,null,null,null,33,"Tamil Nadu",622,"Sivaganga",803738,"Manamadurai ","05833"]
[null,null,null,null,33,"Tamil Nadu",622,"Sivaganga",803739,"Ilayangudi ","05834"]
[null,null,null,null,33,"Tamil Nadu",623,"Madurai",803740,"A.Vellalapatti ","05835"]
[null,null,null,null,33,"Tamil Nadu",623,"Madurai",803741,"Melur","05835"]
[null,null,null,null,33,"Tamil Nadu",623,"Madurai",803742,"Anaiyur","05836"]
[null,null,null,null,33,"Tamil Nadu",623,"Madurai",803743,"Paravai ","05836"]
[null,null,null,null,33,"Tamil Nadu",623,"Madurai",803744,"Vilangudi ","05836"]
[null,null,null,null,33,"Tamil Nadu",623,"Madurai",803745,"Vadipatti ","05837"]
[null,null,null,null,33,"Tamil Nadu",623,"Madurai",803746,"Palamedu ","05837"]
[null,null,null,null,33,"Tamil Nadu",623,"Madurai",803747,"Sholavandan ","05837"]
[null,null,null,null,33,"Tamil Nadu",623,"Madurai",803748,"Alanganallur ","05837"]
[null,null,null,null,33,"Tamil Nadu",623,"Madurai",803749,"Usilampatti","05838"]
[null,null,null,null,33,"Tamil Nadu",623,"Madurai",803750,"Elumalai ","05839"]
[null,null,null,null,33,"Tamil Nadu",623,"Madurai",803751,"T.Kallupatti ","05839"]
[null,null,null,null,33,"Tamil Nadu",623,"Madurai",803752,"Peraiyur ","05839"]
[null,null,null,null,33,"Tamil Nadu",623,"Madurai",803753,"Thirumangalam","05840"]
[null,null,null,null,33,"Tamil Nadu",623,"Madurai",803754,"Madurai ","05841"]
[null,null,null,null,33,"Tamil Nadu",623,"Madurai",803755,"Thirunagar ","05841"]
[null,null,null,null,33,"Tamil Nadu",623,"Madurai",803756,"Avaniapuram","05841"]
[null,null,null,null,33,"Tamil Nadu",623,"Madurai",803757,"Thiruparankundram ","05841"]
[null,null,null,null,33,"Tamil Nadu",623,"Madurai",803758,"Harveypatti ","05841"]
[null,null,null,null,33,"Tamil Nadu",624,"Theni  ",803759,"Boothipuram ","05842"]
[null,null,null,null,33,"Tamil Nadu",624,"Theni  ",803760,"Bodinayakanur","05842"]
[null,null,null,null,33,"Tamil Nadu",624,"Theni  ",803761,"Melachokkanathapuram ","05842"]
[null,null,null,null,33,"Tamil Nadu",624,"Theni  ",803762,"B. Meenakshipuram ","05842"]
[null,null,null,null,33,"Tamil Nadu",624,"Theni  ",803763,"Ganguvarpatti ","05843"]
[null,null,null,null,33,"Tamil Nadu",624,"Theni  ",803764,"Devadanapatti ","05843"]
[null,null,null,null,33,"Tamil Nadu",624,"Theni  ",803765,"Vadugapatti ","05843"]
[null,null,null,null,33,"Tamil Nadu",624,"Theni  ",803766,"Thamaraikulam ","05843"]
[null,null,null,null,33,"Tamil Nadu",624,"Theni  ",803767,"Periyakulam","05843"]
[null,null,null,null,33,"Tamil Nadu",624,"Theni  ",803768,"Thenkarai ","05843"]
[null,null,null,null,33,"Tamil Nadu",624,"Theni  ",803769,"Theni Allinagaram","05844"]
[null,null,null,null,33,"Tamil Nadu",624,"Theni  ",803770,"Palani Chettipatti ","05844"]
[null,null,null,null,33,"Tamil Nadu",624,"Theni  ",803771,"Veerapandi ","05844"]
[null,null,null,null,33,"Tamil Nadu",624,"Theni  ",803772,"Thevaram ","05845"]
[null,null,null,null,33,"Tamil Nadu",624,"Theni  ",803773,"Kuchanur ","05845"]
[null,null,null,null,33,"Tamil Nadu",624,"Theni  ",803774,"Markayankottai ","05845"]
[null,null,null,null,33,"Tamil Nadu",624,"Theni  ",803775,"Pannaipuram ","05845"]
[null,null,null,null,33,"Tamil Nadu",624,"Theni  ",803776,"Kombai ","05845"]
[null,null,null,null,33,"Tamil Nadu",624,"Theni  ",803777,"Chinnamanur","05845"]
[null,null,null,null,33,"Tamil Nadu",624,"Theni  ",803778,"Odaipatti ","05845"]
[null,null,null,null,33,"Tamil Nadu",624,"Theni  ",803779,"Uthamapalayam ","05845"]
[null,null,null,null,33,"Tamil Nadu",624,"Theni  ",803780,"Hanumanthampatti ","05845"]
[null,null,null,null,33,"Tamil Nadu",624,"Theni  ",803781,"Pudupatti ","05845"]
[null,null,null,null,33,"Tamil Nadu",624,"Theni  ",803782,"Kamayagoundanpatti ","05845"]
[null,null,null,null,33,"Tamil Nadu",624,"Theni  ",803783,"Kambam","05845"]
[null,null,null,null,33,"Tamil Nadu",624,"Theni  ",803784,"Gudalur","05845"]
[null,null,null,null,33,"Tamil Nadu",624,"Theni  ",803785,"Highways ","05845"]
[null,null,null,null,33,"Tamil Nadu",624,"Theni  ",803786,"Andipatti Jakkampatti ","05846"]
[null,null,null,null,33,"Tamil Nadu",625,"Virudhunagar",803787,"Rajapalayam","05847"]
[null,null,null,null,33,"Tamil Nadu",625,"Virudhunagar",803788,"Seithur ","05847"]
[null,null,null,null,33,"Tamil Nadu",625,"Virudhunagar",803789,"Chettiarpatti ","05847"]
[null,null,null,null,33,"Tamil Nadu",625,"Virudhunagar",803790,"S.Kodikulam ","05848"]
[null,null,null,null,33,"Tamil Nadu",625,"Virudhunagar",803791,"Vathirairuppu ","05848"]
[null,null,null,null,33,"Tamil Nadu",625,"Virudhunagar",803792,"V.Pudupatti ","05848"]
[null,null,null,null,33,"Tamil Nadu",625,"Virudhunagar",803793,"Sundarapandiam ","05848"]
[null,null,null,null,33,"Tamil Nadu",625,"Virudhunagar",803794,"Srivilliputhur","05848"]
[null,null,null,null,33,"Tamil Nadu",625,"Virudhunagar",803795,"Mamsapuram ","05848"]
[null,null,null,null,33,"Tamil Nadu",625,"Virudhunagar",803796,"Thiruthangal","05849"]
[null,null,null,null,33,"Tamil Nadu",625,"Virudhunagar",803797,"Sivakasi","05849"]
[null,null,null,null,33,"Tamil Nadu",625,"Virudhunagar",803798,"Virudhunagar","05850"]
[null,null,null,null,33,"Tamil Nadu",625,"Virudhunagar",803799,"Kariapatti ","05851"]
[null,null,null,null,33,"Tamil Nadu",625,"Virudhunagar",803800,"Mallankinaru ","05851"]
[null,null,null,null,33,"Tamil Nadu",625,"Virudhunagar",803801,"Aruppukkottai","05853"]
[null,null,null,null,33,"Tamil Nadu",625,"Virudhunagar",803802,"Sattur","05854"]
[null,null,null,null,33,"Tamil Nadu",626,"Ramanathapuram",803803,"Thondi ","05855"]
[null,null,null,null,33,"Tamil Nadu",626,"Ramanathapuram",803804,"R.S.Mangalam ","05855"]
[null,null,null,null,33,"Tamil Nadu",626,"Ramanathapuram",803805,"Paramakudi","05856"]
[null,null,null,null,33,"Tamil Nadu",626,"Ramanathapuram",803806,"Mudukulathur ","05857"]
[null,null,null,null,33,"Tamil Nadu",626,"Ramanathapuram",803807,"Abiramam ","05858"]
[null,null,null,null,33,"Tamil Nadu",626,"Ramanathapuram",803808,"Kamuthi ","05858"]
[null,null,null,null,33,"Tamil Nadu",626,"Ramanathapuram",803809,"Sayalgudi ","05859"]
[null,null,null,null,33,"Tamil Nadu",626,"Ramanathapuram",803810,"Ramanathapuram","05860"]
[null,null,null,null,33,"Tamil Nadu",626,"Ramanathapuram",803811,"Mandapam ","05860"]
[null,null,null,null,33,"Tamil Nadu",626,"Ramanathapuram",803812,"Keelakarai","05860"]
[null,null,null,null,33,"Tamil Nadu",626,"Ramanathapuram",803813,"Rameswaram","05861"]
[null,null,null,null,33,"Tamil Nadu",627,"Thoothukkudi",803814,"Kovilpatti","05862"]
[null,null,null,null,33,"Tamil Nadu",627,"Thoothukkudi",803815,"Kalugumalai ","05862"]
[null,null,null,null,33,"Tamil Nadu",627,"Thoothukkudi",803816,"Kadambur ","05862"]
[null,null,null,null,33,"Tamil Nadu",627,"Thoothukkudi",803817,"Kayatharu ","05862"]
[null,null,null,null,33,"Tamil Nadu",627,"Thoothukkudi",803818,"Ettayapuram ","05863"]
[null,null,null,null,33,"Tamil Nadu",627,"Thoothukkudi",803819,"V. Pudur ","05864"]
[null,null,null,null,33,"Tamil Nadu",627,"Thoothukkudi",803820,"Vilathikulam ","05864"]
[null,null,null,null,33,"Tamil Nadu",627,"Thoothukkudi",803821,"Thoothukkudi ","05866"]
[null,null,null,null,33,"Tamil Nadu",627,"Thoothukkudi",803822,"Sayapuram ","05867"]
[null,null,null,null,33,"Tamil Nadu",627,"Thoothukkudi",803823,"Perungulam ","05867"]
[null,null,null,null,33,"Tamil Nadu",627,"Thoothukkudi",803824,"Srivaikuntam ","05867"]
[null,null,null,null,33,"Tamil Nadu",627,"Thoothukkudi",803825,"Eral ","05867"]
[null,null,null,null,33,"Tamil Nadu",627,"Thoothukkudi",803826,"Kayalpattinam","05868"]
[null,null,null,null,33,"Tamil Nadu",627,"Thoothukkudi",803827,"Athur ","05868"]
[null,null,null,null,33,"Tamil Nadu",627,"Thoothukkudi",803828,"Thenthiruperai ","05868"]
[null,null,null,null,33,"Tamil Nadu",627,"Thoothukkudi",803829,"Alwarthirunagiri ","05868"]
[null,null,null,null,33,"Tamil Nadu",627,"Thoothukkudi",803830,"Nazerath ","05868"]
[null,null,null,null,33,"Tamil Nadu",627,"Thoothukkudi",803831,"Arumuganeri ","05868"]
[null,null,null,null,33,"Tamil Nadu",627,"Thoothukkudi",803832,"Kanam ","05868"]
[null,null,null,null,33,"Tamil Nadu",627,"Thoothukkudi",803833,"Tiruchendur ","05868"]
[null,null,null,null,33,"Tamil Nadu",627,"Thoothukkudi",803834,"Udangudi ","05868"]
[null,null,null,null,33,"Tamil Nadu",627,"Thoothukkudi",803835,"Sathankulam ","05869"]
[null,null,null,null,33,"Tamil Nadu",628,"Tirunelveli ",803836,"Sivagiri ","05870"]
[null,null,null,null,33,"Tamil Nadu",628,"Tirunelveli ",803837,"Rayagiri ","05870"]
[null,null,null,null,33,"Tamil Nadu",628,"Tirunelveli ",803838,"Vasudevanallur ","05870"]
[null,null,null,null,33,"Tamil Nadu",628,"Tirunelveli ",803839,"Puliankudi","05870"]
[null,null,null,null,33,"Tamil Nadu",628,"Tirunelveli ",803840,"Thiruvenkadam ","05871"]
[null,null,null,null,33,"Tamil Nadu",628,"Tirunelveli ",803841,"Sankarankoil","05871"]
[null,null,null,null,33,"Tamil Nadu",628,"Tirunelveli ",803842,"Surandai ","05872"]
[null,null,null,null,33,"Tamil Nadu",628,"Tirunelveli ",803843,"Kadayanallur","05873"]
[null,null,null,null,33,"Tamil Nadu",628,"Tirunelveli ",803844,"Sambavar Vadagarai ","05873"]
[null,null,null,null,33,"Tamil Nadu",628,"Tirunelveli ",803845,"Aygudi ","05873"]
[null,null,null,null,33,"Tamil Nadu",628,"Tirunelveli ",803846,"Tenkasi","05873"]
[null,null,null,null,33,"Tamil Nadu",628,"Tirunelveli ",803847,"Sundarapandiapuram ","05873"]
[null,null,null,null,33,"Tamil Nadu",628,"Tirunelveli ",803848,"Ilanji ","05873"]
[null,null,null,null,33,"Tamil Nadu",628,"Tirunelveli ",803849,"Courtalam ","05873"]
[null,null,null,null,33,"Tamil Nadu",628,"Tirunelveli ",803850,"Melagaram ","05873"]
[null,null,null,null,33,"Tamil Nadu",628,"Tirunelveli ",803851,"Achampudur ","05874"]
[null,null,null,null,33,"Tamil Nadu",628,"Tirunelveli ",803852,"Vadakarai Keezhpadugai ","05874"]
[null,null,null,null,33,"Tamil Nadu",628,"Tirunelveli ",803853,"Panpoli ","05874"]
[null,null,null,null,33,"Tamil Nadu",628,"Tirunelveli ",803854,"Pudur (S) ","05874"]
[null,null,null,null,33,"Tamil Nadu",628,"Tirunelveli ",803855,"Shenkottai","05874"]
[null,null,null,null,33,"Tamil Nadu",628,"Tirunelveli ",803856,"Kilapavoor ","05875"]
[null,null,null,null,33,"Tamil Nadu",628,"Tirunelveli ",803857,"Alangulam ","05875"]
[null,null,null,null,33,"Tamil Nadu",628,"Tirunelveli ",803858,"Sankarnagar ","05876"]
[null,null,null,null,33,"Tamil Nadu",628,"Tirunelveli ",803859,"Naranammalpuram ","05876"]
[null,null,null,null,33,"Tamil Nadu",628,"Tirunelveli ",803860,"Tirunelveli ","05876"]
[null,null,null,null,33,"Tamil Nadu",628,"Tirunelveli ",803861,"Alwarkurichi ","05878"]
[null,null,null,null,33,"Tamil Nadu",628,"Tirunelveli ",803862,"Mukkudal ","05878"]
[null,null,null,null,33,"Tamil Nadu",628,"Tirunelveli ",803863,"Vikramasingapuram","05878"]
[null,null,null,null,33,"Tamil Nadu",628,"Tirunelveli ",803864,"Ambasamudram","05878"]
[null,null,null,null,33,"Tamil Nadu",628,"Tirunelveli ",803865,"Cheranmadevi ","05878"]
[null,null,null,null,33,"Tamil Nadu",628,"Tirunelveli ",803866,"Veeravanallur ","05878"]
[null,null,null,null,33,"Tamil Nadu",628,"Tirunelveli ",803867,"Kalladaikurichi ","05878"]
[null,null,null,null,33,"Tamil Nadu",628,"Tirunelveli ",803868,"Manimutharu ","05878"]
[null,null,null,null,33,"Tamil Nadu",628,"Tirunelveli ",803869,"Pathamadai ","05878"]
[null,null,null,null,33,"Tamil Nadu",628,"Tirunelveli ",803870,"Melacheval ","05878"]
[null,null,null,null,33,"Tamil Nadu",628,"Tirunelveli ",803871,"Gopalasamudram ","05878"]
[null,null,null,null,33,"Tamil Nadu",628,"Tirunelveli ",803872,"Moolakaraipatti ","05879"]
[null,null,null,null,33,"Tamil Nadu",628,"Tirunelveli ",803873,"Kalakad ","05879"]
[null,null,null,null,33,"Tamil Nadu",628,"Tirunelveli ",803874,"Nanguneri ","05879"]
[null,null,null,null,33,"Tamil Nadu",628,"Tirunelveli ",803875,"Eruvadi ","05879"]
[null,null,null,null,33,"Tamil Nadu",628,"Tirunelveli ",803876,"Thirukarungudi ","05879"]
[null,null,null,null,33,"Tamil Nadu",628,"Tirunelveli ",803877,"Vadakkuvalliyur ","05880"]
[null,null,null,null,33,"Tamil Nadu",628,"Tirunelveli ",803878,"Panagudi ","05880"]
[null,null,null,null,33,"Tamil Nadu",628,"Tirunelveli ",803879,"Thisayanvilai ","05880"]
[null,null,null,null,33,"Tamil Nadu",629,"Kanniyakumari",803880,"Kadayal ","05881"]
[null,null,null,null,33,"Tamil Nadu",629,"Kanniyakumari",803881,"Arumanai ","05881"]
[null,null,null,null,33,"Tamil Nadu",629,"Kanniyakumari",803882,"Edaicode ","05881"]
[null,null,null,null,33,"Tamil Nadu",629,"Kanniyakumari",803883,"Palugal ","05881"]
[null,null,null,null,33,"Tamil Nadu",629,"Kanniyakumari",803884,"Kaliyakkavilai ","05881"]
[null,null,null,null,33,"Tamil Nadu",629,"Kanniyakumari",803885,"Pacode ","05881"]
[null,null,null,null,33,"Tamil Nadu",629,"Kanniyakumari",803886,"Kuzhithurai","05881"]
[null,null,null,null,33,"Tamil Nadu",629,"Kanniyakumari",803887,"Unnamalaikadai ","05881"]
[null,null,null,null,33,"Tamil Nadu",629,"Kanniyakumari",803888,"Nalloor ","05881"]
[null,null,null,null,33,"Tamil Nadu",629,"Kanniyakumari",803889,"Kollancode ","05881"]
[null,null,null,null,33,"Tamil Nadu",629,"Kanniyakumari",803890,"Ezhudesam ","05881"]
[null,null,null,null,33,"Tamil Nadu",629,"Kanniyakumari",803891,"Puthukkadai ","05881"]
[null,null,null,null,33,"Tamil Nadu",629,"Kanniyakumari",803892,"Killiyoor ","05881"]
[null,null,null,null,33,"Tamil Nadu",629,"Kanniyakumari",803893,"Keezhkulam ","05881"]
[null,null,null,null,33,"Tamil Nadu",629,"Kanniyakumari",803894,"Karungal ","05881"]
[null,null,null,null,33,"Tamil Nadu",629,"Kanniyakumari",803895,"Palappallam ","05881"]
[null,null,null,null,33,"Tamil Nadu",629,"Kanniyakumari",803896,"Thirparappu ","05882"]
[null,null,null,null,33,"Tamil Nadu",629,"Kanniyakumari",803897,"Ponmanai ","05882"]
[null,null,null,null,33,"Tamil Nadu",629,"Kanniyakumari",803898,"Kulasekaram ","05882"]
[null,null,null,null,33,"Tamil Nadu",629,"Kanniyakumari",803899,"Thiruvattar ","05882"]
[null,null,null,null,33,"Tamil Nadu",629,"Kanniyakumari",803900,"Athur ","05882"]
[null,null,null,null,33,"Tamil Nadu",629,"Kanniyakumari",803901,"Verkilambi ","05882"]
[null,null,null,null,33,"Tamil Nadu",629,"Kanniyakumari",803902,"Kumarapuram ","05882"]
[null,null,null,null,33,"Tamil Nadu",629,"Kanniyakumari",803903,"Kothanallur ","05882"]
[null,null,null,null,33,"Tamil Nadu",629,"Kanniyakumari",803904,"Valvaithankoshtam ","05882"]
[null,null,null,null,33,"Tamil Nadu",629,"Kanniyakumari",803905,"Mulagumudu ","05882"]
[null,null,null,null,33,"Tamil Nadu",629,"Kanniyakumari",803906,"Vilavur ","05882"]
[null,null,null,null,33,"Tamil Nadu",629,"Kanniyakumari",803907,"Padmanabhapuram","05882"]
[null,null,null,null,33,"Tamil Nadu",629,"Kanniyakumari",803908,"Thiruvithancode ","05882"]
[null,null,null,null,33,"Tamil Nadu",629,"Kanniyakumari",803909,"Kappiyarai ","05882"]
[null,null,null,null,33,"Tamil Nadu",629,"Kanniyakumari",803910,"Eraniel ","05882"]
[null,null,null,null,33,"Tamil Nadu",629,"Kanniyakumari",803911,"Villukuri ","05882"]
[null,null,null,null,33,"Tamil Nadu",629,"Kanniyakumari",803912,"Neyyoor ","05882"]
[null,null,null,null,33,"Tamil Nadu",629,"Kanniyakumari",803913,"Reethapuram ","05882"]
[null,null,null,null,33,"Tamil Nadu",629,"Kanniyakumari",803914,"Kallukuttam ","05882"]
[null,null,null,null,33,"Tamil Nadu",629,"Kanniyakumari",803915,"Thingalnagar ","05882"]
[null,null,null,null,33,"Tamil Nadu",629,"Kanniyakumari",803916,"Alur ","05882"]
[null,null,null,null,33,"Tamil Nadu",629,"Kanniyakumari",803917,"Colachel","05882"]
[null,null,null,null,33,"Tamil Nadu",629,"Kanniyakumari",803918,"Mandaikadu ","05882"]
[null,null,null,null,33,"Tamil Nadu",629,"Kanniyakumari",803919,"Manavalakurichi ","05882"]
[null,null,null,null,33,"Tamil Nadu",629,"Kanniyakumari",803920,"Vellimalai ","05882"]
[null,null,null,null,33,"Tamil Nadu",629,"Kanniyakumari",803921,"Azhagiapandipuram ","05883"]
[null,null,null,null,33,"Tamil Nadu",629,"Kanniyakumari",803922,"Boothapandi ","05883"]
[null,null,null,null,33,"Tamil Nadu",629,"Kanniyakumari",803923,"Aralvaimozhi ","05883"]
[null,null,null,null,33,"Tamil Nadu",629,"Kanniyakumari",803924,"Thazhakudy ","05883"]
[null,null,null,null,33,"Tamil Nadu",629,"Kanniyakumari",803925,"Marungur ","05884"]
[null,null,null,null,33,"Tamil Nadu",629,"Kanniyakumari",803926,"Therur ","05884"]
[null,null,null,null,33,"Tamil Nadu",629,"Kanniyakumari",803927,"Nagercoil","05884"]
[null,null,null,null,33,"Tamil Nadu",629,"Kanniyakumari",803928,"Asaripallam ","05884"]
[null,null,null,null,33,"Tamil Nadu",629,"Kanniyakumari",803929,"Suchindrum ","05884"]
[null,null,null,null,33,"Tamil Nadu",629,"Kanniyakumari",803930,"Ganapathipuram ","05884"]
[null,null,null,null,33,"Tamil Nadu",629,"Kanniyakumari",803931,"Mylaudy ","05884"]
[null,null,null,null,33,"Tamil Nadu",629,"Kanniyakumari",803932,"Alagappapuram ","05884"]
[null,null,null,null,33,"Tamil Nadu",629,"Kanniyakumari",803933,"Anjugrammam ","05884"]
[null,null,null,null,33,"Tamil Nadu",629,"Kanniyakumari",803934,"Kottaram ","05884"]
[null,null,null,null,33,"Tamil Nadu",629,"Kanniyakumari",803935,"Thengampudur ","05884"]
[null,null,null,null,33,"Tamil Nadu",629,"Kanniyakumari",803936,"Puthalam ","05884"]
[null,null,null,null,33,"Tamil Nadu",629,"Kanniyakumari",803937,"Agastheeswaram ","05884"]
[null,null,null,null,33,"Tamil Nadu",629,"Kanniyakumari",803938,"Thenthamaraikulam ","05884"]
[null,null,null,null,33,"Tamil Nadu",629,"Kanniyakumari",803939,"Kanniyakumari ","05884"]
[null,null,null,null,33,"Tamil Nadu",630,"Dharmapuri",803940,"Marandahalli ","05885"]
[null,null,null,null,33,"Tamil Nadu",630,"Dharmapuri",803941,"Kariamangalam ","05885"]
[null,null,null,null,33,"Tamil Nadu",630,"Dharmapuri",803942,"Palakkodu ","05885"]
[null,null,null,null,33,"Tamil Nadu",630,"Dharmapuri",803943,"Kambainallur ","05886"]
[null,null,null,null,33,"Tamil Nadu",630,"Dharmapuri",803944,"Harur ","05886"]
[null,null,null,null,33,"Tamil Nadu",630,"Dharmapuri",803945,"Kadathur ","05887"]
[null,null,null,null,33,"Tamil Nadu",630,"Dharmapuri",803946,"B.Mallapuram ","05887"]
[null,null,null,null,33,"Tamil Nadu",630,"Dharmapuri",803947,"Pappireddipatti ","05887"]
[null,null,null,null,33,"Tamil Nadu",630,"Dharmapuri",803948,"Dharmapuri","05888"]
[null,null,null,null,33,"Tamil Nadu",630,"Dharmapuri",803949,"Papparapatti ","05889"]
[null,null,null,null,33,"Tamil Nadu",630,"Dharmapuri",803950,"Pennagaram ","05889"]
[null,null,null,null,33,"Tamil Nadu",631,"Krishnagiri",803951,"Hosur","05890"]
[null,null,null,null,33,"Tamil Nadu",631,"Krishnagiri",803952,"Mathigiri ","05890"]
[null,null,null,null,33,"Tamil Nadu",631,"Krishnagiri",803953,"Bargur ","05891"]
[null,null,null,null,33,"Tamil Nadu",631,"Krishnagiri",803954,"Krishnagiri","05891"]
[null,null,null,null,33,"Tamil Nadu",631,"Krishnagiri",803955,"Kaveripattinam ","05891"]
[null,null,null,null,33,"Tamil Nadu",631,"Krishnagiri",803956,"Kelamangalam ","05892"]
[null,null,null,null,33,"Tamil Nadu",631,"Krishnagiri",803957,"Denkanikottai ","05892"]
[null,null,null,null,33,"Tamil Nadu",631,"Krishnagiri",803958,"Nagojanahalli ","05893"]
[null,null,null,null,33,"Tamil Nadu",631,"Krishnagiri",803959,"Uthangarai ","05894"]
[null,null,null,null,33,"Tamil Nadu",632,"Coimbatore",803960,"Sirumugai ","05895"]
[null,null,null,null,33,"Tamil Nadu",632,"Coimbatore",803961,"Mettupalayam","05895"]
[null,null,null,null,33,"Tamil Nadu",632,"Coimbatore",803962,"Karamadai ","05895"]
[null,null,null,null,33,"Tamil Nadu",632,"Coimbatore",803963,"Mopperipalayam ","05896"]
[null,null,null,null,33,"Tamil Nadu",632,"Coimbatore",803964,"Karumathampatti ","05896"]
[null,null,null,null,33,"Tamil Nadu",632,"Coimbatore",803965,"Irugur ","05896"]
[null,null,null,null,33,"Tamil Nadu",632,"Coimbatore",803966,"Sulur ","05896"]
[null,null,null,null,33,"Tamil Nadu",632,"Coimbatore",803967,"Pallapalayam ","05896"]
[null,null,null,null,33,"Tamil Nadu",632,"Coimbatore",803968,"Kannampalayam ","05896"]
[null,null,null,null,33,"Tamil Nadu",632,"Coimbatore",803969,"Annur ","05897"]
[null,null,null,null,33,"Tamil Nadu",632,"Coimbatore",803970,"Veerapandi ","05897"]
[null,null,null,null,33,"Tamil Nadu",632,"Coimbatore",803971,"Gudalur ","05897"]
[null,null,null,null,33,"Tamil Nadu",632,"Coimbatore",803972,"Periyanaicken-palayam ","05897"]
[null,null,null,null,33,"Tamil Nadu",632,"Coimbatore",803973,"Idikarai ","05897"]
[null,null,null,null,33,"Tamil Nadu",632,"Coimbatore",803974,"Sarcarsamakulam ","05897"]
[null,null,null,null,33,"Tamil Nadu",632,"Coimbatore",803975,"Narasimhanaicken-palayam ","05897"]
[null,null,null,null,33,"Tamil Nadu",632,"Coimbatore",803976,"Kalapatti ","05897"]
[null,null,null,null,33,"Tamil Nadu",632,"Coimbatore",803977,"Saravanampatti ","05897"]
[null,null,null,null,33,"Tamil Nadu",632,"Coimbatore",803978,"Vellakinar ","05897"]
[null,null,null,null,33,"Tamil Nadu",632,"Coimbatore",803979,"Thudiyalur ","05897"]
[null,null,null,null,33,"Tamil Nadu",632,"Coimbatore",803980,"Chinnavedampatti ","05897"]
[null,null,null,null,33,"Tamil Nadu",632,"Coimbatore",803981,"Goundampalayam","05897"]
[null,null,null,null,33,"Tamil Nadu",632,"Coimbatore",803982,"Veerakeralam ","05897"]
[null,null,null,null,33,"Tamil Nadu",632,"Coimbatore",803983,"Vadavalli ","05898"]
[null,null,null,null,33,"Tamil Nadu",632,"Coimbatore",803984,"Coimbatore ","05898"]
[null,null,null,null,33,"Tamil Nadu",632,"Coimbatore",803985,"Thondamuthur ","05898"]
[null,null,null,null,33,"Tamil Nadu",632,"Coimbatore",803986,"Dhaliyur ","05898"]
[null,null,null,null,33,"Tamil Nadu",632,"Coimbatore",803987,"Vedapatti ","05898"]
[null,null,null,null,33,"Tamil Nadu",632,"Coimbatore",803988,"Vellalur ","05898"]
[null,null,null,null,33,"Tamil Nadu",632,"Coimbatore",803989,"Kurichi","05898"]
[null,null,null,null,33,"Tamil Nadu",632,"Coimbatore",803990,"Kuniyamuthur","05898"]
[null,null,null,null,33,"Tamil Nadu",632,"Coimbatore",803991,"Perur ","05898"]
[null,null,null,null,33,"Tamil Nadu",632,"Coimbatore",803992,"Thenkarai ","05898"]
[null,null,null,null,33,"Tamil Nadu",632,"Coimbatore",803993,"Pooluvapatti ","05898"]
[null,null,null,null,33,"Tamil Nadu",632,"Coimbatore",803994,"Alanthurai ","05898"]
[null,null,null,null,33,"Tamil Nadu",632,"Coimbatore",803995,"Chettipalayam ","05898"]
[null,null,null,null,33,"Tamil Nadu",632,"Coimbatore",803996,"Madukkarai ","05898"]
[null,null,null,null,33,"Tamil Nadu",632,"Coimbatore",803997,"Ettimadai ","05898"]
[null,null,null,null,33,"Tamil Nadu",632,"Coimbatore",803998,"Othakalmandapam ","05898"]
[null,null,null,null,33,"Tamil Nadu",632,"Coimbatore",803999,"Thirumalayampalayam ","05898"]
[null,null,null,null,33,"Tamil Nadu",632,"Coimbatore",804000,"Kinathukadavu ","05899"]
[null,null,null,null,33,"Tamil Nadu",632,"Coimbatore",804001,"Periya Negamam ","05899"]
[null,null,null,null,33,"Tamil Nadu",632,"Coimbatore",804002,"Pollachi","05899"]
[null,null,null,null,33,"Tamil Nadu",632,"Coimbatore",804003,"Zamin Uthukuli ","05899"]
[null,null,null,null,33,"Tamil Nadu",632,"Coimbatore",804004,"Suleeswaranpatti ","05899"]
[null,null,null,null,33,"Tamil Nadu",632,"Coimbatore",804005,"Samathur ","05899"]
[null,null,null,null,33,"Tamil Nadu",632,"Coimbatore",804006,"Anaimalai ","05899"]
[null,null,null,null,33,"Tamil Nadu",632,"Coimbatore",804007,"Odaiyakulam ","05899"]
[null,null,null,null,33,"Tamil Nadu",632,"Coimbatore",804008,"Vettaikaranpudur ","05899"]
[null,null,null,null,33,"Tamil Nadu",632,"Coimbatore",804009,"Kottur ","05899"]
[null,null,null,null,33,"Tamil Nadu",632,"Coimbatore",804010,"Valparai","05900"]
[null,null,null,null,33,"Tamil Nadu",633,"Tiruppur",804011,"Muthur ","05901"]
[null,null,null,null,33,"Tamil Nadu",633,"Tiruppur",804012,"Kangeyam ","05901"]
[null,null,null,null,33,"Tamil Nadu",633,"Tiruppur",804013,"Vellakoil","05901"]
[null,null,null,null,33,"Tamil Nadu",633,"Tiruppur",804014,"Rudravathi ","05902"]
[null,null,null,null,33,"Tamil Nadu",633,"Tiruppur",804015,"Kannivadi ","05902"]
[null,null,null,null,33,"Tamil Nadu",633,"Tiruppur",804016,"Mulanur ","05902"]
[null,null,null,null,33,"Tamil Nadu",633,"Tiruppur",804017,"Kolathupalayam ","05902"]
[null,null,null,null,33,"Tamil Nadu",633,"Tiruppur",804018,"Dharapuram","05902"]
[null,null,null,null,33,"Tamil Nadu",633,"Tiruppur",804019,"Chinnakkampalayam ","05902"]
[null,null,null,null,33,"Tamil Nadu",633,"Tiruppur",804020,"Kunnathur ","05903"]
[null,null,null,null,33,"Tamil Nadu",633,"Tiruppur",804021,"Avanashi ","05903"]
[null,null,null,null,33,"Tamil Nadu",633,"Tiruppur",804022,"Thirumuruganpoondi ","05903"]
[null,null,null,null,33,"Tamil Nadu",633,"Tiruppur",804023,"Uthukuli ","05903"]
[null,null,null,null,33,"Tamil Nadu",633,"Tiruppur",804024,"Velampalayam","05904"]
[null,null,null,null,33,"Tamil Nadu",633,"Tiruppur",804025,"S.Nallur","05904"]
[null,null,null,null,33,"Tamil Nadu",633,"Tiruppur",804026,"Tiruppur ","05904"]
[null,null,null,null,33,"Tamil Nadu",633,"Tiruppur",804027,"Samalapuram ","05905"]
[null,null,null,null,33,"Tamil Nadu",633,"Tiruppur",804028,"Palladam","05905"]
[null,null,null,null,33,"Tamil Nadu",633,"Tiruppur",804029,"Udumalaipettai ","05906"]
[null,null,null,null,33,"Tamil Nadu",633,"Tiruppur",804030,"Dhali ","05906"]
[null,null,null,null,33,"Tamil Nadu",633,"Tiruppur",804031,"Kaniyur ","05907"]
[null,null,null,null,33,"Tamil Nadu",633,"Tiruppur",804032,"Madathukulam ","05907"]
[null,null,null,null,33,"Tamil Nadu",633,"Tiruppur",804033,"Komaralingam ","05907"]
[null,null,null,null,33,"Tamil Nadu",633,"Tiruppur",804034,"Sankaramanallur ","05907"]
[null,null,null,null,34,"Puducherry",634,"Yanam",804035,"Yanam","05908"]
[null,null,null,null,34,"Puducherry",635,"Puducherry",804036,"Puducherry","05909"]
[null,null,null,null,34,"Puducherry",635,"Puducherry",804037,"Ozhukarai","05910"]
[null,null,null,null,34,"Puducherry",635,"Puducherry",804038,"Kurumbapet ","05911"]
[null,null,null,null,34,"Puducherry",636,"Mahe",804039,"Mahe","05913"]
[null,null,null,null,34,"Puducherry",637,"Karaikal",804040,"Karaikal","05914"]
[null,null,null,null,35,"Andaman and Nicobar Islands",640,"South Andaman",804041,"Port Blair ","05923"]

{"sheet":"ErrorList","index":4,"n_rows":54,"n_cols":2,"rows_kept":54,"cut":false,"hidden":false,"merged":[]}
["Cell No","Message"]
["B6","Loan Account Number should not be blank "]
["C6","Installment No should not be blank \r\n"]
["D6","Name of Borrower can not be blank\r\n"]
["E6","Please provide Unique Identification Proof\r\n"]
["F6","Proof Type Others - Please specify(Identification proof)\r\n"]
["G6"," Unique Identification No. Can not be blank\r\n"]
["H6","Father's/ Husband's Name can not be blank\r\n"]
["I6","Sex can not be blank\r\n"]
["J6","Date of birth should not be blank\r\n"]
["L6","Employeement Category should not be blank \r\n"]
["N6","Residence proof should not be blank \r\n"]
["O6","Residence address 1 can not be blank \r\n"]
["P6","Residence address 2 should not be blank\r\n"]
["Q6","Residence address 3 can not be blank \r\n"]
["R6","Residence address 4 can not be blank \r\n"]
["S6","Residence address 5 can not be blank \r\n"]
["T6","Residence address 6 can not be blank \r\n"]
["U6","Mobile No should not be blank \r\n"]
["V6","Category Caste should not be blank \r\n"]
["W6","Category Religion should not be blank \r\n"]
["X6","Preference Given Based on: Person with Disability (01), Manual Scavenger (02), Widow(03), SC/ST/OBC (04), Minority(05), Transgender(06), No preference (07)] should not be blank \r\n"]
["AH6","Household Category can not be blank \r\n"]
["AI6","Household Annual Income (Amount in Rs.) can not be blank \r\n"]
["AJ6","Property type can not be blank \r\n"]
["AK6","Property Category should not be blank \r\n"]
["AL6","Carpet Area of Property can not be blank \r\n"]
["AM6","Property address 1 can not be blank \r\n"]
["AN6","Property address 2 should not be blank\r\n"]
["AO6","Property address 3 can not be blank \r\n"]
["AP6","Property address 6 can not be blank \r\n"]
["AQ6","Location Code Can not be blank \r\n"]
["AR6","Name of Place can not be blank \r\n"]
["AS6","Property address 4 can not be blank \r\n"]
["AT6","Property address 5 can not be blank \r\n"]
["AU6","Ownership Mode should not be blank \r\n"]
["AV6","Stage of Construction can not be blank \r\n"]
["AW6","Loan Sources can not be blank \r\n"]
["AX6","Loan purpose can not be blank \r\n"]
["AY6","Is the loan taken over or  Balance Transferred from another PLI can not be blank\r\n"]
["AZ6","Loan amount sanctioned can not be blank \r\n"]
["BA6","Loan Interest Rate can not be blank \r\n"]
["BB6","Loan Interest Type can not be blank \r\n"]
["BC6","Loan Tenure, including Moratorium Period (in months) can not be blank \r\n"]
["BD6","Loan Moratorium Period (in months), if any can not be blank \r\n"]
["BE6","Repayment date can not be blank \r\n"]
["BF6","EMI Amount mentioned in Sanction Letter (in Rs.) can not be blank \r\n"]
["BG6","Date of First Disbursement Date  can not be blank \r\n"]
["BH6","Please provide First Disbursement date \r\n"]
["BI6","Loan Disbursed amount can not be blank \r\n"]
["BJ6","Cumulative Loan Disbursement) can not be blank \r\n"]
["BL6","Interest Subsidy Amount Claimed (in Rs.) can not be blank \r\n"]
["BM6","Cumulative Subsidy Released by NHB  (in Rs.) can not be blank \r\n"]
["BN6","No of dependent should not be blank \r\n"]

{"sheet":"Claim Summary","index":5,"n_rows":9,"n_cols":2,"rows_kept":9,"cut":false,"hidden":false,"merged":[[1,0,1,1]]}
[]
["Claim Summary"]
["Claim Date"]
["First Time Disbursements",439]
["Subsequent Disbursements",197]
["Loan Disbursed",455375072]
["Interest Subsidy Claimed",86520504]
["Processing Fees Claimed",439000]
["Amount Requested",86959504]

{"sheet":"Validation List","index":6,"n_rows":74,"n_cols":5,"rows_kept":74,"cut":false,"hidden":false,"merged":[[62,0,63,0]]}
["I. SN","SlNo","1","Autofilled"]
[null,"Loan Account Number",{"$f":"C1+1","v":2},"1. Should be upto 20 Chars \n2. Should not contain spaces \n3. Can contain special charecters\n"]
[null,"Installment No [Single Installment (00), Multiple Installments (Respective Number)]",3,"1. Can not be blank \n2. Should be value between 0 to 9\n"]
["II. Borrower Details","Name of Borrower",4,"1. Can not be blank \n2. Length should not exceed 80 Chars\n3. can  contain text, speces and period(.)\n","Modify"]
[null,"Unique Identification Proof [Aadhaar (01), Voter’s Card (02), PAN Card (03), Passport No (04), Revenue Authority Certificate (05) Others (06)] ",5,"Value between 01 to 06"]
[null,"If Others (06)- Please specify(Identification proof Type)",6,"1. Can be filled only 06 Selected in column 05 \n2. Can contain only text, spaces and periods\n3. Length of value should be upto 50\n4. In case Instalment No is greater than 1, column should be blank\n","Modify"]
[null,"Unique Identification No.",7,"1. Can not be blank\n2. UID Type 01: Should be ADHAR No of 12 digit\n3. UID Type 03: Should be PAN No(5 Alpha, 4 Numeric and 1 Alpha – Total 10 Chars)\n3. Max length of value can 20 chars\n"]
[null,"Father's/ Husband's Name",8,"1. Instalment No > 1, should be blank\n2. Instalment No 0 or 1 – Can not be blank\n3. Max Length of value upto 50 Chars\n4. Can contain text, spaces and period\n","modify"]
[null,"Sex [Male (01), Female (02), Transgender (03)]",9,"1. Instalment No > 1, should be blank\n2. Instalment No 0 or 1 – value 01 to 03\n"]
[null,"Date of Birth [DD/MM/YYYY]",10,"1. Instalment No > 1, should be blank\n2. Instalment No 0 or 1 – Date in format dd/mm/yyyy\n3. Age according to DOB should not be below 18 years and more than 100 years on first disbursement\n"]
[null,"PAN Card Number",11,"1. Instalment No > 1, should be blank\n2. Instalment No 0 or 1 – Can be blank or valid PAN No\n3. If value is provided should be in valid PAN No format – XXXXX12345X\n4. If UID is PAN and PAN is provided, both should be same\n"]
[null,"Employment Category [Self Employed (01), Salaried (02), Regular wage(03), Labour(04), Others (05)]",12,"1. Instalment No > 1, should be blank\n2. Instalment No 0 or 1 – Should be selected from drop down list\n"]
[null,"Communication Details[New Loan Account(01), Yes(02), No(03)]",13,"1. Instalment No 0 or 1 – value should be 01\n2. Instalment No > 1 – value can be 02 or 03\n"]
[null,"Residence Proof Type  [Aadhaar (01), Voter’s Card (02), Ration Card (03), Mobile/Telephone bill (04), Gas Bill(05), Others (07)]",14,"1. Instalment No 0 or 1 – value between 01 to 07\n2. Instalment No > 1  and communication details  is 03 – should be blank\n3. Instalment No > 1  and communication details  is 02 – should be selected from drop down list\n"]
[null,"Residence Address 1 (Plot/House/Flat/Door No. & Street etc)",15,"1. Instalment No 0 or 1 – Text value in the range of 10 Characters and maximum upto 20 chars \n2. Instalment No > 1  and communication details  is 03 – should be blank\n3. Instalment No > 1  and communication details  is 02 – Text value in the range of 2 Characters and maximum upto 100 chars\n"]
[null,"Residence Address 2 (Locality/Colony name)",16,"1. Instalment No 0 or 1 – Text value in the range of 2 Characters and maximum upto 50 chars \n2. Instalment No > 1  and communication details  is 03 – should be blank\n3. Instalment No > 1  and communication details  is 02 – Text value in the range of 2 Characters and maximum upto 100 chars\n"]
[null,"Residence Address 3 Place Name(City/Taluq/Village)",17,"1. Instalment No 0 or 1 – Text value in the range of 2 Characters and maximum upto 50 chars \n2. Instalment No > 1  and communication details  is 03 – should be blank\n3. Instalment No > 1  and communication details  is 02 – Text value in the range of 2 Characters and maximum upto 50 chars\n"]
[null,"Residence Address 4 (District)",18,"1. Instalment No 0 or 1 – Text value in the range of 2 Characters and maximum upto 50 chars \n2. Instalment No > 1  and communication details  is 03 – should be blank\n3. Instalment No > 1  and communication details  is 02 – Text value in the range of 2 Characters and maximum upto 50 chars\n"]
[null,"Residence Address 5 (State)",19,"1. Instalment No 0 or 1 – Select from drop down list \n2. Instalment No > 1  and communication details  is 03 – should be blank\n3. Instalment No > 1  and communication details  is 02 – Select from drop down list\n4. Refer Sheet abbreviation list for state code for 2 char state code\n"]
[null,"Residence Address 6 (Pincode)",20,"1. Instalment No 0 or 1 – Should be numeric value of 6 length \n2. Instalment No > 1  and communication details  is 03 – should be blank\n3. Instalment No > 1  and communication details  is 02 – Should be numeric value of 6 length\n"]
[null,"Mobile Number",21,"1. Can be blank, Installment No is greater than 1 and  and communication detail is 03\n2. If value given, should be  numeric value of 10 length\n"]
[null,"Category Caste* [General(01), SC (02), ST (03), OBC (04)]",22,"1. Instalment No 0 or 1 – Should be selected from drop down list \n2. Instalment No > 1  - Should be blank\n"]
[null,"Category Religion* [Whether belong to Hindu (01), Muslim (02), Christian (03), Sikh (04), Jainism (05), Buddhism (06), Zorastrianism(07), Others (08)]",23,"1. Instalment No 0 or 1 – Should be selected from drop down list \n2. Instalment No > 1  - Should be blank\n"]
[null,"Preference Given Based on: Person with Disability (01), Manual Scavenger (02), Widow(03), SC/ST/OBC (04), Minority(05), Transgender(06), No preference (07)]",24,"1. Instalment No 0 or 1 – Should be selected from drop down list \n2. Instalment No > 1  - Should be blank\n3. Category Cast – 01 – preference should not be 04\n4. Sex 01 or 02 – preference should not be 06\n"]
["III. Co-borrower Details (Spouse in cases of married couples)","Name of Co-borrower",25,"1. Optional , can be blank\n2. Instalment No 0 or 1 – Text value upto 50 Chars \n3. Instalment No > 1  - Should be blank\n4. Should contain text, spaces or periods\n","modify"]
[null,"Father's/ Husband's Name",26,"1. Optional , can be blank\n2. If Name of Co-borrower is provided, can not be blank\n3. Instalment No 0 or 1 – Text value upto 50 Chars \n4. Instalment No > 1  - Should be blank\n5. can contain text, spaces and periods\n","modify"]
[null,"Sex [Male (01), Female (02), Transgender (03)]",27,"1. Optional , can be blank\n2. If Name of Co-borrower is provided, value mandatory\n3. Instalment No 0 or 1 – select from drop down list \n4. Instalment No > 1  - Should be blank                                              5. Borrower name or co borrower name should be female\n","modify"]
[null,"Date of Birth [DD/MM/YYYY]",28,"1. Instalment No 0 or 1 – valid date in dd/mm/yyyy format and valid age from 18 to 120 years\n2. Instalment No > 1  - Should be blank\n3. Optional , can be blank\n4. If Name of Co-borrower is provided, value mandatory\n"]
[null,"Unique Identification Proof [Aadhaar (01), Voter’s Card (02), PAN Card (03), Passport No (04), Revenue Authority Certificate (05) Others (06)] ",29,"1. Instalment No 0 or 1 – select from drop down list \n2. Instalment No > 1  - Should be blank\n3. Optional , can be blank\n4. If Name of Co-borrower is provided, value mandatory\n"]
[null,"If Other (06)  then please specify(identification proof Type)",30,"1. Optional , can be blank\n2. If Name of Co-borrower is provided, value mandatory\n3. Instalment No 0 or 1 and UID Type 06, value mandatory\n4. Instalment No > 1  - Should be blank\n"]
[null,"Unique Identification No.",31,"Same is borrower"]
[null,"PAN Card No.",32,"Same is borrower"]
[null,"Employment Category [Self Employed (01), Salaried (02), Regular wage(03), Labour(04), Others (05)]",33,"Same is borrower"]
["IV. Household Details","Household Category (EWS/LIG)",34,"1. Instalment No 0 or 1 – select from drop down list\n2. Instalment No > 1  - Should be blank\n"]
[null,"Household Annual Income (Amount in Rs.)",35,"1. Instalment No 0 or 1 and house hold category EWS, should be upto 300000\n2. Instalment No 0 or 1 and house hold category LIG, should be between 300001 and 600000\n3. Instalment No > 1  - Should be blank\n"]
["V.Property Details","Property Type [Flat (01), Single Storey / Individual House (02), Extension (03), Repair(04)]",36,"1. Instalment No 0 or 1 – Select from drop down list\n2. Instalment No > 1  - Should be blank\n"]
[null,"Property Category [New(01), Re-purchased (02), Existing & Owned (03)]",37,"1. Instalment No > 1  - Should be blank\n2. Instalment No 0 or 1 – Select from drop down list\n3. Property Type 03 or 04 – category should be -03\n4. Property Type 01 or 02 – category should not be -03\n"]
[null,"Carpet Area of Property [Upto 30 sq.m. (01), More than 30 sq.m. and Upto 60 sq.m. (02), More than 60 sq.m(03)]",38,"1. Instalment No > 1  - Should be blank\n2. Instalment No 0 or 1 – value should be provided\n3. Property Type 03 or 04 and household category EWS value should be 01\n4. Property Type 03 or 04 and household category LIG value should be 02\n"]
[null,"Property Address 1 (Plot/House/Flat/Door No. & Street etc)",39,"1. Instalment No 0 or 1 – Text value in the range of 10 Characters and maximum upto 20 chars \n2. Instalment No > 1  and communication details  is 03 – should be blank\n3. Instalment No > 1  and communication details  is 02 – Text value in the range of 10 Characters and maximum upto 100 chars\n"]
[null,"Property Address 2 (Locality/Colony name)",40,"1. Instalment No 0 or 1 – Text value in the range of 10 Characters and maximum upto 20 chars \n2. Instalment No > 1  and communication details  is 03 – should be blank\n3. Instalment No > 1  and communication details  is 02 – Text value in the range of 10 Characters and maximum upto 100 chars\n"]
[null,"Property Address 3 [Name of the Place(City/Taluq/Village)]",41,"1. Instalment No 0 or 1 – Text value in the range of 10 Characters and maximum upto 20 chars \n2. Instalment No > 1  and communication details  is 03 – should be blank\n3. Instalment No > 1  and communication details  is 02 – Text value in the range of 10 Characters and maximum upto 15 chars\n"]
[null,"Property Address 6 (Pincode)",42,"1. Instalment No 0 or 1 – Should be numeric value of 6 length \n2. Instalment No > 1  and communication details  is 03 – should be blank\n3. Instalment No > 1  and communication details  is 02 – Should be numeric value of 6 length\n"]
[null,"Location Code (Based on Census 2011 for 4041 Statutory towns)",43,"1. Instalment No > 1  - should be blank      \n2. Instalment No 0 or 1 – should be numeric value – refer list of towns for valid values                                                                                3. Location code should match with town code in abbreviation list    \n","Modify"]
[null,"Name of the Place (Based on Census 2011 for 4041 Statutory towns)",44,"Automatically filled based on Location Code"]
[null,"Property Address 4 (District)",45,"Automatically filled based on Location Code"]
[null,"Property Address 5 (State)",46,"Automatically filled based on Location Code"]
[null,"Ownership Mode [(only in case of enhancement) (Whether Self owned (01), Inherited(02),Not applicable in case of purchase(03))]",47,"1. Instalment No > 1  - Should be blank\n2. Instalment No 0 or 1 – value should be provided\n3. Property Category 01 or 02 – values should be 03\n4. Property Category 03 – values should not be 03\n"]
["VI. Individual Housing Loan Details","Stage of Construction [ Yet to Start (00), Ground Level(01), Plinth Level(02), Roof Level(03), Finishing Stage (04), Superstructure Completed(For multistory only) (05), Completed(06)]",48,"1. Instalment No > 1  - Should not be “00”. If Property Category is 02 then stage of construction should be 04 or 06.","Modify"]
[null,"Loan Source [Direct (01), Govt. designated Agency/ULB (02), NGO (03), Developer (04)]",49,"1. Instalment No > 1  - Should be blank\n2. Instalment No 0 or 1 – select from drop down list\n"]
[null,"Loan Purpose [Purchase (01), Self Construction (02), Extension (03), Repair (04)]",50,"1. Instalment No > 1  - Should be blank\n2. Instalment No 0 or 1 – select from drop down list\n3. Property Type 03 – Value should be 03\n4. Property Type 04 – Value should be 04\n"]
[null,"Is the loan taken over or  Balance Transferred from another PLI  [Yes(01), No(02)]",51,"1. Instalment No > 1  - Should be blank\n2. Instalment No 0 or 1 – select from drop down list\n"]
[null,"Loan Amount Sanctioned (in Rs.)",52,"Should be non blank and numeric value > 0.  "]
[null,"Loan Interest Rate (% p.a.)",53,"Should be non blank and numeric value > 0.                                     Loan Interest Rate should be in the range 1 to 30 without % sign. In case interest rate falls below or above the range please contact NHB. "]
[null,"Loan Interest Rate Type (% p.a.) [fixed (01), floating(02)]",54,"Select from drop down list. If Installment No is greater than 1, should be blank.","Modify"]
[null,"Loan Tenure, including Moratorium Period (in months)",55,"Should be non blank and numeric value > 0"]
[null,"Loan Moratorium Period (in months), if any",56,"1. Should be numeric value, may be 0 and maximum value upto 36\n2. Should be less than loan tenure                                                       3. If Installment No is greater than 1 then should be blank\n","Modify"]
[null,"Repayment Start Date of Principal or EMI [DD/MM/YYYY]",57,"1. Mandatory value in dd/mm/yyyy format. If Installment no is greater than 1, should be blank","Modify"]
[null,"EMI Amount mentioned in Sanction Letter (in Rs.)",58,"Should be non blank and numeric value > 0 and below sanctioned amount. If Installment No is greater than 1 then should be blank","Modify"]
[null,"Date of First Disbursement Date [DD/MM/YYYY]",59,"1. Mandatory value in dd/mm/yyyy format\n2. Should not be before 17/06/2015\n3. Should be before current date\n4. Should not be after repayment start date\n"]
["VII. Current Disbursement Details","Current Loan Installment Disbursement Date for which subsidy claimed [DD/MM/YYYY]",60,"1. Mandatory value in dd/mm/yyyy format\n2. Instalment No 0 or 1 – First Disbursement Date and Current Disbursement Date should be same\n3. Instalment No > 1 – Current Disbursement Date should be after First Disbursement Date\n4. Should be upto current date\n"]
[null,"Loan Amount Disbursed for this Claim (in Rs.)",61,"Should be numeric value > 0 and less than or equal to santioned amount"]
[null,"Cumulative Loan Disbursement (excluding the disbursement made for the current subsidy claim)  (in Rs.)",62,"1. Mandatory value \n2. Instalment No 0 or 1 – should be 0\n3. Instalment No > 1 – Should be cumulative disbursement before current instalment and should not be 0\n4. Total of current disbursement and cumulative disbursement should not be more than loan sanctioned.\n"]
["VIII. Interest Subsidy Details","NPV of the Interest Subsidy Amount (in Rs.)",63,"Automatically computed"]
[null,"Interest Subsidy Amount Claimed (in Rs.)",64,"Automatically computed, can be edited, however can not be more than system computed amount(Col 63)"]
["IX. Miscellaneous Details","Cummulative subsidy released by NHB and credited to Borrower account before this claim",65,"1. Numeric value\n2. Instalment No 0 or 1 – should be 0\n3. Instalment No > 1 – Should be numeric value and greater than 0\n4. Sum of current claim and subsidy disbursed should not more than 220487\n"]
["Dependent Information","No. of Dependent",{"$f":"C65+1","v":66},"Optional numeric value .                                                  If Installment No is greater than 1 then should be blank.","Modify"]
[null,"Name 1",67,"No of dependent > 0, value can be provided. Can contain only text, spaces and periods.                                                                           If Installment No is greater than 1 then should be blank.","Modify"]
[null,"Adhar No 1",68,"No of dependent > 0, value can be provided.                                   If Installment NO is greater than 1, should be blank.","Modify"]
[null,"Name 2",69,"No of dependent > 0, value can be provided. Can contain only text, spaces and periods.                                                                           If Installment No is greater than 1 then should be blank.","Modify"]
[null,"Adhar No 2",70,"No of dependent > 1, value can be provided.                                   If Installment No is greater than 1, should be blank.","Modify"]
[null,"Name 3",71,"No of dependent > 0, value can be provided. Can contain only text, spaces and periods.                                                                           If Installment No is greater than 1 then should be blank.","Modify"]
[null,"Adhar No 3",72,"No of dependent > 2, value can be provided.                                  If Installment No is greater than 1, should be blank.","Modify"]
[null,"Name 4",73,"No of dependent > 0, value can be provided. Can contain only text, spaces and periods.                                                                           If Installment No is greater than 1 then should be blank.","Modify"]
[null,"Adhar No 4",74,"No of dependent > 3, value can be provided.                                   If Installment No is greater than 1, should be blank.","Modify"]